Workbook

Sheet CAPA
B3: DESCRIÇÃO DO PROJETO: | C3: =UPPER("Substituição das comportas na barragem de Boacica") -> SUBSTITUIÇÃO DAS COMPORTAS NA BARRAGEM DE BOACICA
B4: ENDEREÇO: | C4: Igreja Nova/AL (Coordenadas -10.114092491711494, -36.61240585148748)
B5: PRAZO DE EXECUÇÃO: | C5: 8 (oito) meses
B6: TABELAS REFERÊNCIA: | C6: ORSE (04/2023)/ SINAPI (05/2023)/ SICRO (01/2023)
B7: 2023-07-01
B8: COMPONENTES DO DOCUMENTO
B9: ABA | C9: DESCRIÇÃO DO CONTEÚDO DA ABA
B10: Geral
B11: Planilha Orçamentária' | C11: Apresenta os custos de uma obra agrupando serviços por macro itens ou por etapas (infraestrutura, superestrutura, vedações, canteiro, etc. Com composições de preço não desonerados
B12: Planilha Orçamentária Desoner' | C12: Apresenta os custos de uma obra agrupando serviços por macro itens ou por etapas (infraestrutura, superestrutura, vedações, canteiro, etc. Com composições de preço desonerados
B13: CPU | C13: Apresenta visão detalhada de macro itens ou etapas ao detalhar quantitativos e custos unitários de cada serviço a ser executado, além das parcelas referentes aos custos indiretos.
B14: MEM SERV | C14: Formulário para o cálculo das quantidades dos serviços.
B15: BDI serv | C15: Composição do BDI de serviços
B16: BDI forn | C16: Composição do BDI de fornecimento
B17: Encargos Sociais | C17: Encargos de acordo com SINAPI-AL
B18: Cronograma-não desonerado' | C18: Conograma fisico-financeiro de orçamento não desonerado
B19: Cronograma-desonerado' | C19: Conograma fisico-financeiro de orçamento desonerado
B21: RESUMO DA PLANILHA ORÇAMENTÁRIA - NÃO DESONERADA
B22: ITEM | C22: DESCRIÇÃO DA PARCELA | E22: VALOR
B23: 1 | C23: =VLOOKUP(B23,'Planilha Orçamentária'!$A$12:$F$105,4) -> 0 | E23: =SUMIF('Planilha Orçamentária'!$A$12:$A$105,B23,'Planilha Orçamentária'!$K$12:$K$105) -> 101761.1225
B24: 2 | C24: =VLOOKUP(B24,'Planilha Orçamentária'!$A$12:$F$105,4) -> 0 | E24: =SUMIF('Planilha Orçamentária'!$A$12:$A$105,B24,'Planilha Orçamentária'!$K$12:$K$105) -> 191811.4688
B25: 3 | C25: =VLOOKUP(B25,'Planilha Orçamentária'!$A$12:$F$105,4) -> 0 | E25: =SUMIF('Planilha Orçamentária'!$A$12:$A$105,B25,'Planilha Orçamentária'!$K$12:$K$105) -> 108453.5558
B26: 4 | C26: =VLOOKUP(B26,'Planilha Orçamentária'!$A$12:$F$105,4) -> 0 | E26: =SUMIF('Planilha Orçamentária'!$A$12:$A$105,B26,'Planilha Orçamentária'!$K$12:$K$105) -> 478357.269
B27: 5 | C27: =VLOOKUP(B27,'Planilha Orçamentária'!$A$12:$F$105,4) -> 0 | E27: =SUMIF('Planilha Orçamentária'!$A$12:$A$105,B27,'Planilha Orçamentária'!$K$12:$K$105) -> 163741.3818
B28: 6 | C28: =VLOOKUP(B28,'Planilha Orçamentária'!$A$12:$F$105,4) -> 0 | E28: =SUMIF('Planilha Orçamentária'!$A$12:$A$105,B28,'Planilha Orçamentária'!$K$12:$K$105) -> 136582.6789
B29: 7 | C29: =VLOOKUP(B29,'Planilha Orçamentária'!$A$12:$F$105,4) -> 0 | E29: =SUMIF('Planilha Orçamentária'!$A$12:$A$105,B29,'Planilha Orçamentária'!$K$12:$K$105) -> 164736.472
B30: TOTAL COM BDI: | E30: =SUM(E23:E29) -> 1345443.949
B32: RESUMO DA PLANILHA ORÇAMENTÁRIA - DESONERADA
B33: ITEM | C33: DESCRIÇÃO DA PARCELA | E33: VALOR
B34: 1 | C34: =VLOOKUP(B34,'Planilha Orçamentária'!$A$12:$F$105,4) -> 0 | E34: =SUMIF(#REF!,B23,#REF!) -> 
B35: 2 | C35: =VLOOKUP(B35,'Planilha Orçamentária'!$A$12:$F$105,4) -> 0 | E35: =SUMIF(#REF!,B24,#REF!) -> 
B36: 3 | C36: =VLOOKUP(B36,'Planilha Orçamentária'!$A$12:$F$105,4) -> 0 | E36: =SUMIF(#REF!,B25,#REF!) -> 
B37: 4 | C37: =VLOOKUP(B37,'Planilha Orçamentária'!$A$12:$F$105,4) -> 0 | E37: =SUMIF(#REF!,B26,#REF!) -> 
B38: 5 | C38: =VLOOKUP(B38,'Planilha Orçamentária'!$A$12:$F$105,4) -> 0 | E38: =SUMIF(#REF!,B27,#REF!) -> 
B39: 6 | C39: =VLOOKUP(B39,'Planilha Orçamentária'!$A$12:$F$105,4) -> 0 | E39: =SUMIF(#REF!,B28,#REF!) -> 
B40: 7 | C40: =VLOOKUP(B40,'Planilha Orçamentária'!$A$12:$F$105,4) -> 0 | E40: =SUMIF(#REF!,B29,#REF!) -> 
B41: TOTAL COM BDI: | E41: =SUM(E34:E40) -> 
H173: =SUM(H174:H177) -> 0
D177: mec | F177: 2 | G177: 128

Sheet Planilha Orçamentária
A1: Ministério do desenvolvimento Regional
A2: Companhia de desenvolvimento dos Vales do São Francisco e do Parnaíba
A4: PLANILHA ORÇAMENTÁRIA - ORÇAMENTO NÃO DESONERADO
A5: OBRA: | B5: =UPPER("Substituição das comportas na barragem de Boacica") -> SUBSTITUIÇÃO DAS COMPORTAS NA BARRAGEM DE BOACICA | I5: BDI (serv.): | J5: ='BDI serv'!D23 -> 0.2228 | K5: Bancos
A6: LOCAL: | B6: BARRAGEM BOACICA (IGREJA NOVA - AL) | I6: BDI (forn.): | J6: ='BDI forn'!E6 -> 0.147 | K6: 12/2023 - SINAPI/AL
A7: DATA BASE: | B7: 2024-02-01 | G7: Encargos sociais Horistas: | J7: ='Encargos Sociais'!E45 -> 1.1522 | K7: 10/2023 - SICRO/AL
K8: 05/2023 - EMBASA
A9: PRAZO: | B9: 240 DIAS | G9: Encargos sociais - Mensalista: | J9: ='Encargos Sociais'!F45 -> 0.7031 | K9: 12/2023 - ORSE
A10: ITEM | B10: REFERÊNCIA | F10: DESCRIÇÃO | G10: UNID. | H10: QUANT. | I10: CUSTO UNITÁRIO | J10: PREÇO UNITÁRIO | K10: PREÇO TOTAL | L10: TIPO de BDI | M10: CLASSIF
B11: FONTE | C11: CÓDIGO | D11: CATSER
A12: 1 | F12: ADMINISTRAÇÃO LOCAL | K12: =SUM(K13:K13) -> 101761.1225 | M12: ss
A13: 1.1 | B13: PRÓPRIA | C13: CPU.01 | D13: 1341 | E13: Supervisão / gerenciamento / fiscalização - projeto constru-ção / obras civis | F13: Administração local | G13: UNIDADE | H13: 1 | I13: =(SUMIFS(CPU!$H:$H,CPU!$B:$B,'Planilha Orçamentária'!$A13,CPU!$I:$I,"ss")+SUMIFS(CPU!$H:$H,CPU!$B:$B,'Planilha Orçamentária'!$A13,CPU!$I:$I,"mdo")+SUMIF('Comp SINAPI AL - NãoDesonerado'!G:G,'Planilha Orçamentária'!C13,'Comp SINAPI AL - NãoDesonerado'!K:K))*8 -> 83219.76 | J13: =(IF(L13="SERV",I13*(1+$J$5),I13*(1+$J$6))) -> 101761.1225 | K13: =(IF(L13="SERV",I13*H13*(1+$J$5),I13*H13*(1+$J$6))) -> 101761.1225 | L13: serv | M13: i | N13: =K13/K108 -> 0.07563386243
A15: 2 | F15: SERVIÇOS PRELIMINARES | K15: =SUM(K16:K27)/2 -> 191811.4688 | M15: ss
A16: 2.1 | F16: Canteiro de obras | K16: =SUM(K17:K25) -> 190924.5964 | M16: s
A17: 2.1.1 | B17: SINAPI | C17: 98524 | D17: 14044 | E17: Roçada / limpeza de área - mecanizada / manual | F17: =PROPER(IF(L17="i",VLOOKUP(C17,'Ins SINAPI AL -NãoDesonerado'!$A$8:$E$7500,2,0),VLOOKUP(C17,'Comp SINAPI AL - NãoDesonerado'!$G$7:$K$7500,2,0))) -> Limpeza Manual De Vegetação Em Terreno Com Enxada.Af_05/2018 | G17: =LOWER(IF(L17="i",VLOOKUP(C17,'Ins SINAPI AL -NãoDesonerado'!$A$8:$E$5189,3,0),VLOOKUP(C17,'Comp SINAPI AL - NãoDesonerado'!$G$7:$K$7500,3,0))) -> m2 | H17: =SUMIF('MEM SERV'!A:A,'Planilha Orçamentária'!A17,'MEM SERV'!H:H) -> 57 | I17: =SUMIFS(CPU!$H:$H,CPU!$B:$B,'Planilha Orçamentária'!$A17,CPU!$I:$I,"ss")+SUMIFS(CPU!$H:$H,CPU!$B:$B,'Planilha Orçamentária'!$A17,CPU!$I:$I,"mdo")+SUMIF('Comp SINAPI AL - NãoDesonerado'!G:G,'Planilha Orçamentária'!C17,'Comp SINAPI AL - NãoDesonerado'!K:K) -> 2.88 | J17: =IF(L17="SERV",I17*(1+$J$5),I17*(1+$J$6)) -> 3.521664 | K17: =IF(L17="SERV",I17*H17*(1+$J$5),I17*H17*(1+$J$6)) -> 200.734848 | L17: serv | M17: i
A18: 2.1.2 | B18: SINAPI | C18: 93207 | D18: 13455 | E18: Obras civis - pequenas obras / pintura em geral | F18: =PROPER(IF(L18="i",VLOOKUP(C18,'Ins SINAPI AL -NãoDesonerado'!$A$8:$E$5189,2,0),VLOOKUP(C18,'Comp SINAPI AL - NãoDesonerado'!$G$7:$K$6879,2,0))) -> Execução De Escritório Em Canteiro De Obra Em Chapa De Madeira Compensada, Não Incluso Mobiliário E Equipamentos. Af_02/2016 | G18: =LOWER(IF(L18="i",VLOOKUP(C18,'Ins SINAPI AL -NãoDesonerado'!$A$8:$E$5189,3,0),VLOOKUP(C18,'Comp SINAPI AL - NãoDesonerado'!$G$7:$K$6879,3,0))) -> m2 | H18: 12 | I18: =SUMIFS(CPU!$H:$H,CPU!$B:$B,'Planilha Orçamentária'!$A18,CPU!$I:$I,"ss")+SUMIFS(CPU!$H:$H,CPU!$B:$B,'Planilha Orçamentária'!$A18,CPU!$I:$I,"mdo")+SUMIF('Comp SINAPI AL - NãoDesonerado'!G:G,'Planilha Orçamentária'!C18,'Comp SINAPI AL - NãoDesonerado'!K:K) -> 1091.89 | J18: 1335.163092 | K18: 16021.9571 | L18: serv | M18: i
A19: 2.1.3 | B19: SINAPI | C19: 93208 | D19: 13455 | E19: Obras civis - pequenas obras / pintura em geral | F19: =PROPER(IF(L19="i",VLOOKUP(C19,'Ins SINAPI AL -NãoDesonerado'!$A$8:$E$5189,2,0),VLOOKUP(C19,'Comp SINAPI AL - NãoDesonerado'!$G$7:$K$6879,2,0))) -> Execução De Almoxarifado Em Canteiro De Obra Em Chapa De Madeira Compensada, Incluso Prateleiras. Af_02/2016 | G19: =LOWER(IF(L19="i",VLOOKUP(C19,'Ins SINAPI AL -NãoDesonerado'!$A$8:$E$5189,3,0),VLOOKUP(C19,'Comp SINAPI AL - NãoDesonerado'!$G$7:$K$6879,3,0))) -> m2 | H19: =SUMIF('MEM SERV'!A:A,'Planilha Orçamentária'!A19,'MEM SERV'!H:H) -> 7.5 | I19: =SUMIFS(CPU!$H:$H,CPU!$B:$B,'Planilha Orçamentária'!$A19,CPU!$I:$I,"ss")+SUMIFS(CPU!$H:$H,CPU!$B:$B,'Planilha Orçamentária'!$A19,CPU!$I:$I,"mdo")+SUMIF('Comp SINAPI AL - NãoDesonerado'!G:G,'Planilha Orçamentária'!C19,'Comp SINAPI AL - NãoDesonerado'!K:K) -> 885.41 | J19: 1082.679348 | K19: 8120.09511 | L19: serv | M19: i
A20: 2.1.4 | B20: PRÓPRIA | C20: CPU.04 | F20: Baia de resíduos para entulho, construção descoberta - Medindo (3,00x2,00)m, paredes em chapa de madeira compensada plastificada 20mm h=1,10m, piso em terreno natural fortemente apiloado, pilarete em eucalipto tratado 15cm (Adaptado AGESUL 0101000230) | G20: un | H20: =SUMIF('MEM SERV'!A:A,'Planilha Orçamentária'!A20,'MEM SERV'!H:H) -> 1 | I20: =SUMIFS(CPU!$H:$H,CPU!$B:$B,'Planilha Orçamentária'!$A20,CPU!$I:$I,"ss")+SUMIFS(CPU!$H:$H,CPU!$B:$B,'Planilha Orçamentária'!$A20,CPU!$I:$I,"mdo") -> 2575.14 | J20: 3148.881192 | K20: 3148.881192 | L20: serv | M20: i
A21: 2.1.5 | B21: SINAPI | C21: 93583 | D21: 13455 | E21: Obras civis - pequenas obras / pintura em geral | F21: =PROPER(IF(L21="i",VLOOKUP(C21,'Ins SINAPI AL -NãoDesonerado'!$A$8:$E$5189,2,0),VLOOKUP(C21,'Comp SINAPI AL - NãoDesonerado'!$G$7:$K$6879,2,0))) -> Execução De Central De Fôrmas, Produção De Argamassa Ou Concreto Em Canteiro De Obra, Não Incluso Mobiliário E Equipamentos. Af_04/2016 | G21: =LOWER(IF(L21="i",VLOOKUP(C21,'Ins SINAPI AL -NãoDesonerado'!$A$8:$E$5189,3,0),VLOOKUP(C21,'Comp SINAPI AL - NãoDesonerado'!$G$7:$K$6879,3,0))) -> m2 | H21: =SUMIF('MEM SERV'!A:A,'Planilha Orçamentária'!A21,'MEM SERV'!H:H) -> 12 | I21: =SUMIFS(CPU!$H:$H,CPU!$B:$B,'Planilha Orçamentária'!$A21,CPU!$I:$I,"ss")+SUMIFS(CPU!$H:$H,CPU!$B:$B,'Planilha Orçamentária'!$A21,CPU!$I:$I,"mdo")+SUMIF('Comp SINAPI AL - NãoDesonerado'!G:G,'Planilha Orçamentária'!C21,'Comp SINAPI AL - NãoDesonerado'!K:K) -> 482.55 | J21: 590.06214 | K21: 7080.74568 | L21: serv | M21: i
A22: 2.1.6 | B22: SINAPI | C22: 93210 | D22: 13455 | E22: Obras civis - pequenas obras / pintura em geral | F22: =PROPER(IF(L22="i",VLOOKUP(C22,'Ins SINAPI AL -NãoDesonerado'!$A$8:$E$5189,2,0),VLOOKUP(C22,'Comp SINAPI AL - NãoDesonerado'!$G$7:$K$6879,2,0))) -> Execução De Refeitório Em Canteiro De Obra Em Chapa De Madeira Compensada, Não Incluso Mobiliário E Equipamentos. Af_02/2016 | G22: =LOWER(IF(L22="i",VLOOKUP(C22,'Ins SINAPI AL -NãoDesonerado'!$A$8:$E$5189,3,0),VLOOKUP(C22,'Comp SINAPI AL - NãoDesonerado'!$G$7:$K$6879,3,0))) -> m2 | H22: =SUMIF('MEM SERV'!A:A,'Planilha Orçamentária'!A22,'MEM SERV'!H:H) -> 7.5 | I22: =SUMIFS(CPU!$H:$H,CPU!$B:$B,'Planilha Orçamentária'!$A22,CPU!$I:$I,"ss")+SUMIFS(CPU!$H:$H,CPU!$B:$B,'Planilha Orçamentária'!$A22,CPU!$I:$I,"mdo")+SUMIF('Comp SINAPI AL - NãoDesonerado'!G:G,'Planilha Orçamentária'!C22,'Comp SINAPI AL - NãoDesonerado'!K:K) -> 620.34 | J22: 758.551752 | K22: 5689.13814 | L22: serv | M22: i
A23: 2.1.7 | B23: SINAPI | C23: 93212 | D23: 13455 | E23: Obras civis - pequenas obras / pintura em geral | F23: =PROPER(IF(L23="i",VLOOKUP(C23,'Ins SINAPI AL -NãoDesonerado'!$A$8:$E$5189,2,0),VLOOKUP(C23,'Comp SINAPI AL - NãoDesonerado'!$G$7:$K$6879,2,0))) -> Execução De Sanitário E Vestiário Em Canteiro De Obra Em Chapa De Madeira Compensada, Não Incluso Mobiliário. Af_02/2016 | G23: =LOWER(IF(L23="i",VLOOKUP(C23,'Ins SINAPI AL -NãoDesonerado'!$A$8:$E$5189,3,0),VLOOKUP(C23,'Comp SINAPI AL - NãoDesonerado'!$G$7:$K$6879,3,0))) -> m2 | H23: =SUMIF('MEM SERV'!A:A,'Planilha Orçamentária'!A23,'MEM SERV'!H:H) -> 9 | I23: =SUMIFS(CPU!$H:$H,CPU!$B:$B,'Planilha Orçamentária'!$A23,CPU!$I:$I,"ss")+SUMIFS(CPU!$H:$H,CPU!$B:$B,'Planilha Orçamentária'!$A23,CPU!$I:$I,"mdo")+SUMIF('Comp SINAPI AL - NãoDesonerado'!G:G,'Planilha Orçamentária'!C23,'Comp SINAPI AL - NãoDesonerado'!K:K) -> 991.98 | J23: 1212.993144 | K23: 10916.9383 | L23: serv | M23: i
A24: 2.1.8 | B24: SINAPI | C24: 94975 | D24: 17140 | E24: Obras civis - concretagem | F24: =PROPER(IF(L24="i",VLOOKUP(C24,'Ins SINAPI AL -NãoDesonerado'!$A$8:$E$5189,2,0),VLOOKUP(C24,'Comp SINAPI AL - NãoDesonerado'!$G$7:$K$6879,2,0))) -> Concreto Fck = 15Mpa, Traço 1:3,4:3,5 (Em Massa Seca De Cimento/ Areia Média/ Brita 1) - Preparo Manual. Af_05/2021 | G24: =LOWER(IF(L24="i",VLOOKUP(C24,'Ins SINAPI AL -NãoDesonerado'!$A$8:$E$5189,3,0),VLOOKUP(C24,'Comp SINAPI AL - NãoDesonerado'!$G$7:$K$6879,3,0))) -> m3 | H24: =SUMIF('MEM SERV'!A:A,'Planilha Orçamentária'!A24,'MEM SERV'!H:H) -> 3.99 | I24: =SUMIFS(CPU!$H:$H,CPU!$B:$B,'Planilha Orçamentária'!$A24,CPU!$I:$I,"ss")+SUMIFS(CPU!$H:$H,CPU!$B:$B,'Planilha Orçamentária'!$A24,CPU!$I:$I,"mdo")+SUMIF('Comp SINAPI AL - NãoDesonerado'!G:G,'Planilha Orçamentária'!C24,'Comp SINAPI AL - NãoDesonerado'!K:K) -> 458.19 | J24: 560.274732 | K24: 2235.496181 | L24: serv | M24: i
A25: 2.1.9 | B25: PRÓPRIA | C25: CPU.37 | D25: 25259 | E25: Remanejamento de equipamento / mobiliário | F25: Mobilização | G25: un | H25: =SUMIF('MEM SERV'!A:A,'Planilha Orçamentária'!A25,'MEM SERV'!H:H) -> 1 | I25: =SUMIFS(CPU!$H:$H,CPU!$B:$B,'Planilha Orçamentária'!$A25,CPU!$I:$I,"ss")+SUMIFS(CPU!$H:$H,CPU!$B:$B,'Planilha Orçamentária'!$A25,CPU!$I:$I,"mdo")+SUMIF('Comp SINAPI AL - NãoDesonerado'!G:G,'Planilha Orçamentária'!C25,'Comp SINAPI AL - NãoDesonerado'!K:K) -> 112455.52 | J25: 137510.6099 | K25: 137510.6099 | L25: serv | M25: i
A26: 2.2 | F26: Sinalização | K26: =SUM(K27:K27) -> 886.872384 | M26: s
A27: 2.2.1 | B27: PRÓPRIA | C27: CPU.05 | D27: 13455 | E27: Obras civis - pequenas obras / pintura em geral | F27: Placa de obra em chapa aço galvanizado, instalada (Adaptado ORSE 51) | G27: m2 | H27: 2 | I27: =SUMIFS(CPU!$H:$H,CPU!$B:$B,'Planilha Orçamentária'!$A27,CPU!$I:$I,"ss")+SUMIFS(CPU!$H:$H,CPU!$B:$B,'Planilha Orçamentária'!$A27,CPU!$I:$I,"mdo")+SUMIF('Comp SINAPI AL - NãoDesonerado'!G:G,'Planilha Orçamentária'!C27,'Comp SINAPI AL - NãoDesonerado'!K:K) -> 362.64 | J27: =IF(L27="SERV",I27*(1+$J$5),I27*(1+$J$6)) -> 443.436192 | K27: =IF(L27="SERV",I27*H27*(1+$J$5),I27*H27*(1+$J$6)) -> 886.872384 | L27: serv | M27: i
A29: 3 | F29: VISITA TÉCNICA NA REGIÃO DA COMPORTA DA TOMADA D’ÁGUA E COMPORTA SEGMENTO | K29: =K30 -> 108453.5558
A30: 3.1 | F30: Vistoria e Laudo em região submersa | K30: =SUM(K31:K32) -> 108453.5558
A31: 3.1.1 | B31: PRÓPRIA | C31: CPU.06 | D31: 25259 | E31: Remanejamento de equipamento / mobiliário | F31: Mobilização e desmobilização da Equipe, Camara Hiperbarica e todos os equipamentos de mergulho envolvidos na operação | G31: un | H31: 1 | I31: =SUMIFS(CPU!$H:$H,CPU!$B:$B,'Planilha Orçamentária'!$A31,CPU!$I:$I,"ss")+SUMIFS(CPU!$H:$H,CPU!$B:$B,'Planilha Orçamentária'!$A31,CPU!$I:$I,"mdo")+SUMIF('Comp SINAPI AL - NãoDesonerado'!G:G,'Planilha Orçamentária'!C31,'Comp SINAPI AL - NãoDesonerado'!K:K) -> 42000 | J31: =IF(L31="SERV",I31*(1+$J$5),I31*(1+$J$6)) -> 51357.6 | K31: =IF(L31="SERV",I31*H31*(1+$J$5),I31*H31*(1+$J$6)) -> 51357.6 | L31: serv
A32: 3.1.2 | B32: SICRO | C32: 4816024 | D32: 22225 | E32: Serviço engenharia | F32: Operação de mergulho dependente em profundidade de até 30 m - inclusive descompressão | G32: h | H32: 160 | I32: 291.83 | J32: =IF(L32="SERV",I32*(1+$J$5),I32*(1+$J$6)) -> 356.849724 | K32: =IF(L32="SERV",I32*H32*(1+$J$5),I32*H32*(1+$J$6)) -> 57095.95584 | L32: serv
A34: 4 | F34: PLANO DE TRABALHO PARA SUBSTITUIÇÃO DA COMPORTA | K34: =SUM(K35,K37) -> 478357.269
A35: 4.1 | F35: Elaboração de plano para substituição da comporta | K35: =SUM(K36:K36) -> 78246.49511
A36: 4.1.1 | B36: PRÓPRIA | C36: CPU.07 | D36: 809 | E36: Consultoria / assessoria - engenharia | F36: =PROPER("PLANO DE TRABALHO PARA SUBSTITUIÇÃO DA COMPORTA") -> Plano De Trabalho Para Substituição Da Comporta | G36: un | H36: 1 | I36: =SUMIFS(CPU!$H:$H,CPU!$B:$B,'Planilha Orçamentária'!$A36,CPU!$I:$I,"ss")+SUMIFS(CPU!$H:$H,CPU!$B:$B,'Planilha Orçamentária'!$A36,CPU!$I:$I,"mdo")+SUMIF('Comp SINAPI AL - NãoDesonerado'!G:G,'Planilha Orçamentária'!C36,'Comp SINAPI AL - NãoDesonerado'!K:K) -> 63989.61 | J36: =IF(L36="SERV",I36*(1+$J$5),I36*(1+$J$6)) -> 78246.49511 | K36: =IF(L36="SERV",I36*H36*(1+$J$5),I36*H36*(1+$J$6)) -> 78246.49511 | L36: serv
A37: 4.2 | F37: Método de execução de substituição das comportas | K37: =SUM(K38:K40) -> 400110.7739
A38: 4.2.1 | B38: PROPRIA | C38: CPU.08 | D38: 2267 | E38: Instalação e montagem de equipamentos mecânicos/eletromecânicos | F38: Construção/adequação e instalação de comporta ensecadeira (stop-log) provisória a ser instalada na guia já existente da tomada d’água (alternativa "a") | G38: un | H38: 1 | I38: =SUMIFS(CPU!$H:$H,CPU!$B:$B,'Planilha Orçamentária'!$A38,CPU!$I:$I,"ss")+SUMIFS(CPU!$H:$H,CPU!$B:$B,'Planilha Orçamentária'!$A38,CPU!$I:$I,"mdo")+SUMIF('Comp SINAPI AL - NãoDesonerado'!G:G,'Planilha Orçamentária'!C38,'Comp SINAPI AL - NãoDesonerado'!K:K) -> 70868.2 | J38: =IF(L38="SERV",I38*(1+$J$5),I38*(1+$J$6)) -> 86657.63496 | K38: =IF(L38="SERV",I38*H38*(1+$J$5),I38*H38*(1+$J$6)) -> 86657.63496 | L38: serv
A39: 4.2.2 | B39: PROPRIA | C39: CPU.09 | D39: 2267 | E39: Instalação e montagem de equipamentos mecânicos/eletromecânicos | F39: Utilização de bloqueador inflável multidimensional (alternativa "c") | G39: un | H39: 1 | I39: =SUMIFS(CPU!$H:$H,CPU!$B:$B,'Planilha Orçamentária'!$A39,CPU!$I:$I,"ss")+SUMIFS(CPU!$H:$H,CPU!$B:$B,'Planilha Orçamentária'!$A39,CPU!$I:$I,"mdo")+SUMIF('Comp SINAPI AL - NãoDesonerado'!G:G,'Planilha Orçamentária'!C39,'Comp SINAPI AL - NãoDesonerado'!K:K) -> 155917.55 | J39: =IF(L39="SERV",I39*(1+$J$5),I39*(1+$J$6)) -> 190655.9801 | K39: =IF(L39="SERV",I39*H39*(1+$J$5),I39*H39*(1+$J$6)) -> 190655.9801 | L39: serv
A40: 4.2.3 | B40: PROPRIA | C40: CPU.10 | D40: 2267 | E40: Instalação e montagem de equipamentos mecânicos/eletromecânicos | F40: Vedação das entradas da tomada d’água com chapas metálicas (alternativa "b") | G40: un | H40: 1 | I40: =SUMIFS(CPU!$H:$H,CPU!$B:$B,'Planilha Orçamentária'!$A40,CPU!$I:$I,"ss")+SUMIFS(CPU!$H:$H,CPU!$B:$B,'Planilha Orçamentária'!$A40,CPU!$I:$I,"mdo")+SUMIF('Comp SINAPI AL - NãoDesonerado'!G:G,'Planilha Orçamentária'!C40,'Comp SINAPI AL - NãoDesonerado'!K:K) -> 100422.93 | J40: =IF(L40="SERV",I40*(1+$J$5),I40*(1+$J$6)) -> 122797.1588 | K40: =IF(L40="SERV",I40*H40*(1+$J$5),I40*H40*(1+$J$6)) -> 122797.1588 | L40: serv
A42: 5 | F42: COMPORTA SEGMENTO | K42: =SUM(K43:K49) -> 163741.3818 | M42: ss
A43: 5.1 | B43: PRÓPRIA | C43: CPU.11 | D43: 2267 | E43: Instalação e montagem de equipamentos mecânicos/eletromecânicos | F43: Desmontagem e retirada das comportas segmento existentes, compreendendo cilindro hidraulico, tabuleiro, braços, mancais e instalação eletrica e hidraulica | G43: un | H43: 1 | I43: =SUMIFS(CPU!$H:$H,CPU!$B:$B,'Planilha Orçamentária'!$A43,CPU!$I:$I,"ss")+SUMIFS(CPU!$H:$H,CPU!$B:$B,'Planilha Orçamentária'!$A43,CPU!$I:$I,"mdo")+SUMIF('Comp SINAPI AL - NãoDesonerado'!G:G,'Planilha Orçamentária'!C43,'Comp SINAPI AL - NãoDesonerado'!K:K) -> 30298.34 | J43: =IF(L43="SERV",I43*(1+$J$5),I43*(1+$J$6)) -> 37048.81015 | K43: =IF(L43="SERV",I43*H43*(1+$J$5),I43*H43*(1+$J$6)) -> 37048.81015 | L43: serv | M43: i
A44: 5.2 | B44: PRÓPRIA | C44: CPU.12 | D44: 2267 | E44: Instalação e montagem de equipamentos mecânicos/eletromecânicos | F44: Demolição e transporte do concreto das ranhuras das peças fixas existentes e demolição das peças fixas, compreendendo caminho de deslizamento, peças fixas laterais, soleira e peça fixa frontal. | G44: un | H44: 1 | I44: =SUMIFS(CPU!$H:$H,CPU!$B:$B,'Planilha Orçamentária'!$A44,CPU!$I:$I,"ss")+SUMIFS(CPU!$H:$H,CPU!$B:$B,'Planilha Orçamentária'!$A44,CPU!$I:$I,"mdo")+SUMIF('Comp SINAPI AL - NãoDesonerado'!G:G,'Planilha Orçamentária'!C44,'Comp SINAPI AL - NãoDesonerado'!K:K) -> 21658.36 | J44: 26483.84261 | K44: 26483.84261 | L44: serv | M44: i
A45: 5.3 | B45: PRÓPRIA | C45: CPU.13 | D45: 2267 | E45: Instalação e montagem de equipamentos mecânicos/eletromecânicos | F45: Preparação das ranhuras para receber as novas peças fixas | G45: un | H45: 1 | I45: =SUMIFS(CPU!$H:$H,CPU!$B:$B,'Planilha Orçamentária'!$A45,CPU!$I:$I,"ss")+SUMIFS(CPU!$H:$H,CPU!$B:$B,'Planilha Orçamentária'!$A45,CPU!$I:$I,"mdo")+SUMIF('Comp SINAPI AL - NãoDesonerado'!G:G,'Planilha Orçamentária'!C45,'Comp SINAPI AL - NãoDesonerado'!K:K) -> 5910.44 | J45: 7227.286032 | K45: 7227.286032 | L45: serv | M45: i
A46: 5.4 | B46: PRÓPRIA | C46: CPU.14 | D46: 2267 | E46: Instalação e montagem de equipamentos mecânicos/eletromecânicos | F46: Montagem das novas peças fixas | G46: un | H46: 1 | I46: =SUMIFS(CPU!$H:$H,CPU!$B:$B,'Planilha Orçamentária'!$A46,CPU!$I:$I,"ss")+SUMIFS(CPU!$H:$H,CPU!$B:$B,'Planilha Orçamentária'!$A46,CPU!$I:$I,"mdo")+SUMIF('Comp SINAPI AL - NãoDesonerado'!G:G,'Planilha Orçamentária'!C46,'Comp SINAPI AL - NãoDesonerado'!K:K) -> 51725.84 | J46: 63250.35715 | K46: 63250.35715 | L46: serv | M46: i
A47: 5.5 | B47: PRÓPRIA | C47: CPU.15 | D47: 17140 | E47: Obras civis - concretagem | F47: Concretagem das novas peças fixas | G47: un | H47: 1 | I47: =SUMIFS(CPU!$H:$H,CPU!$B:$B,'Planilha Orçamentária'!$A47,CPU!$I:$I,"ss")+SUMIFS(CPU!$H:$H,CPU!$B:$B,'Planilha Orçamentária'!$A47,CPU!$I:$I,"mdo")+SUMIF('Comp SINAPI AL - NãoDesonerado'!G:G,'Planilha Orçamentária'!C47,'Comp SINAPI AL - NãoDesonerado'!K:K) -> 9854.95 | J47: 12050.63286 | K47: 12050.63286 | L47: serv | M47: i
A48: 5.6 | B48: PRÓPRIA | C48: CPU.16 | D48: 17140 | E48: Obras civis - concretagem | F48: Retirada de formas das peças fixas | G48: un | H48: 1 | I48: =SUMIFS(CPU!$H:$H,CPU!$B:$B,'Planilha Orçamentária'!$A48,CPU!$I:$I,"ss")+SUMIFS(CPU!$H:$H,CPU!$B:$B,'Planilha Orçamentária'!$A48,CPU!$I:$I,"mdo")+SUMIF('Comp SINAPI AL - NãoDesonerado'!G:G,'Planilha Orçamentária'!C48,'Comp SINAPI AL - NãoDesonerado'!K:K) -> 4964.16 | J48: 6070.174848 | K48: 6070.174848 | L48: serv | M48: i
A49: 5.7 | B49: PRÓPRIA | C49: CPU.17 | D49: 1635 | E49: Obras civis - demolições | F49: Demolição da casa de comando das comportas segmento existente e transporte de entulho | G49: un | H49: 1 | I49: =SUMIFS(CPU!$H:$H,CPU!$B:$B,'Planilha Orçamentária'!$A49,CPU!$I:$I,"ss")+SUMIFS(CPU!$H:$H,CPU!$B:$B,'Planilha Orçamentária'!$A49,CPU!$I:$I,"mdo")+SUMIF('Comp SINAPI AL - NãoDesonerado'!G:G,'Planilha Orçamentária'!C49,'Comp SINAPI AL - NãoDesonerado'!K:K) -> 9494.83 | J49: 11610.27812 | K49: 11610.27812 | L49: serv | M49: i
A51: 6 | F51: CASA DE COMANDO | K51: =SUM(K52:K96)/2 -> 136582.6789 | M51: ss
A52: 6.1 | F52: Estrutura | K52: =SUM(K53:K74) -> 128474.0921 | M52: s
A53: 6.1.1 | B53: SINAPI | C53: 94807 | D53: 610632 | E53: Porta Tipo = Alumínio L = 90 cm e A = 210 cm | F53: Porta Em Aço De Abrir Tipo Veneziana Sem Guarnição, 87X210Cm, Fixação Com Parafusos - Fornecimento E Instalação. Af_12/2019 | G53: =LOWER(IF(L53="i",VLOOKUP(C53,'Ins SINAPI AL -NãoDesonerado'!$A$8:$E$5189,3,0),VLOOKUP(C53,'Comp SINAPI AL - NãoDesonerado'!$G$7:$K$6879,3,0))) -> un | H53: 1 | I53: =SUMIFS(CPU!$H:$H,CPU!$B:$B,'Planilha Orçamentária'!$A53,CPU!$I:$I,"ss")+SUMIFS(CPU!$H:$H,CPU!$B:$B,'Planilha Orçamentária'!$A53,CPU!$I:$I,"mdo")+SUMIF('Comp SINAPI AL - NãoDesonerado'!G:G,'Planilha Orçamentária'!C53,'Comp SINAPI AL - NãoDesonerado'!K:K) -> 660.93 | J53: =IF(L53="SERV",I53*(1+$J$5),I53*(1+$J$6)) -> 808.185204 | K53: =IF(L53="SERV",I53*H53*(1+$J$5),I53*H53*(1+$J$6)) -> 808.185204 | L53: serv | M53: i
A54: 6.1.2 | B54: SINAPI | C54: 94562 | D54: 15814 | E54: Instalação / remoção de divisória / painel / persiana / janela / porta / esquadria em geral | F54: Janela De Aço De Correr Com 4 Folhas Para Vidro, Com Batente, Ferragens E Pintura Anticorrosiva. Exclusive Vidros, Alizar E Contramarco. Fornecimento E Instalação. Af_12/2019 | G54: =LOWER(IF(L54="i",VLOOKUP(C54,'Ins SINAPI AL -NãoDesonerado'!$A$8:$E$5189,3,0),VLOOKUP(C54,'Comp SINAPI AL - NãoDesonerado'!$G$7:$K$6879,3,0))) -> m2 | H54: 4 | I54: =SUMIFS(CPU!$H:$H,CPU!$B:$B,'Planilha Orçamentária'!$A54,CPU!$I:$I,"ss")+SUMIFS(CPU!$H:$H,CPU!$B:$B,'Planilha Orçamentária'!$A54,CPU!$I:$I,"mdo")+SUMIF('Comp SINAPI AL - NãoDesonerado'!G:G,'Planilha Orçamentária'!C54,'Comp SINAPI AL - NãoDesonerado'!K:K) -> 603.51 | J54: 737.972028 | K54: 2951.888112 | L54: serv | M54: i
A55: 6.1.3 | B55: SINAPI | C55: 96526 | D55: 17140 | E55: Obras civis - concretagem | F55: Escavação Manual De Vala Para Viga Baldrame (Sem Escavação Para Colocação De Fôrmas). Af_06/2017 | G55: m3 | H55: 5.5 | I55: =SUMIFS(CPU!$H:$H,CPU!$B:$B,'Planilha Orçamentária'!$A55,CPU!$I:$I,"ss")+SUMIFS(CPU!$H:$H,CPU!$B:$B,'Planilha Orçamentária'!$A55,CPU!$I:$I,"mdo")+SUMIF('Comp SINAPI AL - NãoDesonerado'!G:G,'Planilha Orçamentária'!C55,'Comp SINAPI AL - NãoDesonerado'!K:K) -> 283.02 | J55: 346.076856 | K55: 1903.422708 | L55: serv | M55: i
A56: 6.1.4 | B56: SINAPI | C56: 100324 | D56: 17140 | E56: Obras civis - concretagem | F56: Lastro Com Material Granular (Pedra Britada N.1 E Pedra Britada N.2), Aplicado Em Pisos Ou Lajes Sobre Solo, Espessura De *10 Cm*. Af_07/2019 | G56: =LOWER(IF(L56="i",VLOOKUP(C56,'Ins SINAPI AL -NãoDesonerado'!$A$8:$E$5189,3,0),VLOOKUP(C56,'Comp SINAPI AL - NãoDesonerado'!$G$7:$K$6879,3,0))) -> m3 | H56: 1.3 | I56: =SUMIFS(CPU!$H:$H,CPU!$B:$B,'Planilha Orçamentária'!$A56,CPU!$I:$I,"ss")+SUMIFS(CPU!$H:$H,CPU!$B:$B,'Planilha Orçamentária'!$A56,CPU!$I:$I,"mdo")+SUMIF('Comp SINAPI AL - NãoDesonerado'!G:G,'Planilha Orçamentária'!C56,'Comp SINAPI AL - NãoDesonerado'!K:K) -> 123.33 | J56: 150.807924 | K56: 196.0503012 | L56: serv | M56: i
A57: 6.1.5 | B57: SINAPI | C57: 94990 | D57: 17140 | E57: Obras civis - concretagem | F57: Execução De Passeio (Calçada) Ou Piso De Concreto Com Concreto Moldado In Loco, Feito Em Obra, Acabamento Convencional, Não Armado. Af_08/2022 | G57: =LOWER(IF(L57="i",VLOOKUP(C57,'Ins SINAPI AL -NãoDesonerado'!$A$8:$E$5189,3,0),VLOOKUP(C57,'Comp SINAPI AL - NãoDesonerado'!$G$7:$K$6879,3,0))) -> m3 | H57: 5.48 | I57: =SUMIFS(CPU!$H:$H,CPU!$B:$B,'Planilha Orçamentária'!$A57,CPU!$I:$I,"ss")+SUMIFS(CPU!$H:$H,CPU!$B:$B,'Planilha Orçamentária'!$A57,CPU!$I:$I,"mdo")+SUMIF('Comp SINAPI AL - NãoDesonerado'!G:G,'Planilha Orçamentária'!C57,'Comp SINAPI AL - NãoDesonerado'!K:K) -> 715.87 | J57: 875.365836 | K57: 4797.004781 | L57: serv | M57: i
A58: 6.1.6 | B58: SINAPI | C58: 103319 | D58: 24813 | E58: Serviços de alvenaria | F58: Alvenaria De Vedação De Blocos Vazados De Concreto De 14X19X39 Cm (Espessura 14 Cm) E Argamassa De Assentamento Com Preparo Manual. Af_12/2021 | G58: =LOWER(IF(L58="i",VLOOKUP(C58,'Ins SINAPI AL -NãoDesonerado'!$A$8:$E$5189,3,0),VLOOKUP(C58,'Comp SINAPI AL - NãoDesonerado'!$G$7:$K$6879,3,0))) -> m2 | H58: 44.7 | I58: =SUMIFS(CPU!$H:$H,CPU!$B:$B,'Planilha Orçamentária'!$A58,CPU!$I:$I,"ss")+SUMIFS(CPU!$H:$H,CPU!$B:$B,'Planilha Orçamentária'!$A58,CPU!$I:$I,"mdo")+SUMIF('Comp SINAPI AL - NãoDesonerado'!G:G,'Planilha Orçamentária'!C58,'Comp SINAPI AL - NãoDesonerado'!K:K) -> 87.08 | J58: 106.481424 | K58: 4759.719653 | L58: serv | M58: i
A59: 6.1.7 | B59: SINAPI | C59: 103675 | D59: 17140 | E59: Obras civis - concretagem | F59: Concretagem De Vigas E Lajes, Fck=25 Mpa, Para Lajes Maciças Ou Nervuradas Com Uso De Bomba - Lançamento, Adensamento E Acabamento. Af_02/2022 | G59: =LOWER(IF(L59="i",VLOOKUP(C59,'Ins SINAPI AL -NãoDesonerado'!$A$8:$E$5189,3,0),VLOOKUP(C59,'Comp SINAPI AL - NãoDesonerado'!$G$7:$K$6879,3,0))) -> m3 | H59: 2.37 | I59: =SUMIFS(CPU!$H:$H,CPU!$B:$B,'Planilha Orçamentária'!$A59,CPU!$I:$I,"ss")+SUMIFS(CPU!$H:$H,CPU!$B:$B,'Planilha Orçamentária'!$A59,CPU!$I:$I,"mdo")+SUMIF('Comp SINAPI AL - NãoDesonerado'!G:G,'Planilha Orçamentária'!C59,'Comp SINAPI AL - NãoDesonerado'!K:K) -> 621.79 | J59: 760.324812 | K59: 1801.969804 | L59: serv | M59: i
A60: 6.1.8 | B60: SINAPI | C60: 92544 | D60: 19224 | E60: Construção / manutenção / reforma - telhado | F60: Trama De Madeira Composta Por Terças Para Telhados De Até 2 Águas Para Telha Estrutural De Fibrocimento, Incluso Transporte Vertical. Af_07/2019 | G60: =LOWER(IF(L60="i",VLOOKUP(C60,'Ins SINAPI AL -NãoDesonerado'!$A$8:$E$5189,3,0),VLOOKUP(C60,'Comp SINAPI AL - NãoDesonerado'!$G$7:$K$6879,3,0))) -> m2 | H60: 23.4 | I60: =SUMIFS(CPU!$H:$H,CPU!$B:$B,'Planilha Orçamentária'!$A60,CPU!$I:$I,"ss")+SUMIFS(CPU!$H:$H,CPU!$B:$B,'Planilha Orçamentária'!$A60,CPU!$I:$I,"mdo")+SUMIF('Comp SINAPI AL - NãoDesonerado'!G:G,'Planilha Orçamentária'!C60,'Comp SINAPI AL - NãoDesonerado'!K:K) -> 14.35 | J60: 17.54718 | K60: 410.604012 | L60: serv | M60: i
A61: 6.1.9 | B61: SINAPI | C61: 87904 | D61: 13455 | E61: Obras civis - pequenas obras / pintura em geral | F61: Chapisco Aplicado Em Alvenaria (Com Presença De Vãos) E Estruturas De Concreto De Fachada, Com Colher De Pedreiro. Argamassa Traço 1:3 Com Preparo Manual. Af_10/2022 | G61: =LOWER(IF(L61="i",VLOOKUP(C61,'Ins SINAPI AL -NãoDesonerado'!$A$8:$E$5189,3,0),VLOOKUP(C61,'Comp SINAPI AL - NãoDesonerado'!$G$7:$K$6879,3,0))) -> m2 | H61: 89.4 | I61: =SUMIFS(CPU!$H:$H,CPU!$B:$B,'Planilha Orçamentária'!$A61,CPU!$I:$I,"ss")+SUMIFS(CPU!$H:$H,CPU!$B:$B,'Planilha Orçamentária'!$A61,CPU!$I:$I,"mdo")+SUMIF('Comp SINAPI AL - NãoDesonerado'!G:G,'Planilha Orçamentária'!C61,'Comp SINAPI AL - NãoDesonerado'!K:K) -> 7.73 | J61: 9.452244 | K61: 845.0306136 | L61: serv | M61: i
A62: 6.1.10 | B62: SINAPI | C62: 94207 | D62: 19224 | E62: Construção / manutenção / reforma - telhado | F62: Telhamento Com Telha Ondulada De Fibrocimento E = 6 Mm, Com Recobrimento Lateral De 1/4 De Onda Para Telhado Com Inclinação Maior Que 10°, Com Até 2 Águas, Incluso Içamento. Af_07/2019 | G62: =LOWER(IF(L62="i",VLOOKUP(C62,'Ins SINAPI AL -NãoDesonerado'!$A$8:$E$5189,3,0),VLOOKUP(C62,'Comp SINAPI AL - NãoDesonerado'!$G$7:$K$6879,3,0))) -> m2 | H62: 25 | I62: =SUMIFS(CPU!$H:$H,CPU!$B:$B,'Planilha Orçamentária'!$A62,CPU!$I:$I,"ss")+SUMIFS(CPU!$H:$H,CPU!$B:$B,'Planilha Orçamentária'!$A62,CPU!$I:$I,"mdo")+SUMIF('Comp SINAPI AL - NãoDesonerado'!G:G,'Planilha Orçamentária'!C62,'Comp SINAPI AL - NãoDesonerado'!K:K) -> 67.01 | J62: 81.939828 | K62: 2048.4957 | L62: serv | M62: i
A63: 6.1.11 | B63: SINAPI | C63: 87530 | D63: 13455 | E63: Obras civis - pequenas obras / pintura em geral | F63: Massa Única, Para Recebimento De Pintura, Em Argamassa Traço 1:2:8, Preparo Manual, Aplicada Manualmente Em Faces Internas De Paredes, Espessura De 20Mm, Com Execução De Taliscas. Af_06/2014 | G63: =LOWER(IF(L63="i",VLOOKUP(C63,'Ins SINAPI AL -NãoDesonerado'!$A$8:$E$5189,3,0),VLOOKUP(C63,'Comp SINAPI AL - NãoDesonerado'!$G$7:$K$6879,3,0))) -> m2 | H63: 89.4 | I63: =SUMIFS(CPU!$H:$H,CPU!$B:$B,'Planilha Orçamentária'!$A63,CPU!$I:$I,"ss")+SUMIFS(CPU!$H:$H,CPU!$B:$B,'Planilha Orçamentária'!$A63,CPU!$I:$I,"mdo")+SUMIF('Comp SINAPI AL - NãoDesonerado'!G:G,'Planilha Orçamentária'!C63,'Comp SINAPI AL - NãoDesonerado'!K:K) -> 40.53 | J63: 49.560084 | K63: 4430.67151 | L63: serv | M63: i
A64: 6.1.12 | B64: SINAPI | C64: 88489 | D64: 13455 | E64: Obras civis - pequenas obras / pintura em geral | F64: Aplicação Manual De Pintura Com Tinta Látex Acrílica Em Paredes, Duas Demãos. Af_06/2014 | G64: =LOWER(IF(L64="i",VLOOKUP(C64,'Ins SINAPI AL -NãoDesonerado'!$A$8:$E$5189,3,0),VLOOKUP(C64,'Comp SINAPI AL - NãoDesonerado'!$G$7:$K$6879,3,0))) -> m2 | H64: 89.4 | I64: =SUMIFS(CPU!$H:$H,CPU!$B:$B,'Planilha Orçamentária'!$A64,CPU!$I:$I,"ss")+SUMIFS(CPU!$H:$H,CPU!$B:$B,'Planilha Orçamentária'!$A64,CPU!$I:$I,"mdo")+SUMIF('Comp SINAPI AL - NãoDesonerado'!G:G,'Planilha Orçamentária'!C64,'Comp SINAPI AL - NãoDesonerado'!K:K) -> 12.6 | J64: 15.40728 | K64: 1377.410832 | L64: serv | M64: i
A65: 6.1.13 | B65: SINAPI | C65: 97914 | D65: 23248 | E65: Prestação de serviço de transporte para serviço - mensal de 2ª a 6ª-feira | F65: Transporte Com Caminhão Basculante De 6 M³, Em Via Urbana Pavimentada, Dmt Até 30 Km (Unidade: M3Xkm). Af_07/2020 | G65: m3xkm | H65: 300 | I65: =SUMIFS(CPU!$H:$H,CPU!$B:$B,'Planilha Orçamentária'!$A65,CPU!$I:$I,"ss")+SUMIFS(CPU!$H:$H,CPU!$B:$B,'Planilha Orçamentária'!$A65,CPU!$I:$I,"mdo")+SUMIF('Comp SINAPI AL - NãoDesonerado'!G:G,'Planilha Orçamentária'!C65,'Comp SINAPI AL - NãoDesonerado'!K:K) -> 2.93 | J65: 3.582804 | K65: 1074.8412 | L65: serv | M65: i
A66: 6.1.14 | B66: PRÓPRIA | C66: CPU.18 | D66: 2267 | E66: Instalação e montagem de equipamentos mecânicos/eletromecânicos | F66: Montagem das comportas segmento - Montagem dos mancais das comportas | G66: un | H66: 1 | I66: =SUMIFS(CPU!$H:$H,CPU!$B:$B,'Planilha Orçamentária'!$A66,CPU!$I:$I,"ss")+SUMIFS(CPU!$H:$H,CPU!$B:$B,'Planilha Orçamentária'!$A66,CPU!$I:$I,"mdo")+SUMIF('Comp SINAPI AL - NãoDesonerado'!G:G,'Planilha Orçamentária'!C66,'Comp SINAPI AL - NãoDesonerado'!K:K) -> 7061.28 | J66: 8634.533184 | K66: 8634.533184 | L66: serv | M66: i
A67: 6.1.15 | B67: PRÓPRIA | C67: CPU.19 | D67: 2267 | E67: Instalação e montagem de equipamentos mecânicos/eletromecânicos | F67: Montagem das comportas segmento - Montagem dos tabuleiros completos com vedações e braços | G67: un | H67: 1 | I67: =SUMIFS(CPU!$H:$H,CPU!$B:$B,'Planilha Orçamentária'!$A67,CPU!$I:$I,"ss")+SUMIFS(CPU!$H:$H,CPU!$B:$B,'Planilha Orçamentária'!$A67,CPU!$I:$I,"mdo")+SUMIF('Comp SINAPI AL - NãoDesonerado'!G:G,'Planilha Orçamentária'!C67,'Comp SINAPI AL - NãoDesonerado'!K:K) -> 48043.82 | J67: 58747.9831 | K67: 58747.9831 | L67: serv | M67: i
A68: 6.1.16 | B68: PRÓPRIA | C68: CPU.20 | D68: 2267 | E68: Instalação e montagem de equipamentos mecânicos/eletromecânicos | F68: Montagem das comportas segmento - Montagem dos cilindros e seus mancais | G68: un | H68: 1 | I68: =SUMIFS(CPU!$H:$H,CPU!$B:$B,'Planilha Orçamentária'!$A68,CPU!$I:$I,"ss")+SUMIFS(CPU!$H:$H,CPU!$B:$B,'Planilha Orçamentária'!$A68,CPU!$I:$I,"mdo")+SUMIF('Comp SINAPI AL - NãoDesonerado'!G:G,'Planilha Orçamentária'!C68,'Comp SINAPI AL - NãoDesonerado'!K:K) -> 7061.28 | J68: 8634.533184 | K68: 8634.533184 | L68: serv | M68: i
A69: 6.1.17 | B69: PRÓPRIA | C69: CPU.21 | D69: 21687 | E69: Instalação/manutenção/operação - elétrica | F69: Montagem do sistema de acionamento da comporta - unidade hidraulica e painel eletrico | G69: un | H69: 1 | I69: =SUMIFS(CPU!$H:$H,CPU!$B:$B,'Planilha Orçamentária'!$A69,CPU!$I:$I,"ss")+SUMIFS(CPU!$H:$H,CPU!$B:$B,'Planilha Orçamentária'!$A69,CPU!$I:$I,"mdo")+SUMIF('Comp SINAPI AL - NãoDesonerado'!G:G,'Planilha Orçamentária'!C69,'Comp SINAPI AL - NãoDesonerado'!K:K) -> 3403.36 | J69: 4161.628608 | K69: 4161.628608 | L69: serv | M69: i
A70: 6.1.18 | B70: PRÓPRIA | C70: CPU.22 | D70: 2267 | E70: Instalação e montagem de equipamentos mecânicos/eletromecânicos | F70: Montagem do sistema de acionamento da comporta - interligação entre comportas e casa de comando | G70: un | H70: 1 | I70: =SUMIFS(CPU!$H:$H,CPU!$B:$B,'Planilha Orçamentária'!$A70,CPU!$I:$I,"ss")+SUMIFS(CPU!$H:$H,CPU!$B:$B,'Planilha Orçamentária'!$A70,CPU!$I:$I,"mdo")+SUMIF('Comp SINAPI AL - NãoDesonerado'!G:G,'Planilha Orçamentária'!C70,'Comp SINAPI AL - NãoDesonerado'!K:K) -> 8139.4 | J70: 9952.85832 | K70: 9952.85832 | L70: serv | M70: i
A71: 6.1.19 | B71: PRÓPRIA | C71: CPU.23 | D71: 21687 | E71: Instalação/manutenção/operação - elétrica | F71: Montagem do sistema de acionamento da comporta - interligação eletrica entre casa de comando e rede eletrica | G71: un | H71: 1 | I71: =SUMIFS(CPU!$H:$H,CPU!$B:$B,'Planilha Orçamentária'!$A71,CPU!$I:$I,"ss")+SUMIFS(CPU!$H:$H,CPU!$B:$B,'Planilha Orçamentária'!$A71,CPU!$I:$I,"mdo")+SUMIF('Comp SINAPI AL - NãoDesonerado'!G:G,'Planilha Orçamentária'!C71,'Comp SINAPI AL - NãoDesonerado'!K:K) -> 8437.6 | J71: 10317.49728 | K71: 10317.49728 | L71: serv | M71: i
A72: 6.1.20 | B72: SINAPI | C72: 91601 | D72: 255612 | E72: Ferro Construção Civil; Tipo: Ca-50; Diâmetro: 1/4 POL | F72: =PROPER(IF(L72="i",VLOOKUP(C72,'Ins SINAPI AL -NãoDesonerado'!$A$8:$E$5189,2,0),VLOOKUP(C72,'Comp SINAPI AL - NãoDesonerado'!$G$7:$K$6879,2,0))) -> Armação Do Sistema De Paredes De Concreto, Executada Como Reforço, Vergalhão De 6,3 Mm De Diâmetro. Af_06/2019 | G72: =LOWER(IF(L72="i",VLOOKUP(C72,'Ins SINAPI AL -NãoDesonerado'!$A$8:$E$5189,3,0),VLOOKUP(C72,'Comp SINAPI AL - NãoDesonerado'!$G$7:$K$7500,3,0))) -> kg | H72: 14.6 | I72: =SUMIFS(CPU!$H:$H,CPU!$B:$B,'Planilha Orçamentária'!$A72,CPU!$I:$I,"ss")+SUMIFS(CPU!$H:$H,CPU!$B:$B,'Planilha Orçamentária'!$A72,CPU!$I:$I,"mdo")+SUMIF('Comp SINAPI AL - NãoDesonerado'!G:G,'Planilha Orçamentária'!C72,'Comp SINAPI AL - NãoDesonerado'!K:K) -> 12.92 | J72: 15.798576 | K72: 230.6592096 | L72: serv | M72: s
A73: 6.1.21 | B73: SINAPI | C73: 101792 | D73: 17140 | E73: Obras civis - concretagem | F73: =PROPER(IF(L73="i",VLOOKUP(C73,'Ins SINAPI AL -NãoDesonerado'!$A$8:$E$5189,2,0),VLOOKUP(C73,'Comp SINAPI AL - NãoDesonerado'!$G$7:$K$6879,2,0))) -> Escoramento De Fôrmas De Laje Em Madeira Não Aparelhada, Pé-Direito Simples, Incluso Travamento, 4 Utilizações. Af_09/2020 | G73: m3 | H73: 15.6 | I73: =SUMIFS(CPU!$H:$H,CPU!$B:$B,'Planilha Orçamentária'!$A73,CPU!$I:$I,"ss")+SUMIFS(CPU!$H:$H,CPU!$B:$B,'Planilha Orçamentária'!$A73,CPU!$I:$I,"mdo")+SUMIF('Comp SINAPI AL - NãoDesonerado'!G:G,'Planilha Orçamentária'!C73,'Comp SINAPI AL - NãoDesonerado'!K:K) -> 17.28 | J73: 21.129984 | K73: 329.6277504 | L73: serv
A74: 6.1.22 | B74: SINAPI | C74: 97087 | D74: 447902 | E74: Lona Plástica | F74: =PROPER(IF(L74="i",VLOOKUP(C74,'Ins SINAPI AL -NãoDesonerado'!$A$8:$E$5189,2,0),VLOOKUP(C74,'Comp SINAPI AL - NãoDesonerado'!$G$7:$K$6879,2,0))) -> Camada Separadora Para Execução De Radier, Piso De Concreto Ou Laje Sobre Solo, Em Lona Plástica. Af_09/2021 | G74: =LOWER(IF(L74="i",VLOOKUP(C74,'Ins SINAPI AL -NãoDesonerado'!$A$8:$E$5189,3,0),VLOOKUP(C74,'Comp SINAPI AL - NãoDesonerado'!$G$7:$K$7500,3,0))) -> m2 | H74: 16 | I74: =SUMIFS(CPU!$H:$H,CPU!$B:$B,'Planilha Orçamentária'!$A74,CPU!$I:$I,"ss")+SUMIFS(CPU!$H:$H,CPU!$B:$B,'Planilha Orçamentária'!$A74,CPU!$I:$I,"mdo")+SUMIF('Comp SINAPI AL - NãoDesonerado'!G:G,'Planilha Orçamentária'!C74,'Comp SINAPI AL - NãoDesonerado'!K:K) -> 3.04 | J74: 3.717312 | K74: 59.476992 | L74: serv
A75: 6.2 | F75: Instalações elétricas | K75: =SUM(K76:K96) -> 8108.586823 | M75: s
A76: 6.2.1 | B76: SINAPI | C76: 101875 | D76: 602032 | E76: Quadro Distribuição Quantidade Fases: 3 Barramento: Cobre 3 Fases/Neutro/Terra Material: Chapa De Aço Corrente Nominal: 630 A Quantidade De Disjuntores: 15 Tensão Nominal: 220 V Capacidade Nominal: 415 KVA | F76: =PROPER(IF(L76="i",VLOOKUP(C76,'Ins SINAPI AL -NãoDesonerado'!$A$8:$E$5189,2,0),VLOOKUP(C76,'Comp SINAPI AL - NãoDesonerado'!$G$7:$K$6879,2,0))) -> Quadro De Distribuição De Energia Em Chapa De Aço Galvanizado, De Embutir, Com Barramento Trifásico, Para 12 Disjuntores Din 100A - Fornecimento E Instalação. Af_10/2020 | G76: =LOWER(IF(L76="i",VLOOKUP(C76,'Ins SINAPI AL -NãoDesonerado'!$A$8:$E$5189,3,0),VLOOKUP(C76,'Comp SINAPI AL - NãoDesonerado'!$G$7:$K$6879,3,0))) -> un | H76: 1 | I76: =SUMIFS(CPU!$H:$H,CPU!$B:$B,'Planilha Orçamentária'!$A76,CPU!$I:$I,"ss")+SUMIFS(CPU!$H:$H,CPU!$B:$B,'Planilha Orçamentária'!$A76,CPU!$I:$I,"mdo")+SUMIF('Comp SINAPI AL - NãoDesonerado'!G:G,'Planilha Orçamentária'!C76,'Comp SINAPI AL - NãoDesonerado'!K:K) -> 510.64 | J76: =IF(L76="SERV",I76*(1+$J$5),I76*(1+$J$6)) -> 624.410592 | K76: =IF(L76="SERV",I76*H76*(1+$J$5),I76*H76*(1+$J$6)) -> 624.410592 | L76: serv | M76: i
A77: 6.2.2 | B77: SINAPI | C77: 95802 | D77: 256529 | E77: Condulete | F77: =PROPER(IF(L77="i",VLOOKUP(C77,'Ins SINAPI AL -NãoDesonerado'!$A$8:$E$5189,2,0),VLOOKUP(C77,'Comp SINAPI AL - NãoDesonerado'!$G$7:$K$6879,2,0))) -> Condulete De Alumínio, Tipo X, Para Eletroduto De Aço Galvanizado Dn 25 Mm (1''), Aparente - Fornecimento E Instalação. Af_10/2022 | G77: =LOWER(IF(L77="i",VLOOKUP(C77,'Ins SINAPI AL -NãoDesonerado'!$A$8:$E$5189,3,0),VLOOKUP(C77,'Comp SINAPI AL - NãoDesonerado'!$G$7:$K$6879,3,0))) -> un | H77: 1 | I77: =SUMIFS(CPU!$H:$H,CPU!$B:$B,'Planilha Orçamentária'!$A77,CPU!$I:$I,"ss")+SUMIFS(CPU!$H:$H,CPU!$B:$B,'Planilha Orçamentária'!$A77,CPU!$I:$I,"mdo")+SUMIF('Comp SINAPI AL - NãoDesonerado'!G:G,'Planilha Orçamentária'!C77,'Comp SINAPI AL - NãoDesonerado'!K:K) -> 50.29 | J77: 61.494612 | K77: 61.494612 | L77: serv | M77: i
A78: 6.2.3 | B78: SINAPI | C78: 91924 | D78: 471955 | E78: Cabo Elétrico Flexível - Vermelho | F78: =PROPER(IF(L78="i",VLOOKUP(C78,'Ins SINAPI AL -NãoDesonerado'!$A$8:$E$5189,2,0),VLOOKUP(C78,'Comp SINAPI AL - NãoDesonerado'!$G$7:$K$6879,2,0))) -> Cabo De Cobre Flexível Isolado, 1,5 Mm², Anti-Chama 450/750 V, Para Circuitos Terminais - Fornecimento E Instalação. Af_03/2023 | G78: =LOWER(IF(L78="i",VLOOKUP(C78,'Ins SINAPI AL -NãoDesonerado'!$A$8:$E$5189,3,0),VLOOKUP(C78,'Comp SINAPI AL - NãoDesonerado'!$G$7:$K$6879,3,0))) -> m | H78: 110 | I78: =SUMIFS(CPU!$H:$H,CPU!$B:$B,'Planilha Orçamentária'!$A78,CPU!$I:$I,"ss")+SUMIFS(CPU!$H:$H,CPU!$B:$B,'Planilha Orçamentária'!$A78,CPU!$I:$I,"mdo")+SUMIF('Comp SINAPI AL - NãoDesonerado'!G:G,'Planilha Orçamentária'!C78,'Comp SINAPI AL - NãoDesonerado'!K:K) -> 2.98 | J78: 3.643944 | K78: 400.83384 | L78: serv | M78: i
A79: 6.2.4 | B79: SINAPI | C79: 91926 | D79: 471954 | E79: Cabo Elétrico Flexível - Preto | F79: =PROPER(IF(L79="i",VLOOKUP(C79,'Ins SINAPI AL -NãoDesonerado'!$A$8:$E$5189,2,0),VLOOKUP(C79,'Comp SINAPI AL - NãoDesonerado'!$G$7:$K$6879,2,0))) -> Cabo De Cobre Flexível Isolado, 2,5 Mm², Anti-Chama 450/750 V, Para Circuitos Terminais - Fornecimento E Instalação. Af_03/2023 | G79: =LOWER(IF(L79="i",VLOOKUP(C79,'Ins SINAPI AL -NãoDesonerado'!$A$8:$E$5189,3,0),VLOOKUP(C79,'Comp SINAPI AL - NãoDesonerado'!$G$7:$K$6879,3,0))) -> m | H79: 150 | I79: =SUMIFS(CPU!$H:$H,CPU!$B:$B,'Planilha Orçamentária'!$A79,CPU!$I:$I,"ss")+SUMIFS(CPU!$H:$H,CPU!$B:$B,'Planilha Orçamentária'!$A79,CPU!$I:$I,"mdo")+SUMIF('Comp SINAPI AL - NãoDesonerado'!G:G,'Planilha Orçamentária'!C79,'Comp SINAPI AL - NãoDesonerado'!K:K) -> 4.31 | J79: 5.270268 | K79: 790.5402 | L79: serv | M79: i
A80: 6.2.5 | B80: SINAPI | C80: 91928 | D80: 363602 | E80: Cabo Elétrico Flexível - Preto | F80: =PROPER(IF(L80="i",VLOOKUP(C80,'Ins SINAPI AL -NãoDesonerado'!$A$8:$E$5189,2,0),VLOOKUP(C80,'Comp SINAPI AL - NãoDesonerado'!$G$7:$K$6879,2,0))) -> Cabo De Cobre Flexível Isolado, 4 Mm², Anti-Chama 450/750 V, Para Circuitos Terminais - Fornecimento E Instalação. Af_03/2023 | G80: =LOWER(IF(L80="i",VLOOKUP(C80,'Ins SINAPI AL -NãoDesonerado'!$A$8:$E$5189,3,0),VLOOKUP(C80,'Comp SINAPI AL - NãoDesonerado'!$G$7:$K$6879,3,0))) -> m | H80: 60 | I80: =SUMIFS(CPU!$H:$H,CPU!$B:$B,'Planilha Orçamentária'!$A80,CPU!$I:$I,"ss")+SUMIFS(CPU!$H:$H,CPU!$B:$B,'Planilha Orçamentária'!$A80,CPU!$I:$I,"mdo")+SUMIF('Comp SINAPI AL - NãoDesonerado'!G:G,'Planilha Orçamentária'!C80,'Comp SINAPI AL - NãoDesonerado'!K:K) -> 6.65 | J80: 8.13162 | K80: 487.8972 | L80: serv | M80: i
A81: 6.2.6 | B81: SINAPI | C81: 91932 | D81: 333637 | E81: Cabo Elétrico Flexível - Preto | F81: =PROPER(IF(L81="i",VLOOKUP(C81,'Ins SINAPI AL -NãoDesonerado'!$A$8:$E$5189,2,0),VLOOKUP(C81,'Comp SINAPI AL - NãoDesonerado'!$G$7:$K$6879,2,0))) -> Cabo De Cobre Flexível Isolado, 10 Mm², Anti-Chama 450/750 V, Para Circuitos Terminais - Fornecimento E Instalação. Af_03/2023 | G81: =LOWER(IF(L81="i",VLOOKUP(C81,'Ins SINAPI AL -NãoDesonerado'!$A$8:$E$5189,3,0),VLOOKUP(C81,'Comp SINAPI AL - NãoDesonerado'!$G$7:$K$6879,3,0))) -> m | H81: 15 | I81: =SUMIFS(CPU!$H:$H,CPU!$B:$B,'Planilha Orçamentária'!$A81,CPU!$I:$I,"ss")+SUMIFS(CPU!$H:$H,CPU!$B:$B,'Planilha Orçamentária'!$A81,CPU!$I:$I,"mdo")+SUMIF('Comp SINAPI AL - NãoDesonerado'!G:G,'Planilha Orçamentária'!C81,'Comp SINAPI AL - NãoDesonerado'!K:K) -> 16.61 | J81: 20.310708 | K81: 304.66062 | L81: serv | M81: i
A82: 6.2.7 | B82: SINAPI | C82: 91870 | D82: 365155 | E82: Eletroduto | F82: =PROPER(IF(L82="i",VLOOKUP(C82,'Ins SINAPI AL -NãoDesonerado'!$A$8:$E$5189,2,0),VLOOKUP(C82,'Comp SINAPI AL - NãoDesonerado'!$G$7:$K$6879,2,0))) -> Eletroduto Rígido Roscável, Pvc, Dn 20 Mm (1/2"), Para Circuitos Terminais, Instalado Em Parede - Fornecimento E Instalação. Af_03/2023 | G82: =LOWER(IF(L82="i",VLOOKUP(C82,'Ins SINAPI AL -NãoDesonerado'!$A$8:$E$5189,3,0),VLOOKUP(C82,'Comp SINAPI AL - NãoDesonerado'!$G$7:$K$6879,3,0))) -> m | H82: 50 | I82: =SUMIFS(CPU!$H:$H,CPU!$B:$B,'Planilha Orçamentária'!$A82,CPU!$I:$I,"ss")+SUMIFS(CPU!$H:$H,CPU!$B:$B,'Planilha Orçamentária'!$A82,CPU!$I:$I,"mdo")+SUMIF('Comp SINAPI AL - NãoDesonerado'!G:G,'Planilha Orçamentária'!C82,'Comp SINAPI AL - NãoDesonerado'!K:K) -> 12.46 | J82: 15.236088 | K82: 761.8044 | L82: serv | M82: i
A83: 6.2.8 | B83: PRÓPRIA | C83: CPU.24 | D83: 408859 | E83: Disjuntor Baixa Tensão | F83: Disjuntor Termomagnético Monopolar, Corrente Nominal De 63A - Fornecimento E Instalação. (Adaptado SINAPI 101895) | G83: un | H83: 1 | I83: =SUMIFS(CPU!$H:$H,CPU!$B:$B,'Planilha Orçamentária'!$A83,CPU!$I:$I,"ss")+SUMIFS(CPU!$H:$H,CPU!$B:$B,'Planilha Orçamentária'!$A83,CPU!$I:$I,"mdo")+SUMIF('Comp SINAPI AL - NãoDesonerado'!G:G,'Planilha Orçamentária'!C83,'Comp SINAPI AL - NãoDesonerado'!K:K) -> 81.68 | J83: 99.878304 | K83: 99.878304 | L83: serv | M83: i
A84: 6.2.9 | B84: PRÓPRIA | C84: CPU.25 | D84: 482698 | E84: Disjuntor Baixa Tensão | F84: Disjuntor Termomagnético Monopolar, Corrente Nominal De 32A - Fornecimento E Instalação. (Adaptado SINAPI 101895) | G84: un | H84: 1 | I84: =SUMIFS(CPU!$H:$H,CPU!$B:$B,'Planilha Orçamentária'!$A84,CPU!$I:$I,"ss")+SUMIFS(CPU!$H:$H,CPU!$B:$B,'Planilha Orçamentária'!$A84,CPU!$I:$I,"mdo")+SUMIF('Comp SINAPI AL - NãoDesonerado'!G:G,'Planilha Orçamentária'!C84,'Comp SINAPI AL - NãoDesonerado'!K:K) -> 73.69 | J84: 90.108132 | K84: 90.108132 | L84: serv | M84: i
A85: 6.2.10 | B85: PRÓPRIA | C85: CPU.26 | D85: 408855 | E85: Disjuntor Baixa Tensão | F85: Disjuntor Termomagnético Monopolar, Corrente Nominal De 16A - Fornecimento E Instalação. (Adaptado SINAPI 101895) | G85: un | H85: 6 | I85: =SUMIFS(CPU!$H:$H,CPU!$B:$B,'Planilha Orçamentária'!$A85,CPU!$I:$I,"ss")+SUMIFS(CPU!$H:$H,CPU!$B:$B,'Planilha Orçamentária'!$A85,CPU!$I:$I,"mdo")+SUMIF('Comp SINAPI AL - NãoDesonerado'!G:G,'Planilha Orçamentária'!C85,'Comp SINAPI AL - NãoDesonerado'!K:K) -> 73.69 | J85: 90.108132 | K85: 540.648792 | L85: serv | M85: i
A86: 6.2.11 | B86: PRÓPRIA | C86: CPU.27 | D86: 484192 | E86: Disjuntor Baixa Tensão | F86: Disjuntor Termomagnético Monopolar, Corrente Nominal De 4A - Fornecimento E Instalação. (Adaptado SINAPI 101895) | G86: un | H86: 1 | I86: =SUMIFS(CPU!$H:$H,CPU!$B:$B,'Planilha Orçamentária'!$A86,CPU!$I:$I,"ss")+SUMIFS(CPU!$H:$H,CPU!$B:$B,'Planilha Orçamentária'!$A86,CPU!$I:$I,"mdo")+SUMIF('Comp SINAPI AL - NãoDesonerado'!G:G,'Planilha Orçamentária'!C86,'Comp SINAPI AL - NãoDesonerado'!K:K) -> 119.19 | J86: 145.745532 | K86: 145.745532 | L86: serv | M86: i
A87: 6.2.12 | B87: PRÓPRIA | C87: CPU.28 | D87: 373035 | E87: Protetor Contra Surto Transitorio Eletrico - Raios / Descarga Atmosferica | F87: DPS - Dispositivo de Proteção Contra Surto Elétrico - 45KA / 1P (Adaptado FDE 09.02.043) | G87: un | H87: 1 | I87: =SUMIFS(CPU!$H:$H,CPU!$B:$B,'Planilha Orçamentária'!$A87,CPU!$I:$I,"ss")+SUMIFS(CPU!$H:$H,CPU!$B:$B,'Planilha Orçamentária'!$A87,CPU!$I:$I,"mdo")+SUMIF('Comp SINAPI AL - NãoDesonerado'!G:G,'Planilha Orçamentária'!C87,'Comp SINAPI AL - NãoDesonerado'!K:K) -> 439.67 | J87: 537.628476 | K87: 537.628476 | L87: serv | M87: i
A88: 6.2.13 | B88: PRÓPRIA | C88: CPU.29 | D88: 359531 | E88: Protetor Contra Surto Transitorio Eletrico - Raios / Descarga Atmosferica | F88: Disjuntor De Proteção Diferencial Residual (Dr), Bipolar, Tipo Din, Corrente Nominal De 63A, Alta Sensibilidade, Corrente Diferencial Residual Nominal Com Atuação De 30Ma (Adaptado SETOP ED-15116) | G88: un | H88: 2 | I88: =SUMIFS(CPU!$H:$H,CPU!$B:$B,'Planilha Orçamentária'!$A88,CPU!$I:$I,"ss")+SUMIFS(CPU!$H:$H,CPU!$B:$B,'Planilha Orçamentária'!$A88,CPU!$I:$I,"mdo")+SUMIF('Comp SINAPI AL - NãoDesonerado'!G:G,'Planilha Orçamentária'!C88,'Comp SINAPI AL - NãoDesonerado'!K:K) -> 238.06 | J88: 291.099768 | K88: 582.199536 | L88: serv | M88: i
A89: 6.2.14 | B89: PRÓPRIA | C89: CPU.30 | D89: 264486 | E89: Caixa Tomada | F89: Tomada 2p + t, ABNT, de sobrepor, 20A, sistema X Tomada 2p + t, ABNT, de sobrepor, 20 A, sistema X (Adaptado ORSE 12156) | G89: un | H89: 3 | I89: =SUMIFS(CPU!$H:$H,CPU!$B:$B,'Planilha Orçamentária'!$A89,CPU!$I:$I,"ss")+SUMIFS(CPU!$H:$H,CPU!$B:$B,'Planilha Orçamentária'!$A89,CPU!$I:$I,"mdo")+SUMIF('Comp SINAPI AL - NãoDesonerado'!G:G,'Planilha Orçamentária'!C89,'Comp SINAPI AL - NãoDesonerado'!K:K) -> 266.8 | J89: 326.24304 | K89: 978.72912 | L89: serv | M89: i
A90: 6.2.15 | B90: SINAPI | C90: 91961 | D90: 468944 | E90: Interruptor de Sobrepor | F90: =PROPER(IF(L90="i",VLOOKUP(C90,'Ins SINAPI AL -NãoDesonerado'!$A$8:$E$5189,2,0),VLOOKUP(C90,'Comp SINAPI AL - NãoDesonerado'!$G$7:$K$6879,2,0))) -> Interruptor Paralelo (2 Módulos), 10A/250V, Incluindo Suporte E Placa - Fornecimento E Instalação. Af_03/2023 | G90: =LOWER(IF(L90="i",VLOOKUP(C90,'Ins SINAPI AL -NãoDesonerado'!$A$8:$E$5189,3,0),VLOOKUP(C90,'Comp SINAPI AL - NãoDesonerado'!$G$7:$K$6879,3,0))) -> un | H90: 1 | I90: =SUMIFS(CPU!$H:$H,CPU!$B:$B,'Planilha Orçamentária'!$A90,CPU!$I:$I,"ss")+SUMIFS(CPU!$H:$H,CPU!$B:$B,'Planilha Orçamentária'!$A90,CPU!$I:$I,"mdo")+SUMIF('Comp SINAPI AL - NãoDesonerado'!G:G,'Planilha Orçamentária'!C90,'Comp SINAPI AL - NãoDesonerado'!K:K) -> 61.11 | J90: 74.725308 | K90: 74.725308 | L90: serv | M90: i
A91: 6.2.16 | B91: SINAPI | C91: 97585 | D91: 428681 | E91: Luminária Potência Nominal Lâmpada: 20 W | F91: =PROPER(IF(L91="i",VLOOKUP(C91,'Ins SINAPI AL -NãoDesonerado'!$A$8:$E$5189,2,0),VLOOKUP(C91,'Comp SINAPI AL - NãoDesonerado'!$G$7:$K$6879,2,0))) -> Luminária Tipo Calha, De Sobrepor, Com 2 Lâmpadas Tubulares Fluorescentes De 18 W, Com Reator De Partida Rápida - Fornecimento E Instalação. Af_02/2020 | G91: =LOWER(IF(L91="i",VLOOKUP(C91,'Ins SINAPI AL -NãoDesonerado'!$A$8:$E$5189,3,0),VLOOKUP(C91,'Comp SINAPI AL - NãoDesonerado'!$G$7:$K$6879,3,0))) -> un | H91: 2 | I91: =SUMIFS(CPU!$H:$H,CPU!$B:$B,'Planilha Orçamentária'!$A91,CPU!$I:$I,"ss")+SUMIFS(CPU!$H:$H,CPU!$B:$B,'Planilha Orçamentária'!$A91,CPU!$I:$I,"mdo")+SUMIF('Comp SINAPI AL - NãoDesonerado'!G:G,'Planilha Orçamentária'!C91,'Comp SINAPI AL - NãoDesonerado'!K:K) -> 127.8 | J91: 156.27384 | K91: 312.54768 | L91: serv | M91: i
A92: 6.2.17 | B92: SINAPI | C92: 98111 | D92: 471939 | E92: Caixa Inspeção; Material: Concreto; Dimensões: 20 X 20 X 20 CM | F92: =PROPER(IF(L92="i",VLOOKUP(C92,'Ins SINAPI AL -NãoDesonerado'!$A$8:$E$5189,2,0),VLOOKUP(C92,'Comp SINAPI AL - NãoDesonerado'!$G$7:$K$6879,2,0))) -> Caixa De Inspeção Para Aterramento, Circular, Em Polietileno, Diâmetro Interno = 0,3 M. Af_12/2020 | G92: =LOWER(IF(L92="i",VLOOKUP(C92,'Ins SINAPI AL -NãoDesonerado'!$A$8:$E$5189,3,0),VLOOKUP(C92,'Comp SINAPI AL - NãoDesonerado'!$G$7:$K$6879,3,0))) -> un | H92: 5 | I92: =SUMIFS(CPU!$H:$H,CPU!$B:$B,'Planilha Orçamentária'!$A92,CPU!$I:$I,"ss")+SUMIFS(CPU!$H:$H,CPU!$B:$B,'Planilha Orçamentária'!$A92,CPU!$I:$I,"mdo")+SUMIF('Comp SINAPI AL - NãoDesonerado'!G:G,'Planilha Orçamentária'!C92,'Comp SINAPI AL - NãoDesonerado'!K:K) -> 44.13 | J92: 53.962164 | K92: 269.81082 | L92: serv | M92: i
A93: 6.2.18 | B93: SINAPI | C93: 96985 | D93: 375540 | E93: Haste Aterramento; Material: Aço Carbono; Tipo: Cilíndrica; Revestimento: Cobre; Comprimento: 2.400 MM; Diâmetro: 5/8 POL; Características Adicionais: Com Conector De Cobre | F93: =PROPER(IF(L93="i",VLOOKUP(C93,'Ins SINAPI AL -NãoDesonerado'!$A$8:$E$5189,2,0),VLOOKUP(C93,'Comp SINAPI AL - NãoDesonerado'!$G$7:$K$6879,2,0))) -> Haste De Aterramento, Diâmetro 5/8", Com 3 Metros - Fornecimento E Instalação. Af_08/2023 | G93: =LOWER(IF(L93="i",VLOOKUP(C93,'Ins SINAPI AL -NãoDesonerado'!$A$8:$E$5189,3,0),VLOOKUP(C93,'Comp SINAPI AL - NãoDesonerado'!$G$7:$K$6879,3,0))) -> un | H93: 5 | I93: =SUMIFS(CPU!$H:$H,CPU!$B:$B,'Planilha Orçamentária'!$A93,CPU!$I:$I,"ss")+SUMIFS(CPU!$H:$H,CPU!$B:$B,'Planilha Orçamentária'!$A93,CPU!$I:$I,"mdo")+SUMIF('Comp SINAPI AL - NãoDesonerado'!G:G,'Planilha Orçamentária'!C93,'Comp SINAPI AL - NãoDesonerado'!K:K) -> 68.44 | J93: 83.688432 | K93: 418.44216 | L93: serv | M93: i
A94: 6.2.19 | B94: SINAPI | C94: 93358 | D94: 17140 | E94: Obras civis - concretagem | F94: =PROPER(IF(L94="i",VLOOKUP(C94,'Ins SINAPI AL -NãoDesonerado'!$A$8:$E$5189,2,0),VLOOKUP(C94,'Comp SINAPI AL - NãoDesonerado'!$G$7:$K$6879,2,0))) -> Escavação Manual De Vala Com Profundidade Menor Ou Igual A 1,30 M. Af_02/2021 | G94: m3 | H94: 5.18 | I94: =SUMIFS(CPU!$H:$H,CPU!$B:$B,'Planilha Orçamentária'!$A94,CPU!$I:$I,"ss")+SUMIFS(CPU!$H:$H,CPU!$B:$B,'Planilha Orçamentária'!$A94,CPU!$I:$I,"mdo")+SUMIF('Comp SINAPI AL - NãoDesonerado'!G:G,'Planilha Orçamentária'!C94,'Comp SINAPI AL - NãoDesonerado'!K:K) -> 77.81 | J94: 95.146068 | K94: 492.8566322 | L94: serv | M94: i
A95: 6.2.20 | B95: SINAPI | C95: 96995 | D95: 17140 | E95: Obras civis - concretagem | F95: =PROPER(IF(L95="i",VLOOKUP(C95,'Ins SINAPI AL -NãoDesonerado'!$A$8:$E$5189,2,0),VLOOKUP(C95,'Comp SINAPI AL - NãoDesonerado'!$G$7:$K$6879,2,0))) ->  | G95: m3 | H95: 5.56 | I95: =SUMIFS(CPU!$H:$H,CPU!$B:$B,'Planilha Orçamentária'!$A95,CPU!$I:$I,"ss")+SUMIFS(CPU!$H:$H,CPU!$B:$B,'Planilha Orçamentária'!$A95,CPU!$I:$I,"mdo")+SUMIF('Comp SINAPI AL - NãoDesonerado'!G:G,'Planilha Orçamentária'!C95,'Comp SINAPI AL - NãoDesonerado'!K:K) -> 0 | J95: 0 | K95: 0 | L95: serv | M95: i
A96: 6.2.21 | B96: PRÓPRIA | C96: CPU.31 | D96: 17140 | E96: Obras civis - concretagem | F96: Aterro manual de áreas, sem aquisição de material, com espalhamento e compactação (Adaptado ORSE 71) | G96: m3 | H96: 0.6944444444 | I96: =SUMIFS(CPU!$H:$H,CPU!$B:$B,'Planilha Orçamentária'!$A96,CPU!$I:$I,"ss")+SUMIFS(CPU!$H:$H,CPU!$B:$B,'Planilha Orçamentária'!$A96,CPU!$I:$I,"mdo")+SUMIF('Comp SINAPI AL - NãoDesonerado'!G:G,'Planilha Orçamentária'!C96,'Comp SINAPI AL - NãoDesonerado'!K:K) -> 157.36 | J96: 192.419808 | K96: 133.6248667 | L96: serv | M96: i
A98: 7 | F98: SERVIÇOS COMPLEMENTARES | K98: =SUM(K99:K105) -> 164736.472 | M98: ss
A99: 7.1 | B99: PRÓPRIA | C99: CPU.38 | D99: 2399 | E99: Manutenção de equipamentos hidromecânicos | F99: Adequação e manutenção de equipamentos hidromecânicos existêntes | G99: un | H99: 1 | I99: =SUMIFS(CPU!$H:$H,CPU!$B:$B,'Planilha Orçamentária'!$A99,CPU!$I:$I,"ss")+SUMIFS(CPU!$H:$H,CPU!$B:$B,'Planilha Orçamentária'!$A99,CPU!$I:$I,"mdo")+SUMIF('Comp SINAPI AL - NãoDesonerado'!G:G,'Planilha Orçamentária'!C99,'Comp SINAPI AL - NãoDesonerado'!K:K) -> 2836.8 | J99: =IF(L99="SERV",I99*(1+$J$5),I99*(1+$J$6)) -> 3468.83904 | K99: =IF(L99="SERV",I99*H99*(1+$J$5),I99*H99*(1+$J$6)) -> 3468.83904 | L99: serv
A100: 7.2 | B100: PRÓPRIA | C100: CPU.32 | D100: 4723 | E100: Inspeções e testes em materiais e equipamentos mecânicos | F100: Realização de teste de comissionamento da comporta segmento - verificação das peças fixas. | G100: un | H100: 1 | I100: =SUMIFS(CPU!$H:$H,CPU!$B:$B,'Planilha Orçamentária'!$A100,CPU!$I:$I,"ss")+SUMIFS(CPU!$H:$H,CPU!$B:$B,'Planilha Orçamentária'!$A100,CPU!$I:$I,"mdo")+SUMIF('Comp SINAPI AL - NãoDesonerado'!G:G,'Planilha Orçamentária'!C100,'Comp SINAPI AL - NãoDesonerado'!K:K) -> 3510.96 | J100: 4293.201888 | K100: 4293.201888 | L100: serv | M100: i
A101: 7.3 | B101: PRÓPRIA | C101: CPU.33 | D101: 1210 | E101: Inspeções e testes em materiais e equipamentos elétricos | F101: Realização de teste de comissionamento da comporta segmento - operação em seco. Verificação dos cilindros, parte hidraulica e eletrica, funcionalidade dos comandos com atuação eletrica e manual. | G101: un | H101: 1 | I101: =SUMIFS(CPU!$H:$H,CPU!$B:$B,'Planilha Orçamentária'!$A101,CPU!$I:$I,"ss")+SUMIFS(CPU!$H:$H,CPU!$B:$B,'Planilha Orçamentária'!$A101,CPU!$I:$I,"mdo")+SUMIF('Comp SINAPI AL - NãoDesonerado'!G:G,'Planilha Orçamentária'!C101,'Comp SINAPI AL - NãoDesonerado'!K:K) -> 5945.52 | J101: 7270.181856 | K101: 7270.181856 | L101: serv | M101: i
A102: 7.4 | B102: PRÓPRIA | C102: CPU.34 | D102: 1210 | E102: Inspeções e testes em materiais e equipamentos elétricos | F102: Realização de teste de comissionamento da comporta segmento - operação em carga. Verificação dos cilindros, parte hidraulica e eletrica, funcionalidade dos comandos com atuação eletrica e manual. Teste hidrostatico da comporta. | G102: un | H102: 1 | I102: =SUMIFS(CPU!$H:$H,CPU!$B:$B,'Planilha Orçamentária'!$A102,CPU!$I:$I,"ss")+SUMIFS(CPU!$H:$H,CPU!$B:$B,'Planilha Orçamentária'!$A102,CPU!$I:$I,"mdo")+SUMIF('Comp SINAPI AL - NãoDesonerado'!G:G,'Planilha Orçamentária'!C102,'Comp SINAPI AL - NãoDesonerado'!K:K) -> 5945.52 | J102: 7270.181856 | K102: 7270.181856 | L102: serv | M102: i
A103: 7.5 | B103: PRÓPRIA | C103: CPU.35 | D103: 14044 | E103: Roçada / limpeza de área - mecanizada / manual | F103: Limpeza final da obra (Adaptado SINAPI 9537) | G103: m² | H103: 57 | I103: =SUMIFS(CPU!$H:$H,CPU!$B:$B,'Planilha Orçamentária'!$A103,CPU!$I:$I,"ss")+SUMIFS(CPU!$H:$H,CPU!$B:$B,'Planilha Orçamentária'!$A103,CPU!$I:$I,"mdo")+SUMIF('Comp SINAPI AL - NãoDesonerado'!G:G,'Planilha Orçamentária'!C103,'Comp SINAPI AL - NãoDesonerado'!K:K) -> 39.34 | J103: 48.104952 | K103: 2741.982264 | L103: serv | M103: i
A104: 7.6 | B104: PRÓPRIA | C104: CPU.36 | D104: 20060 | E104: Elaboração / análise projeto - engenharia | F104: Elaboração de projeto as built | G104: un | H104: 1 | I104: =SUMIFS(CPU!$H:$H,CPU!$B:$B,'Planilha Orçamentária'!$A104,CPU!$I:$I,"ss")+SUMIFS(CPU!$H:$H,CPU!$B:$B,'Planilha Orçamentária'!$A104,CPU!$I:$I,"mdo")+SUMIF('Comp SINAPI AL - NãoDesonerado'!G:G,'Planilha Orçamentária'!C104,'Comp SINAPI AL - NãoDesonerado'!K:K) -> 1784 | J104: 2181.4752 | K104: 2181.4752 | L104: serv | M104: i
A105: 7.7 | B105: PRÓPRIA | C105: CPU.37 | D105: 22730 | E105: Transporte Rodoviário-Mobiliário/Materiais/Equipamentos/BensPessoais | F105: Desmobilização | G105: un | H105: 1 | I105: =SUMIFS(CPU!$H:$H,CPU!$B:$B,"2.1.9",CPU!$I:$I,"ss")+SUMIFS(CPU!$H:$H,CPU!$B:$B,"2.1.9",CPU!$I:$I,"mdo")+SUMIF('Comp SINAPI AL - NãoDesonerado'!G:G,'Planilha Orçamentária'!C105,'Comp SINAPI AL - NãoDesonerado'!K:K) -> 112455.52 | J105: 137510.6099 | K105: 137510.6099 | L105: serv | M105: i
F106: TOTAL Sem BDI: | K106: =SUMPRODUCT(H12:H105,I12:I105) -> 1100297.636
F107: BDI: | K107: =K106*J5 -> 245146.3132
F108: TOTAL COM BDI: | K108: =SUM(K106:K107) -> 1345443.949 | L108: =SUMIF(M12:M105,"SS",K12:K105) -> 758633.1239
J174: =SUM(J175:J178) -> 0
F178: mec | H178: 2 | I178: 128

Sheet MEM SERV (hidden)
A1: Ministério do desenvolvimento Regional
A2: Companhia de desenvolvimento dos Vales do São Francisco e do Parnaíba
A4: MEMÓRIA DE CÁLCULO - SERVIÇOS
A5: ITEM | B5: DESCRIÇÃO | C5: UN | D5: QTDE | E5: COMP (m) | F5: LARG (m) | G5: ALT (m) | H5: TOTAL
A6: 1.1 | B6: Administração local | C6: mês | H6: =SUM(H7) -> 6 | N6: FORMÚLAS DE TOTAL
B7: Duração da obra (Conforme cronograma fisico-financeiro e cronograma detalhado considerando a dependência das atividades) | C7: mês | D7: 6 | H7: =IF(C7="MÊS",D7,IF(C7="UN",D7,IF(C7="M",D7))) -> 6 | N7: UNIDADE | O7: FÓRMULA
N8: un, mês, m | O8: =IF($C7="MÊS",$D7,IF($C7="UN",$D7,IF($C7="M",$D7))) -> 6
A10: ITEM | B10: DESCRIÇÃO | C10: UN | D10: QTDE | E10: COMP (m) | F10: LARG (m) | G10: ALT (m) | H10: TOTAL | N10: m² | O10: =IF($C16="m²",$D16*$E16*$F16) -> FALSE
A11: 1.2 | B11: ART Principal | C11: un | H11: =SUM(H12) -> 1 | N11: m³ | O11: =IF(#REF!="m³",#REF!*#REF!*#REF!*#REF!) -> 
B12: Eng. Civil (residente) | C12: un | D12: 1 | H12: =IF(C12="un",D12,ROUND(D12*E12*F12*G12,2)) -> 1 | N12: m³ x km | O12: =IF(#REF!="m³xkm",#REF!*#REF!*#REF!*#REF!) -> 
A14: ITEM | B14: DESCRIÇÃO | C14: UN | D14: QTDE | E14: COMP (m) | F14: LARG (m) | G14: ALT (m) | H14: TOTAL
A15: 1.3 | B15: ART Corresponsável (Equipe) | C15: un | H15: =SUM(H16:H18) -> 3
B16: Eng. Eletricista | C16: un | D16: 1 | H16: =IF(C16="un",D16,ROUND(D16*E16*F16*G16,2)) -> 1
B17: Eng. Mecânico | C17: un | D17: 1 | H17: =IF(C17="un",D17,ROUND(D17*E17*F17*G17,2)) -> 1
B18: Técnico eng. Mecânica | C18: un | D18: 1 | H18: =IF(C18="un",D18,ROUND(D18*E18*F18*G18,2)) -> 1
A20: ITEM | B20: DESCRIÇÃO | C20: UN | D20: QTDE | E20: COMP (m) | F20: LARG (m) | G20: ALT (m) | H20: TOTAL
A21: 2.1.1 | B21: Limpeza | C21: m² | H21: =SUM(H22:H23) -> 57
B22: Limpeza da camada vegetal (soma da área das instalações do canteiro) | C22: m² | H22: =(SUM(H24:H39)/2)+(SUM(H41:H49)/2) -> 57
A24: ITEM | B24: DESCRIÇÃO | C24: UN | D24: QTDE | E24: COMP (m) | F24: LARG (m) | G24: ALT (m) | H24: TOTAL
A25: 2.1.2 | B25: Escritórios | C25: m² | H25: =SUM(H26:H26) -> 20
B26: Equipe residente / fiscalização | C26: m² | D26: 1 | E26: 4 | F26: 5 | H26: =IF($C26="m²",$D26*$E26*$F26) -> 20
A28: ITEM | B28: DESCRIÇÃO | C28: UN | D28: QTDE | E28: COMP (m) | F28: LARG (m) | G28: ALT (m) | H28: TOTAL
A29: 2.1.3 | B29: Almoxarifado | C29: m² | H29: =SUM(H30:H30) -> 7.5
B30: Ferramentaria / Almoxarifado / Depósito | C30: m² | D30: 1 | E30: 2.5 | F30: 3 | H30: =IF($C30="m²",$D30*$E30*$F30) -> 7.5
A32: ITEM | B32: DESCRIÇÃO | C32: UN | D32: QTDE | E32: COMP (m) | F32: LARG (m) | G32: ALT (m) | H32: TOTAL
A33: 2.1.4 | B33: Baia agregados | C33: un | H33: =SUM(H34:H34) -> 1
B34: Baia | C34: un | D34: 1 | H34: =IF(C34="un",D34,ROUND(D34*E34*F34*G34,2)) -> 1
A36: ITEM | B36: DESCRIÇÃO | C36: UN | D36: QTDE | E36: COMP (m) | F36: LARG (m) | G36: ALT (m) | H36: TOTAL
A37: 2.1.5 | B37: Central de produção | C37: m² | H37: =SUM(H38:H39) -> 12
B38: Forma | C38: m² | D38: 1 | E38: 2 | F38: 3 | H38: =IF($C38="m²",$D38*$E38*$F38) -> 6
B39: Concreto | C39: m² | D39: 1 | E39: 2 | F39: 3 | H39: =IF($C39="m²",$D39*$E39*$F39) -> 6
A41: ITEM | B41: DESCRIÇÃO | C41: UN | D41: QTDE | E41: COMP (m) | F41: LARG (m) | G41: ALT (m) | H41: TOTAL
A42: 2.1.6 | B42: Refeitório | C42: m² | H42: =SUM(H43:H43) -> 7.5
B43: Refeitório | C43: m² | D43: 1 | E43: 3 | F43: 2.5 | H43: =IF($C43="m²",$D43*$E43*$F43) -> 7.5
A45: ITEM | B45: DESCRIÇÃO | C45: UN | D45: QTDE | E45: COMP (m) | F45: LARG (m) | G45: ALT (m) | H45: TOTAL
A46: 2.1.7 | B46: Sanitários e vestiários | C46: m² | H46: =SUM(H47:H48) -> 9
B47: Vestiário | C47: m² | D47: 2 | E47: 1.5 | F47: 1.5 | H47: =IF($C47="m²",$D47*$E47*$F47) -> 4.5
B48: Sanitários (NR 18, área mínima de 1m²) | C48: m² | D48: 2 | E48: 1.5 | F48: 1.5 | H48: =IF($C48="m²",$D48*$E48*$F48) -> 4.5
A50: ITEM | B50: DESCRIÇÃO | C50: UN | D50: QTDE | E50: COMP (m) | F50: LARG (m) | G50: ALT (m) | H50: TOTAL
A51: 2.1.8 | B51: Concreto base | C51: m³ | H51: =SUM(H52:H53) -> 3.99
B52: Concreto magro (7 cm) | C52: m³ | G52: 0.07 | H52: =H21*G52 -> 3.99
A54: ITEM | B54: DESCRIÇÃO | C54: UN | D54: QTDE | E54: COMP (m) | F54: LARG (m) | G54: ALT (m) | H54: TOTAL
A55: 2.2.1 | B55: Placa de obra | C55: m² | H55: =SUM(H56:H56) -> 2
B56: Placa | C56: m² | D56: 1 | E56: 2 | F56: 1 | H56: =IF($C56="m²",$D56*$E56*$F56) -> 2
A59: ITEM | B59: DESCRIÇÃO | C59: UN | D59: QTDE | E59: COMP (m) | F59: LARG (m) | G59: ALT (m) | H59: TOTAL
B60: Projeto ensecadeira | C60: un
A61: 2.3.1 | B61: Levantamento topobatimétrico (próximo às margens) | C61: dia | D61: 3 | H61: =IF(C61="dia",D61,ROUND(D61*E61*F61*G61,2)) -> 3
A62: 2.3.2 | B62: Levantamento topobatimétrico (distante das margens) | C62: dia | D62: 2 | H62: =IF(C62="dia",D62,ROUND(D62*E62*F62*G62,2)) -> 2
A63: 2.3.3 | B63: Projeto executivo | C63: un | D63: 1 | H63: =IF(C63="un",D63,ROUND(D63*E63*F63*G63,2)) -> 1
A66: ITEM | B66: DESCRIÇÃO | C66: UN | D66: QTDE | E66: COMP (m) | F66: LARG (m) | G66: ALT (m) | H66: TOTAL
A67: 3.1.1 | B67: Mobilização e desmobilização da Equipe, Camara Hiperbarica e todos os equipamentos de mergulho envolvidos na operação | C67: un | D67: 1 | H67: 1
A70: 5 | B70: COMPORTA SEGMENTO
A73: ITEM | B73: DESCRIÇÃO | C73: UN | D73: QTDE | H73: QTDE
A74: 5.1 | B74: Desmontagem da comporta | C74: kg | H74: =SUM(H75:H76) -> 31
B75: eletrodo | C75: kg | D75: 15 | H75: =D75 -> 15
B76: acetileno | C76: kg | D76: 16 | H76: =D76 -> 16
A77: ITEM | B77: DESCRIÇÃO | C77: UN | D77: QTDE | E77: DIAS | F77: H/DIA | H77: QTDE
A78: 5.1 | B78: Desmontagem da comporta | C78: h | H78: =SUM(H79:H80) -> 192
B79: solda | C79: h | D79: 2 | E79: 8 | F79: 6 | H79: =D79*E79*F79 -> 96
B80: lixadeira | C80: h | D80: 2 | E80: 8 | F80: 6 | H80: =D80*E80*F80 -> 96
B81: locação andaime | C81: m | D81: 12 | E81: 30 | H81: =D81*E81/30 -> 12
B82: guindaste ou munck | C82: h | E82: 2 | F82: 12 | H82: =E82*F82 -> 24
A83: ITEM | B83: DESCRIÇÃO | C83: UN | D83: QTDE | E83: DIAS | F83: H/DIA | H83: QTDE
A84: 5.1 | B84: Desmontagem da comporta | C84: h | H84: =SUM(H85:H87) -> 272
B85: supervisor mecanico | C85: h | D85: 1 | E85: 2 | F85: 8 | H85: =D85*E85*F85 -> 16
B86: maçariqueiro | C86: h | D86: 2 | E86: 4 | F86: 8 | H86: =D86*E86*F86 -> 64
B87: ajudante | C87: h | D87: 3 | E87: 8 | F87: 8 | H87: =D87*E87*F87 -> 192
A90: ITEM | B90: DESCRIÇÃO | C90: UN | D90: QTDE | E90: COMP (m) | F90: LARG (m) | G90: ALT (m) | H90: QTDE
A91: 5.2 | B91: Demolição ranhuras | C91: m³ | H91: =SUM(H92:H94) -> 2.58 | J91: =ROUNDUP(H91*1000/18*2,0) -> 287 | K91: latas 18 L
B92: medida ranhura lateral | C92: m³ | D92: 4 | E92: 0.3 | F92: 0.6 | G92: 2.3 | H92: =IF($C92="m³",$D92*$E92*$F92*$G92) -> 1.656
B93: medida ranhura frontal | C93: m³ | D93: 2 | E93: 0.25 | F93: 0.4 | G93: 1.65 | H93: =IF($C93="m³",$D93*$E93*$F93*$G93) -> 0.33
B94: medida ranhura soleira | C94: m³ | D94: 2 | E94: 0.3 | F94: 0.6 | G94: 1.65 | H94: =IF($C94="m³",$D94*$E94*$F94*$G94) -> 0.594
A95: ITEM | B95: DESCRIÇÃO | C95: UN | D95: QTDE | E95: MASSA (ton) | H95: QTDE
A96: 5.2 | B96: Demolição ranhuras | C96: ton | H96: =SUM(H97:H97) -> 0.7
B97: peso peça fixa existente | C97: ton | D97: 2 | E97: 0.35 | H97: =D97*E97 -> 0.7 | J97: =H97*0.8 -> 0.56 | K97: m³
A98: ITEM | B98: DESCRIÇÃO | C98: UN | D98: QTDE | E98: DIAS | F98: H/DIA | H98: QTDE
A99: 5.2 | B99: Demolição ranhuras | C99: h | H99: =SUM(H100:H102) -> 606
B100: rompedor | C100: h | D100: 2 | E100: 12 | F100: 8 | H100: =D100*E100*F100 -> 192
B101: auxiliar | C101: h | D101: 4 | E101: 12 | F101: 8 | H101: =D101*E101*F101 -> 384
B102: maçariqueiro | C102: h | D102: 1 | E102: 5 | F102: 6 | H102: =D102*E102*F102 -> 30
A104: ITEM | B104: DESCRIÇÃO | C104: UN | D104: QTDE | E104: espessura | F104: a | G104: b | H104: QTDE
A105: 5.3 | B105: Preparação das ranhuras | C105: L | H105: =SUM(H106:H106) -> 90
B106: aplicação massa | C106: l | D106: 100 | E106: =2/100 -> 0.02 | F106: 0.15 | G106: 0.3 | H106: =D106*E106*F106*G106*1000 -> 90
A107: ITEM | B107: DESCRIÇÃO | C107: UN | D107: QTDE | E107: DIAS | F107: H/DIA | H107: QTDE
A108: 5.3 | B108: Preparação das ranhuras | C108: h | H108: =SUM(H109:H109) -> 64
B109: auxiliar | C109: h | D109: 2 | E109: 4 | F109: 8 | H109: =D109*E109*F109 -> 64
A112: ITEM | B112: DESCRIÇÃO | C112: UN | D112: QTDE | H112: QTDE
A113: 5.4 | B113: Montagem das peças fixas | C113: kg | H113: =SUM(H114:H115) -> 40
B114: eletrodo | C114: kg | D114: 30 | H114: =D114 -> 30
B115: acetileno | C115: kg | D115: 10 | H115: =D115 -> 10
A116: ITEM | B116: DESCRIÇÃO | C116: UN | D116: QTDE | E116: DIAS | F116: H/DIA | H116: QTDE
A117: 5.4 | B117: Montagem das peças fixas | C117: h | H117: =SUM(H118:H119) -> 120
B118: solda | C118: h | D118: 2 | E118: 6 | F118: 6 | H118: =D118*E118*F118 -> 72
B119: lixadeira | C119: h | D119: 2 | E119: 4 | F119: 6 | H119: =D119*E119*F119 -> 48
B120: locação andaime | C120: m | D120: 12 | E120: 30 | H120: =D120*E120/30 -> 12
B121: guindaste ou munck | C121: h | E121: 2 | F121: 12 | H121: =E121*F121 -> 24
A122: ITEM | B122: DESCRIÇÃO | C122: UN | D122: QTDE | E122: DIAS | F122: H/DIA | H122: QTDE
A123: 5.4 | B123: Montagem das peças fixas | C123: h | H123: =SUM(H124:H127) -> 784
B124: supervisor mecanico | C124: h | D124: 1 | E124: 8 | F124: 6 | H124: =D124*E124*F124 -> 48
B125: montador mecanico | C125: h | D125: 4 | E125: 10 | F125: 8 | H125: =D125*E125*F125 -> 320
B126: soldador | C126: h | D126: 2 | E126: 8 | F126: 6 | H126: =D126*E126*F126 -> 96
B127: ajudante | C127: h | D127: 4 | E127: 10 | F127: 8 | H127: =D127*E127*F127 -> 320
A129: ITEM | B129: DESCRIÇÃO | C129: UN | D129: QTDE | E129: COMP (m) | F129: LARG (m) | G129: ALT (m) | H129: QTDE
A130: 5.5 | B130: Concretagem das peças fixas | C130: m² | H130: =SUM(H131:H133) -> 8.82
B131: medida ranhura lateral | C131: m² | D131: 4 | F131: 0.6 | G131: 2.3 | H131: =G131*F131*D131 -> 5.52
B132: medida ranhura frontal | C132: m² | D132: 2 | F132: 0.4 | G132: 1.65 | H132: =G132*F132*D132 -> 1.32
B133: medida ranhura soleira | C133: m² | D133: 2 | F133: 0.6 | G133: 1.65 | H133: =G133*F133*D133 -> 1.98
A134: ITEM | B134: DESCRIÇÃO | C134: UN | D134: QTDE | E134: DIAS | F134: H/DIA | H134: QTDE | J134: bomba | K134: 12 | L134: h
A135: 5.5 | B135: Concretagem das peças fixas | C135: h | H135: =SUM(H136:H137) -> 80 | J135: prego | K135: 2 | L135: kg
B136: operador cam. betoneira | C136: h | D136: 1 | E136: 2 | F136: 8 | H136: =D136*E136*F136 -> 16 | J136: pontalete | K136: 12 | L136: m
B137: ajud. Pedreiro | C137: h | D137: 4 | E137: 2 | F137: 8 | H137: =D137*E137*F137 -> 64 | J137: sarrafo | K137: 7 | L137: m
A140: ITEM | B140: DESCRIÇÃO | C140: UN | D140: QTDE | E140: COMP (m) | F140: LARG (m) | G140: ALT (m) | H140: QTDE
A141: 5.6 | B141: Retirada de formas das peças fixas | C141: m² | H141: =SUM(H142:H144) -> 8.82
B142: medida ranhura lateral | C142: m² | D142: 4 | F142: 0.6 | G142: 2.3 | H142: =G142*F142*D142 -> 5.52
B143: medida ranhura frontal | C143: m² | D143: 2 | F143: 0.4 | G143: 1.65 | H143: =G143*F143*D143 -> 1.32
B144: medida ranhura soleira | C144: m² | D144: 2 | F144: 0.6 | G144: 1.65 | H144: =G144*F144*D144 -> 1.98
A145: ITEM | B145: DESCRIÇÃO | C145: UN | D145: QTDE | E145: DIAS | F145: H/DIA | H145: QTDE
A146: 5.6 | B146: Retirada de formas das peças fixas | L146: ida/volta
B147: peso peça fixa existente | C147: ton | D147: 2 | E147: 1.7 | H147: =D147*E147 -> 3.4 | J147: 0.56 | K147: m³ | L147: 2 | M147: 30 | N147: km
B148: ajud. Pedreiro | C148: h | D148: 4 | E148: 2 | F148: 8 | H148: =D148*E148*F148 -> 64
A151: ITEM | B151: DESCRIÇÃO | C151: UN | D151: QTDE | E151: COMP (m) | F151: LARG (m) | G151: ALT (m) | H151: QTDE
A152: 5.7 | B152: Demolição casa comando | C152: m³ | H152: =SUM(H153:H155) -> 12.12
B153: parede | C153: m³ | D153: 2 | E153: 5.4 | F153: 0.2 | G153: 3 | H153: =IF($C153="m³",$D153*$E153*$F153*$G153) -> 6.48
B154: parede | C154: m³ | D154: 2 | E154: 3 | F154: 0.2 | G154: 3.2 | H154: =IF($C154="m³",$D154*$E154*$F154*$G154) -> 3.84
B155: parede | C155: m³ | D155: 1 | E155: 3 | F155: 0.2 | G155: 3 | H155: =IF($C155="m³",$D155*$E155*$F155*$G155) -> 1.8
A156: ITEM | B156: DESCRIÇÃO | C156: UN | D156: QTDE | E156: DIAS | F156: H/DIA | H156: QTDE
A157: 5.7 | B157: Retirada de formas das peças fixas
B158: peso peça fixa existente | C158: ton | D158: 2 | E158: 1.7 | H158: =D158*E158 -> 3.4 | J158: 0.56 | K158: m³
B159: ajud. Pedreiro | C159: h | D159: 4 | E159: 3 | F159: 8 | H159: =D159*E159*F159 -> 96
A162: ITEM | B162: DESCRIÇÃO | C162: UN | D162: QTDE | E162: COMP (m) | F162: LARG (m) | G162: ALT (m) | H162: QTDE
A163: 5.8 | B163: Construção da casa de comando
B165: Escavação manual de base | C165: m3 | D165: 5.5
B166: Colocação de brita numero 1 | C166: m3 | D166: 1.3
B167: execução de base em concreto desempenado e nivelado | C167: m3 | D167: 5.48
B168: Assentamento de alvenaria em blocos de concreto 14x19x39 | C168: m2 | D168: 44.7
B169: execução de laje de concreto h=15 | C169: m3 | D169: 2.37
B170: formas para laje em concreto | C170: m2 | D170: 16
B171: escoramento em pontaletes 10 cm x 3 m para laje | C171: m2 | D171: 6
B172: Assentamento de porta em chapa de aço100x210 com tranca e cadeado | C172: Un | D172: 1
B173: Assentamento de esquadria em aço 60x100 com vidro | C173: m2 | D173: 1.6
B174: Execução de telhado em madeira e telha de fibrocimento | C174: m2 | D174: 23.4
B175: Emboço e reboco interno e externo alvenaria | C175: m2 | D175: 89.4
B176: Pintura interna e externa em latex | C176: m2 | D176: 89.4
B179: Brita numero 1 | C179: m3 | D179: 1.3
B180: Base em concreto armado fck 20 MPa | C180: m3 | D180: 5.48
B181: Alvenaria em blocos de concreto 14x19x39 | C181: m2 | D181: 44.7
B182: Laje em concreto armado fck 20 MPa h=15 | C182: m3 | D182: 2.37
B183: Porta em chapa de aço 100x210 com tranca e cadeado | C183: Un | D183: 1
B184: Esquadria em aço tipo dobradiça 40x100 | C184: Un | D184: 4
B185: Tela soldada para piso e laje 2,45 x 6 m, malha 15x15 aço CA60 | C185: Un | D185: 50.02
B186: Vigas de madeira 6x12 | C186: m | D186: 18
B187: Telha fibrocimento comp = 2440 mm espessura 6 mm | C187: m2 | D187: 25
B188: Tinta Latex | C188: Lt | D188: 3
B191: M obra | E191: dias | F191: h/dia | H191: total
B192: pedreiro | D192: 2 | E192: 20 | F192: 8 | H192: =D192*E192*F192 -> 320
B193: aj. Pedreiro | D193: 4 | E193: 20 | F193: 8 | H193: =D193*E193*F193 -> 640
A197: ITEM | B197: DESCRIÇÃO | C197: UN | D197: UN | E197: nº. Viagem | H197: QTDE
A198: 5.9 | B198: Transporte | C198: ton | D198: km | H198: =SUM(H199:H199) -> 300
B199: caminhão 6 m3 | C199: 5 | D199: 30 | E199: 2 | H199: =C199*D199*E199 -> 300
A202: ITEM | B202: DESCRIÇÃO | C202: UN | D202: QTDE | H202: QTDE
A203: 5.10 | B203: Montagem dos mancais
B204: locação andaime | C204: m | D204: 12 | E204: 10 | H204: =D204*E204/30 -> 4
B205: guindaste ou munck | C205: h | E205: 1 | F205: 12 | H205: =E205*F205 -> 12
A206: ITEM | B206: DESCRIÇÃO | C206: UN | D206: QTDE | E206: DIAS | F206: H/DIA | H206: QTDE
A207: 5.10 | B207: Montagem dos mancais | C207: h | H207: =SUM(H208:H210) -> 54
B208: supervisor mecanico | C208: h | D208: 1 | E208: 1 | F208: 6 | H208: =D208*E208*F208 -> 6
B209: montador mecanico | C209: h | D209: 1 | E209: 2 | F209: 8 | H209: =D209*E209*F209 -> 16
B210: ajudante | C210: h | D210: 2 | E210: 2 | F210: 8 | H210: =D210*E210*F210 -> 32
A213: ITEM | B213: DESCRIÇÃO | C213: UN | D213: QTDE | H213: QTDE
A214: 5.11 | B214: Montagem tabuleiro e braço
B215: eletrodo | C215: kg | D215: 25 | H215: =D215 -> 25
B216: acetileno | C216: kg | D216: 8 | H216: =D216 -> 8
A217: ITEM | B217: DESCRIÇÃO | C217: UN | D217: QTDE | E217: DIAS | F217: H/DIA | H217: QTDE
A218: 5.11 | B218: Montagem tabuleiro e braço | C218: h | H218: =SUM(H219:H220) -> 84
B219: solda | C219: h | D219: 1 | E219: 6 | F219: 6 | H219: =D219*E219*F219 -> 36
B220: lixadeira | C220: h | D220: 2 | E220: 4 | F220: 6 | H220: =D220*E220*F220 -> 48
B221: locação andaime | C221: m | D221: 12 | E221: 30 | H221: =D221*E221/30 -> 12
B222: guindaste ou munck | C222: h | E222: 3 | F222: 12 | H222: =E222*F222 -> 36
A223: ITEM | B223: DESCRIÇÃO | C223: UN | D223: QTDE | E223: DIAS | F223: H/DIA | H223: QTDE
A224: 5.11 | B224: Montagem tabuleiro e braço | C224: h | H224: =SUM(H225:H228) -> 1344
B225: supervisor mecanico | C225: h | D225: 1 | E225: 8 | F225: 8 | H225: =D225*E225*F225 -> 64
B226: montador mecanico | C226: h | D226: 2 | E226: 25 | F226: 8 | H226: =D226*E226*F226 -> 400
B227: soldador | C227: h | D227: 1 | E227: 10 | F227: 8 | H227: =D227*E227*F227 -> 80
B228: ajudante | C228: h | D228: 4 | E228: 25 | F228: 8 | H228: =D228*E228*F228 -> 800
A231: ITEM | B231: DESCRIÇÃO | C231: UN | D231: QTDE | H231: QTDE
A232: 5.12 | B232: Montagem dos cilindros
B233: locação andaime | C233: m | D233: 12 | E233: 10 | H233: =D233*E233/30 -> 4
B234: guindaste ou munck | C234: h | E234: 1 | F234: 12 | H234: =E234*F234 -> 12
A235: ITEM | B235: DESCRIÇÃO | C235: UN | D235: QTDE | E235: DIAS | F235: H/DIA | H235: QTDE
A236: 5.12 | B236: Montagem dos cilindros | C236: h | H236: =SUM(H237:H239) -> 128
B237: supervisor mecanico | C237: h | D237: 1 | E237: 1 | F237: 8 | H237: =D237*E237*F237 -> 8
B238: montador mecanico | C238: h | D238: 1 | E238: 5 | F238: 8 | H238: =D238*E238*F238 -> 40
B239: ajudante | C239: h | D239: 2 | E239: 5 | F239: 8 | H239: =D239*E239*F239 -> 80
A242: ITEM | B242: DESCRIÇÃO | C242: UN | D242: QTDE | H242: QTDE
A243: 5.13 | B243: Montagem UH + PE
B244: guindaste ou munck | C244: h | E244: 1 | F244: 8 | H244: =E244*F244 -> 8
A245: ITEM | B245: DESCRIÇÃO | C245: UN | D245: QTDE | E245: DIAS | F245: H/DIA | H245: QTDE
A246: 5.13 | B246: Montagem UH + PE | C246: h | H246: =SUM(H247:H250) -> 32
B247: supervisor mecanico
B248: montador mecanico | C248: h | D248: 1 | E248: 1 | F248: 8 | H248: =D248*E248*F248 -> 8
... 95 more rows

Sheet CPU
B1: Ministério do Desenvolvimento Regional
B2: Companhia de Desenvolvimento dos Vales do São Francisco e do Parnaíba
B4: COMPOSIÇÕES DE PREÇOS UNITÁRIOS - ORÇAMENTO ONERADO
B5: OBRA: | C5: ='Planilha Orçamentária'!B5 -> SUBSTITUIÇÃO DAS COMPORTAS NA BARRAGEM DE BOACICA | E5: BDI (serv.): | F5: ='BDI serv'!D23 -> 0.2228
B6: LOCAL: | C6: ='Planilha Orçamentária'!B6 -> BARRAGEM BOACICA (IGREJA NOVA - AL) | E6: BDI (forn.): | F6: ='BDI forn'!E6 -> 0.147
B7: 2023-07-01 | C7: ='Planilha Orçamentária'!B7 -> 2024-02-01
B8: PRAZO: | C8: ='Planilha Orçamentária'!B9 -> 240 DIAS
B10: REFERÊNCIA | C10: CÓDIGO | D10: DESCRIÇÃO | E10: UNIDADE | F10: ÍNDICE | G10: CUSTO UNITÁRIO | H10: CUSTO TOTAL
A11: =B11 -> 1.1 | B11: ='Planilha Orçamentária'!A13 -> 1.1 | C11: =VLOOKUP($B11,'Planilha Orçamentária'!$A$12:$K$105,3,) -> CPU.01 | D11: =VLOOKUP($B11,'Planilha Orçamentária'!$A$12:$K$105,4+2,) -> Administração local | E11: mes | H11: =SUM(H12,H16,H13,H15) -> 10402.47 | I11: S
A12: =B11 -> 1.1 | B12: =B11 -> 1.1 | D12: MATERIAL | H12: 0 | I12: SS
A13: =B11 -> 1.1 | B13: =B11 -> 1.1 | D13: EQUIPAMENTOS | H13: =SUM(H14:H14) -> 5731.03 | I13: SS
A14: =A13 -> 1.1 | B14: CODEVASF | D14: CAMINHONETE | E14: mes | F14: 0.8 | G14: ='CPU-VEICULO_PickUp'!C10 -> 7163.790168 | H14: =ROUND(F14*G14,2) -> 5731.03 | I14: I
A15: =B11 -> 1.1 | B15: =B11 -> 1.1 | D15: SERVIÇOS | H15: 0 | I15: SS
A16: =B11 -> 1.1 | B16: =B11 -> 1.1 | D16: MÃO DE OBRA | H16: =SUM(H17:H18) -> 4671.44 | I16: MDO
A17: =B11 -> 1.1 | B17: SINAPI | C17: 90778 | D17: =IF(I17="i",VLOOKUP(C17,'Ins SINAPI AL -NãoDesonerado'!$A$8:$E$5189,2,0),VLOOKUP(C17,'Comp SINAPI AL - NãoDesonerado'!$G$7:$K$7500,2,0)) -> ENGENHEIRO CIVIL DE OBRA PLENO COM ENCARGOS COMPLEMENTARES | E17: =LOWER(IF(I17="i",VLOOKUP(C17,'Ins SINAPI AL -NãoDesonerado'!$A$8:$E$7500,3,0),VLOOKUP(C17,'Comp SINAPI AL - NãoDesonerado'!$G$7:$K$7500,3,0))) -> h | F17: 8 | G17: =IF(I17="i",VLOOKUP(C17,'Ins SINAPI AL -NãoDesonerado'!$A$8:$E$5189,5,0),VLOOKUP(C17,'Comp SINAPI AL - NãoDesonerado'!$G$7:$K$7500,5,0)) -> 126.18 | H17: =ROUND(F17*G17,2) -> 1009.44 | I17: ca
A18: =B11 -> 1.1 | B18: SINAPI | C18: 93572 | D18: =IF(I18="i",VLOOKUP(C18,'Ins SINAPI AL -NãoDesonerado'!$A$8:$E$5189,2,0),VLOOKUP(C18,'Comp SINAPI AL - NãoDesonerado'!$G$7:$K$7500,2,0)) -> ENCARREGADO GERAL DE OBRAS COM ENCARGOS COMPLEMENTARES | E18: =LOWER(IF(I18="i",VLOOKUP(C18,'Ins SINAPI AL -NãoDesonerado'!$A$8:$E$7500,3,0),VLOOKUP(C18,'Comp SINAPI AL - NãoDesonerado'!$G$7:$K$7500,3,0))) -> mes | F18: 0.8 | G18: =IF(I18="i",VLOOKUP(C18,'Ins SINAPI AL -NãoDesonerado'!$A$8:$E$5189,5,0),VLOOKUP(C18,'Comp SINAPI AL - NãoDesonerado'!$G$7:$K$7500,5,0)) -> 4577.5 | H18: 3662 | I18: ca
I19: x
A20: =B20 -> 2.1.4 | B20: ='Planilha Orçamentária'!A20 -> 2.1.4 | C20: =VLOOKUP($B20,'Planilha Orçamentária'!$A$12:$K$105,3,) -> CPU.04 | D20: =VLOOKUP($B20,'Planilha Orçamentária'!$A$12:$K$105,4+2,) -> Baia de resíduos para entulho, construção descoberta - Medindo (3,00x2,00)m, paredes em chapa de madeira compensada plastificada 20mm h=1,10m, piso em terreno natural fortemente apiloado, pilarete em eucalipto tratado 15cm (Adaptado AGESUL 0101000230) | E20: un | H20: =SUM(H21,H32,H27,H28) -> 2575.14 | I20: S
A21: =B20 -> 2.1.4 | B21: =B20 -> 2.1.4 | D21: MATERIAL | H21: =SUM(H22:H26) -> 1990.74 | I21: SS
A22: =B20 -> 2.1.4 | B22: SINAPI | C22: 43680 | D22: =IF(I22="i",VLOOKUP(C22,'Ins SINAPI AL -NãoDesonerado'!$A$8:$E$5189,2,0),VLOOKUP(C22,'Comp SINAPI AL - NãoDesonerado'!$G$7:$K$7500,2,0)) -> CHAPA/PAINEL DE MADEIRA COMPENSADA PLASTIFICADA (MADEIRITE PLASTIFICADO) PARA FORMA DE CONCRETO, DE 2200 X 1100 MM, E = 20 MM | E22: =LOWER(IF(I22="i",VLOOKUP(C22,'Ins SINAPI AL -NãoDesonerado'!$A$8:$E$7500,3,0),VLOOKUP(C22,'Comp SINAPI AL - NãoDesonerado'!$G$7:$K$7500,3,0))) -> m2 | F22: 6 | G22: =IF(I22="i",VLOOKUP(C22,'Ins SINAPI AL -NãoDesonerado'!$A$8:$E$5189,5,0),VLOOKUP(C22,'Comp SINAPI AL - NãoDesonerado'!$G$7:$K$7500,5,0)) -> 123.4 | H22: =ROUND(F22*G22,2) -> 740.4 | I22: i
A23: =B20 -> 2.1.4 | B23: SINAPI | C23: 5075 | D23: =IF(I23="i",VLOOKUP(C23,'Ins SINAPI AL -NãoDesonerado'!$A$8:$E$5189,2,0),VLOOKUP(C23,'Comp SINAPI AL - NãoDesonerado'!$G$7:$K$6879,2,0)) -> PREGO DE ACO POLIDO COM CABECA 18 X 30 (2 3/4 X 10) | E23: =LOWER(IF(I23="i",VLOOKUP(C23,'Ins SINAPI AL -NãoDesonerado'!$A$8:$E$7500,3,0),VLOOKUP(C23,'Comp SINAPI AL - NãoDesonerado'!$G$7:$K$7500,3,0))) -> kg | F23: 0.9657 | G23: =IF(I23="i",VLOOKUP(C23,'Ins SINAPI AL -NãoDesonerado'!$A$8:$E$5189,5,0),VLOOKUP(C23,'Comp SINAPI AL - NãoDesonerado'!$G$7:$K$6879,5,0)) -> 24.16 | H23: =ROUND(F23*G23,2) -> 23.33 | I23: i
A24: =B20 -> 2.1.4 | B24: SINAPI | C24: 2747 | D24: =IF(I24="i",VLOOKUP(C24,'Ins SINAPI AL -NãoDesonerado'!$A$8:$E$5189,2,0),VLOOKUP(C24,'Comp SINAPI AL - NãoDesonerado'!$G$7:$K$6879,2,0)) -> MOURAO ROLICO DE MADEIRA TRATADA, D = 16 A 20 CM, H = 2,20 M, EM EUCALIPTO OU EQUIVALENTE DA REGIAO (PARA CERCA) | E24: =LOWER(IF(I24="i",VLOOKUP(C24,'Ins SINAPI AL -NãoDesonerado'!$A$8:$E$7500,3,0),VLOOKUP(C24,'Comp SINAPI AL - NãoDesonerado'!$G$7:$K$7500,3,0))) -> m | F24: 17.6 | G24: =IF(I24="i",VLOOKUP(C24,'Ins SINAPI AL -NãoDesonerado'!$A$8:$E$5189,5,0),VLOOKUP(C24,'Comp SINAPI AL - NãoDesonerado'!$G$7:$K$6879,5,0)) -> 27.82 | H24: =ROUND(F24*G24,2) -> 489.63 | I24: I
A25: =B20 -> 2.1.4 | B25: SINAPI | C25: 94963 | D25: =IF(I25="i",VLOOKUP(C25,'Ins SINAPI AL -NãoDesonerado'!$A$8:$E$5189,2,0),VLOOKUP(C25,'Comp SINAPI AL - NãoDesonerado'!$G$7:$K$6879,2,0)) -> CONCRETO FCK = 15MPA, TRAÇO 1:3,4:3,5 (EM MASSA SECA DE CIMENTO/ AREIA MÉDIA/ BRITA 1) - PREPARO MECÂNICO COM BETONEIRA 400 L. AF_05/2021 | E25: =LOWER(IF(I25="i",VLOOKUP(C25,'Ins SINAPI AL -NãoDesonerado'!$A$8:$E$7500,3,0),VLOOKUP(C25,'Comp SINAPI AL - NãoDesonerado'!$G$7:$K$7500,3,0))) -> m3 | F25: 0.701 | G25: =IF(I25="i",VLOOKUP(C25,'Ins SINAPI AL -NãoDesonerado'!$A$8:$E$5189,5,0),VLOOKUP(C25,'Comp SINAPI AL - NãoDesonerado'!$G$7:$K$6879,5,0)) -> 403.22 | H25: =ROUND(F25*G25,2) -> 282.66 | I25: ca
A26: =B20 -> 2.1.4 | B26: SINAPI | C26: 99059 | D26: LOCACAO CONVENCIONAL DE OBRA, UTILIZANDO GABARITO DE TÁBUAS CORRIDAS PONTALETADAS A CADA 2,00M - 2 UTILIZAÇÕES. AF_10/2018 | E26: =LOWER(IF(I26="i",VLOOKUP(C26,'Ins SINAPI AL -NãoDesonerado'!$A$8:$E$7500,3,0),VLOOKUP(C26,'Comp SINAPI AL - NãoDesonerado'!$G$7:$K$7500,3,0))) -> m | F26: 8.64 | G26: 52.63 | H26: =ROUND(F26*G26,2) -> 454.72 | I26: ca
A27: =B20 -> 2.1.4 | B27: =B20 -> 2.1.4 | D27: EQUIPAMENTOS | H27: 0 | I27: SS
A28: =B20 -> 2.1.4 | B28: =B20 -> 2.1.4 | D28: SERVIÇOS | H28: =SUM(H29:H31) -> 285.11 | I28: SS
A29: =B20 -> 2.1.4 | B29: SINAPI | C29: 93358 | D29: =IF(I29="i",VLOOKUP(C29,'Ins SINAPI AL -NãoDesonerado'!$A$8:$E$5189,2,0),VLOOKUP(C29,'Comp SINAPI AL - NãoDesonerado'!$G$7:$K$7500,2,0)) -> ESCAVAÇÃO MANUAL DE VALA COM PROFUNDIDADE MENOR OU IGUAL A 1,30 M. AF_02/2021 | E29: =LOWER(IF(I29="i",VLOOKUP(C29,'Ins SINAPI AL -NãoDesonerado'!$A$8:$E$7500,3,0),VLOOKUP(C29,'Comp SINAPI AL - NãoDesonerado'!$G$7:$K$7500,3,0))) -> m3 | F29: 1.0014 | G29: =IF(I29="i",VLOOKUP(C29,'Ins SINAPI AL -NãoDesonerado'!$A$8:$E$5189,5,0),VLOOKUP(C29,'Comp SINAPI AL - NãoDesonerado'!$G$7:$K$6879,5,0)) -> 77.81 | H29: =ROUND(F29*G29,2) -> 77.92 | I29: ca
A30: =B20 -> 2.1.4 | B30: CPOS/CDHU SP | C30: 06.11.040 | D30: Reaterro manual apiloado sem controle de compactação | E30: m3 | F30: =F29 -> 1.0014 | G30: 19 | H30: =ROUND(F30*G30,2) -> 19.03 | I30: ca
A31: =B20 -> 2.1.4 | B31: SINAPI | C31: 103670 | D31: =IF(I31="i",VLOOKUP(C31,'Ins SINAPI AL -NãoDesonerado'!$A$8:$E$5189,2,0),VLOOKUP(C31,'Comp SINAPI AL - NãoDesonerado'!$G$7:$K$7500,2,0)) -> LANÇAMENTO COM USO DE BALDES, ADENSAMENTO E ACABAMENTO DE CONCRETO EM ESTRUTURAS. AF_02/2022 | E31: =LOWER(IF(I31="i",VLOOKUP(C31,'Ins SINAPI AL -NãoDesonerado'!$A$8:$E$7500,3,0),VLOOKUP(C31,'Comp SINAPI AL - NãoDesonerado'!$G$7:$K$7500,3,0))) -> m3 | F31: =F25 -> 0.701 | G31: =IF(I31="i",VLOOKUP(C31,'Ins SINAPI AL -NãoDesonerado'!$A$8:$E$5189,5,0),VLOOKUP(C31,'Comp SINAPI AL - NãoDesonerado'!$G$7:$K$7500,5,0)) -> 268.41 | H31: =ROUND(F31*G31,2) -> 188.16 | I31: ca
A32: =B20 -> 2.1.4 | B32: =B20 -> 2.1.4 | D32: MÃO DE OBRA | H32: =SUM(H33:H34) -> 299.29 | I32: MDO
A33: =B20 -> 2.1.4 | B33: SINAPI | C33: 88262 | D33: =IF(I33="i",VLOOKUP(C33,'Ins SINAPI AL -NãoDesonerado'!$A$8:$E$5189,2,0),VLOOKUP(C33,'Comp SINAPI AL - NãoDesonerado'!$G$7:$K$7500,2,0)) -> CARPINTEIRO DE FORMAS COM ENCARGOS COMPLEMENTARES | E33: =LOWER(IF(I33="i",VLOOKUP(C33,'Ins SINAPI AL -NãoDesonerado'!$A$8:$E$7500,3,0),VLOOKUP(C33,'Comp SINAPI AL - NãoDesonerado'!$G$7:$K$7500,3,0))) -> h | F33: 6.776 | G33: =IF(I33="i",VLOOKUP(C33,'Ins SINAPI AL -NãoDesonerado'!$A$8:$E$5189,5,0),VLOOKUP(C33,'Comp SINAPI AL - NãoDesonerado'!$G$7:$K$7500,5,0)) -> 24.5 | H33: =ROUND(F33*G33,2) -> 166.01 | I33: ca
A34: =B20 -> 2.1.4 | B34: SINAPI | C34: 88316 | D34: =IF(I34="i",VLOOKUP(C34,'Ins SINAPI AL -NãoDesonerado'!$A$8:$E$5189,2,0),VLOOKUP(C34,'Comp SINAPI AL - NãoDesonerado'!$G$7:$K$7500,2,0)) -> SERVENTE COM ENCARGOS COMPLEMENTARES | E34: =LOWER(IF(I34="i",VLOOKUP(C34,'Ins SINAPI AL -NãoDesonerado'!$A$8:$E$7500,3,0),VLOOKUP(C34,'Comp SINAPI AL - NãoDesonerado'!$G$7:$K$7500,3,0))) -> h | F34: 6.776 | G34: =IF(I34="i",VLOOKUP(C34,'Ins SINAPI AL -NãoDesonerado'!$A$8:$E$5189,5,0),VLOOKUP(C34,'Comp SINAPI AL - NãoDesonerado'!$G$7:$K$7500,5,0)) -> 19.67 | H34: =ROUND(F34*G34,2) -> 133.28 | I34: ca
I35: x
A36: =B36 -> 2.2.1 | B36: ='Planilha Orçamentária'!A27 -> 2.2.1 | C36: =VLOOKUP($B36,'Planilha Orçamentária'!$A$12:$K$105,3,) -> CPU.05 | D36: =VLOOKUP($B36,'Planilha Orçamentária'!$A$12:$K$105,4+2,) -> Placa de obra em chapa aço galvanizado, instalada (Adaptado ORSE 51) | E36: m² | H36: =SUM(H37,H44,H42,H43) -> 362.64 | I36: S
A37: =B36 -> 2.2.1 | B37: =B36 -> 2.2.1 | D37: MATERIAL | H37: =SUM(H38:H41) -> 298.8 | I37: SS
A38: =B36 -> 2.2.1 | B38: SINAPI | C38: 4430 | D38: =IF(I38="i",VLOOKUP(C38,'Ins SINAPI AL -NãoDesonerado'!$A$8:$E$7500,2,0),VLOOKUP(C38,'Comp SINAPI AL - NãoDesonerado'!$G$7:$K$7500,2,0)) -> CAIBRO NAO APARELHADO *5 X 6* CM, EM MACARANDUBA/MASSARANDUBA, ANGELIM OU EQUIVALENTE DA REGIAO - BRUTA | E38: =LOWER(IF(I38="i",VLOOKUP(C38,'Ins SINAPI AL -NãoDesonerado'!$A$8:$E$7500,3,0),VLOOKUP(C38,'Comp SINAPI AL - NãoDesonerado'!$G$7:$K$7500,3,0))) -> m | F38: 4 | G38: =IF(I38="i",VLOOKUP(C38,'Ins SINAPI AL -NãoDesonerado'!$A$8:$E$5189,5,0),VLOOKUP(C38,'Comp SINAPI AL - NãoDesonerado'!$G$7:$K$6879,5,0)) -> 9.64 | H38: =ROUND(F38*G38,2) -> 38.56 | I38: I
A39: =B36 -> 2.2.1 | B39: SINAPI | C39: 4813 | D39: =IF(I39="i",VLOOKUP(C39,'Ins SINAPI AL -NãoDesonerado'!$A$8:$E$7500,2,0),VLOOKUP(C39,'Comp SINAPI AL - NãoDesonerado'!$G$7:$K$7500,2,0)) -> PLACA DE OBRA (PARA CONSTRUCAO CIVIL) EM CHAPA GALVANIZADA *N. 22*, ADESIVADA, DE *2,4 X 1,2* M (SEM POSTES PARA FIXACAO) | E39: =LOWER(IF(I39="i",VLOOKUP(C39,'Ins SINAPI AL -NãoDesonerado'!$A$8:$E$7500,3,0),VLOOKUP(C39,'Comp SINAPI AL - NãoDesonerado'!$G$7:$K$7500,3,0))) -> m2 | F39: 1 | G39: =IF(I39="i",VLOOKUP(C39,'Ins SINAPI AL -NãoDesonerado'!$A$8:$E$5189,5,0),VLOOKUP(C39,'Comp SINAPI AL - NãoDesonerado'!$G$7:$K$6879,5,0)) -> 250 | H39: =ROUND(F39*G39,2) -> 250 | I39: I
A40: =B36 -> 2.2.1 | B40: SINAPI | C40: 20206 | D40: =IF(I40="i",VLOOKUP(C40,'Ins SINAPI AL -NãoDesonerado'!$A$8:$E$7500,2,0),VLOOKUP(C40,'Comp SINAPI AL - NãoDesonerado'!$G$7:$K$7500,2,0)) -> SARRAFO APARELHADO *2 X 10* CM, EM MACARANDUBA/MASSARANDUBA, ANGELIM OU EQUIVALENTE DA REGIAO | E40: =LOWER(IF(I40="i",VLOOKUP(C40,'Ins SINAPI AL -NãoDesonerado'!$A$8:$E$7500,3,0),VLOOKUP(C40,'Comp SINAPI AL - NãoDesonerado'!$G$7:$K$7500,3,0))) -> m | F40: 1 | G40: =IF(I40="i",VLOOKUP(C40,'Ins SINAPI AL -NãoDesonerado'!$A$8:$E$5189,5,0),VLOOKUP(C40,'Comp SINAPI AL - NãoDesonerado'!$G$7:$K$6879,5,0)) -> 6.62 | H40: =ROUND(F40*G40,2) -> 6.62 | I40: I
A41: =B36 -> 2.2.1 | B41: SINAPI | C41: 5075 | D41: =IF(I41="i",VLOOKUP(C41,'Ins SINAPI AL -NãoDesonerado'!$A$8:$E$7500,2,0),VLOOKUP(C41,'Comp SINAPI AL - NãoDesonerado'!$G$7:$K$7500,2,0)) -> PREGO DE ACO POLIDO COM CABECA 18 X 30 (2 3/4 X 10) | E41: =LOWER(IF(I41="i",VLOOKUP(C41,'Ins SINAPI AL -NãoDesonerado'!$A$8:$E$7500,3,0),VLOOKUP(C41,'Comp SINAPI AL - NãoDesonerado'!$G$7:$K$7500,3,0))) -> kg | F41: 0.15 | G41: =IF(I41="i",VLOOKUP(C41,'Ins SINAPI AL -NãoDesonerado'!$A$8:$E$5189,5,0),VLOOKUP(C41,'Comp SINAPI AL - NãoDesonerado'!$G$7:$K$6879,5,0)) -> 24.16 | H41: =ROUND(F41*G41,2) -> 3.62 | I41: I
A42: =B36 -> 2.2.1 | B42: =B36 -> 2.2.1 | D42: EQUIPAMENTOS | H42: 0 | I42: SS
A43: =B36 -> 2.2.1 | B43: =B36 -> 2.2.1 | D43: SERVIÇOS | H43: 0 | I43: SS
A44: =B36 -> 2.2.1 | B44: =B36 -> 2.2.1 | D44: MÃO DE OBRA | H44: =SUM(H45:H46) -> 63.84 | I44: MDO
A45: =B36 -> 2.2.1 | B45: SINAPI | C45: 88262 | D45: =IF(I45="i",VLOOKUP(C45,'Ins SINAPI AL -NãoDesonerado'!$A$8:$E$7500,2,0),VLOOKUP(C45,'Comp SINAPI AL - NãoDesonerado'!$G$7:$K$7500,2,0)) -> CARPINTEIRO DE FORMAS COM ENCARGOS COMPLEMENTARES | E45: =LOWER(IF(I45="i",VLOOKUP(C45,'Ins SINAPI AL -NãoDesonerado'!$A$8:$E$7500,3,0),VLOOKUP(C45,'Comp SINAPI AL - NãoDesonerado'!$G$7:$K$7500,3,0))) -> h | F45: 1 | G45: =IF(I45="i",VLOOKUP(C45,'Ins SINAPI AL -NãoDesonerado'!$A$8:$E$5189,5,0),VLOOKUP(C45,'Comp SINAPI AL - NãoDesonerado'!$G$7:$K$7500,5,0)) -> 24.5 | H45: =ROUND(F45*G45,2) -> 24.5 | I45: ca
A46: =B36 -> 2.2.1 | B46: SINAPI | C46: 88316 | D46: =IF(I46="i",VLOOKUP(C46,'Ins SINAPI AL -NãoDesonerado'!$A$8:$E$7500,2,0),VLOOKUP(C46,'Comp SINAPI AL - NãoDesonerado'!$G$7:$K$7500,2,0)) -> SERVENTE COM ENCARGOS COMPLEMENTARES | E46: =LOWER(IF(I46="i",VLOOKUP(C46,'Ins SINAPI AL -NãoDesonerado'!$A$8:$E$7500,3,0),VLOOKUP(C46,'Comp SINAPI AL - NãoDesonerado'!$G$7:$K$7500,3,0))) -> h | F46: 2 | G46: =IF(I46="i",VLOOKUP(C46,'Ins SINAPI AL -NãoDesonerado'!$A$8:$E$5189,5,0),VLOOKUP(C46,'Comp SINAPI AL - NãoDesonerado'!$G$7:$K$7500,5,0)) -> 19.67 | H46: =ROUND(F46*G46,2) -> 39.34 | I46: ca
I47: x
A48: =B48 -> 3.1.1 | B48: ='Planilha Orçamentária'!A31 -> 3.1.1 | C48: =VLOOKUP($B48,'Planilha Orçamentária'!$A$12:$K$105,3,) -> CPU.06 | D48: =VLOOKUP($B48,'Planilha Orçamentária'!$A$12:$K$105,4+2,) -> Mobilização e desmobilização da Equipe, Camara Hiperbarica e todos os equipamentos de mergulho envolvidos na operação | E48: un | H48: =SUM(H49,H53,H50,H51) -> 42000 | I48: S
A49: =B48 -> 3.1.1 | B49: =B48 -> 3.1.1 | D49: MATERIAL | H49: 0 | I49: ss
A50: =B48 -> 3.1.1 | B50: =B48 -> 3.1.1 | D50: EQUIPAMENTOS | H50: 0 | I50: ss
A51: =B48 -> 3.1.1 | B51: =B48 -> 3.1.1 | D51: SERVIÇOS | H51: =H52 -> 42000 | I51: ss
A52: =B48 -> 3.1.1 | B52: 2023-05-01 | C52: COTAÇÃO | D52: Mobilização e desmobilização da Equipe, Camara Hiperbarica e todos os equipamentos de mergulho envolvidos na operação | E52: un | F52: 1 | G52: 42000 | H52: =ROUND(F52*G52,2) -> 42000 | I52: ca
A53: =B48 -> 3.1.1 | B53: =B48 -> 3.1.1 | D53: MÃO DE OBRA | H53: 0 | I53: ss
I54: x
A55: =B55 -> 4.1.1 | B55: ='Planilha Orçamentária'!A36 -> 4.1.1 | C55: =VLOOKUP($B55,'Planilha Orçamentária'!$A$12:$K$105,3,) -> CPU.07 | D55: =VLOOKUP($B55,'Planilha Orçamentária'!$A$12:$K$105,4+2,) -> Plano De Trabalho Para Substituição Da Comporta | E55: =VLOOKUP($B55,'Planilha Orçamentária'!$A$12:$K$105,5+2,) -> un | H55: =SUM(H56,H61,H58,H60) -> 63989.61 | I55: S | J55: CPU - Engenharia Consultiva da Codevasf
A56: =B55 -> 4.1.1 | B56: =B55 -> 4.1.1 | D56: MATERIAL | H56: =H57 -> 2203.25 | I56: ss | J56: CPU - HOSPEDAGEM EQUIPE DE CAMPO (4 PESSOAS/MÊS) | L56: Código/Referencia
A57: =B55 -> 4.1.1 | B57: CODE | C57: DP | D57: DIÁRIA | E57: dia | F57: =3*4 -> 12 | G57: =K72 -> 183.6040833 | H57: =ROUND(F57*G57,2) -> 2203.25 | I57: ca | J57: ALUGUEL | K57: 3074.56 | L57: F020003334/EMBASA
A58: =B55 -> 4.1.1 | B58: =B55 -> 4.1.1 | D58: EQUIPAMENTOS | H58: =H59 -> 3581.9 | I58: ss | J58: Aquisição de Mobiliário | K58: =43.89*K69 -> 175.56 | L58: B8954 | M58: DNIT
A59: 4.1.1 | B59: CODEVASF | D59: CAMINHONETE | E59: mes | F59: 0.5 | G59: ='CPU-VEICULO_PickUp'!C10 -> 7163.790168 | H59: =ROUND(F59*G59,2) -> 3581.9 | I59: ca | J59: Material de limpeza e diarista | K59: =124.74+(123*8) -> 1108.74 | L59: 10563/ORSE
A60: =B55 -> 4.1.1 | B60: =B55 -> 4.1.1 | D60: SERVIÇOS | I60: ss | J60: manutenção da casa alugada - Serviços Gerais/Vigia | K60: 2422.38 | L60: 41096/SINAPI
A61: =B55 -> 4.1.1 | B61: =B55 -> 4.1.1 | D61: MÃO DE OBRA | H61: =SUM(H62:H64) -> 58204.46 | I61: ss | J61: Energia | K61: 180 | L61: 10555/ORSE
A62: 4.1.1 | B62: SINAPI | C62: 100320 | D62: ENGENHEIRO CIVIL PLENO COM ENCARGOS COMPLEMENTARES | E62: mes | F62: 1 | G62: 23724.06 | H62: =ROUND(F62*G62,2) -> 23724.06 | I62: ca | J62: Água | K62: 394.99 | L62: 10554/ORSE
A63: 4.1.1 | B63: SINAPI | C63: 100320 | D63: ENGENHEIRO MECANICO DE OBRA PLENO COM ENCARGOS COMPLEMENTARES (BASEADO SINAPI 90778) | E63: mes | F63: 1 | G63: =G62 -> 23724.06 | H63: =ROUND(F63*G63,2) -> 23724.06 | I63: ca | J63: telefone/Internet | K63: =154.99+89 -> 243.99 | L63: 10557/10558/ORSE
B64: SICRO | C64: P9864 | D64: Engenheiro de segurança do trabalho | E64: mês | F64: 0.5 | G64: 21512.67 | H64: =ROUND(F64*G64,2) -> 10756.34 | I64: ca | J64: IPTU (mês) | K64: =(K57*0.5)/12 -> 128.1066667
I65: x | J65: Despesas Gerais - 10% | K65: =SUM(K57:K64)*0.1 -> 772.8326667
A66: =B66 -> 4.2.1 | B66: ='Planilha Orçamentária'!A38 -> 4.2.1 | C66: =VLOOKUP($B66,'Planilha Orçamentária'!$A$12:$K$105,3,) -> CPU.08 | D66: =VLOOKUP($B66,'Planilha Orçamentária'!$A$12:$K$105,4+2) -> Construção/adequação e instalação de comporta ensecadeira (stop-log) provisória a ser instalada na guia já existente da tomada d’água (alternativa "a") | E66: =VLOOKUP($B66,'Planilha Orçamentária'!$A$12:$K$105,5+2) -> un | H66: =SUM(H67,H82,H76,H78,) -> 70868.2 | I66: S | J66: Custo Mensal (hospedagem): | K66: =SUM(K57:K65) -> 8501.159333
A67: =B66 -> 4.2.1 | B67: =B66 -> 4.2.1 | D67: MATERIAL | H67: =SUM(H68:H75) -> 38070.18 | I67: ss | J67: Custo Mensal por pessoa (hospedagem): | K67: =K66/K69 -> 2125.289833
A68: =B66 -> 4.2.1 | B68: CODE | C68: DP | D68: DIÁRIA | E68: dia | F68: =15*3 -> 45 | G68: =K72 -> 183.6040833 | H68: =ROUND(F68*G68,2) -> 8262.18 | I68: i | J68: Custo diário por pessoa (hospedagem): | K68: =K67/22 -> 96.60408333
A69: =B66 -> 4.2.1 | B69: SICRO | C69: E9043 | D69: Embarcação de alumínio com comprimento de 6 m e motor de popa - 18,60 kW | E69: h | F69: 160 | G69: 76.8 | H69: =ROUND(F69*G69,2) -> 12288 | I69: i | J69: número de pessoas: | K69: 4
A70: =B66 -> 4.2.1 | B70: SICRO | C70: E9243 | D70: Câmara hiperbárica com filtro, serpentina e reservatório de ar para mergulho raso - D= 1,80 m e H = 2,22 m. | E70: h | F70: 160 | G70: 74.13 | H70: =ROUND(F70*G70,2) -> 11860.8 | J70: Alimentação: | K70: 87 | L70: Tabela Diária Codevasf
A71: =B66 -> 4.2.1 | B71: SICRO | C71: E9245 | D71: Estação transmissora de superfície para comunicação com fio | E71: h | F71: 160 | G71: 0.76 | H71: 121.6
A72: =B66 -> 4.2.1 | B72: SICRO | C72: E9242 | D72: Estação transmissora de superfície para televisionamento | E72: h | F72: 160 | G72: 1.36 | H72: 217.6 | J72: Diária Total (Alimentação + hospedagem): | K72: =K68+K70 -> 183.6040833
A73: =B66 -> 4.2.1 | B73: SICRO | C73: E9066 | D73: Grupo gerador - 14 kVA | E73: h | F73: 160 | G73: 17.83 | H73: 2852.8
A74: =B66 -> 4.2.1 | B74: SICRO | C74: E9246 | D74: Painel de controle de ar com manômetros e pneufatômetros | E74: h | F74: 160 | G74: 1.45 | H74: 232
A75: =B66 -> 4.2.1 | B75: SICRO | C75: E9248 | D75: Sistema de ar comprimido para mergulho até 30 m com pressão de trabalho de 1,4 MPa - 7,46 kW | E75: h | F75: 160 | G75: 13.97 | H75: 2235.2
A76: =B66 -> 4.2.1 | B76: =B66 -> 4.2.1 | D76: EQUIPAMENTOS | H76: =SUM(H77) -> 7163.79 | I76: ss
A77: =B66 -> 4.2.1 | B77: CODEVASF | D77: CAMINHONETE | E77: mes | F77: 1 | G77: ='CPU-VEICULO_PickUp'!C10 -> 7163.790168 | H77: =ROUND(F77*G77,2) -> 7163.79 | I77: I
A78: =B66 -> 4.2.1 | B78: =B66 -> 4.2.1 | D78: SERVIÇOS | H78: =SUM(H79:H81) -> 3505.43 | I78: ss
A79: =B66 -> 4.2.1 | B79: SICRO | C79: 4915639 | D79: Limpeza em superfície de concreto com escova de aço | E79: m² | F79: =1.2*1.2*2 -> 2.88 | G79: 3.71 | H79: =ROUND(F79*G79,2) -> 10.68 | I79: ca
A80: =B66 -> 4.2.1 | B80: SICRO | C80: 2408068 | D80: Jateamento de chapa de aço com o uso de granalhas de aço Grau SA3 | E80: m² | F80: =1.2*1.2*2 -> 2.88 | G80: 15.12 | H80: =ROUND(F80*G80,2) -> 43.55 | I80: ca
A81: =B66 -> 4.2.1 | B81: SICRO | C81: E9058 | D81: Plataforma flutuante de 12 x 24 x 1,8 m com capacidade de 150 t | E81: h | F81: 80 | G81: 43.14 | H81: =ROUND(F81*G81,2) -> 3451.2 | I81: i
A82: =B66 -> 4.2.1 | B82: =B66 -> 4.2.1 | D82: MÃO DE OBRA | H82: =SUM(H83:H85) -> 22128.8 | I82: ss
A83: =B66 -> 4.2.1 | B83: SICRO | C83: P9926 | D83: Mergulhador raso auxiliar de superfície | E83: h | F83: 80 | G83: 32.9 | H83: =ROUND(F83*G83,2) -> 2632
A84: =B66 -> 4.2.1 | B84: EMBASA | C84: B010000113 | D84: MERGULHADOR PROFISSIONAL | E84: h | F84: 80 | G84: 207.46 | H84: 16596.8
A85: =B66 -> 4.2.1 | B85: SICRO | C85: P9922 | D85: Mergulhador raso dependente de emergência | E85: h | F85: 80 | G85: 36.25 | H85: 2900
A87: =B87 -> 4.2.2 | B87: ='Planilha Orçamentária'!A39 -> 4.2.2 | C87: =VLOOKUP($B87,'Planilha Orçamentária'!$A$12:$K$105,3,) -> CPU.09 | D87: =VLOOKUP($B87,'Planilha Orçamentária'!$A$12:$K$105,4+2,) -> Utilização de bloqueador inflável multidimensional (alternativa "c") | E87: =VLOOKUP($B87,'Planilha Orçamentária'!$A$12:$K$105,5+2) -> un | H87: =SUM(H88,H101,H98,H100) -> 155917.55 | I87: S
A88: =B87 -> 4.2.2 | B88: =B87 -> 4.2.2 | D88: MATERIAL | H88: =SUM(H89:H97) -> 97332.37 | I88: ss
A89: =B87 -> 4.2.2 | B89: CODE | C89: DP | D89: DIÁRIA | E89: dia | F89: 90 | G89: =K72 -> 183.6040833 | H89: =ROUND(F89*G89,2) -> 16524.37 | I89: i
A90: =B87 -> 4.2.2 | B90: SICRO | C90: E9043 | D90: Embarcação de alumínio com comprimento de 6 m e motor de popa - 18,60 kW | E90: h | F90: 160 | G90: 76.8 | H90: =ROUND(F90*G90,2) -> 12288 | I90: i
A91: =B87 -> 4.2.2 | B91: 2023-05-01 | C91: COTAÇÂO | D91: Bloqueador inflável completo DN>1200 mm com todos os acessórios necessários para a sua utilização e PN>20 mca | E91: un | F91: 1 | G91: 51000 | H91: =ROUND(F91*G91,2) -> 51000 | I91: i
A92: =B88 -> 4.2.2 | B92: SICRO | C92: E9243 | D92: Câmara hiperbárica com filtro, serpentina e reservatório de ar para mergulho raso - D= 1,80 m e H = 2,22 m. | E92: h | F92: 160 | G92: 74.13 | H92: =ROUND(F92*G92,2) -> 11860.8
A93: =B88 -> 4.2.2 | B93: SICRO | C93: E9245 | D93: Estação transmissora de superfície para comunicação com fio | E93: h | F93: 160 | G93: 0.76 | H93: 121.6
A94: =B88 -> 4.2.2 | B94: SICRO | C94: E9242 | D94: Estação transmissora de superfície para televisionamento | E94: h | F94: 160 | G94: 1.36 | H94: 217.6
A95: =B88 -> 4.2.2 | B95: SICRO | C95: E9066 | D95: Grupo gerador - 14 kVA | E95: h | F95: 160 | G95: 17.83 | H95: 2852.8
A96: =B88 -> 4.2.2 | B96: SICRO | C96: E9246 | D96: Painel de controle de ar com manômetros e pneufatômetros | E96: h | F96: 160 | G96: 1.45 | H96: 232
A97: =B88 -> 4.2.2 | B97: SICRO | C97: E9248 | D97: Sistema de ar comprimido para mergulho até 30 m com pressão de trabalho de 1,4 MPa - 7,46 kW | E97: h | F97: 160 | G97: 13.97 | H97: 2235.2
A98: =B87 -> 4.2.2 | B98: =B87 -> 4.2.2 | D98: EQUIPAMENTOS | H98: =SUM(H99) -> 14327.58 | I98: ss
A99: =B87 -> 4.2.2 | B99: CODEVASF | D99: CAMINHONETE | E99: mes | F99: 2 | G99: ='CPU-VEICULO_PickUp'!C10 -> 7163.790168 | H99: =ROUND(F99*G99,2) -> 14327.58 | I99: I
A100: =B87 -> 4.2.2 | B100: =B87 -> 4.2.2 | D100: SERVIÇOS | H100: 0 | I100: ss
A101: =B87 -> 4.2.2 | B101: =B87 -> 4.2.2 | D101: MÃO DE OBRA | H101: =SUM(H102:H104) -> 44257.6 | I101: ss
A102: =B87 -> 4.2.2 | B102: SICRO | C102: P9926 | D102: Mergulhador raso auxiliar de superfície | E102: h | F102: 160 | G102: 32.9 | H102: =ROUND(F102*G102,2) -> 5264
A103: =B87 -> 4.2.2 | B103: EMBASA | C103: B010000113 | D103: MERGULHADOR PROFISSIONAL | E103: h | F103: 160 | G103: 207.46 | H103: 33193.6
A104: =B87 -> 4.2.2 | B104: SICRO | C104: P9922 | D104: Mergulhador raso dependente de emergência | E104: h | F104: 160 | G104: 36.25 | H104: 5800
A106: =B106 -> 4.2.3 | B106: ='Planilha Orçamentária'!A40 -> 4.2.3 | C106: =VLOOKUP($B106,'Planilha Orçamentária'!$A$12:$K$105,3,) -> CPU.10 | D106: =VLOOKUP($B106,'Planilha Orçamentária'!$A$12:$K$105,4+2,) -> Vedação das entradas da tomada d’água com chapas metálicas (alternativa "b") | E106: =VLOOKUP($B106,'Planilha Orçamentária'!$A$12:$K$105,5+2) -> un | H106: =SUM(H107,H123,H117,H119) -> 100422.93 | I106: S
A107: =B106 -> 4.2.3 | B107: =B106 -> 4.2.3 | D107: MATERIAL | H107: =SUM(H108:H116) -> 65013.18 | I107: ss
A108: =B106 -> 4.2.3 | B108: CODE | C108: DP | D108: DIÁRIA | E108: dia | F108: =15*3 -> 45 | G108: =K72 -> 183.6040833 | H108: =ROUND(F108*G108,2) -> 8262.18 | I108: i
A109: =B106 -> 4.2.3 | B109: SICRO | C109: E9043 | D109: Embarcação de alumínio com comprimento de 6 m e motor de popa - 18,60 kW | E109: h | F109: 120 | G109: 76.8 | H109: =ROUND(F109*G109,2) -> 9216 | I109: i
B110: SICRO | C110: 2408149 | D110: Estrutura em chapa de aço ASTM A36 corte, solda e montagem - fornecimento e instalação | E110: kg | F110: 2500 | G110: 15.51 | H110: =ROUND(F110*G110,2) -> 38775 | I110: I
A111: =B107 -> 4.2.3 | B111: SICRO | C111: E9243 | D111: Câmara hiperbárica com filtro, serpentina e reservatório de ar para mergulho raso - D= 1,80 m e H = 2,22 m. | E111: h | F111: 80 | G111: 74.13 | H111: =ROUND(F111*G111,2) -> 5930.4
A112: =B107 -> 4.2.3 | B112: SICRO | C112: E9245 | D112: Estação transmissora de superfície para comunicação com fio | E112: h | F112: 80 | G112: 0.76 | H112: 60.8
A113: =B107 -> 4.2.3 | B113: SICRO | C113: E9242 | D113: Estação transmissora de superfície para televisionamento | E113: h | F113: 80 | G113: 1.36 | H113: 108.8
A114: =B107 -> 4.2.3 | B114: SICRO | C114: E9066 | D114: Grupo gerador - 14 kVA | E114: h | F114: 80 | G114: 17.83 | H114: 1426.4
A115: =B107 -> 4.2.3 | B115: SICRO | C115: E9246 | D115: Painel de controle de ar com manômetros e pneufatômetros | E115: h | F115: 80 | G115: 1.45 | H115: 116
A116: =B107 -> 4.2.3 | B116: SICRO | C116: E9248 | D116: Sistema de ar comprimido para mergulho até 30 m com pressão de trabalho de 1,4 MPa - 7,46 kW | E116: h | F116: 80 | G116: 13.97 | H116: 1117.6
A117: =B106 -> 4.2.3 | B117: =B106 -> 4.2.3 | D117: EQUIPAMENTOS | H117: =SUM(H118) -> 7163.79 | I117: ss
A118: =B106 -> 4.2.3 | B118: CODEVASF | D118: CAMINHONETE | E118: mes | F118: 1 | G118: ='CPU-VEICULO_PickUp'!C10 -> 7163.790168 | H118: =ROUND(F118*G118,2) -> 7163.79 | I118: I
A119: =B106 -> 4.2.3 | B119: =B106 -> 4.2.3 | D119: SERVIÇOS | H119: =SUM(H120:H122) -> 6117.16 | I119: ss
B120: SICRO3 | C120: 3807863 | D120: Chumbador para concreto D = 12,5 mm tipo tecbolt - fornecimento e instalação | E120: un | F120: 72 | G120: 12.03 | H120: =ROUND(F120*G120,2) -> 866.16 | I120: ca
A121: =B106 -> 4.2.3 | B121: SICRO | C121: 4915639 | D121: Limpeza em superfície de concreto com escova de aço | E121: m² | F121: =5*4 -> 20 | G121: 3.71 | H121: =ROUND(F121*G121,2) -> 74.2 | I121: ca
A122: =B106 -> 4.2.3 | B122: SICRO | C122: E9058 | D122: Plataforma flutuante de 12 x 24 x 1,8 m com capacidade de 150 t | E122: h | F122: 120 | G122: 43.14 | H122: =ROUND(F122*G122,2) -> 5176.8 | I122: i
A123: =B106 -> 4.2.3 | B123: =B106 -> 4.2.3 | D123: MÃO DE OBRA | H123: =SUM(H124:H126) -> 22128.8 | I123: ss
A124: =B106 -> 4.2.3 | B124: SICRO | C124: P9926 | D124: Mergulhador raso auxiliar de superfície | E124: h | F124: 80 | G124: 32.9 | H124: =ROUND(F124*G124,2) -> 2632
A125: =B106 -> 4.2.3 | B125: EMBASA | C125: B010000113 | D125: MERGULHADOR PROFISSIONAL | E125: h | F125: 80 | G125: 207.46 | H125: 16596.8
A126: =B106 -> 4.2.3 | B126: SICRO | C126: P9922 | D126: Mergulhador raso dependente de emergência | E126: h | F126: 80 | G126: 36.25 | H126: 2900
A128: =B128 -> 5.1 | B128: ='Planilha Orçamentária'!A43 -> 5.1 | C128: =VLOOKUP($B128,'Planilha Orçamentária'!$A$12:$K$105,3,) -> CPU.11 | D128: =VLOOKUP($B128,'Planilha Orçamentária'!$A$12:$K$105,4+2) -> Desmontagem e retirada das comportas segmento existentes, compreendendo cilindro hidraulico, tabuleiro, braços, mancais e instalação eletrica e hidraulica | E128: =VLOOKUP($B128,'Planilha Orçamentária'!$A$12:$K$105,5+2) -> un | H128: =SUM(H129,H132,H137,H138) -> 30298.34 | I128: S
A129: =B128 -> 5.1 | B129: =B128 -> 5.1 | D129: MATERIAL | H129: =SUM(H130:H131) -> 2299.78 | I129: SS
A130: =B128 -> 5.1 | B130: SINAPI | C130: 10997 | D130: =IF(I130="i",VLOOKUP(C130,'Ins SINAPI AL -NãoDesonerado'!$A$8:$E$5189,2,0),VLOOKUP(C130,'Comp SINAPI AL - NãoDesonerado'!$G$7:$K$6879,2,0)) -> ELETRODO REVESTIDO AWS - E7018, DIAMETRO IGUAL A 4,00 MM | E130: =LOWER(IF(I130="i",VLOOKUP(C130,'Ins SINAPI AL -NãoDesonerado'!$A$8:$E$7500,3,0),VLOOKUP(C130,'Comp SINAPI AL - NãoDesonerado'!$G$7:$K$7500,3,0))) -> kg | F130: 15 | G130: =IF(I130="i",VLOOKUP(C130,'Ins SINAPI AL -NãoDesonerado'!$A$8:$E$5189,5,0),VLOOKUP(C130,'Comp SINAPI AL - NãoDesonerado'!$G$7:$K$6879,5,0)) -> 55.42 | H130: =ROUND(F130*G130,2) -> 831.3 | I130: i
A131: =B128 -> 5.1 | B131: SINAPI | C131: 1 | D131: =IF(I131="i",VLOOKUP(C131,'Ins SINAPI AL -NãoDesonerado'!$A$8:$E$5189,2,0),VLOOKUP(C131,'Comp SINAPI AL - NãoDesonerado'!$G$7:$K$6879,2,0)) -> ACETILENO (RECARGA DE GAS ACETILENO PARA CILINDRO DE CONJUNTO OXICORTE GRANDE) NAO INCLUI TROCA/MANUTENCAO DO CILINDRO | E131: =LOWER(IF(I131="i",VLOOKUP(C131,'Ins SINAPI AL -NãoDesonerado'!$A$8:$E$7500,3,0),VLOOKUP(C131,'Comp SINAPI AL - NãoDesonerado'!$G$7:$K$7500,3,0))) -> kg | F131: 16 | G131: =IF(I131="i",VLOOKUP(C131,'Ins SINAPI AL -NãoDesonerado'!$A$8:$E$5189,5,0),VLOOKUP(C131,'Comp SINAPI AL - NãoDesonerado'!$G$7:$K$6879,5,0)) -> 91.78 | H131: =ROUND(F131*G131,2) -> 1468.48 | I131: i
A132: =B128 -> 5.1 | B132: =B128 -> 5.1 | D132: EQUIPAMENTOS | H132: =SUM(H133:H136) -> 16213.44 | I132: SS
A133: =B128 -> 5.1 | B133: SINAPI | C133: 83763 | D133: =IF(I133="i",VLOOKUP(C133,'Ins SINAPI AL -NãoDesonerado'!$A$8:$E$5189,2,0),VLOOKUP(C133,'Comp SINAPI AL - NãoDesonerado'!$G$7:$K$6879,2,0)) -> GRUPO DE SOLDAGEM COM GERADOR A DIESEL 60 CV PARA SOLDA ELÉTRICA, SOBRE 04 RODAS, COM MOTOR 4 CILINDROS 600 A - MATERIAIS NA OPERAÇÃO. AF_02/2016 | E133: =LOWER(IF(I133="i",VLOOKUP(C133,'Ins SINAPI AL -NãoDesonerado'!$A$8:$E$7500,3,0),VLOOKUP(C133,'Comp SINAPI AL - NãoDesonerado'!$G$7:$K$7500,3,0))) -> h | F133: 96 | G133: =IF(I133="i",VLOOKUP(C133,'Ins SINAPI AL -NãoDesonerado'!$A$8:$E$5189,5,0),VLOOKUP(C133,'Comp SINAPI AL - NãoDesonerado'!$G$7:$K$6879,5,0)) -> 50.92 | H133: =ROUND(F133*G133,2) -> 4888.32 | I133: ca
A134: =B128 -> 5.1 | B134: SINAPI | C134: 92715 | D134: =IF(I134="i",VLOOKUP(C134,'Ins SINAPI AL -NãoDesonerado'!$A$8:$E$5189,2,0),VLOOKUP(C134,'Comp SINAPI AL - NãoDesonerado'!$G$7:$K$6879,2,0)) -> APARELHO PARA CORTE E SOLDA OXI-ACETILENO SOBRE RODAS, INCLUSIVE CILINDROS E MAÇARICOS - MATERIAIS NA OPERAÇÃO. AF_05/2023 | E134: =LOWER(IF(I134="i",VLOOKUP(C134,'Ins SINAPI AL -NãoDesonerado'!$A$8:$E$7500,3,0),VLOOKUP(C134,'Comp SINAPI AL - NãoDesonerado'!$G$7:$K$7500,3,0))) -> h | F134: 96 | G134: =IF(I134="i",VLOOKUP(C134,'Ins SINAPI AL -NãoDesonerado'!$A$8:$E$5189,5,0),VLOOKUP(C134,'Comp SINAPI AL - NãoDesonerado'!$G$7:$K$6879,5,0)) -> 95.73 | H134: =ROUND(F134*G134,2) -> 9190.08 | I134: ca
A135: =B128 -> 5.1 | B135: SINAPI | C135: 10527 | D135: =IF(I135="i",VLOOKUP(C135,'Ins SINAPI AL -NãoDesonerado'!$A$8:$E$5189,2,0),VLOOKUP(C135,'Comp SINAPI AL - NãoDesonerado'!$G$7:$K$6879,2,0)) -> LOCACAO DE ANDAIME METALICO TUBULAR DE ENCAIXE, TIPO DE TORRE, CADA PAINEL COM LARGURA DE 1 ATE 1,5 M E ALTURA DE *1,00* M, INCLUINDO DIAGONAL, BARRAS DE LIGACAO, SAPATAS OU RODIZIOS E DEMAIS ITENS NECESSARIOS A MONTAGEM (NAO INCLUI INSTALACAO) | E135: =LOWER(IF(I135="i",VLOOKUP(C135,'Ins SINAPI AL -NãoDesonerado'!$A$8:$E$7500,3,0),VLOOKUP(C135,'Comp SINAPI AL - NãoDesonerado'!$G$7:$K$7500,3,0))) -> mxmes | F135: 24 | G135: =IF(I135="i",VLOOKUP(C135,'Ins SINAPI AL -NãoDesonerado'!$A$8:$E$5189,5,0),VLOOKUP(C135,'Comp SINAPI AL - NãoDesonerado'!$G$7:$K$6879,5,0)) -> 25 | H135: =ROUND(F135*G135,2) -> 600 | I135: i
A136: =B128 -> 5.1 | B136: SINAPI | C136: 93286 | D136: =IF(I136="i",VLOOKUP(C136,'Ins SINAPI AL -NãoDesonerado'!$A$8:$E$5189,2,0),VLOOKUP(C136,'Comp SINAPI AL - NãoDesonerado'!$G$7:$K$6879,2,0)) -> GUINDASTE HIDRÁULICO AUTOPROPELIDO, COM LANÇA TELESCÓPICA 40 M, CAPACIDADE MÁXIMA 60 T, POTÊNCIA 260 KW - MATERIAIS NA OPERAÇÃO. AF_03/2016 | E136: =LOWER(IF(I136="i",VLOOKUP(C136,'Ins SINAPI AL -NãoDesonerado'!$A$8:$E$7500,3,0),VLOOKUP(C136,'Comp SINAPI AL - NãoDesonerado'!$G$7:$K$7500,3,0))) -> h | F136: 96 | G136: =IF(I136="i",VLOOKUP(C136,'Ins SINAPI AL -NãoDesonerado'!$A$8:$E$5189,5,0),VLOOKUP(C136,'Comp SINAPI AL - NãoDesonerado'!$G$7:$K$6879,5,0)) -> 15.99 | H136: =ROUND(F136*G136,2) -> 1535.04 | I136: ca
A137: =B128 -> 5.1 | B137: =B128 -> 5.1 | D137: SERVIÇOS | H137: 0 | I137: SS
A138: =B128 -> 5.1 | B138: =B128 -> 5.1 | D138: MÃO DE OBRA | H138: =SUM(H139:H140) -> 11785.12 | I138: MDO
A139: =B128 -> 5.1 | B139: SINAPI | C139: 88272 | D139: =IF(I139="i",VLOOKUP(C139,'Ins SINAPI AL -NãoDesonerado'!$A$8:$E$5189,2,0),VLOOKUP(C139,'Comp SINAPI AL - NãoDesonerado'!$G$7:$K$7500,2,0)) -> MACARIQUEIRO COM ENCARGOS COMPLEMENTARES | E139: =LOWER(IF(I139="i",VLOOKUP(C139,'Ins SINAPI AL -NãoDesonerado'!$A$8:$E$7500,3,0),VLOOKUP(C139,'Comp SINAPI AL - NãoDesonerado'!$G$7:$K$7500,3,0))) -> h | F139: 128 | G139: =IF(I139="i",VLOOKUP(C139,'Ins SINAPI AL -NãoDesonerado'!$A$8:$E$7500,5,0),VLOOKUP(C139,'Comp SINAPI AL - NãoDesonerado'!$G$7:$K$7500,5,0)) -> 27.79 | H139: =ROUND(F139*G139,2) -> 3557.12 | I139: ca
A140: =B128 -> 5.1 | B140: SINAPI | C140: 88241 | D140: =IF(I140="i",VLOOKUP(C140,'Ins SINAPI AL -NãoDesonerado'!$A$8:$E$5189,2,0),VLOOKUP(C140,'Comp SINAPI AL - NãoDesonerado'!$G$7:$K$7500,2,0)) -> AJUDANTE DE OPERAÇÃO EM GERAL COM ENCARGOS COMPLEMENTARES | E140: =LOWER(IF(I140="i",VLOOKUP(C140,'Ins SINAPI AL -NãoDesonerado'!$A$8:$E$7500,3,0),VLOOKUP(C140,'Comp SINAPI AL - NãoDesonerado'!$G$7:$K$7500,3,0))) -> h | F140: 400 | G140: =IF(I140="i",VLOOKUP(C140,'Ins SINAPI AL -NãoDesonerado'!$A$8:$E$7500,5,0),VLOOKUP(C140,'Comp SINAPI AL - NãoDesonerado'!$G$7:$K$7500,5,0)) -> 20.57 | H140: =ROUND(F140*G140,2) -> 8228 | I140: ca
A143: =B143 -> 5.2 | B143: ='Planilha Orçamentária'!A44 -> 5.2 | C143: =VLOOKUP($B143,'Planilha Orçamentária'!$A$12:$K$105,3,) -> CPU.12 | D143: =VLOOKUP($B143,'Planilha Orçamentária'!$A$12:$K$105,4+2) -> Demolição e transporte do concreto das ranhuras das peças fixas existentes e demolição das peças fixas, compreendendo caminho de deslizamento, peças fixas laterais, soleira e peça fixa frontal. | E143: =VLOOKUP($B143,'Planilha Orçamentária'!$A$12:$K$105,5+2) -> un | H143: =SUM(H144,H145,H147,H151) -> 21658.36 | I143: S
A144: =B143 -> 5.2 | B144: =B143 -> 5.2 | D144: MATERIAL | H144: 0 | I144: SS
A145: =B143 -> 5.2 | B145: =B143 -> 5.2 | D145: EQUIPAMENTOS | H145: =SUM(H146:H146) -> 11487.6 | I145: SS
A146: =B143 -> 5.2 | B146: SINAPI | C146: 92715 | D146: =IF(I146="i",VLOOKUP(C146,'Ins SINAPI AL -NãoDesonerado'!$A$8:$E$7500,2,0),VLOOKUP(C146,'Comp SINAPI AL - NãoDesonerado'!$G$7:$K$7500,2,0)) -> APARELHO PARA CORTE E SOLDA OXI-ACETILENO SOBRE RODAS, INCLUSIVE CILINDROS E MAÇARICOS - MATERIAIS NA OPERAÇÃO. AF_05/2023 | E146: =LOWER(IF(I146="i",VLOOKUP(C146,'Ins SINAPI AL -NãoDesonerado'!$A$8:$E$7500,3,0),VLOOKUP(C146,'Comp SINAPI AL - NãoDesonerado'!$G$7:$K$7500,3,0))) -> h | F146: 120 | G146: =IF(I146="i",VLOOKUP(C146,'Ins SINAPI AL -NãoDesonerado'!$A$8:$E$5189,5,0),VLOOKUP(C146,'Comp SINAPI AL - NãoDesonerado'!$G$7:$K$6879,5,0)) -> 95.73 | H146: =ROUND(F146*G146,2) -> 11487.6 | I146: ca
A147: =B143 -> 5.2 | B147: =B143 -> 5.2 | D147: SERVIÇOS | H147: =SUM(H148:H150) -> 1403.62 | I147: SS
A148: =B143 -> 5.2 | B148: SINAPI | C148: 97627 | D148: =IF(I148="i",VLOOKUP(C148,'Ins SINAPI AL -NãoDesonerado'!$A$8:$E$7500,2,0),VLOOKUP(C148,'Comp SINAPI AL - NãoDesonerado'!$G$7:$K$7500,2,0)) -> DEMOLIÇÃO DE PILARES E VIGAS EM CONCRETO ARMADO, DE FORMA MECANIZADA COM MARTELETE, SEM REAPROVEITAMENTO. AF_09/2023 | E148: =LOWER(IF(I148="i",VLOOKUP(C148,'Ins SINAPI AL -NãoDesonerado'!$A$8:$E$7500,3,0),VLOOKUP(C148,'Comp SINAPI AL - NãoDesonerado'!$G$7:$K$7500,3,0))) -> m3 | F148: 2.58 | G148: 150.94 | H148: =ROUND(F148*G148,2) -> 389.43 | I148: ca
A149: =B143 -> 5.2 | B149: SINAPI | C149: 100235 | D149: =IF(I149="i",VLOOKUP(C149,'Ins SINAPI AL -NãoDesonerado'!$A$8:$E$7500,2,0),VLOOKUP(C149,'Comp SINAPI AL - NãoDesonerado'!$G$7:$K$7500,2,0)) -> TRANSPORTE VERTICAL MANUAL, 1 PAVIMENTO, DE LATA DE 18 LITROS (UNIDADE: L). AF_07/2019 | E149: =(IF(I149="i",VLOOKUP(C149,'Ins SINAPI AL -NãoDesonerado'!$A$8:$E$7500,3,0),VLOOKUP(C149,'Comp SINAPI AL - NãoDesonerado'!$G$7:$K$7500,3,0))) -> L | F149: 287 | G149: =IF(I149="i",VLOOKUP(C149,'Ins SINAPI AL -NãoDesonerado'!$A$8:$E$7500,5,0),VLOOKUP(C149,'Comp SINAPI AL - NãoDesonerado'!$G$7:$K$7500,5,0)) -> 0.03 | H149: =ROUND(F149*G149,2) -> 8.61 | I149: ca
A150: =B143 -> 5.2 | B150: SINAPI | C150: 97914 | D150: =IF(I150="i",VLOOKUP(C150,'Ins SINAPI AL -NãoDesonerado'!$A$8:$E$7500,2,0),VLOOKUP(C150,'Comp SINAPI AL - NãoDesonerado'!$G$7:$K$7500,2,0)) -> TRANSPORTE COM CAMINHÃO BASCULANTE DE 6 M³, EM VIA URBANA PAVIMENTADA, DMT ATÉ 30 KM (UNIDADE: M3XKM). AF_07/2020 | E150: =LOWER(IF(I150="i",VLOOKUP(C150,'Ins SINAPI AL -NãoDesonerado'!$A$8:$E$7500,3,0),VLOOKUP(C150,'Comp SINAPI AL - NãoDesonerado'!$G$7:$K$7500,3,0))) -> m3xkm | F150: 343.2 | G150: =IF(I150="i",VLOOKUP(C150,'Ins SINAPI AL -NãoDesonerado'!$A$8:$E$7500,5,0),VLOOKUP(C150,'Comp SINAPI AL - NãoDesonerado'!$G$7:$K$7500,5,0)) -> 2.93 | H150: =ROUND(F150*G150,2) -> 1005.58 | I150: ca
A151: =B143 -> 5.2 | B151: =B143 -> 5.2 | D151: MÃO DE OBRA | H151: =SUM(H152:H153) -> 8767.14 | I151: MDO
A152: =B143 -> 5.2 | B152: SINAPI | C152: 88242 | D152: =IF(I152="i",VLOOKUP(C152,'Ins SINAPI AL -NãoDesonerado'!$A$8:$E$7500,2,0),VLOOKUP(C152,'Comp SINAPI AL - NãoDesonerado'!$G$7:$K$7500,2,0)) -> AJUDANTE DE PEDREIRO COM ENCARGOS COMPLEMENTARES | E152: =LOWER(IF(I152="i",VLOOKUP(C152,'Ins SINAPI AL -NãoDesonerado'!$A$8:$E$7500,3,0),VLOOKUP(C152,'Comp SINAPI AL - NãoDesonerado'!$G$7:$K$7500,3,0))) -> h | F152: 384 | G152: =IF(I152="i",VLOOKUP(C152,'Ins SINAPI AL -NãoDesonerado'!$A$8:$E$7500,5,0),VLOOKUP(C152,'Comp SINAPI AL - NãoDesonerado'!$G$7:$K$7500,5,0)) -> 20.66 | H152: =ROUND(F152*G152,2) -> 7933.44 | I152: ca
A153: =B143 -> 5.2 | B153: SINAPI | C153: 88272 | D153: =IF(I153="i",VLOOKUP(C153,'Ins SINAPI AL -NãoDesonerado'!$A$8:$E$7500,2,0),VLOOKUP(C153,'Comp SINAPI AL - NãoDesonerado'!$G$7:$K$7500,2,0)) -> MACARIQUEIRO COM ENCARGOS COMPLEMENTARES | E153: =LOWER(IF(I153="i",VLOOKUP(C153,'Ins SINAPI AL -NãoDesonerado'!$A$8:$E$7500,3,0),VLOOKUP(C153,'Comp SINAPI AL - NãoDesonerado'!$G$7:$K$7500,3,0))) -> h | F153: 30 | G153: =IF(I153="i",VLOOKUP(C153,'Ins SINAPI AL -NãoDesonerado'!$A$8:$E$7500,5,0),VLOOKUP(C153,'Comp SINAPI AL - NãoDesonerado'!$G$7:$K$7500,5,0)) -> 27.79 | H153: =ROUND(F153*G153,2) -> 833.7 | I153: ca
I154: x
A155: =B155 -> 5.3 | B155: ='Planilha Orçamentária'!A45 -> 5.3 | C155: =VLOOKUP($B155,'Planilha Orçamentária'!$A$12:$K$105,3,) -> CPU.13 | D155: =VLOOKUP($B155,'Planilha Orçamentária'!$A$12:$K$105,4+2) -> Preparação das ranhuras para receber as novas peças fixas | E155: =VLOOKUP($B155,'Planilha Orçamentária'!$A$12:$K$105,5+2) -> un | H155: =SUM(H156,H158,H159,H160) -> 5910.44 | I155: S
A156: =B155 -> 5.3 | B156: =B155 -> 5.3 | D156: MATERIAL | H156: =H157 -> 4588.2 | I156: SS
A157: =B155 -> 5.3 | B157: SINAPI | C157: 4049 | D157: =IF(I157="i",VLOOKUP(C157,'Ins SINAPI AL -NãoDesonerado'!$A$8:$E$5189,2,0),VLOOKUP(C157,'Comp SINAPI AL - NãoDesonerado'!$G$7:$K$6879,2,0)) -> MASSA EPOXI BICOMPONENTE (MASSA + CATALIZADOR) | E157: =LOWER(IF(I157="i",VLOOKUP(C157,'Ins SINAPI AL -NãoDesonerado'!$A$8:$E$7500,3,0),VLOOKUP(C157,'Comp SINAPI AL - NãoDesonerado'!$G$7:$K$7500,3,0))) -> l | F157: 90 | G157: =IF(I157="i",VLOOKUP(C157,'Ins SINAPI AL -NãoDesonerado'!$A$8:$E$7500,5,0),VLOOKUP(C157,'Comp SINAPI AL - NãoDesonerado'!$G$7:$K$7500,5,0)) -> 50.98 | H157: =ROUND(F157*G157,2) -> 4588.2 | I157: i
A158: =B155 -> 5.3 | B158: =B155 -> 5.3 | D158: EQUIPAMENTOS | H158: 0 | I158: SS
A159: =B155 -> 5.3 | B159: =B155 -> 5.3 | D159: SERVIÇOS | H159: 0 | I159: SS
A160: =B155 -> 5.3 | B160: =B155 -> 5.3 | D160: MÃO DE OBRA | H160: =SUM(H161:H161) -> 1322.24 | I160: MDO
A161: =B155 -> 5.3 | B161: SINAPI | C161: 88242 | D161: =IF(I161="i",VLOOKUP(C161,'Ins SINAPI AL -NãoDesonerado'!$A$8:$E$7500,2,0),VLOOKUP(C161,'Comp SINAPI AL - NãoDesonerado'!$G$7:$K$7500,2,0)) -> AJUDANTE DE PEDREIRO COM ENCARGOS COMPLEMENTARES | E161: =LOWER(IF(I161="i",VLOOKUP(C161,'Ins SINAPI AL -NãoDesonerado'!$A$8:$E$7500,3,0),VLOOKUP(C161,'Comp SINAPI AL - NãoDesonerado'!$G$7:$K$7500,3,0))) -> h | F161: 64 | G161: =IF(I161="i",VLOOKUP(C161,'Ins SINAPI AL -NãoDesonerado'!$A$8:$E$7500,5,0),VLOOKUP(C161,'Comp SINAPI AL - NãoDesonerado'!$G$7:$K$7500,5,0)) -> 20.66 | H161: =ROUND(F161*G161,2) -> 1322.24 | I161: ca
I162: x
A163: =B163 -> 5.4 | B163: ='Planilha Orçamentária'!A46 -> 5.4 | C163: =VLOOKUP($B163,'Planilha Orçamentária'!$A$12:$K$105,3,) -> CPU.14 | D163: =VLOOKUP($B163,'Planilha Orçamentária'!$A$12:$K$105,4+2,) -> Montagem das novas peças fixas | E163: =VLOOKUP($B163,'Planilha Orçamentária'!$A$12:$K$105,5+2) -> un | H163: =SUM(H164,H167,H172,H173) -> 51725.84 | I163: S
A164: =B163 -> 5.4 | B164: =B163 -> 5.4 | D164: MATERIAL | H164: =SUM(H165:H166) -> 2580.4 | I164: SS
A165: =B163 -> 5.4 | B165: SINAPI | C165: 10997 | D165: =IF(I165="i",VLOOKUP(C165,'Ins SINAPI AL -NãoDesonerado'!$A$8:$E$5189,2,0),VLOOKUP(C165,'Comp SINAPI AL - NãoDesonerado'!$G$7:$K$6879,2,0)) -> ELETRODO REVESTIDO AWS - E7018, DIAMETRO IGUAL A 4,00 MM | E165: =LOWER(IF(I165="i",VLOOKUP(C165,'Ins SINAPI AL -NãoDesonerado'!$A$8:$E$7500,3,0),VLOOKUP(C165,'Comp SINAPI AL - NãoDesonerado'!$G$7:$K$7500,3,0))) -> kg | F165: 30 | G165: =IF(I165="i",VLOOKUP(C165,'Ins SINAPI AL -NãoDesonerado'!$A$8:$E$5189,5,0),VLOOKUP(C165,'Comp SINAPI AL - NãoDesonerado'!$G$7:$K$6879,5,0)) -> 55.42 | H165: =ROUND(F165*G165,2) -> 1662.6 | I165: i
A166: =B163 -> 5.4 | B166: SINAPI | C166: 1 | D166: =IF(I166="i",VLOOKUP(C166,'Ins SINAPI AL -NãoDesonerado'!$A$8:$E$5189,2,0),VLOOKUP(C166,'Comp SINAPI AL - NãoDesonerado'!$G$7:$K$6879,2,0)) -> ACETILENO (RECARGA DE GAS ACETILENO PARA CILINDRO DE CONJUNTO OXICORTE GRANDE) NAO INCLUI TROCA/MANUTENCAO DO CILINDRO | E166: =LOWER(IF(I166="i",VLOOKUP(C166,'Ins SINAPI AL -NãoDesonerado'!$A$8:$E$7500,3,0),VLOOKUP(C166,'Comp SINAPI AL - NãoDesonerado'!$G$7:$K$7500,3,0))) -> kg | F166: 10 | G166: =IF(I166="i",VLOOKUP(C166,'Ins SINAPI AL -NãoDesonerado'!$A$8:$E$5189,5,0),VLOOKUP(C166,'Comp SINAPI AL - NãoDesonerado'!$G$7:$K$6879,5,0)) -> 91.78 | H166: =ROUND(F166*G166,2) -> 917.8 | I166: i
A167: =B163 -> 5.4 | B167: =B163 -> 5.4 | D167: EQUIPAMENTOS | H167: =SUM(H168:H171) -> 28416 | I167: SS
A168: =B163 -> 5.4 | B168: SINAPI | C168: 83763 | D168: =IF(I168="i",VLOOKUP(C168,'Ins SINAPI AL -NãoDesonerado'!$A$8:$E$7500,2,0),VLOOKUP(C168,'Comp SINAPI AL - NãoDesonerado'!$G$7:$K$7500,2,0)) -> GRUPO DE SOLDAGEM COM GERADOR A DIESEL 60 CV PARA SOLDA ELÉTRICA, SOBRE 04 RODAS, COM MOTOR 4 CILINDROS 600 A - MATERIAIS NA OPERAÇÃO. AF_02/2016 | E168: =LOWER(IF(I168="i",VLOOKUP(C168,'Ins SINAPI AL -NãoDesonerado'!$A$8:$E$7500,3,0),VLOOKUP(C168,'Comp SINAPI AL - NãoDesonerado'!$G$7:$K$7500,3,0))) -> h | F168: 72 | G168: =IF(I168="i",VLOOKUP(C168,'Ins SINAPI AL -NãoDesonerado'!$A$8:$E$5189,5,0),VLOOKUP(C168,'Comp SINAPI AL - NãoDesonerado'!$G$7:$K$6879,5,0)) -> 50.92 | H168: =ROUND(F168*G168,2) -> 3666.24 | I168: ca
A169: =B163 -> 5.4 | B169: SINAPI | C169: 92715 | D169: =IF(I169="i",VLOOKUP(C169,'Ins SINAPI AL -NãoDesonerado'!$A$8:$E$7500,2,0),VLOOKUP(C169,'Comp SINAPI AL - NãoDesonerado'!$G$7:$K$7500,2,0)) -> APARELHO PARA CORTE E SOLDA OXI-ACETILENO SOBRE RODAS, INCLUSIVE CILINDROS E MAÇARICOS - MATERIAIS NA OPERAÇÃO. AF_05/2023 | E169: =LOWER(IF(I169="i",VLOOKUP(C169,'Ins SINAPI AL -NãoDesonerado'!$A$8:$E$7500,3,0),VLOOKUP(C169,'Comp SINAPI AL - NãoDesonerado'!$G$7:$K$7500,3,0))) -> h | F169: 48 | G169: =IF(I169="i",VLOOKUP(C169,'Ins SINAPI AL -NãoDesonerado'!$A$8:$E$5189,5,0),VLOOKUP(C169,'Comp SINAPI AL - NãoDesonerado'!$G$7:$K$6879,5,0)) -> 95.73 | H169: =ROUND(F169*G169,2) -> 4595.04 | I169: ca
A170: =B163 -> 5.4 | B170: SINAPI | C170: 10527 | D170: =IF(I170="i",VLOOKUP(C170,'Ins SINAPI AL -NãoDesonerado'!$A$8:$E$7500,2,0),VLOOKUP(C170,'Comp SINAPI AL - NãoDesonerado'!$G$7:$K$7500,2,0)) -> LOCACAO DE ANDAIME METALICO TUBULAR DE ENCAIXE, TIPO DE TORRE, CADA PAINEL COM LARGURA DE 1 ATE 1,5 M E ALTURA DE *1,00* M, INCLUINDO DIAGONAL, BARRAS DE LIGACAO, SAPATAS OU RODIZIOS E DEMAIS ITENS NECESSARIOS A MONTAGEM (NAO INCLUI INSTALACAO) | E170: =LOWER(IF(I170="i",VLOOKUP(C170,'Ins SINAPI AL -NãoDesonerado'!$A$8:$E$7500,3,0),VLOOKUP(C170,'Comp SINAPI AL - NãoDesonerado'!$G$7:$K$7500,3,0))) -> mxmes | F170: 12 | G170: =IF(I170="i",VLOOKUP(C170,'Ins SINAPI AL -NãoDesonerado'!$A$8:$E$5189,5,0),VLOOKUP(C170,'Comp SINAPI AL - NãoDesonerado'!$G$7:$K$6879,5,0)) -> 25 | H170: =ROUND(F170*G170,2) -> 300 | I170: i
A171: =B163 -> 5.4 | B171: SINAPI | C171: 89272 | D171: =IF(I171="i",VLOOKUP(C171,'Ins SINAPI AL -NãoDesonerado'!$A$8:$E$7500,2,0),VLOOKUP(C171,'Comp SINAPI AL - NãoDesonerado'!$G$7:$K$7500,2,0)) -> GUINDASTE HIDRÁULICO AUTOPROPELIDO, COM LANÇA TELESCÓPICA 28,80 M, CAPACIDADE MÁXIMA 30 T, POTÊNCIA 97 KW, TRAÇÃO 4 X 4 - CHP DIURNO. AF_11/2014 | E171: =LOWER(IF(I171="i",VLOOKUP(C171,'Ins SINAPI AL -NãoDesonerado'!$A$8:$E$7500,3,0),VLOOKUP(C171,'Comp SINAPI AL - NãoDesonerado'!$G$7:$K$7500,3,0))) -> chp | F171: 96 | G171: =IF(I171="i",VLOOKUP(C171,'Ins SINAPI AL -NãoDesonerado'!$A$8:$E$5189,5,0),VLOOKUP(C171,'Comp SINAPI AL - NãoDesonerado'!$G$7:$K$6879,5,0)) -> 206.82 | H171: =ROUND(F171*G171,2) -> 19854.72 | I171: ca
A172: =B163 -> 5.4 | B172: =B163 -> 5.4 | D172: SERVIÇOS | H172: 0 | I172: SS
A173: =B163 -> 5.4 | B173: =B163 -> 5.4 | D173: MÃO DE OBRA | H173: =SUM(H174:H177) -> 20729.44 | I173: MDO
A174: =B163 -> 5.4 | B174: SINAPI | C174: 88278 | D174: =IF(I174="i",VLOOKUP(C174,'Ins SINAPI AL -NãoDesonerado'!$A$8:$E$7500,2,0),VLOOKUP(C174,'Comp SINAPI AL - NãoDesonerado'!$G$7:$K$7500,2,0)) -> MONTADOR DE ESTRUTURA METÁLICA COM ENCARGOS COMPLEMENTARES | E174: =LOWER(IF(I174="i",VLOOKUP(C174,'Ins SINAPI AL -NãoDesonerado'!$A$8:$E$7500,3,0),VLOOKUP(C174,'Comp SINAPI AL - NãoDesonerado'!$G$7:$K$7500,3,0))) -> h | F174: 320 | G174: =IF(I174="i",VLOOKUP(C174,'Ins SINAPI AL -NãoDesonerado'!$A$8:$E$7500,5,0),VLOOKUP(C174,'Comp SINAPI AL - NãoDesonerado'!$G$7:$K$7500,5,0)) -> 19.98 | H174: =ROUND(F174*G174,2) -> 6393.6 | I174: ca
A175: =B163 -> 5.4 | B175: SINAPI | C175: 88317 | D175: =IF(I175="i",VLOOKUP(C175,'Ins SINAPI AL -NãoDesonerado'!$A$8:$E$7500,2,0),VLOOKUP(C175,'Comp SINAPI AL - NãoDesonerado'!$G$7:$K$7500,2,0)) -> SOLDADOR COM ENCARGOS COMPLEMENTARES | E175: =LOWER(IF(I175="i",VLOOKUP(C175,'Ins SINAPI AL -NãoDesonerado'!$A$8:$E$7500,3,0),VLOOKUP(C175,'Comp SINAPI AL - NãoDesonerado'!$G$7:$K$7500,3,0))) -> h | F175: 96 | G175: =IF(I175="i",VLOOKUP(C175,'Ins SINAPI AL -NãoDesonerado'!$A$8:$E$7500,5,0),VLOOKUP(C175,'Comp SINAPI AL - NãoDesonerado'!$G$7:$K$7500,5,0)) -> 28.19 | H175: =ROUND(F175*G175,2) -> 2706.24 | I175: ca
A176: =B163 -> 5.4 | B176: SINAPI | C176: 88241 | D176: =IF(I176="i",VLOOKUP(C176,'Ins SINAPI AL -NãoDesonerado'!$A$8:$E$7500,2,0),VLOOKUP(C176,'Comp SINAPI AL - NãoDesonerado'!$G$7:$K$7500,2,0)) -> AJUDANTE DE OPERAÇÃO EM GERAL COM ENCARGOS COMPLEMENTARES | E176: =LOWER(IF(I176="i",VLOOKUP(C176,'Ins SINAPI AL -NãoDesonerado'!$A$8:$E$7500,3,0),VLOOKUP(C176,'Comp SINAPI AL - NãoDesonerado'!$G$7:$K$7500,3,0))) -> h | F176: 320 | G176: =IF(I176="i",VLOOKUP(C176,'Ins SINAPI AL -NãoDesonerado'!$A$8:$E$7500,5,0),VLOOKUP(C176,'Comp SINAPI AL - NãoDesonerado'!$G$7:$K$7500,5,0)) -> 20.57 | H176: =ROUND(F176*G176,2) -> 6582.4 | I176: ca
A177: =B163 -> 5.4 | B177: SINAPI | C177: 90778 | D177: ENGENHEIRO MECANICO DE OBRA PLENO COM ENCARGOS COMPLEMENTARES (BASEADO SINAPI 90778) | E177: h | F177: 40 | G177: =IF(I177="i",VLOOKUP(C177,'Ins SINAPI AL -NãoDesonerado'!$A$8:$E$7500,5,0),VLOOKUP(C177,'Comp SINAPI AL - NãoDesonerado'!$G$7:$K$7500,5,0)) -> 126.18 | H177: =ROUND(F177*G177,2) -> 5047.2 | I177: ca
A178: =B178 -> 5.5 | B178: ='Planilha Orçamentária'!A47 -> 5.5 | C178: =VLOOKUP($B178,'Planilha Orçamentária'!$A$12:$K$105,3,) -> CPU.15 | D178: =VLOOKUP($B178,'Planilha Orçamentária'!$A$12:$K$105,4+2,) -> Concretagem das novas peças fixas | E178: =VLOOKUP($B178,'Planilha Orçamentária'!$A$12:$K$105,5+2) -> un | H178: =SUM(H179,H182,H184,H187) -> 9854.95 | I178: S
A179: =B178 -> 5.5 | B179: =B178 -> 5.5 | D179: MATERIAL | H179: =SUM(H180:H181) -> 171.87 | I179: SS
A180: =B178 -> 5.5 | B180: SINAPI | C180: 4491 | D180: =IF(I180="i",VLOOKUP(C180,'Ins SINAPI AL -NãoDesonerado'!$A$8:$E$5189,2,0),VLOOKUP(C180,'Comp SINAPI AL - NãoDesonerado'!$G$7:$K$6879,2,0)) -> PONTALETE *7,5 X 7,5* CM EM PINUS, MISTA OU EQUIVALENTE DA REGIAO - BRUTA | E180: =LOWER(IF(I180="i",VLOOKUP(C180,'Ins SINAPI AL -NãoDesonerado'!$A$8:$E$7500,3,0),VLOOKUP(C180,'Comp SINAPI AL - NãoDesonerado'!$G$7:$K$7500,3,0))) -> m | F180: 12 | G180: =IF(I180="i",VLOOKUP(C180,'Ins SINAPI AL -NãoDesonerado'!$A$8:$E$5189,5,0),VLOOKUP(C180,'Comp SINAPI AL - NãoDesonerado'!$G$7:$K$6879,5,0)) -> 11.05 | H180: =ROUND(F180*G180,2) -> 132.6 | I180: I
A181: =B178 -> 5.5 | B181: SINAPI | C181: 4509 | D181: =IF(I181="i",VLOOKUP(C181,'Ins SINAPI AL -NãoDesonerado'!$A$8:$E$5189,2,0),VLOOKUP(C181,'Comp SINAPI AL - NãoDesonerado'!$G$7:$K$6879,2,0)) -> SARRAFO *2,5 X 10* CM EM PINUS, MISTA OU EQUIVALENTE DA REGIAO - BRUTA | E181: =LOWER(IF(I181="i",VLOOKUP(C181,'Ins SINAPI AL -NãoDesonerado'!$A$8:$E$7500,3,0),VLOOKUP(C181,'Comp SINAPI AL - NãoDesonerado'!$G$7:$K$7500,3,0))) -> m | F181: 7 | G181: =IF(I181="i",VLOOKUP(C181,'Ins SINAPI AL -NãoDesonerado'!$A$8:$E$5189,5,0),VLOOKUP(C181,'Comp SINAPI AL - NãoDesonerado'!$G$7:$K$6879,5,0)) -> 5.61 | H181: =ROUND(F181*G181,2) -> 39.27 | I181: I
A182: =B178 -> 5.5 | B182: =B178 -> 5.5 | D182: EQUIPAMENTOS | H182: =SUM(H183:H183) -> 1784.58 | I182: SS
A183: =B178 -> 5.5 | B183: SINAPI | C183: 90662 | D183: =IF(I183="i",VLOOKUP(C183,'Ins SINAPI AL -NãoDesonerado'!$A$8:$E$5189,2,0),VLOOKUP(C183,'Comp SINAPI AL - NãoDesonerado'!$G$7:$K$6879,2,0)) -> BOMBA DE PROJEÇÃO DE CONCRETO SECO, POTÊNCIA 10 CV, VAZÃO 6 M3/H - CHP DIURNO. AF_06/2015 | E183: =LOWER(IF(I183="i",VLOOKUP(C183,'Ins SINAPI AL -NãoDesonerado'!$A$8:$E$7500,3,0),VLOOKUP(C183,'Comp SINAPI AL - NãoDesonerado'!$G$7:$K$7500,3,0))) -> chp | F183: 98 | G183: =IF(I183="i",VLOOKUP(C183,'Ins SINAPI AL -NãoDesonerado'!$A$8:$E$5189,5,0),VLOOKUP(C183,'Comp SINAPI AL - NãoDesonerado'!$G$7:$K$6879,5,0)) -> 18.21 | H183: =ROUND(F183*G183,2) -> 1784.58 | I183: ca
A184: =B178 -> 5.5 | B184: =B178 -> 5.5 | D184: SERVIÇOS | H184: =SUM(H185:H186) -> 5198.34 | I184: SS
A185: =B178 -> 5.5 | B185: SINAPI | C185: 92409 | D185: =IF(I185="i",VLOOKUP(C185,'Ins SINAPI AL -NãoDesonerado'!$A$8:$E$5189,2,0),VLOOKUP(C185,'Comp SINAPI AL - NãoDesonerado'!$G$7:$K$6879,2,0)) -> MONTAGEM E DESMONTAGEM DE FÔRMA DE PILARES RETANGULARES E ESTRUTURAS SIMILARES, PÉ-DIREITO SIMPLES, EM MADEIRA SERRADA, 1 UTILIZAÇÃO. AF_09/2020 | E185: =LOWER(IF(I185="i",VLOOKUP(C185,'Ins SINAPI AL -NãoDesonerado'!$A$8:$E$7500,3,0),VLOOKUP(C185,'Comp SINAPI AL - NãoDesonerado'!$G$7:$K$7500,3,0))) -> m2 | F185: 8.82 | G185: =IF(I185="i",VLOOKUP(C185,'Ins SINAPI AL -NãoDesonerado'!$A$8:$E$5189,5,0),VLOOKUP(C185,'Comp SINAPI AL - NãoDesonerado'!$G$7:$K$6879,5,0)) -> 251.84 | H185: =ROUND(F185*G185,2) -> 2221.23 | I185: ca
A186: =B178 -> 5.5 | B186: SINAPI | C186: 103669 | D186: =IF(I186="i",VLOOKUP(C186,'Ins SINAPI AL -NãoDesonerado'!$A$8:$E$7500,2,0),VLOOKUP(C186,'Comp SINAPI AL - NãoDesonerado'!$G$7:$K$7500,2,0)) -> CONCRETAGEM DE PILARES, FCK = 25 MPA, COM USO DE BALDES - LANÇAMENTO, ADENSAMENTO E ACABAMENTO. AF_02/2022 | E186: =LOWER(IF(I186="i",VLOOKUP(C186,'Ins SINAPI AL -NãoDesonerado'!$A$8:$E$7500,3,0),VLOOKUP(C186,'Comp SINAPI AL - NãoDesonerado'!$G$7:$K$7500,3,0))) -> m3 | F186: 3.354 | G186: =IF(I186="i",VLOOKUP(C186,'Ins SINAPI AL -NãoDesonerado'!$A$8:$E$7500,5,0),VLOOKUP(C186,'Comp SINAPI AL - NãoDesonerado'!$G$7:$K$7500,5,0)) -> 887.63 | H186: =ROUND(F186*G186,2) -> 2977.11 | I186: CA
A187: =B178 -> 5.5 | B187: =B178 -> 5.5 | D187: MÃO DE OBRA | H187: =SUM(H188:H189) -> 2700.16 | I187: MDO
A188: =B178 -> 5.5 | B188: SINAPI | C188: 88291 | D188: =IF(I188="i",VLOOKUP(C188,'Ins SINAPI AL -NãoDesonerado'!$A$8:$E$7500,2,0),VLOOKUP(C188,'Comp SINAPI AL - NãoDesonerado'!$G$7:$K$7500,2,0)) -> OPERADOR DE BETONEIRA (CAMINHÃO) COM ENCARGOS COMPLEMENTARES | E188: =LOWER(IF(I188="i",VLOOKUP(C188,'Ins SINAPI AL -NãoDesonerado'!$A$8:$E$7500,3,0),VLOOKUP(C188,'Comp SINAPI AL - NãoDesonerado'!$G$7:$K$7500,3,0))) -> h | F188: 64 | G188: =IF(I188="i",VLOOKUP(C188,'Ins SINAPI AL -NãoDesonerado'!$A$8:$E$7500,5,0),VLOOKUP(C188,'Comp SINAPI AL - NãoDesonerado'!$G$7:$K$7500,5,0)) -> 21.53 | H188: =ROUND(F188*G188,2) -> 1377.92 | I188: ca
A189: =B178 -> 5.5 | B189: SINAPI | C189: 88242 | D189: =IF(I189="i",VLOOKUP(C189,'Ins SINAPI AL -NãoDesonerado'!$A$8:$E$7500,2,0),VLOOKUP(C189,'Comp SINAPI AL - NãoDesonerado'!$G$7:$K$7500,2,0)) -> AJUDANTE DE PEDREIRO COM ENCARGOS COMPLEMENTARES | E189: =LOWER(IF(I189="i",VLOOKUP(C189,'Ins SINAPI AL -NãoDesonerado'!$A$8:$E$7500,3,0),VLOOKUP(C189,'Comp SINAPI AL - NãoDesonerado'!$G$7:$K$7500,3,0))) -> h | F189: 64 | G189: =IF(I189="i",VLOOKUP(C189,'Ins SINAPI AL -NãoDesonerado'!$A$8:$E$7500,5,0),VLOOKUP(C189,'Comp SINAPI AL - NãoDesonerado'!$G$7:$K$7500,5,0)) -> 20.66 | H189: =ROUND(F189*G189,2) -> 1322.24 | I189: ca
I190: x
A191: =B191 -> 5.6 | B191: ='Planilha Orçamentária'!A48 -> 5.6 | C191: =VLOOKUP($B191,'Planilha Orçamentária'!$A$12:$K$105,3,) -> CPU.16 | D191: =VLOOKUP($B191,'Planilha Orçamentária'!$A$12:$K$105,4+2,) -> Retirada de formas das peças fixas | E191: =VLOOKUP($B191,'Planilha Orçamentária'!$A$12:$K$105,5+2,) -> un | H191: =SUM(H192,H193,H194,H197) -> 4964.16 | I191: S
A192: =B191 -> 5.6 | B192: =B191 -> 5.6 | D192: MATERIAL | H192: 0 | I192: SS
A193: =B191 -> 5.6 | B193: =B191 -> 5.6 | D193: EQUIPAMENTOS | H193: 0 | I193: SS
A194: =B191 -> 5.6 | B194: =B191 -> 5.6 | D194: SERVIÇOS | H194: =SUM(H195:H196) -> 2319.68 | I194: SS
A195: =B191 -> 5.6 | B195: SINAPI | C195: 92409 | D195: =IF(I195="i",VLOOKUP(C195,'Ins SINAPI AL -NãoDesonerado'!$A$8:$E$5189,2,0),VLOOKUP(C195,'Comp SINAPI AL - NãoDesonerado'!$G$7:$K$6879,2,0)) -> MONTAGEM E DESMONTAGEM DE FÔRMA DE PILARES RETANGULARES E ESTRUTURAS SIMILARES, PÉ-DIREITO SIMPLES, EM MADEIRA SERRADA, 1 UTILIZAÇÃO. AF_09/2020 | E195: =LOWER(IF(I195="i",VLOOKUP(C195,'Ins SINAPI AL -NãoDesonerado'!$A$8:$E$7500,3,0),VLOOKUP(C195,'Comp SINAPI AL - NãoDesonerado'!$G$7:$K$7500,3,0))) -> m2 | F195: 8.82 | G195: =IF(I195="i",VLOOKUP(C195,'Ins SINAPI AL -NãoDesonerado'!$A$8:$E$7500,5,0),VLOOKUP(C195,'Comp SINAPI AL - NãoDesonerado'!$G$7:$K$7500,5,0)) -> 251.84 | H195: =ROUND(F195*G195,2) -> 2221.23 | I195: ca
A196: =B191 -> 5.6 | B196: SINAPI | C196: 97914 | D196: =IF(I196="i",VLOOKUP(C196,'Ins SINAPI AL -NãoDesonerado'!$A$8:$E$5189,2,0),VLOOKUP(C196,'Comp SINAPI AL - NãoDesonerado'!$G$7:$K$7500,2,0)) -> TRANSPORTE COM CAMINHÃO BASCULANTE DE 6 M³, EM VIA URBANA PAVIMENTADA, DMT ATÉ 30 KM (UNIDADE: M3XKM). AF_07/2020 | E196: =LOWER(IF(I196="i",VLOOKUP(C196,'Ins SINAPI AL -NãoDesonerado'!$A$8:$E$7500,3,0),VLOOKUP(C196,'Comp SINAPI AL - NãoDesonerado'!$G$7:$K$7500,3,0))) -> m3xkm | F196: 33.6 | G196: =IF(I196="i",VLOOKUP(C196,'Ins SINAPI AL -NãoDesonerado'!$A$8:$E$7500,5,0),VLOOKUP(C196,'Comp SINAPI AL - NãoDesonerado'!$G$7:$K$7500,5,0)) -> 2.93 | H196: =ROUND(F196*G196,2) -> 98.45 | I196: ca
A197: =B191 -> 5.6 | B197: =B191 -> 5.6 | D197: MÃO DE OBRA | H197: =H198 -> 2644.48 | I197: MDO
A198: =B191 -> 5.6 | B198: SINAPI | C198: 88242 | D198: =IF(I198="i",VLOOKUP(C198,'Ins SINAPI AL -NãoDesonerado'!$A$8:$E$5189,2,0),VLOOKUP(C198,'Comp SINAPI AL - NãoDesonerado'!$G$7:$K$7500,2,0)) -> AJUDANTE DE PEDREIRO COM ENCARGOS COMPLEMENTARES | E198: =LOWER(IF(I198="i",VLOOKUP(C198,'Ins SINAPI AL -NãoDesonerado'!$A$8:$E$7500,3,0),VLOOKUP(C198,'Comp SINAPI AL - NãoDesonerado'!$G$7:$K$7500,3,0))) -> h | F198: 128 | G198: =IF(I198="i",VLOOKUP(C198,'Ins SINAPI AL -NãoDesonerado'!$A$8:$E$7500,5,0),VLOOKUP(C198,'Comp SINAPI AL - NãoDesonerado'!$G$7:$K$7500,5,0)) -> 20.66 | H198: =ROUND(F198*G198,2) -> 2644.48 | I198: ca
I199: x
A200: =B200 -> 5.7 | B200: ='Planilha Orçamentária'!A49 -> 5.7 | C200: =VLOOKUP($B200,'Planilha Orçamentária'!$A$12:$K$105,3,) -> CPU.17 | D200: =VLOOKUP($B200,'Planilha Orçamentária'!$A$12:$K$105,4+2,) -> Demolição da casa de comando das comportas segmento existente e transporte de entulho | E200: =VLOOKUP($B200,'Planilha Orçamentária'!$A$12:$K$105,5+2,) -> un | H200: =SUM(H201,H202,H203,H206) -> 9494.83 | I200: S
A201: =B200 -> 5.7 | B201: =B200 -> 5.7 | D201: MATERIAL | H201: 0 | I201: SS
A202: =B200 -> 5.7 | B202: =B200 -> 5.7 | D202: EQUIPAMENTOS | H202: 0 | I202: SS
A203: =B200 -> 5.7 | B203: =B200 -> 5.7 | D203: SERVIÇOS | H203: =SUM(H204:H205) -> 6189.23 | I203: ss
A204: =B200 -> 5.7 | B204: SINAPI | C204: 97627 | D204: DEMOLIÇÃO DE PILARES E VIGAS EM CONCRETO ARMADO, DE FORMA MECANIZADA COM MARTELETE, SEM REAPROVEITAMENTO. AF_12/2017 | E204: =LOWER(IF(I204="i",VLOOKUP(C204,'Ins SINAPI AL -NãoDesonerado'!$A$8:$E$7500,3,0),VLOOKUP(C204,'Comp SINAPI AL - NãoDesonerado'!$G$7:$K$7500,3,0))) -> m3 | F204: 12.12 | G204: 150.94 | H204: =ROUND(F204*G204,2) -> 1829.39 | I204: ca
A205: =B200 -> 5.7 | B205: SINAPI | C205: 97914 | D205: =IF(I205="i",VLOOKUP(C205,'Ins SINAPI AL -NãoDesonerado'!$A$8:$E$5189,2,0),VLOOKUP(C205,'Comp SINAPI AL - NãoDesonerado'!$G$7:$K$7500,2,0)) -> TRANSPORTE COM CAMINHÃO BASCULANTE DE 6 M³, EM VIA URBANA PAVIMENTADA, DMT ATÉ 30 KM (UNIDADE: M3XKM). AF_07/2020 | E205: =LOWER(IF(I205="i",VLOOKUP(C205,'Ins SINAPI AL -NãoDesonerado'!$A$8:$E$7500,3,0),VLOOKUP(C205,'Comp SINAPI AL - NãoDesonerado'!$G$7:$K$7500,3,0))) -> m3xkm | F205: 1488 | G205: =IF(I205="i",VLOOKUP(C205,'Ins SINAPI AL -NãoDesonerado'!$A$8:$E$7500,5,0),VLOOKUP(C205,'Comp SINAPI AL - NãoDesonerado'!$G$7:$K$7500,5,0)) -> 2.93 | H205: =ROUND(F205*G205,2) -> 4359.84 | I205: ca
A206: =B200 -> 5.7 | B206: =B200 -> 5.7 | D206: MÃO DE OBRA | H206: =H207 -> 3305.6 | I206: MDO
A207: =B200 -> 5.7 | B207: SINAPI | C207: 88242 | D207: =IF(I207="i",VLOOKUP(C207,'Ins SINAPI AL -NãoDesonerado'!$A$8:$E$5189,2,0),VLOOKUP(C207,'Comp SINAPI AL - NãoDesonerado'!$G$7:$K$7500,2,0)) -> AJUDANTE DE PEDREIRO COM ENCARGOS COMPLEMENTARES | E207: =LOWER(IF(I207="i",VLOOKUP(C207,'Ins SINAPI AL -NãoDesonerado'!$A$8:$E$7500,3,0),VLOOKUP(C207,'Comp SINAPI AL - NãoDesonerado'!$G$7:$K$7500,3,0))) -> h | F207: 160 | G207: =IF(I207="i",VLOOKUP(C207,'Ins SINAPI AL -NãoDesonerado'!$A$8:$E$7500,5,0),VLOOKUP(C207,'Comp SINAPI AL - NãoDesonerado'!$G$7:$K$7500,5,0)) -> 20.66 | H207: =ROUND(F207*G207,2) -> 3305.6 | I207: ca
... 194 more rows

Sheet CPU DESONERADO (hidden)
B1: Ministério do Desenvolvimento Regional
B2: Companhia de Desenvolvimento dos Vales do São Francisco e do Parnaíba
B4: COMPOSIÇÕES DE PREÇOS UNITÁRIOS - ORÇAMENTO DESONERADO
B5: OBRA: | C5: ='Planilha Orçamentária'!B5 -> SUBSTITUIÇÃO DAS COMPORTAS NA BARRAGEM DE BOACICA | E5: BDI (serv.): | F5: ='BDI serv Desonerado'!D23 -> 0.3243
B6: LOCAL: | C6: ='Planilha Orçamentária'!B6 -> BARRAGEM BOACICA (IGREJA NOVA - AL) | E6: BDI (forn.): | F6: ='BDI forn Desonerado'!E6 -> 0.2032
B7: DATA BASE: | C7: ='Planilha Orçamentária'!B7 -> 2024-02-01
B8: PRAZO: | C8: ='Planilha Orçamentária'!B9 -> 240 DIAS
B10: REFERÊNCIA | C10: CÓDIGO | D10: DESCRIÇÃO | E10: UNIDADE | F10: ÍNDICE | G10: CUSTO UNITÁRIO | H10: PREÇO TOTAL
A11: =B11 ->  | B11: =#REF! ->  | C11: =VLOOKUP($B11,'Planilha Orçamentária'!$A$12:$K$105,3,) ->  | D11: =VLOOKUP($B11,'Planilha Orçamentária'!$A$12:$K$105,4,) ->  | E11: mes | H11: =SUM(H12,H16,H13,H15) -> 22304.79 | I11: S
A12: =B11 ->  | B12: =B11 ->  | D12: MATERIAL | H12: 0 | I12: SS
A13: =B11 ->  | B13: =B11 ->  | D13: EQUIPAMENTOS | H13: =SUM(H14:H14) -> 5885.33 | I13: SS
A14: =A13 ->  | B14: CODEVASF | D14: CAMINHONETE | E14: mes | F14: 1 | G14: 5885.33 | H14: =ROUND(F14*G14,2) -> 5885.33 | I14: I
A15: =B11 ->  | B15: =B11 ->  | D15: SERVIÇOS | H15: 0 | I15: SS
A16: =B11 ->  | B16: =B11 ->  | D16: MÃO DE OBRA | H16: =SUM(H17:H21) -> 16419.46 | I16: MDO
A17: =B11 ->  | B17: SINAPI | C17: 90778 | D17: ENGENHEIRO CIVIL DE OBRA PLENO COM ENCARGOS COMPLEMENTARES | E17: =LOWER(IF(I17="i",VLOOKUP(C17,'Ins SINAPI AL -NãoDesonerado'!$A$8:$E$7500,3,0),VLOOKUP(C17,'Comp SINAPI AL - NãoDesonerado'!$G$7:$K$7500,3,0))) -> h | F17: 16 | G17: =IF(I17="i",VLOOKUP(C17,'Ins SINAPI AL 03-2023 Desonerad'!$A$8:$E$7500,5,0),VLOOKUP(C17,'Comp SINAPI AL 03-2023 Desoner'!$G$7:$K$7500,5,0)) -> 109.58 | H17: =ROUND(F17*G17,2) -> 1753.28 | I17: ca
A18: =B11 ->  | B18: SINAPI ADAPTADO | C18: 90778 | D18: ENGENHEIRO MECANICO DE OBRA PLENO COM ENCARGOS COMPLEMENTARES (BASEADO SINAPI 90778) | E18: =LOWER(IF(I18="i",VLOOKUP(C18,'Ins SINAPI AL -NãoDesonerado'!$A$8:$E$7500,3,0),VLOOKUP(C18,'Comp SINAPI AL - NãoDesonerado'!$G$7:$K$7500,3,0))) -> h | F18: 32 | G18: =IF(I18="i",VLOOKUP(C18,'Ins SINAPI AL 03-2023 Desonerad'!$A$8:$E$7500,5,0),VLOOKUP(C18,'Comp SINAPI AL 03-2023 Desoner'!$G$7:$K$7500,5,0)) -> 109.58 | H18: =ROUND(F18*G18,2) -> 3506.56 | I18: ca
A19: =B11 ->  | B19: SINAPI | C19: 93572 | D19: =IF(I19="i",VLOOKUP(C19,'Ins SINAPI AL -NãoDesonerado'!$A$8:$E$5189,2,0),VLOOKUP(C19,'Comp SINAPI AL - NãoDesonerado'!$G$7:$K$7500,2,0)) -> ENCARREGADO GERAL DE OBRAS COM ENCARGOS COMPLEMENTARES | E19: =LOWER(IF(I19="i",VLOOKUP(C19,'Ins SINAPI AL -NãoDesonerado'!$A$8:$E$7500,3,0),VLOOKUP(C19,'Comp SINAPI AL - NãoDesonerado'!$G$7:$K$7500,3,0))) -> mes | F19: 1 | G19: =IF(I19="i",VLOOKUP(C19,'Ins SINAPI AL 03-2023 Desonerad'!$A$8:$E$7500,5,0),VLOOKUP(C19,'Comp SINAPI AL 03-2023 Desoner'!$G$7:$K$7500,5,0)) -> 3832.41 | H19: =ROUND(F19*G19,2) -> 3832.41 | I19: ca
A20: =B11 ->  | B20: SINAPI | C20: 101390 | D20: =IF(I20="i",VLOOKUP(C20,'Ins SINAPI AL -NãoDesonerado'!$A$8:$E$5189,2,0),VLOOKUP(C20,'Comp SINAPI AL - NãoDesonerado'!$G$7:$K$7500,2,0)) -> AUXILIAR TÉCNICO / ASSISTENTE DE ENGENHARIA COM ENCARGOS COMPLEMENTARES | E20: =LOWER(IF(I20="i",VLOOKUP(C20,'Ins SINAPI AL -NãoDesonerado'!$A$8:$E$7500,3,0),VLOOKUP(C20,'Comp SINAPI AL - NãoDesonerado'!$G$7:$K$7500,3,0))) -> mes | F20: 1 | G20: =IF(I20="i",VLOOKUP(C20,'Ins SINAPI AL 03-2023 Desonerad'!$A$8:$E$7500,5,0),VLOOKUP(C20,'Comp SINAPI AL 03-2023 Desoner'!$G$7:$K$7500,5,0)) -> 4286.2 | H20: =ROUND(F20*G20,2) -> 4286.2 | I20: ca
A21: =B11 ->  | B21: SINAPI | C21: 101388 | D21: =IF(I21="i",VLOOKUP(C21,'Ins SINAPI AL -NãoDesonerado'!$A$8:$E$5189,2,0),VLOOKUP(C21,'Comp SINAPI AL - NãoDesonerado'!$G$7:$K$7500,2,0)) -> AUXILIAR DE SERVIÇOS GERAIS COM ENCARGOS COMPLEMENTARES | E21: =LOWER(IF(I21="i",VLOOKUP(C21,'Ins SINAPI AL -NãoDesonerado'!$A$8:$E$7500,3,0),VLOOKUP(C21,'Comp SINAPI AL - NãoDesonerado'!$G$7:$K$7500,3,0))) -> mes | F21: 1 | G21: =IF(I21="i",VLOOKUP(C21,'Ins SINAPI AL 03-2023 Desonerad'!$A$8:$E$7500,5,0),VLOOKUP(C21,'Comp SINAPI AL 03-2023 Desoner'!$G$7:$K$7500,5,0)) -> 3041.01 | H21: =ROUND(F21*G21,2) -> 3041.01 | I21: ca
I22: x
A23: =B23 ->  | B23: =#REF! ->  | C23: =VLOOKUP($B23,'Planilha Orçamentária'!$A$12:$K$105,3,) ->  | D23: =VLOOKUP($B23,'Planilha Orçamentária'!$A$12:$K$105,4,) ->  | E23: =VLOOKUP($B23,'Planilha Orçamentária'!$A$12:$K$105,5) ->  | H23: =SUM(H24,H28,H26,H27) -> 254.59 | I23: S
A24: =B23 ->  | B24: =B23 ->  | D24: MATERIAL | H24: =SUM(H25:H25) -> 254.59 | I24: SS
A25: =B23 ->  | B25: CONFEA | C25: FX 3 (TAB A) | D25: ART para contrato acima de R$ 15.000,00 | E25: un | F25: 1 | G25: 254.59 | H25: =ROUND(F25*G25,2) -> 254.59 | I25: I
A26: =B23 ->  | B26: =B23 ->  | D26: EQUIPAMENTOS | H26: 0 | I26: SS
A27: =B23 ->  | B27: =B23 ->  | D27: SERVIÇOS | H27: 0 | I27: SS
A28: =B23 ->  | B28: =B23 ->  | D28: MÃO DE OBRA | H28: 0 | I28: MDO
I29: x
A30: =B30 ->  | B30: =#REF! ->  | C30: =VLOOKUP($B30,'Planilha Orçamentária'!$A$12:$K$105,3,) ->  | D30: =VLOOKUP($B30,'Planilha Orçamentária'!$A$12:$K$105,4,) ->  | E30: un | H30: =SUM(H31,H42,H37,H38) -> 2590.38 | I30: S
A31: =B30 ->  | B31: =B30 ->  | D31: MATERIAL | H31: =SUM(H32:H36) -> 2080.38 | I31: SS
A32: =B30 ->  | B32: SINAPI | C32: 43680 | D32: =IF(I32="i",VLOOKUP(C32,'Ins SINAPI AL -NãoDesonerado'!$A$8:$E$5189,2,0),VLOOKUP(C32,'Comp SINAPI AL - NãoDesonerado'!$G$7:$K$7500,2,0)) -> CHAPA/PAINEL DE MADEIRA COMPENSADA PLASTIFICADA (MADEIRITE PLASTIFICADO) PARA FORMA DE CONCRETO, DE 2200 X 1100 MM, E = 20 MM | E32: =LOWER(IF(I32="i",VLOOKUP(C32,'Ins SINAPI AL -NãoDesonerado'!$A$8:$E$7500,3,0),VLOOKUP(C32,'Comp SINAPI AL - NãoDesonerado'!$G$7:$K$7500,3,0))) -> m2 | F32: 6 | G32: =IF(I32="i",VLOOKUP(C32,'Ins SINAPI AL 03-2023 Desonerad'!$A$8:$E$7500,5,0),VLOOKUP(C32,'Comp SINAPI AL 03-2023 Desoner'!$G$7:$K$7500,5,0)) -> 146.45 | H32: =ROUND(F32*G32,2) -> 878.7 | I32: i
A33: =B30 ->  | B33: SINAPI | C33: 5075 | D33: =IF(I33="i",VLOOKUP(C33,'Ins SINAPI AL -NãoDesonerado'!$A$8:$E$5189,2,0),VLOOKUP(C33,'Comp SINAPI AL - NãoDesonerado'!$G$7:$K$6879,2,0)) -> PREGO DE ACO POLIDO COM CABECA 18 X 30 (2 3/4 X 10) | E33: =LOWER(IF(I33="i",VLOOKUP(C33,'Ins SINAPI AL -NãoDesonerado'!$A$8:$E$7500,3,0),VLOOKUP(C33,'Comp SINAPI AL - NãoDesonerado'!$G$7:$K$7500,3,0))) -> kg | F33: 0.9657 | G33: =IF(I33="i",VLOOKUP(C33,'Ins SINAPI AL 03-2023 Desonerad'!$A$8:$E$7500,5,0),VLOOKUP(C33,'Comp SINAPI AL 03-2023 Desoner'!$G$7:$K$7500,5,0)) -> 24.16 | H33: =ROUND(F33*G33,2) -> 23.33 | I33: i
A34: =B30 ->  | B34: SINAPI | C34: 2747 | D34: =IF(I34="i",VLOOKUP(C34,'Ins SINAPI AL -NãoDesonerado'!$A$8:$E$5189,2,0),VLOOKUP(C34,'Comp SINAPI AL - NãoDesonerado'!$G$7:$K$6879,2,0)) -> MOURAO ROLICO DE MADEIRA TRATADA, D = 16 A 20 CM, H = 2,20 M, EM EUCALIPTO OU EQUIVALENTE DA REGIAO (PARA CERCA) | E34: =LOWER(IF(I34="i",VLOOKUP(C34,'Ins SINAPI AL -NãoDesonerado'!$A$8:$E$7500,3,0),VLOOKUP(C34,'Comp SINAPI AL - NãoDesonerado'!$G$7:$K$7500,3,0))) -> m | F34: 17.6 | G34: =IF(I34="i",VLOOKUP(C34,'Ins SINAPI AL 03-2023 Desonerad'!$A$8:$E$7500,5,0),VLOOKUP(C34,'Comp SINAPI AL 03-2023 Desoner'!$G$7:$K$7500,5,0)) -> 27.41 | H34: =ROUND(F34*G34,2) -> 482.42 | I34: I
A35: =B30 ->  | B35: SINAPI | C35: 94963 | D35: =IF(I35="i",VLOOKUP(C35,'Ins SINAPI AL -NãoDesonerado'!$A$8:$E$5189,2,0),VLOOKUP(C35,'Comp SINAPI AL - NãoDesonerado'!$G$7:$K$6879,2,0)) -> CONCRETO FCK = 15MPA, TRAÇO 1:3,4:3,5 (EM MASSA SECA DE CIMENTO/ AREIA MÉDIA/ BRITA 1) - PREPARO MECÂNICO COM BETONEIRA 400 L. AF_05/2021 | E35: =LOWER(IF(I35="i",VLOOKUP(C35,'Ins SINAPI AL -NãoDesonerado'!$A$8:$E$7500,3,0),VLOOKUP(C35,'Comp SINAPI AL - NãoDesonerado'!$G$7:$K$7500,3,0))) -> m3 | F35: 0.701 | G35: =IF(I35="i",VLOOKUP(C35,'Ins SINAPI AL 03-2023 Desonerad'!$A$8:$E$7500,5,0),VLOOKUP(C35,'Comp SINAPI AL 03-2023 Desoner'!$G$7:$K$7500,5,0)) -> 386.86 | H35: =ROUND(F35*G35,2) -> 271.19 | I35: ca
A36: =B30 ->  | B36: SINAPI | C36: 99059 | D36: =IF(I36="i",VLOOKUP(C36,'Ins SINAPI AL -NãoDesonerado'!$A$8:$E$5189,2,0),VLOOKUP(C36,'Comp SINAPI AL - NãoDesonerado'!$G$7:$K$6879,2,0)) ->  | E36: =LOWER(IF(I36="i",VLOOKUP(C36,'Ins SINAPI AL -NãoDesonerado'!$A$8:$E$7500,3,0),VLOOKUP(C36,'Comp SINAPI AL - NãoDesonerado'!$G$7:$K$7500,3,0))) -> m | F36: 8.64 | G36: =IF(I36="i",VLOOKUP(C36,'Ins SINAPI AL 03-2023 Desonerad'!$A$8:$E$7500,5,0),VLOOKUP(C36,'Comp SINAPI AL 03-2023 Desoner'!$G$7:$K$7500,5,0)) -> 49.16 | H36: =ROUND(F36*G36,2) -> 424.74 | I36: ca
A37: =B30 ->  | B37: =B30 ->  | D37: EQUIPAMENTOS | H37: 0 | I37: SS
A38: =B30 ->  | B38: =B30 ->  | D38: SERVIÇOS | H38: =SUM(H39:H41) -> 261.05 | I38: SS
A39: =B30 ->  | B39: SINAPI | C39: 93358 | D39: =IF(I39="i",VLOOKUP(C39,'Ins SINAPI AL -NãoDesonerado'!$A$8:$E$5189,2,0),VLOOKUP(C39,'Comp SINAPI AL - NãoDesonerado'!$G$7:$K$7500,2,0)) -> ESCAVAÇÃO MANUAL DE VALA COM PROFUNDIDADE MENOR OU IGUAL A 1,30 M. AF_02/2021 | E39: =LOWER(IF(I39="i",VLOOKUP(C39,'Ins SINAPI AL -NãoDesonerado'!$A$8:$E$7500,3,0),VLOOKUP(C39,'Comp SINAPI AL - NãoDesonerado'!$G$7:$K$7500,3,0))) -> m3 | F39: 1.0014 | G39: =IF(I39="i",VLOOKUP(C39,'Ins SINAPI AL 03-2023 Desonerad'!$A$8:$E$7500,5,0),VLOOKUP(C39,'Comp SINAPI AL 03-2023 Desoner'!$G$7:$K$7500,5,0)) -> 64.75 | H39: =ROUND(F39*G39,2) -> 64.84 | I39: ca
A40: =B30 ->  | B40: SINAPI | C40: 96995 | D40: =IF(I40="i",VLOOKUP(C40,'Ins SINAPI AL -NãoDesonerado'!$A$8:$E$5189,2,0),VLOOKUP(C40,'Comp SINAPI AL - NãoDesonerado'!$G$7:$K$7500,2,0)) ->  | E40: =LOWER(IF(I40="i",VLOOKUP(C40,'Ins SINAPI AL -NãoDesonerado'!$A$8:$E$7500,3,0),VLOOKUP(C40,'Comp SINAPI AL - NãoDesonerado'!$G$7:$K$7500,3,0))) ->  | F40: =F39 -> 1.0014 | G40: =IF(I40="i",VLOOKUP(C40,'Ins SINAPI AL 03-2023 Desonerad'!$A$8:$E$7500,5,0),VLOOKUP(C40,'Comp SINAPI AL 03-2023 Desoner'!$G$7:$K$7500,5,0)) -> 39.26 | H40: =ROUND(F40*G40,2) -> 39.31 | I40: ca
A41: =B30 ->  | B41: SINAPI | C41: 103670 | D41: =IF(I41="i",VLOOKUP(C41,'Ins SINAPI AL -NãoDesonerado'!$A$8:$E$5189,2,0),VLOOKUP(C41,'Comp SINAPI AL - NãoDesonerado'!$G$7:$K$7500,2,0)) -> LANÇAMENTO COM USO DE BALDES, ADENSAMENTO E ACABAMENTO DE CONCRETO EM ESTRUTURAS. AF_02/2022 | E41: =LOWER(IF(I41="i",VLOOKUP(C41,'Ins SINAPI AL -NãoDesonerado'!$A$8:$E$7500,3,0),VLOOKUP(C41,'Comp SINAPI AL - NãoDesonerado'!$G$7:$K$7500,3,0))) -> m3 | F41: =F35 -> 0.701 | G41: =IF(I41="i",VLOOKUP(C41,'Ins SINAPI AL 03-2023 Desonerad'!$A$8:$E$7500,5,0),VLOOKUP(C41,'Comp SINAPI AL 03-2023 Desoner'!$G$7:$K$7500,5,0)) -> 223.82 | H41: =ROUND(F41*G41,2) -> 156.9 | I41: ca
A42: =B30 ->  | B42: =B30 ->  | D42: MÃO DE OBRA | H42: =SUM(H43:H44) -> 248.95 | I42: MDO
A43: =B30 ->  | B43: SINAPI | C43: 88262 | D43: =IF(I43="i",VLOOKUP(C43,'Ins SINAPI AL -NãoDesonerado'!$A$8:$E$5189,2,0),VLOOKUP(C43,'Comp SINAPI AL - NãoDesonerado'!$G$7:$K$7500,2,0)) -> CARPINTEIRO DE FORMAS COM ENCARGOS COMPLEMENTARES | E43: =LOWER(IF(I43="i",VLOOKUP(C43,'Ins SINAPI AL -NãoDesonerado'!$A$8:$E$7500,3,0),VLOOKUP(C43,'Comp SINAPI AL - NãoDesonerado'!$G$7:$K$7500,3,0))) -> h | F43: 6.776 | G43: =IF(I43="i",VLOOKUP(C43,'Ins SINAPI AL 03-2023 Desonerad'!$A$8:$E$7500,5,0),VLOOKUP(C43,'Comp SINAPI AL 03-2023 Desoner'!$G$7:$K$7500,5,0)) -> 20.37 | H43: =ROUND(F43*G43,2) -> 138.03 | I43: ca
A44: =B30 ->  | B44: SINAPI | C44: 88316 | D44: =IF(I44="i",VLOOKUP(C44,'Ins SINAPI AL -NãoDesonerado'!$A$8:$E$5189,2,0),VLOOKUP(C44,'Comp SINAPI AL - NãoDesonerado'!$G$7:$K$7500,2,0)) -> SERVENTE COM ENCARGOS COMPLEMENTARES | E44: =LOWER(IF(I44="i",VLOOKUP(C44,'Ins SINAPI AL -NãoDesonerado'!$A$8:$E$7500,3,0),VLOOKUP(C44,'Comp SINAPI AL - NãoDesonerado'!$G$7:$K$7500,3,0))) -> h | F44: 6.776 | G44: =IF(I44="i",VLOOKUP(C44,'Ins SINAPI AL 03-2023 Desonerad'!$A$8:$E$7500,5,0),VLOOKUP(C44,'Comp SINAPI AL 03-2023 Desoner'!$G$7:$K$7500,5,0)) -> 16.37 | H44: =ROUND(F44*G44,2) -> 110.92 | I44: ca
I45: x
A46: =B46 ->  | B46: =#REF! ->  | C46: =VLOOKUP($B46,'Planilha Orçamentária'!$A$12:$K$105,3,) ->  | D46: =VLOOKUP($B46,'Planilha Orçamentária'!$A$12:$K$105,4,) ->  | E46: m² | H46: =SUM(H47,H54,H52,H53) -> 378.13 | I46: S
A47: =B46 ->  | B47: =B46 ->  | D47: MATERIAL | H47: =SUM(H48:H51) -> 325.02 | I47: SS
A48: =B46 ->  | B48: SINAPI | C48: 4430 | D48: =IF(I48="i",VLOOKUP(C48,'Ins SINAPI AL -NãoDesonerado'!$A$8:$E$7500,2,0),VLOOKUP(C48,'Comp SINAPI AL - NãoDesonerado'!$G$7:$K$7500,2,0)) -> CAIBRO NAO APARELHADO *5 X 6* CM, EM MACARANDUBA/MASSARANDUBA, ANGELIM OU EQUIVALENTE DA REGIAO - BRUTA | E48: =LOWER(IF(I48="i",VLOOKUP(C48,'Ins SINAPI AL -NãoDesonerado'!$A$8:$E$7500,3,0),VLOOKUP(C48,'Comp SINAPI AL - NãoDesonerado'!$G$7:$K$7500,3,0))) -> m | F48: 4 | G48: =IF(I48="i",VLOOKUP(C48,'Ins SINAPI AL 03-2023 Desonerad'!$A$8:$E$7500,5,0),VLOOKUP(C48,'Comp SINAPI AL 03-2023 Desoner'!$G$7:$K$7500,5,0)) -> 9.9 | H48: =ROUND(F48*G48,2) -> 39.6 | I48: I
A49: =B46 ->  | B49: SINAPI | C49: 4813 | D49: =IF(I49="i",VLOOKUP(C49,'Ins SINAPI AL -NãoDesonerado'!$A$8:$E$7500,2,0),VLOOKUP(C49,'Comp SINAPI AL - NãoDesonerado'!$G$7:$K$7500,2,0)) -> PLACA DE OBRA (PARA CONSTRUCAO CIVIL) EM CHAPA GALVANIZADA *N. 22*, ADESIVADA, DE *2,4 X 1,2* M (SEM POSTES PARA FIXACAO) | E49: =LOWER(IF(I49="i",VLOOKUP(C49,'Ins SINAPI AL -NãoDesonerado'!$A$8:$E$7500,3,0),VLOOKUP(C49,'Comp SINAPI AL - NãoDesonerado'!$G$7:$K$7500,3,0))) -> m2 | F49: 1 | G49: =IF(I49="i",VLOOKUP(C49,'Ins SINAPI AL 03-2023 Desonerad'!$A$8:$E$7500,5,0),VLOOKUP(C49,'Comp SINAPI AL 03-2023 Desoner'!$G$7:$K$7500,5,0)) -> 275 | H49: =ROUND(F49*G49,2) -> 275 | I49: I
A50: =B46 ->  | B50: SINAPI | C50: 20206 | D50: =IF(I50="i",VLOOKUP(C50,'Ins SINAPI AL -NãoDesonerado'!$A$8:$E$7500,2,0),VLOOKUP(C50,'Comp SINAPI AL - NãoDesonerado'!$G$7:$K$7500,2,0)) -> SARRAFO APARELHADO *2 X 10* CM, EM MACARANDUBA/MASSARANDUBA, ANGELIM OU EQUIVALENTE DA REGIAO | E50: =LOWER(IF(I50="i",VLOOKUP(C50,'Ins SINAPI AL -NãoDesonerado'!$A$8:$E$7500,3,0),VLOOKUP(C50,'Comp SINAPI AL - NãoDesonerado'!$G$7:$K$7500,3,0))) -> m | F50: 1 | G50: =IF(I50="i",VLOOKUP(C50,'Ins SINAPI AL 03-2023 Desonerad'!$A$8:$E$7500,5,0),VLOOKUP(C50,'Comp SINAPI AL 03-2023 Desoner'!$G$7:$K$7500,5,0)) -> 6.8 | H50: =ROUND(F50*G50,2) -> 6.8 | I50: I
A51: =B46 ->  | B51: SINAPI | C51: 5075 | D51: =IF(I51="i",VLOOKUP(C51,'Ins SINAPI AL -NãoDesonerado'!$A$8:$E$7500,2,0),VLOOKUP(C51,'Comp SINAPI AL - NãoDesonerado'!$G$7:$K$7500,2,0)) -> PREGO DE ACO POLIDO COM CABECA 18 X 30 (2 3/4 X 10) | E51: =LOWER(IF(I51="i",VLOOKUP(C51,'Ins SINAPI AL -NãoDesonerado'!$A$8:$E$7500,3,0),VLOOKUP(C51,'Comp SINAPI AL - NãoDesonerado'!$G$7:$K$7500,3,0))) -> kg | F51: 0.15 | G51: =IF(I51="i",VLOOKUP(C51,'Ins SINAPI AL 03-2023 Desonerad'!$A$8:$E$7500,5,0),VLOOKUP(C51,'Comp SINAPI AL 03-2023 Desoner'!$G$7:$K$7500,5,0)) -> 24.16 | H51: =ROUND(F51*G51,2) -> 3.62 | I51: I
A52: =B46 ->  | B52: =B46 ->  | D52: EQUIPAMENTOS | H52: 0 | I52: SS
A53: =B46 ->  | B53: =B46 ->  | D53: SERVIÇOS | H53: 0 | I53: SS
A54: =B46 ->  | B54: =B46 ->  | D54: MÃO DE OBRA | H54: =SUM(H55:H56) -> 53.11 | I54: MDO
A55: =B46 ->  | B55: SINAPI | C55: 88262 | D55: =IF(I55="i",VLOOKUP(C55,'Ins SINAPI AL -NãoDesonerado'!$A$8:$E$7500,2,0),VLOOKUP(C55,'Comp SINAPI AL - NãoDesonerado'!$G$7:$K$7500,2,0)) -> CARPINTEIRO DE FORMAS COM ENCARGOS COMPLEMENTARES | E55: =LOWER(IF(I55="i",VLOOKUP(C55,'Ins SINAPI AL -NãoDesonerado'!$A$8:$E$7500,3,0),VLOOKUP(C55,'Comp SINAPI AL - NãoDesonerado'!$G$7:$K$7500,3,0))) -> h | F55: 1 | G55: =IF(I55="i",VLOOKUP(C55,'Ins SINAPI AL 03-2023 Desonerad'!$A$8:$E$7500,5,0),VLOOKUP(C55,'Comp SINAPI AL 03-2023 Desoner'!$G$7:$K$7500,5,0)) -> 20.37 | H55: =ROUND(F55*G55,2) -> 20.37 | I55: ca
A56: =B46 ->  | B56: SINAPI | C56: 88316 | D56: =IF(I56="i",VLOOKUP(C56,'Ins SINAPI AL -NãoDesonerado'!$A$8:$E$7500,2,0),VLOOKUP(C56,'Comp SINAPI AL - NãoDesonerado'!$G$7:$K$7500,2,0)) -> SERVENTE COM ENCARGOS COMPLEMENTARES | E56: =LOWER(IF(I56="i",VLOOKUP(C56,'Ins SINAPI AL -NãoDesonerado'!$A$8:$E$7500,3,0),VLOOKUP(C56,'Comp SINAPI AL - NãoDesonerado'!$G$7:$K$7500,3,0))) -> h | F56: 2 | G56: =IF(I56="i",VLOOKUP(C56,'Ins SINAPI AL 03-2023 Desonerad'!$A$8:$E$7500,5,0),VLOOKUP(C56,'Comp SINAPI AL 03-2023 Desoner'!$G$7:$K$7500,5,0)) -> 16.37 | H56: =ROUND(F56*G56,2) -> 32.74 | I56: ca
I57: x
A58: =B58 ->  | B58: =#REF! ->  | C58: =VLOOKUP($B58,'Planilha Orçamentária'!$A$12:$K$105,3,) ->  | D58: =VLOOKUP($B58,'Planilha Orçamentária'!$A$12:$K$105,4,) ->  | E58: un | H58: =SUM(H59,H63,H60,H61) -> 41600 | I58: S
A59: =B58 ->  | B59: =B58 ->  | D59: MATERIAL | H59: 0 | I59: ss
A60: =B58 ->  | B60: =B58 ->  | D60: EQUIPAMENTOS | H60: 0 | I60: ss
A61: =B58 ->  | B61: =B58 ->  | D61: SERVIÇOS | H61: =H62 -> 41600 | I61: ss
A62: =B58 ->  | B62: 2023-05-01 | C62: COTAÇÃO | D62: Mobilização e desmobilização da Equipe, Camara Hiperbarica e todos os equipamentos de mergulho envolvidos na operação | E62: un | F62: 1 | G62: =2*(21000+22000+19400)/3 -> 41600 | H62: =ROUND(F62*G62,2) -> 41600 | I62: ca
A63: =B58 ->  | B63: =B58 ->  | D63: MÃO DE OBRA | H63: 0 | I63: ss
I64: x
A65: =B65 ->  | B65: =#REF! ->  | C65: =VLOOKUP($B65,'Planilha Orçamentária'!$A$12:$K$105,3) ->  | D65: =VLOOKUP($B65,'Planilha Orçamentária'!$A$12:$K$105,4) ->  | E65: =VLOOKUP($B65,'Planilha Orçamentária'!$A$12:$K$105,5) ->  | H65: =SUM(H66,H71,H68,H70) -> 65977.17 | I65: S
A66: =B65 ->  | B66: =B65 ->  | D66: MATERIAL | H66: =H67 -> 4881.6 | I66: ss
A67: =B65 ->  | B67: CODE | C67: DP | D67: DIÁRIA | E67: dia | F67: =4*4 -> 16 | G67: 305.1 | H67: =ROUND(F67*G67,2) -> 4881.6 | I67: ca
A68: =B65 ->  | B68: =B65 ->  | D68: EQUIPAMENTOS | H68: =H69 -> 1471.33 | I68: ss
A69: 4.1.1 | B69: CODEVASF | D69: CAMINHONETE | E69: mes | F69: =1/4 -> 0.25 | G69: 5885.33 | H69: =ROUND(F69*G69,2) -> 1471.33 | I69: ca
A70: =B65 ->  | B70: =B65 ->  | D70: SERVIÇOS | I70: ss
A71: =B65 ->  | B71: =B65 ->  | D71: MÃO DE OBRA | H71: =SUM(H72:H75) -> 59624.24 | I71: ss
A72: 4.1.1 | B72: SINAPI | C72: 100320 | D72: =IF(I72="i",VLOOKUP(C72,'Ins SINAPI AL -NãoDesonerado'!$A$8:$E$7500,2,0),VLOOKUP(C72,'Comp SINAPI AL - NãoDesonerado'!$G$7:$K$7500,2,0)) ->  | E72: =LOWER(IF(I72="i",VLOOKUP(C72,'Ins SINAPI AL -NãoDesonerado'!$A$8:$E$7500,3,0),VLOOKUP(C72,'Comp SINAPI AL - NãoDesonerado'!$G$7:$K$7500,3,0))) ->  | F72: 1 | G72: =IF(I72="i",VLOOKUP(C72,'Ins SINAPI AL 03-2023 Desonerad'!$A$8:$E$7500,5,0),VLOOKUP(C72,'Comp SINAPI AL 03-2023 Desoner'!$G$7:$K$7500,5,0)) -> 19105.51 | H72: =ROUND(F72*G72,2) -> 19105.51 | I72: ca
A73: 4.1.1 | B73: SINAPI | C73: 100320 | D73: ENGENHEIRO MECANICO DE OBRA PLENO COM ENCARGOS COMPLEMENTARES (BASEADO SINAPI 90778) | E73: =LOWER(IF(I73="i",VLOOKUP(C73,'Ins SINAPI AL -NãoDesonerado'!$A$8:$E$7500,3,0),VLOOKUP(C73,'Comp SINAPI AL - NãoDesonerado'!$G$7:$K$7500,3,0))) ->  | F73: 1 | G73: =IF(I73="i",VLOOKUP(C73,'Ins SINAPI AL 03-2023 Desonerad'!$A$8:$E$7500,5,0),VLOOKUP(C73,'Comp SINAPI AL 03-2023 Desoner'!$G$7:$K$7500,5,0)) -> 19105.51 | H73: =ROUND(F73*G73,2) -> 19105.51 | I73: ca
A74: 4.1.1 | B74: SINAPI | C74: 100319 | D74: =IF(I74="i",VLOOKUP(C74,'Ins SINAPI AL -NãoDesonerado'!$A$8:$E$7500,2,0),VLOOKUP(C74,'Comp SINAPI AL - NãoDesonerado'!$G$7:$K$7500,2,0)) ->  | E74: =LOWER(IF(I74="i",VLOOKUP(C74,'Ins SINAPI AL -NãoDesonerado'!$A$8:$E$7500,3,0),VLOOKUP(C74,'Comp SINAPI AL - NãoDesonerado'!$G$7:$K$7500,3,0))) ->  | F74: 1 | G74: =IF(I74="i",VLOOKUP(C74,'Ins SINAPI AL 03-2023 Desonerad'!$A$8:$E$7500,5,0),VLOOKUP(C74,'Comp SINAPI AL 03-2023 Desoner'!$G$7:$K$7500,5,0)) -> 16975.95 | H74: =ROUND(F74*G74,2) -> 16975.95 | I74: ca
B75: SICRO3 | C75: P9864 | D75: Engenheiro de segurança do trabalho | E75: mês | F75: =1/4 -> 0.25 | G75: 17749.0885 | H75: =ROUND(F75*G75,2) -> 4437.27 | I75: ca
I76: x
A77: =B77 ->  | B77: =#REF! ->  | C77: =VLOOKUP($B77,'Planilha Orçamentária'!$A$12:$K$105,3) ->  | D77: =VLOOKUP($B77,'Planilha Orçamentária'!$A$12:$K$105,4) ->  | E77: =VLOOKUP($B77,'Planilha Orçamentária'!$A$12:$K$105,5) ->  | H77: =SUM(H78,H93,H87,H89) -> 48885.37 | I77: S
A78: =B77 ->  | B78: =B77 ->  | D78: MATERIAL | H78: =SUM(H79:H86) -> 25805.4 | I78: ss
A79: =B77 ->  | B79: CODE | C79: DP | D79: DIÁRIA | E79: dia | F79: =15*3 -> 45 | G79: 305.1 | H79: =ROUND(F79*G79,2) -> 13729.5 | I79: i
A80: =B77 ->  | B80: SICRO | C80: E9043 | D80: Embarcação de alumínio com comprimento de 6 m e motor de popa - 18,60 kW | E80: h | F80: 80 | G80: =68.3007 -> 68.3007 | H80: =ROUND(F80*G80,2) -> 5464.06 | I80: i
A81: =B77 ->  | B81: SICRO | C81: E9243 | D81: Câmara hiperbárica com filtro, serpentina e reservatório de ar para mergulho raso - D= 1,80 m e H = 2,22 m. | E81: h | F81: 80 | G81: 58.9475 | H81: =ROUND(F81*G81,2) -> 4715.8
A82: =B77 ->  | B82: SICRO | C82: E9245 | D82: Estação transmissora de superfície para comunicação com fio | E82: h | F82: 80 | G82: 0.6413 | H82: 51.3
A83: =B77 ->  | B83: SICRO | C83: E9242 | D83: Estação transmissora de superfície para televisionamento | E83: h | F83: 80 | G83: 1.1511 | H83: 92.09
A84: =B77 ->  | B84: SICRO | C84: E9066 | D84: Grupo gerador - 14 kVA | E84: h | F84: 80 | G84: 10.4416 | H84: 835.33
A85: =B77 ->  | B85: SICRO | C85: E9246 | D85: Painel de controle de ar com manômetros e pneufatômetros | E85: h | F85: 80 | G85: 1.2307 | H85: 98.46
A86: =B77 ->  | B86: SICRO | C86: E9248 | D86: Sistema de ar comprimido para mergulho até 30 m com pressão de trabalho de 1,4 MPa - 7,46 kW | E86: h | F86: 80 | G86: 10.2357 | H86: 818.86
A87: =B77 ->  | B87: =B77 ->  | D87: EQUIPAMENTOS | H87: =SUM(H88) -> 5885.33 | I87: ss
A88: =B77 ->  | B88: CODEVASF | D88: CAMINHONETE | E88: mes | F88: 1 | G88: 5885.33 | H88: =ROUND(F88*G88,2) -> 5885.33 | I88: I
A89: =B77 ->  | B89: =B77 ->  | D89: SERVIÇOS | H89: =SUM(H90:H92) -> 3280.18 | I89: ss
A90: =B77 ->  | B90: SICRO | C90: 4915639 | D90: Limpeza em superfície de concreto com escova de aço | E90: m² | F90: =1.2*1.2*2 -> 2.88 | G90: 3.77 | H90: =ROUND(F90*G90,2) -> 10.86 | I90: ca
A91: =B77 ->  | B91: SICRO | C91: 2408068 | D91: Jateamento de chapa de aço com o uso de granalhas de aço Grau SA3 | E91: m² | F91: =1.2*1.2*2 -> 2.88 | G91: 15.7 | H91: =ROUND(F91*G91,2) -> 45.22 | I91: ca
A92: =B77 ->  | B92: SICRO | C92: E9058 | D92: Plataforma flutuante de 12 x 24 x 1,8 m com capacidade de 150 t | E92: h | F92: 80 | G92: 40.3012 | H92: =ROUND(F92*G92,2) -> 3224.1 | I92: i
A93: =B77 ->  | B93: =B77 ->  | D93: MÃO DE OBRA | H93: =SUM(H94:H96) -> 13914.46 | I93: ss
A94: =B78 ->  | B94: SICRO | C94: P9926 | D94: Mergulhador raso auxiliar de superfície | E94: h | F94: 80 | G94: 62.868 | H94: =ROUND(F94*G94,2) -> 5029.44
A95: =B78 ->  | B95: EMBASA | C95: B010000113 | D95: MERGULHADOR PROFISSIONAL | E95: h | F95: 80 | G95: 76.19 | H95: 6095.2
A96: =B78 ->  | B96: SICRO | C96: P9922 | D96: Mergulhador raso dependente de emergência | E96: h | F96: 80 | G96: 34.8727 | H96: 2789.82
A98: =B98 ->  | B98: =#REF! ->  | C98: =VLOOKUP($B98,'Planilha Orçamentária'!$A$12:$K$105,3,) ->  | D98: =VLOOKUP($B98,'Planilha Orçamentária'!$A$12:$K$105,4,) ->  | E98: =VLOOKUP($B98,'Planilha Orçamentária'!$A$12:$K$105,5) ->  | H98: =SUM(H99,H112,H109,H111) -> 156455.19 | I98: S
A99: =B98 ->  | B99: =B98 ->  | D99: MATERIAL | H99: =SUM(H100:H108) -> 136655.4 | I99: ss
A100: =B98 ->  | B100: CODE | C100: DP | D100: DIÁRIA | E100: dia | F100: =15*3 -> 45 | G100: 305.1 | H100: =ROUND(F100*G100,2) -> 13729.5 | I100: i
A101: =B98 ->  | B101: SICRO | C101: E9043 | D101: Embarcação de alumínio com comprimento de 6 m e motor de popa - 18,60 kW | E101: h | F101: 80 | G101: =68.3007 -> 68.3007 | H101: =ROUND(F101*G101,2) -> 5464.06 | I101: i
A102: =B98 ->  | B102: 2023-05-01 | C102: COTAÇÂO | D102: Bloqueador inflável completo DN>1200 mm com todos os acessórios necessários para a sua utilização e PN>20 mca | E102: un | F102: 1 | G102: =((173000)+(51520+2000)+(105450+580))/3 -> 110850 | H102: =ROUND(F102*G102,2) -> 110850 | I102: i
A103: =B99 ->  | B103: SICRO | C103: E9243 | D103: Câmara hiperbárica com filtro, serpentina e reservatório de ar para mergulho raso - D= 1,80 m e H = 2,22 m. | E103: h | F103: 80 | G103: 58.9475 | H103: =ROUND(F103*G103,2) -> 4715.8
A104: =B99 ->  | B104: SICRO | C104: E9245 | D104: Estação transmissora de superfície para comunicação com fio | E104: h | F104: 80 | G104: 0.6413 | H104: 51.3
A105: =B99 ->  | B105: SICRO | C105: E9242 | D105: Estação transmissora de superfície para televisionamento | E105: h | F105: 80 | G105: 1.1511 | H105: 92.09
A106: =B99 ->  | B106: SICRO | C106: E9066 | D106: Grupo gerador - 14 kVA | E106: h | F106: 80 | G106: 10.4416 | H106: 835.33
A107: =B99 ->  | B107: SICRO | C107: E9246 | D107: Painel de controle de ar com manômetros e pneufatômetros | E107: h | F107: 80 | G107: 1.2307 | H107: 98.46
A108: =B99 ->  | B108: SICRO | C108: E9248 | D108: Sistema de ar comprimido para mergulho até 30 m com pressão de trabalho de 1,4 MPa - 7,46 kW | E108: h | F108: 80 | G108: 10.2357 | H108: 818.86
A109: =B98 ->  | B109: =B98 ->  | D109: EQUIPAMENTOS | H109: =SUM(H110) -> 5885.33 | I109: ss
A110: =B98 ->  | B110: CODEVASF | D110: CAMINHONETE | E110: mes | F110: 1 | G110: 5885.33 | H110: =ROUND(F110*G110,2) -> 5885.33 | I110: I
A111: =B98 ->  | B111: =B98 ->  | D111: SERVIÇOS | H111: 0 | I111: ss
A112: =B98 ->  | B112: =B98 ->  | D112: MÃO DE OBRA | H112: =SUM(H113:H115) -> 13914.46 | I112: ss
A113: =B98 ->  | B113: SICRO | C113: P9926 | D113: Mergulhador raso auxiliar de superfície | E113: h | F113: 80 | G113: 62.868 | H113: =ROUND(F113*G113,2) -> 5029.44
A114: =B98 ->  | B114: EMBASA | C114: B010000113 | D114: MERGULHADOR PROFISSIONAL | E114: h | F114: 80 | G114: 76.19 | H114: 6095.2
A115: =B98 ->  | B115: SICRO | C115: P9922 | D115: Mergulhador raso dependente de emergência | E115: h | F115: 80 | G115: 34.8727 | H115: 2789.82
A117: =B117 ->  | B117: =#REF! ->  | C117: =VLOOKUP($B117,'Planilha Orçamentária'!$A$12:$K$105,3,) ->  | D117: =VLOOKUP($B117,'Planilha Orçamentária'!$A$12:$K$105,4,) ->  | E117: =VLOOKUP($B117,'Planilha Orçamentária'!$A$12:$K$105,5,) ->  | H117: =SUM(H118,H134,H128,H130) -> 91391.63 | I117: S
A118: =B117 ->  | B118: =B117 ->  | D118: MATERIAL | H118: =SUM(H119:H127) -> 65687.42 | I118: ss
A119: =B117 ->  | B119: CODE | C119: DP | D119: DIÁRIA | E119: dia | F119: =15*3 -> 45 | G119: 305.1 | H119: =ROUND(F119*G119,2) -> 13729.5 | I119: i
A120: =B117 ->  | B120: SICRO | C120: E9043 | D120: Embarcação de alumínio com comprimento de 6 m e motor de popa - 18,60 kW | E120: h | F120: 120 | G120: =68.3007 -> 68.3007 | H120: =ROUND(F120*G120,2) -> 8196.08 | I120: i
B121: SICRO | C121: 2408149 | D121: Estrutura em chapa de aço ASTM A36 corte, solda e montagem - fornecimento e instalação | E121: kg | F121: 2500 | G121: 14.86 | H121: =ROUND(F121*G121,2) -> 37150 | I121: I
A122: =B118 ->  | B122: SICRO | C122: E9243 | D122: Câmara hiperbárica com filtro, serpentina e reservatório de ar para mergulho raso - D= 1,80 m e H = 2,22 m. | E122: h | F122: 80 | G122: 58.9475 | H122: =ROUND(F122*G122,2) -> 4715.8
A123: =B118 ->  | B123: SICRO | C123: E9245 | D123: Estação transmissora de superfície para comunicação com fio | E123: h | F123: 80 | G123: 0.6413 | H123: 51.3
A124: =B118 ->  | B124: SICRO | C124: E9242 | D124: Estação transmissora de superfície para televisionamento | E124: h | F124: 80 | G124: 1.1511 | H124: 92.09
A125: =B118 ->  | B125: SICRO | C125: E9066 | D125: Grupo gerador - 14 kVA | E125: h | F125: 80 | G125: 10.4416 | H125: 835.33
A126: =B118 ->  | B126: SICRO | C126: E9246 | D126: Painel de controle de ar com manômetros e pneufatômetros | E126: h | F126: 80 | G126: 1.2307 | H126: 98.46
A127: =B118 ->  | B127: SICRO | C127: E9248 | D127: Sistema de ar comprimido para mergulho até 30 m com pressão de trabalho de 1,4 MPa - 7,46 kW | E127: h | F127: 80 | G127: 10.2357 | H127: 818.86
A128: =B117 ->  | B128: =B117 ->  | D128: EQUIPAMENTOS | H128: =SUM(H129) -> 5885.33 | I128: ss
A129: =B117 ->  | B129: CODEVASF | D129: CAMINHONETE | E129: mes | F129: 1 | G129: 5885.33 | H129: =ROUND(F129*G129,2) -> 5885.33 | I129: I
A130: =B117 ->  | B130: =B117 ->  | D130: SERVIÇOS | H130: =SUM(H131:H133) -> 5904.42 | I130: ss
B131: SICRO3 | C131: 3807863 | D131: Chumbador para concreto D = 12,5 mm tipo tecbolt - fornecimento e instalação | E131: un | F131: 72 | G131: 13.79 | H131: =ROUND(F131*G131,2) -> 992.88 | I131: ca
A132: =B117 ->  | B132: SICRO | C132: 4915639 | D132: Limpeza em superfície de concreto com escova de aço | E132: m² | F132: =5*4 -> 20 | G132: 3.77 | H132: =ROUND(F132*G132,2) -> 75.4 | I132: ca
A133: =B117 ->  | B133: SICRO | C133: E9058 | D133: Plataforma flutuante de 12 x 24 x 1,8 m com capacidade de 150 t | E133: h | F133: 120 | G133: 40.3012 | H133: =ROUND(F133*G133,2) -> 4836.14 | I133: i
A134: =B117 ->  | B134: =B117 ->  | D134: MÃO DE OBRA | H134: =SUM(H135:H137) -> 13914.46 | I134: ss
A135: =B117 ->  | B135: SICRO | C135: P9926 | D135: Mergulhador raso auxiliar de superfície | E135: h | F135: 80 | G135: 62.868 | H135: =ROUND(F135*G135,2) -> 5029.44
A136: =B117 ->  | B136: EMBASA | C136: B010000113 | D136: MERGULHADOR PROFISSIONAL | E136: h | F136: 80 | G136: 76.19 | H136: 6095.2
A137: =B117 ->  | B137: SICRO | C137: P9922 | D137: Mergulhador raso dependente de emergência | E137: h | F137: 80 | G137: 34.8727 | H137: 2789.82
A139: =B139 ->  | B139: =#REF! ->  | C139: =VLOOKUP($B139,'Planilha Orçamentária'!$A$12:$K$105,3,) ->  | D139: =VLOOKUP($B139,'Planilha Orçamentária'!$A$12:$K$105,4) ->  | E139: =VLOOKUP($B139,'Planilha Orçamentária'!$A$12:$K$105,5) ->  | H139: =SUM(H140,H143,H148,H149) -> 18246.11 | I139: S
A140: =B139 ->  | B140: =B139 ->  | D140: MATERIAL | H140: =SUM(H141:H142) -> 1656.75 | I140: SS
A141: =B139 ->  | B141: SINAPI | C141: 10997 | D141: =IF(I141="i",VLOOKUP(C141,'Ins SINAPI AL -NãoDesonerado'!$A$8:$E$5189,2,0),VLOOKUP(C141,'Comp SINAPI AL - NãoDesonerado'!$G$7:$K$6879,2,0)) -> ELETRODO REVESTIDO AWS - E7018, DIAMETRO IGUAL A 4,00 MM | E141: =LOWER(IF(I141="i",VLOOKUP(C141,'Ins SINAPI AL -NãoDesonerado'!$A$8:$E$7500,3,0),VLOOKUP(C141,'Comp SINAPI AL - NãoDesonerado'!$G$7:$K$7500,3,0))) -> kg | F141: 15 | G141: =IF(I141="i",VLOOKUP(C141,'Ins SINAPI AL 03-2023 Desonerad'!$A$8:$E$7500,5,0),VLOOKUP(C141,'Comp SINAPI AL 03-2023 Desoner'!$G$7:$K$7500,5,0)) -> 43.25 | H141: =ROUND(F141*G141,2) -> 648.75 | I141: i
A142: =B139 ->  | B142: SINAPI | C142: 1 | D142: =IF(I142="i",VLOOKUP(C142,'Ins SINAPI AL -NãoDesonerado'!$A$8:$E$5189,2,0),VLOOKUP(C142,'Comp SINAPI AL - NãoDesonerado'!$G$7:$K$6879,2,0)) -> ACETILENO (RECARGA DE GAS ACETILENO PARA CILINDRO DE CONJUNTO OXICORTE GRANDE) NAO INCLUI TROCA/MANUTENCAO DO CILINDRO | E142: =LOWER(IF(I142="i",VLOOKUP(C142,'Ins SINAPI AL -NãoDesonerado'!$A$8:$E$7500,3,0),VLOOKUP(C142,'Comp SINAPI AL - NãoDesonerado'!$G$7:$K$7500,3,0))) -> kg | F142: 16 | G142: =IF(I142="i",VLOOKUP(C142,'Ins SINAPI AL 03-2023 Desonerad'!$A$8:$E$7500,5,0),VLOOKUP(C142,'Comp SINAPI AL 03-2023 Desoner'!$G$7:$K$7500,5,0)) -> 63 | H142: =ROUND(F142*G142,2) -> 1008 | I142: i
A143: =B139 ->  | B143: =B139 ->  | D143: EQUIPAMENTOS | H143: =SUM(H144:H147) -> 12001.2 | I143: SS
A144: =B139 ->  | B144: SINAPI | C144: 83763 | D144: =IF(I144="i",VLOOKUP(C144,'Ins SINAPI AL -NãoDesonerado'!$A$8:$E$5189,2,0),VLOOKUP(C144,'Comp SINAPI AL - NãoDesonerado'!$G$7:$K$6879,2,0)) -> GRUPO DE SOLDAGEM COM GERADOR A DIESEL 60 CV PARA SOLDA ELÉTRICA, SOBRE 04 RODAS, COM MOTOR 4 CILINDROS 600 A - MATERIAIS NA OPERAÇÃO. AF_02/2016 | E144: =LOWER(IF(I144="i",VLOOKUP(C144,'Ins SINAPI AL -NãoDesonerado'!$A$8:$E$7500,3,0),VLOOKUP(C144,'Comp SINAPI AL - NãoDesonerado'!$G$7:$K$7500,3,0))) -> h | F144: 96 | G144: =IF(I144="i",VLOOKUP(C144,'Ins SINAPI AL 03-2023 Desonerad'!$A$8:$E$7500,5,0),VLOOKUP(C144,'Comp SINAPI AL 03-2023 Desoner'!$G$7:$K$7500,5,0)) -> 52.6 | H144: =ROUND(F144*G144,2) -> 5049.6 | I144: ca
A145: =B139 ->  | B145: SINAPI | C145: 92715 | D145: =IF(I145="i",VLOOKUP(C145,'Ins SINAPI AL -NãoDesonerado'!$A$8:$E$5189,2,0),VLOOKUP(C145,'Comp SINAPI AL - NãoDesonerado'!$G$7:$K$6879,2,0)) -> APARELHO PARA CORTE E SOLDA OXI-ACETILENO SOBRE RODAS, INCLUSIVE CILINDROS E MAÇARICOS - MATERIAIS NA OPERAÇÃO. AF_05/2023 | E145: =LOWER(IF(I145="i",VLOOKUP(C145,'Ins SINAPI AL -NãoDesonerado'!$A$8:$E$7500,3,0),VLOOKUP(C145,'Comp SINAPI AL - NãoDesonerado'!$G$7:$K$7500,3,0))) -> h | F145: 96 | G145: =IF(I145="i",VLOOKUP(C145,'Ins SINAPI AL 03-2023 Desonerad'!$A$8:$E$7500,5,0),VLOOKUP(C145,'Comp SINAPI AL 03-2023 Desoner'!$G$7:$K$7500,5,0)) -> 66.14 | H145: =ROUND(F145*G145,2) -> 6349.44 | I145: ca
A146: =B139 ->  | B146: SINAPI | C146: 10527 | D146: =IF(I146="i",VLOOKUP(C146,'Ins SINAPI AL -NãoDesonerado'!$A$8:$E$5189,2,0),VLOOKUP(C146,'Comp SINAPI AL - NãoDesonerado'!$G$7:$K$6879,2,0)) -> LOCACAO DE ANDAIME METALICO TUBULAR DE ENCAIXE, TIPO DE TORRE, CADA PAINEL COM LARGURA DE 1 ATE 1,5 M E ALTURA DE *1,00* M, INCLUINDO DIAGONAL, BARRAS DE LIGACAO, SAPATAS OU RODIZIOS E DEMAIS ITENS NECESSARIOS A MONTAGEM (NAO INCLUI INSTALACAO) | E146: =LOWER(IF(I146="i",VLOOKUP(C146,'Ins SINAPI AL -NãoDesonerado'!$A$8:$E$7500,3,0),VLOOKUP(C146,'Comp SINAPI AL - NãoDesonerado'!$G$7:$K$7500,3,0))) -> mxmes | F146: 12 | G146: =IF(I146="i",VLOOKUP(C146,'Ins SINAPI AL 03-2023 Desonerad'!$A$8:$E$7500,5,0),VLOOKUP(C146,'Comp SINAPI AL 03-2023 Desoner'!$G$7:$K$7500,5,0)) -> 26 | H146: =ROUND(F146*G146,2) -> 312 | I146: i
A147: =B139 ->  | B147: SINAPI | C147: 93286 | D147: =IF(I147="i",VLOOKUP(C147,'Ins SINAPI AL -NãoDesonerado'!$A$8:$E$5189,2,0),VLOOKUP(C147,'Comp SINAPI AL - NãoDesonerado'!$G$7:$K$6879,2,0)) -> GUINDASTE HIDRÁULICO AUTOPROPELIDO, COM LANÇA TELESCÓPICA 40 M, CAPACIDADE MÁXIMA 60 T, POTÊNCIA 260 KW - MATERIAIS NA OPERAÇÃO. AF_03/2016 | E147: =LOWER(IF(I147="i",VLOOKUP(C147,'Ins SINAPI AL -NãoDesonerado'!$A$8:$E$7500,3,0),VLOOKUP(C147,'Comp SINAPI AL - NãoDesonerado'!$G$7:$K$7500,3,0))) -> h | F147: 24 | G147: =IF(I147="i",VLOOKUP(C147,'Ins SINAPI AL 03-2023 Desonerad'!$A$8:$E$7500,5,0),VLOOKUP(C147,'Comp SINAPI AL 03-2023 Desoner'!$G$7:$K$7500,5,0)) -> 12.09 | H147: =ROUND(F147*G147,2) -> 290.16 | I147: ca
A148: =B139 ->  | B148: =B139 ->  | D148: SERVIÇOS | H148: 0 | I148: SS
A149: =B139 ->  | B149: =B139 ->  | D149: MÃO DE OBRA | H149: =SUM(H150:H151) -> 4588.16 | I149: MDO
A150: =B139 ->  | B150: SINAPI | C150: 88272 | D150: =IF(I150="i",VLOOKUP(C150,'Ins SINAPI AL -NãoDesonerado'!$A$8:$E$5189,2,0),VLOOKUP(C150,'Comp SINAPI AL - NãoDesonerado'!$G$7:$K$7500,2,0)) -> MACARIQUEIRO COM ENCARGOS COMPLEMENTARES | E150: =LOWER(IF(I150="i",VLOOKUP(C150,'Ins SINAPI AL -NãoDesonerado'!$A$8:$E$7500,3,0),VLOOKUP(C150,'Comp SINAPI AL - NãoDesonerado'!$G$7:$K$7500,3,0))) -> h | F150: ='MEM SERV'!H86 -> 64 | G150: =IF(I150="i",VLOOKUP(C150,'Ins SINAPI AL 03-2023 Desonerad'!$A$8:$E$7500,5,0),VLOOKUP(C150,'Comp SINAPI AL 03-2023 Desoner'!$G$7:$K$7500,5,0)) -> 23.18 | H150: =ROUND(F150*G150,2) -> 1483.52 | I150: ca
A151: =B139 ->  | B151: SINAPI | C151: 88241 | D151: =IF(I151="i",VLOOKUP(C151,'Ins SINAPI AL -NãoDesonerado'!$A$8:$E$5189,2,0),VLOOKUP(C151,'Comp SINAPI AL - NãoDesonerado'!$G$7:$K$7500,2,0)) -> AJUDANTE DE OPERAÇÃO EM GERAL COM ENCARGOS COMPLEMENTARES | E151: =LOWER(IF(I151="i",VLOOKUP(C151,'Ins SINAPI AL -NãoDesonerado'!$A$8:$E$7500,3,0),VLOOKUP(C151,'Comp SINAPI AL - NãoDesonerado'!$G$7:$K$7500,3,0))) -> h | F151: ='MEM SERV'!H87 -> 192 | G151: =IF(I151="i",VLOOKUP(C151,'Ins SINAPI AL 03-2023 Desonerad'!$A$8:$E$7500,5,0),VLOOKUP(C151,'Comp SINAPI AL 03-2023 Desoner'!$G$7:$K$7500,5,0)) -> 16.17 | H151: =ROUND(F151*G151,2) -> 3104.64 | I151: ca
A154: =B154 ->  | B154: =#REF! ->  | C154: =VLOOKUP($B154,'Planilha Orçamentária'!$A$12:$K$105,3,) ->  | D154: =VLOOKUP($B154,'Planilha Orçamentária'!$A$12:$K$105,4,) ->  | E154: =VLOOKUP($B154,'Planilha Orçamentária'!$A$12:$K$105,5,) ->  | H154: =SUM(H155,H156,H158,H162) -> 10419.55 | I154: S
A155: =B154 ->  | B155: =B154 ->  | D155: MATERIAL | H155: 0 | I155: SS
A156: =B154 ->  | B156: =B154 ->  | D156: EQUIPAMENTOS | H156: =SUM(H157:H157) -> 1984.2 | I156: SS
A157: =B154 ->  | B157: SINAPI | C157: 92715 | D157: =IF(I157="i",VLOOKUP(C157,'Ins SINAPI AL -NãoDesonerado'!$A$8:$E$7500,2,0),VLOOKUP(C157,'Comp SINAPI AL - NãoDesonerado'!$G$7:$K$7500,2,0)) -> APARELHO PARA CORTE E SOLDA OXI-ACETILENO SOBRE RODAS, INCLUSIVE CILINDROS E MAÇARICOS - MATERIAIS NA OPERAÇÃO. AF_05/2023 | E157: =LOWER(IF(I157="i",VLOOKUP(C157,'Ins SINAPI AL -NãoDesonerado'!$A$8:$E$7500,3,0),VLOOKUP(C157,'Comp SINAPI AL - NãoDesonerado'!$G$7:$K$7500,3,0))) -> h | F157: 30 | G157: =IF(I157="i",VLOOKUP(C157,'Ins SINAPI AL 03-2023 Desonerad'!$A$8:$E$7500,5,0),VLOOKUP(C157,'Comp SINAPI AL 03-2023 Desoner'!$G$7:$K$7500,5,0)) -> 66.14 | H157: =ROUND(F157*G157,2) -> 1984.2 | I157: ca
A158: =B154 ->  | B158: =B154 ->  | D158: SERVIÇOS | H158: =SUM(H159:H161) -> 1515.31 | I158: SS
A159: =B154 ->  | B159: SINAPI | C159: 97627 | D159: =IF(I159="i",VLOOKUP(C159,'Ins SINAPI AL -NãoDesonerado'!$A$8:$E$7500,2,0),VLOOKUP(C159,'Comp SINAPI AL - NãoDesonerado'!$G$7:$K$7500,2,0)) -> DEMOLIÇÃO DE PILARES E VIGAS EM CONCRETO ARMADO, DE FORMA MECANIZADA COM MARTELETE, SEM REAPROVEITAMENTO. AF_09/2023 | E159: =LOWER(IF(I159="i",VLOOKUP(C159,'Ins SINAPI AL -NãoDesonerado'!$A$8:$E$7500,3,0),VLOOKUP(C159,'Comp SINAPI AL - NãoDesonerado'!$G$7:$K$7500,3,0))) -> m3 | F159: 2.58 | G159: =IF(I159="i",VLOOKUP(C159,'Ins SINAPI AL 03-2023 Desonerad'!$A$8:$E$7500,5,0),VLOOKUP(C159,'Comp SINAPI AL 03-2023 Desoner'!$G$7:$K$7500,5,0)) -> 224.83 | H159: =ROUND(F159*G159,2) -> 580.06 | I159: ca
A160: =B154 ->  | B160: SINAPI | C160: 100235 | D160: =IF(I160="i",VLOOKUP(C160,'Ins SINAPI AL -NãoDesonerado'!$A$8:$E$7500,2,0),VLOOKUP(C160,'Comp SINAPI AL - NãoDesonerado'!$G$7:$K$7500,2,0)) -> TRANSPORTE VERTICAL MANUAL, 1 PAVIMENTO, DE LATA DE 18 LITROS (UNIDADE: L). AF_07/2019 | E160: =(IF(I160="i",VLOOKUP(C160,'Ins SINAPI AL -NãoDesonerado'!$A$8:$E$7500,3,0),VLOOKUP(C160,'Comp SINAPI AL - NãoDesonerado'!$G$7:$K$7500,3,0))) -> L | F160: 287 | G160: =IF(I160="i",VLOOKUP(C160,'Ins SINAPI AL 03-2023 Desonerad'!$A$8:$E$7500,5,0),VLOOKUP(C160,'Comp SINAPI AL 03-2023 Desoner'!$G$7:$K$7500,5,0)) -> 0.03 | H160: =ROUND(F160*G160,2) -> 8.61 | I160: ca
A161: =B154 ->  | B161: SINAPI | C161: 97914 | D161: =IF(I161="i",VLOOKUP(C161,'Ins SINAPI AL -NãoDesonerado'!$A$8:$E$7500,2,0),VLOOKUP(C161,'Comp SINAPI AL - NãoDesonerado'!$G$7:$K$7500,2,0)) -> TRANSPORTE COM CAMINHÃO BASCULANTE DE 6 M³, EM VIA URBANA PAVIMENTADA, DMT ATÉ 30 KM (UNIDADE: M3XKM). AF_07/2020 | E161: =LOWER(IF(I161="i",VLOOKUP(C161,'Ins SINAPI AL -NãoDesonerado'!$A$8:$E$7500,3,0),VLOOKUP(C161,'Comp SINAPI AL - NãoDesonerado'!$G$7:$K$7500,3,0))) -> m3xkm | F161: 343.2 | G161: =IF(I161="i",VLOOKUP(C161,'Ins SINAPI AL 03-2023 Desonerad'!$A$8:$E$7500,5,0),VLOOKUP(C161,'Comp SINAPI AL 03-2023 Desoner'!$G$7:$K$7500,5,0)) -> 2.7 | H161: =ROUND(F161*G161,2) -> 926.64 | I161: ca
A162: =B154 ->  | B162: =B154 ->  | D162: MÃO DE OBRA | H162: =SUM(H163:H164) -> 6920.04 | I162: MDO
A163: =B154 ->  | B163: SINAPI | C163: 88242 | D163: =IF(I163="i",VLOOKUP(C163,'Ins SINAPI AL -NãoDesonerado'!$A$8:$E$7500,2,0),VLOOKUP(C163,'Comp SINAPI AL - NãoDesonerado'!$G$7:$K$7500,2,0)) -> AJUDANTE DE PEDREIRO COM ENCARGOS COMPLEMENTARES | E163: =LOWER(IF(I163="i",VLOOKUP(C163,'Ins SINAPI AL -NãoDesonerado'!$A$8:$E$7500,3,0),VLOOKUP(C163,'Comp SINAPI AL - NãoDesonerado'!$G$7:$K$7500,3,0))) -> h | F163: 384 | G163: =IF(I163="i",VLOOKUP(C163,'Ins SINAPI AL 03-2023 Desonerad'!$A$8:$E$7500,5,0),VLOOKUP(C163,'Comp SINAPI AL 03-2023 Desoner'!$G$7:$K$7500,5,0)) -> 16.21 | H163: =ROUND(F163*G163,2) -> 6224.64 | I163: ca
A164: =B154 ->  | B164: SINAPI | C164: 88272 | D164: =IF(I164="i",VLOOKUP(C164,'Ins SINAPI AL -NãoDesonerado'!$A$8:$E$7500,2,0),VLOOKUP(C164,'Comp SINAPI AL - NãoDesonerado'!$G$7:$K$7500,2,0)) -> MACARIQUEIRO COM ENCARGOS COMPLEMENTARES | E164: =LOWER(IF(I164="i",VLOOKUP(C164,'Ins SINAPI AL -NãoDesonerado'!$A$8:$E$7500,3,0),VLOOKUP(C164,'Comp SINAPI AL - NãoDesonerado'!$G$7:$K$7500,3,0))) -> h | F164: 30 | G164: =IF(I164="i",VLOOKUP(C164,'Ins SINAPI AL 03-2023 Desonerad'!$A$8:$E$7500,5,0),VLOOKUP(C164,'Comp SINAPI AL 03-2023 Desoner'!$G$7:$K$7500,5,0)) -> 23.18 | H164: =ROUND(F164*G164,2) -> 695.4 | I164: ca
I165: x
A166: =B166 ->  | B166: =#REF! ->  | C166: =VLOOKUP($B166,'Planilha Orçamentária'!$A$12:$K$105,3) ->  | D166: =VLOOKUP($B166,'Planilha Orçamentária'!$A$12:$K$105,4) ->  | E166: =VLOOKUP($B166,'Planilha Orçamentária'!$A$12:$K$105,5) ->  | H166: =SUM(H167,H169,H170,H171) -> 5462.74 | I166: S
A167: =B166 ->  | B167: =B166 ->  | D167: MATERIAL | H167: =H168 -> 4425.3 | I167: SS
A168: =B166 ->  | B168: SINAPI | C168: 4049 | D168: =IF(I168="i",VLOOKUP(C168,'Ins SINAPI AL -NãoDesonerado'!$A$8:$E$5189,2,0),VLOOKUP(C168,'Comp SINAPI AL - NãoDesonerado'!$G$7:$K$6879,2,0)) -> MASSA EPOXI BICOMPONENTE (MASSA + CATALIZADOR) | E168: =LOWER(IF(I168="i",VLOOKUP(C168,'Ins SINAPI AL -NãoDesonerado'!$A$8:$E$7500,3,0),VLOOKUP(C168,'Comp SINAPI AL - NãoDesonerado'!$G$7:$K$7500,3,0))) -> l | F168: 90 | G168: =IF(I168="i",VLOOKUP(C168,'Ins SINAPI AL 03-2023 Desonerad'!$A$8:$E$7500,5,0),VLOOKUP(C168,'Comp SINAPI AL 03-2023 Desoner'!$G$7:$K$7500,5,0)) -> 49.17 | H168: =ROUND(F168*G168,2) -> 4425.3 | I168: i
A169: =B166 ->  | B169: =B166 ->  | D169: EQUIPAMENTOS | H169: 0 | I169: SS
A170: =B166 ->  | B170: =B166 ->  | D170: SERVIÇOS | H170: 0 | I170: SS
A171: =B166 ->  | B171: =B166 ->  | D171: MÃO DE OBRA | H171: =SUM(H172:H172) -> 1037.44 | I171: MDO
A172: =B166 ->  | B172: SINAPI | C172: 88242 | D172: =IF(I172="i",VLOOKUP(C172,'Ins SINAPI AL -NãoDesonerado'!$A$8:$E$7500,2,0),VLOOKUP(C172,'Comp SINAPI AL - NãoDesonerado'!$G$7:$K$7500,2,0)) -> AJUDANTE DE PEDREIRO COM ENCARGOS COMPLEMENTARES | E172: =LOWER(IF(I172="i",VLOOKUP(C172,'Ins SINAPI AL -NãoDesonerado'!$A$8:$E$7500,3,0),VLOOKUP(C172,'Comp SINAPI AL - NãoDesonerado'!$G$7:$K$7500,3,0))) -> h | F172: 64 | G172: =IF(I172="i",VLOOKUP(C172,'Ins SINAPI AL 03-2023 Desonerad'!$A$8:$E$7500,5,0),VLOOKUP(C172,'Comp SINAPI AL 03-2023 Desoner'!$G$7:$K$7500,5,0)) -> 16.21 | H172: =ROUND(F172*G172,2) -> 1037.44 | I172: ca
I173: x
A174: =B174 ->  | B174: =#REF! ->  | C174: =VLOOKUP($B174,'Planilha Orçamentária'!$A$12:$K$105,3,) ->  | D174: =VLOOKUP($B174,'Planilha Orçamentária'!$A$12:$K$105,4,) ->  | E174: =VLOOKUP($B174,'Planilha Orçamentária'!$A$12:$K$105,5,) ->  | H174: =SUM(H175,H178,H183,H184) -> 26261.42 | I174: S
A175: =B174 ->  | B175: =B174 ->  | D175: MATERIAL | H175: =SUM(H176:H177) -> 1927.5 | I175: SS
A176: =B174 ->  | B176: SINAPI | C176: 10997 | D176: =IF(I176="i",VLOOKUP(C176,'Ins SINAPI AL -NãoDesonerado'!$A$8:$E$5189,2,0),VLOOKUP(C176,'Comp SINAPI AL - NãoDesonerado'!$G$7:$K$6879,2,0)) -> ELETRODO REVESTIDO AWS - E7018, DIAMETRO IGUAL A 4,00 MM | E176: =LOWER(IF(I176="i",VLOOKUP(C176,'Ins SINAPI AL -NãoDesonerado'!$A$8:$E$7500,3,0),VLOOKUP(C176,'Comp SINAPI AL - NãoDesonerado'!$G$7:$K$7500,3,0))) -> kg | F176: 30 | G176: =IF(I176="i",VLOOKUP(C176,'Ins SINAPI AL 03-2023 Desonerad'!$A$8:$E$7500,5,0),VLOOKUP(C176,'Comp SINAPI AL 03-2023 Desoner'!$G$7:$K$7500,5,0)) -> 43.25 | H176: =ROUND(F176*G176,2) -> 1297.5 | I176: i
A177: =B174 ->  | B177: SINAPI | C177: 1 | D177: =IF(I177="i",VLOOKUP(C177,'Ins SINAPI AL -NãoDesonerado'!$A$8:$E$5189,2,0),VLOOKUP(C177,'Comp SINAPI AL - NãoDesonerado'!$G$7:$K$6879,2,0)) -> ACETILENO (RECARGA DE GAS ACETILENO PARA CILINDRO DE CONJUNTO OXICORTE GRANDE) NAO INCLUI TROCA/MANUTENCAO DO CILINDRO | E177: =LOWER(IF(I177="i",VLOOKUP(C177,'Ins SINAPI AL -NãoDesonerado'!$A$8:$E$7500,3,0),VLOOKUP(C177,'Comp SINAPI AL - NãoDesonerado'!$G$7:$K$7500,3,0))) -> kg | F177: 10 | G177: =IF(I177="i",VLOOKUP(C177,'Ins SINAPI AL 03-2023 Desonerad'!$A$8:$E$7500,5,0),VLOOKUP(C177,'Comp SINAPI AL 03-2023 Desoner'!$G$7:$K$7500,5,0)) -> 63 | H177: =ROUND(F177*G177,2) -> 630 | I177: i
A178: =B174 ->  | B178: =B174 ->  | D178: EQUIPAMENTOS | H178: =SUM(H179:H182) -> 11887.2 | I178: SS
A179: =B174 ->  | B179: SINAPI | C179: 83763 | D179: =IF(I179="i",VLOOKUP(C179,'Ins SINAPI AL -NãoDesonerado'!$A$8:$E$7500,2,0),VLOOKUP(C179,'Comp SINAPI AL - NãoDesonerado'!$G$7:$K$7500,2,0)) -> GRUPO DE SOLDAGEM COM GERADOR A DIESEL 60 CV PARA SOLDA ELÉTRICA, SOBRE 04 RODAS, COM MOTOR 4 CILINDROS 600 A - MATERIAIS NA OPERAÇÃO. AF_02/2016 | E179: =LOWER(IF(I179="i",VLOOKUP(C179,'Ins SINAPI AL -NãoDesonerado'!$A$8:$E$7500,3,0),VLOOKUP(C179,'Comp SINAPI AL - NãoDesonerado'!$G$7:$K$7500,3,0))) -> h | F179: 72 | G179: =IF(I179="i",VLOOKUP(C179,'Ins SINAPI AL 03-2023 Desonerad'!$A$8:$E$7500,5,0),VLOOKUP(C179,'Comp SINAPI AL 03-2023 Desoner'!$G$7:$K$7500,5,0)) -> 52.6 | H179: =ROUND(F179*G179,2) -> 3787.2 | I179: ca
A180: =B174 ->  | B180: SINAPI | C180: 92715 | D180: =IF(I180="i",VLOOKUP(C180,'Ins SINAPI AL -NãoDesonerado'!$A$8:$E$7500,2,0),VLOOKUP(C180,'Comp SINAPI AL - NãoDesonerado'!$G$7:$K$7500,2,0)) -> APARELHO PARA CORTE E SOLDA OXI-ACETILENO SOBRE RODAS, INCLUSIVE CILINDROS E MAÇARICOS - MATERIAIS NA OPERAÇÃO. AF_05/2023 | E180: =LOWER(IF(I180="i",VLOOKUP(C180,'Ins SINAPI AL -NãoDesonerado'!$A$8:$E$7500,3,0),VLOOKUP(C180,'Comp SINAPI AL - NãoDesonerado'!$G$7:$K$7500,3,0))) -> h | F180: 48 | G180: =IF(I180="i",VLOOKUP(C180,'Ins SINAPI AL 03-2023 Desonerad'!$A$8:$E$7500,5,0),VLOOKUP(C180,'Comp SINAPI AL 03-2023 Desoner'!$G$7:$K$7500,5,0)) -> 66.14 | H180: =ROUND(F180*G180,2) -> 3174.72 | I180: ca
A181: =B174 ->  | B181: SINAPI | C181: 10527 | D181: =IF(I181="i",VLOOKUP(C181,'Ins SINAPI AL -NãoDesonerado'!$A$8:$E$7500,2,0),VLOOKUP(C181,'Comp SINAPI AL - NãoDesonerado'!$G$7:$K$7500,2,0)) -> LOCACAO DE ANDAIME METALICO TUBULAR DE ENCAIXE, TIPO DE TORRE, CADA PAINEL COM LARGURA DE 1 ATE 1,5 M E ALTURA DE *1,00* M, INCLUINDO DIAGONAL, BARRAS DE LIGACAO, SAPATAS OU RODIZIOS E DEMAIS ITENS NECESSARIOS A MONTAGEM (NAO INCLUI INSTALACAO) | E181: =LOWER(IF(I181="i",VLOOKUP(C181,'Ins SINAPI AL -NãoDesonerado'!$A$8:$E$7500,3,0),VLOOKUP(C181,'Comp SINAPI AL - NãoDesonerado'!$G$7:$K$7500,3,0))) -> mxmes | F181: 12 | G181: =IF(I181="i",VLOOKUP(C181,'Ins SINAPI AL 03-2023 Desonerad'!$A$8:$E$7500,5,0),VLOOKUP(C181,'Comp SINAPI AL 03-2023 Desoner'!$G$7:$K$7500,5,0)) -> 26 | H181: =ROUND(F181*G181,2) -> 312 | I181: i
A182: =B174 ->  | B182: SINAPI | C182: 89272 | D182: =IF(I182="i",VLOOKUP(C182,'Ins SINAPI AL -NãoDesonerado'!$A$8:$E$7500,2,0),VLOOKUP(C182,'Comp SINAPI AL - NãoDesonerado'!$G$7:$K$7500,2,0)) -> GUINDASTE HIDRÁULICO AUTOPROPELIDO, COM LANÇA TELESCÓPICA 28,80 M, CAPACIDADE MÁXIMA 30 T, POTÊNCIA 97 KW, TRAÇÃO 4 X 4 - CHP DIURNO. AF_11/2014 | E182: =LOWER(IF(I182="i",VLOOKUP(C182,'Ins SINAPI AL -NãoDesonerado'!$A$8:$E$7500,3,0),VLOOKUP(C182,'Comp SINAPI AL - NãoDesonerado'!$G$7:$K$7500,3,0))) -> chp | F182: 24 | G182: =IF(I182="i",VLOOKUP(C182,'Ins SINAPI AL 03-2023 Desonerad'!$A$8:$E$7500,5,0),VLOOKUP(C182,'Comp SINAPI AL 03-2023 Desoner'!$G$7:$K$7500,5,0)) -> 192.22 | H182: =ROUND(F182*G182,2) -> 4613.28 | I182: ca
A183: =B174 ->  | B183: =B174 ->  | D183: SERVIÇOS | H183: 0 | I183: SS
A184: =B174 ->  | B184: =B174 ->  | D184: MÃO DE OBRA | H184: =SUM(H185:H187) -> 12446.72 | I184: MDO
A185: =B174 ->  | B185: SINAPI | C185: 88278 | D185: =IF(I185="i",VLOOKUP(C185,'Ins SINAPI AL -NãoDesonerado'!$A$8:$E$7500,2,0),VLOOKUP(C185,'Comp SINAPI AL - NãoDesonerado'!$G$7:$K$7500,2,0)) -> MONTADOR DE ESTRUTURA METÁLICA COM ENCARGOS COMPLEMENTARES | E185: =LOWER(IF(I185="i",VLOOKUP(C185,'Ins SINAPI AL -NãoDesonerado'!$A$8:$E$7500,3,0),VLOOKUP(C185,'Comp SINAPI AL - NãoDesonerado'!$G$7:$K$7500,3,0))) -> h | F185: 320 | G185: =IF(I185="i",VLOOKUP(C185,'Ins SINAPI AL 03-2023 Desonerad'!$A$8:$E$7500,5,0),VLOOKUP(C185,'Comp SINAPI AL 03-2023 Desoner'!$G$7:$K$7500,5,0)) -> 15.67 | H185: =ROUND(F185*G185,2) -> 5014.4 | I185: ca
A186: =B174 ->  | B186: SINAPI | C186: 88317 | D186: =IF(I186="i",VLOOKUP(C186,'Ins SINAPI AL -NãoDesonerado'!$A$8:$E$7500,2,0),VLOOKUP(C186,'Comp SINAPI AL - NãoDesonerado'!$G$7:$K$7500,2,0)) -> SOLDADOR COM ENCARGOS COMPLEMENTARES | E186: =LOWER(IF(I186="i",VLOOKUP(C186,'Ins SINAPI AL -NãoDesonerado'!$A$8:$E$7500,3,0),VLOOKUP(C186,'Comp SINAPI AL - NãoDesonerado'!$G$7:$K$7500,3,0))) -> h | F186: 96 | G186: =IF(I186="i",VLOOKUP(C186,'Ins SINAPI AL 03-2023 Desonerad'!$A$8:$E$7500,5,0),VLOOKUP(C186,'Comp SINAPI AL 03-2023 Desoner'!$G$7:$K$7500,5,0)) -> 23.52 | H186: =ROUND(F186*G186,2) -> 2257.92 | I186: ca
A187: =B174 ->  | B187: SINAPI | C187: 88241 | D187: =IF(I187="i",VLOOKUP(C187,'Ins SINAPI AL -NãoDesonerado'!$A$8:$E$7500,2,0),VLOOKUP(C187,'Comp SINAPI AL - NãoDesonerado'!$G$7:$K$7500,2,0)) -> AJUDANTE DE OPERAÇÃO EM GERAL COM ENCARGOS COMPLEMENTARES | E187: =LOWER(IF(I187="i",VLOOKUP(C187,'Ins SINAPI AL -NãoDesonerado'!$A$8:$E$7500,3,0),VLOOKUP(C187,'Comp SINAPI AL - NãoDesonerado'!$G$7:$K$7500,3,0))) -> h | F187: 320 | G187: =IF(I187="i",VLOOKUP(C187,'Ins SINAPI AL 03-2023 Desonerad'!$A$8:$E$7500,5,0),VLOOKUP(C187,'Comp SINAPI AL 03-2023 Desoner'!$G$7:$K$7500,5,0)) -> 16.17 | H187: =ROUND(F187*G187,2) -> 5174.4 | I187: ca
I188: x
A189: =B189 ->  | B189: =#REF! ->  | C189: =VLOOKUP($B189,'Planilha Orçamentária'!$A$12:$K$105,3,) ->  | D189: =VLOOKUP($B189,'Planilha Orçamentária'!$A$12:$K$105,4,) ->  | E189: =VLOOKUP($B189,'Planilha Orçamentária'!$A$12:$K$105,5,) ->  | H189: =SUM(H190,H193,H195,H198) -> 6652.74 | I189: S
A190: =B189 ->  | B190: =B189 ->  | D190: MATERIAL | H190: =SUM(H191:H192) -> 206.35 | I190: SS
A191: =B189 ->  | B191: SINAPI | C191: 4491 | D191: =IF(I191="i",VLOOKUP(C191,'Ins SINAPI AL -NãoDesonerado'!$A$8:$E$5189,2,0),VLOOKUP(C191,'Comp SINAPI AL - NãoDesonerado'!$G$7:$K$6879,2,0)) -> PONTALETE *7,5 X 7,5* CM EM PINUS, MISTA OU EQUIVALENTE DA REGIAO - BRUTA | E191: =LOWER(IF(I191="i",VLOOKUP(C191,'Ins SINAPI AL -NãoDesonerado'!$A$8:$E$7500,3,0),VLOOKUP(C191,'Comp SINAPI AL - NãoDesonerado'!$G$7:$K$7500,3,0))) -> m | F191: 12 | G191: =IF(I191="i",VLOOKUP(C191,'Ins SINAPI AL 03-2023 Desonerad'!$A$8:$E$7500,5,0),VLOOKUP(C191,'Comp SINAPI AL 03-2023 Desoner'!$G$7:$K$7500,5,0)) -> 13.27 | H191: =ROUND(F191*G191,2) -> 159.24 | I191: I
A192: =B189 ->  | B192: SINAPI | C192: 4509 | D192: =IF(I192="i",VLOOKUP(C192,'Ins SINAPI AL -NãoDesonerado'!$A$8:$E$5189,2,0),VLOOKUP(C192,'Comp SINAPI AL - NãoDesonerado'!$G$7:$K$6879,2,0)) -> SARRAFO *2,5 X 10* CM EM PINUS, MISTA OU EQUIVALENTE DA REGIAO - BRUTA | E192: =LOWER(IF(I192="i",VLOOKUP(C192,'Ins SINAPI AL -NãoDesonerado'!$A$8:$E$7500,3,0),VLOOKUP(C192,'Comp SINAPI AL - NãoDesonerado'!$G$7:$K$7500,3,0))) -> m | F192: 7 | G192: =IF(I192="i",VLOOKUP(C192,'Ins SINAPI AL 03-2023 Desonerad'!$A$8:$E$7500,5,0),VLOOKUP(C192,'Comp SINAPI AL 03-2023 Desoner'!$G$7:$K$7500,5,0)) -> 6.73 | H192: =ROUND(F192*G192,2) -> 47.11 | I192: I
A193: =B189 ->  | B193: =B189 ->  | D193: EQUIPAMENTOS | H193: =SUM(H194:H194) -> 190.56 | I193: SS
A194: =B189 ->  | B194: SINAPI | C194: 90662 | D194: =IF(I194="i",VLOOKUP(C194,'Ins SINAPI AL -NãoDesonerado'!$A$8:$E$5189,2,0),VLOOKUP(C194,'Comp SINAPI AL - NãoDesonerado'!$G$7:$K$6879,2,0)) -> BOMBA DE PROJEÇÃO DE CONCRETO SECO, POTÊNCIA 10 CV, VAZÃO 6 M3/H - CHP DIURNO. AF_06/2015 | E194: =LOWER(IF(I194="i",VLOOKUP(C194,'Ins SINAPI AL -NãoDesonerado'!$A$8:$E$7500,3,0),VLOOKUP(C194,'Comp SINAPI AL - NãoDesonerado'!$G$7:$K$7500,3,0))) -> chp | F194: 12 | G194: =IF(I194="i",VLOOKUP(C194,'Ins SINAPI AL 03-2023 Desonerad'!$A$8:$E$7500,5,0),VLOOKUP(C194,'Comp SINAPI AL 03-2023 Desoner'!$G$7:$K$7500,5,0)) -> 15.88 | H194: =ROUND(F194*G194,2) -> 190.56 | I194: ca
A195: =B189 ->  | B195: =B189 ->  | D195: SERVIÇOS | H195: =SUM(H196:H197) -> 4972.15 | I195: SS
A196: =B189 ->  | B196: SINAPI | C196: 92409 | D196: =IF(I196="i",VLOOKUP(C196,'Ins SINAPI AL -NãoDesonerado'!$A$8:$E$5189,2,0),VLOOKUP(C196,'Comp SINAPI AL - NãoDesonerado'!$G$7:$K$6879,2,0)) -> MONTAGEM E DESMONTAGEM DE FÔRMA DE PILARES RETANGULARES E ESTRUTURAS SIMILARES, PÉ-DIREITO SIMPLES, EM MADEIRA SERRADA, 1 UTILIZAÇÃO. AF_09/2020 | E196: =LOWER(IF(I196="i",VLOOKUP(C196,'Ins SINAPI AL -NãoDesonerado'!$A$8:$E$7500,3,0),VLOOKUP(C196,'Comp SINAPI AL - NãoDesonerado'!$G$7:$K$7500,3,0))) -> m2 | F196: 8.82 | G196: =IF(I196="i",VLOOKUP(C196,'Ins SINAPI AL 03-2023 Desonerad'!$A$8:$E$7500,5,0),VLOOKUP(C196,'Comp SINAPI AL 03-2023 Desoner'!$G$7:$K$7500,5,0)) -> 250.59 | H196: =ROUND(F196*G196,2) -> 2210.2 | I196: ca
A197: =B189 ->  | B197: SINAPI | C197: 103669 | D197: =IF(I197="i",VLOOKUP(C197,'Ins SINAPI AL -NãoDesonerado'!$A$8:$E$7500,2,0),VLOOKUP(C197,'Comp SINAPI AL - NãoDesonerado'!$G$7:$K$7500,2,0)) -> CONCRETAGEM DE PILARES, FCK = 25 MPA, COM USO DE BALDES - LANÇAMENTO, ADENSAMENTO E ACABAMENTO. AF_02/2022 | E197: =LOWER(IF(I197="i",VLOOKUP(C197,'Ins SINAPI AL -NãoDesonerado'!$A$8:$E$7500,3,0),VLOOKUP(C197,'Comp SINAPI AL - NãoDesonerado'!$G$7:$K$7500,3,0))) -> m3 | F197: 3.354 | G197: =IF(I197="i",VLOOKUP(C197,'Ins SINAPI AL 03-2023 Desonerad'!$A$8:$E$7500,5,0),VLOOKUP(C197,'Comp SINAPI AL 03-2023 Desoner'!$G$7:$K$7500,5,0)) -> 823.48 | H197: =ROUND(F197*G197,2) -> 2761.95 | I197: CA
A198: =B189 ->  | B198: =B189 ->  | D198: MÃO DE OBRA | H198: =SUM(H199:H200) -> 1283.68 | I198: MDO
A199: =B189 ->  | B199: SINAPI | C199: 88291 | D199: =IF(I199="i",VLOOKUP(C199,'Ins SINAPI AL -NãoDesonerado'!$A$8:$E$7500,2,0),VLOOKUP(C199,'Comp SINAPI AL - NãoDesonerado'!$G$7:$K$7500,2,0)) -> OPERADOR DE BETONEIRA (CAMINHÃO) COM ENCARGOS COMPLEMENTARES | E199: =LOWER(IF(I199="i",VLOOKUP(C199,'Ins SINAPI AL -NãoDesonerado'!$A$8:$E$7500,3,0),VLOOKUP(C199,'Comp SINAPI AL - NãoDesonerado'!$G$7:$K$7500,3,0))) -> h | F199: 16 | G199: =IF(I199="i",VLOOKUP(C199,'Ins SINAPI AL 03-2023 Desonerad'!$A$8:$E$7500,5,0),VLOOKUP(C199,'Comp SINAPI AL 03-2023 Desoner'!$G$7:$K$7500,5,0)) -> 15.39 | H199: =ROUND(F199*G199,2) -> 246.24 | I199: ca
A200: =B189 ->  | B200: SINAPI | C200: 88242 | D200: =IF(I200="i",VLOOKUP(C200,'Ins SINAPI AL -NãoDesonerado'!$A$8:$E$7500,2,0),VLOOKUP(C200,'Comp SINAPI AL - NãoDesonerado'!$G$7:$K$7500,2,0)) -> AJUDANTE DE PEDREIRO COM ENCARGOS COMPLEMENTARES | E200: =LOWER(IF(I200="i",VLOOKUP(C200,'Ins SINAPI AL -NãoDesonerado'!$A$8:$E$7500,3,0),VLOOKUP(C200,'Comp SINAPI AL - NãoDesonerado'!$G$7:$K$7500,3,0))) -> h | F200: 64 | G200: =IF(I200="i",VLOOKUP(C200,'Ins SINAPI AL 03-2023 Desonerad'!$A$8:$E$7500,5,0),VLOOKUP(C200,'Comp SINAPI AL 03-2023 Desoner'!$G$7:$K$7500,5,0)) -> 16.21 | H200: =ROUND(F200*G200,2) -> 1037.44 | I200: ca
I201: x
A202: =B202 ->  | B202: =#REF! ->  | C202: =VLOOKUP($B202,'Planilha Orçamentária'!$A$12:$K$105,3,) ->  | D202: =VLOOKUP($B202,'Planilha Orçamentária'!$A$12:$K$105,4,) ->  | E202: =VLOOKUP($B202,'Planilha Orçamentária'!$A$12:$K$105,5,) ->  | H202: =SUM(H203,H204,H205,H208) -> 3338.36 | I202: S
A203: =B202 ->  | B203: =B202 ->  | D203: MATERIAL | H203: 0 | I203: SS
A204: =B202 ->  | B204: =B202 ->  | D204: EQUIPAMENTOS | H204: 0 | I204: SS
A205: =B202 ->  | B205: =B202 ->  | D205: SERVIÇOS | H205: =SUM(H206:H207) -> 2300.92 | I205: SS
A206: =B202 ->  | B206: SINAPI | C206: 92409 | D206: =IF(I206="i",VLOOKUP(C206,'Ins SINAPI AL -NãoDesonerado'!$A$8:$E$5189,2,0),VLOOKUP(C206,'Comp SINAPI AL - NãoDesonerado'!$G$7:$K$6879,2,0)) -> MONTAGEM E DESMONTAGEM DE FÔRMA DE PILARES RETANGULARES E ESTRUTURAS SIMILARES, PÉ-DIREITO SIMPLES, EM MADEIRA SERRADA, 1 UTILIZAÇÃO. AF_09/2020 | E206: =LOWER(IF(I206="i",VLOOKUP(C206,'Ins SINAPI AL -NãoDesonerado'!$A$8:$E$7500,3,0),VLOOKUP(C206,'Comp SINAPI AL - NãoDesonerado'!$G$7:$K$7500,3,0))) -> m2 | F206: 8.82 | G206: =IF(I206="i",VLOOKUP(C206,'Ins SINAPI AL 03-2023 Desonerad'!$A$8:$E$7500,5,0),VLOOKUP(C206,'Comp SINAPI AL 03-2023 Desoner'!$G$7:$K$7500,5,0)) -> 250.59 | H206: =ROUND(F206*G206,2) -> 2210.2 | I206: ca
A207: =B202 ->  | B207: SINAPI | C207: 97914 | D207: =IF(I207="i",VLOOKUP(C207,'Ins SINAPI AL -NãoDesonerado'!$A$8:$E$5189,2,0),VLOOKUP(C207,'Comp SINAPI AL - NãoDesonerado'!$G$7:$K$7500,2,0)) -> TRANSPORTE COM CAMINHÃO BASCULANTE DE 6 M³, EM VIA URBANA PAVIMENTADA, DMT ATÉ 30 KM (UNIDADE: M3XKM). AF_07/2020 | E207: =LOWER(IF(I207="i",VLOOKUP(C207,'Ins SINAPI AL -NãoDesonerado'!$A$8:$E$7500,3,0),VLOOKUP(C207,'Comp SINAPI AL - NãoDesonerado'!$G$7:$K$7500,3,0))) -> m3xkm | F207: 33.6 | G207: =IF(I207="i",VLOOKUP(C207,'Ins SINAPI AL 03-2023 Desonerad'!$A$8:$E$7500,5,0),VLOOKUP(C207,'Comp SINAPI AL 03-2023 Desoner'!$G$7:$K$7500,5,0)) -> 2.7 | H207: =ROUND(F207*G207,2) -> 90.72 | I207: ca
... 201 more rows

Sheet BDI serv
A1: Ministério do Desenvolvimento Regional
A2: Companhia de Desenvolvimento dos Vales do São Francisco e do Parnaíba
A3: ='Planilha Orçamentária'!A3:K3 -> 0
A4: COMPOSIÇÃO DE BDI - SERVIÇOS - ONERADO
A5: OBRA: | B5: ='Planilha Orçamentária'!B5 -> SUBSTITUIÇÃO DAS COMPORTAS NA BARRAGEM DE BOACICA | D5: BDI (serv.): | E5: =D23 -> 0.2228
A6: LOCAL: | B6: ='Planilha Orçamentária'!B6 -> BARRAGEM BOACICA (IGREJA NOVA - AL) | D6: BDI (forn.): | E6: ='BDI forn'!D23 -> 0.147
A7: DATA BASE: | B7: 2024-02-01
A8: PRAZO: | B8: ='Planilha Orçamentária'!B9 -> 240 DIAS
A9: ITEM | B9: DESCRIÇÃO | C9: SIGLA | D9: % APLICADO | E9: REFERÊNCIA TCU (ACÓRDÃO Nº 2622/2013)
E10: 1º QUARTIL | F10: 2º QUARTIL | G10: 3º QUARTIL
A11: 1 | B11: ADMINISTRAÇÃO CENTRAL | C11: AC | D11: =E11 -> 0.04 | E11: 0.04 | F11: 0.0552 | G11: 0.0785
A12: 2 | B12: IMPOSTOS | C12: T | D12: =SUM(D13:D16) -> 0.0665
A13: 2.1 | B13: ISS (*) | D13: 0.03 | E13: - | F13: - | G13: -
A14: 2.2 | B14: PIS | D14: 0.0065 | E14: - | F14: - | G14: -
A15: 2.3 | B15: Cofins | D15: 0.03 | E15: - | F15: - | G15: -
A16: 2.4 | B16: Contribuição previdênciária sobre a receita bruta (CPRB) | E16: - | F16: - | G16: -
A17: 3 | B17: SEGURO, GARANTIA E RISCO | D17: =SUM(D18:D20) -> 0.016
A18: 3.1 | B18: Seguro | C18: S | D18: 0.005 | E18: 0.0081 | F18: 0.0122 | G18: 0.0199
A19: 3.2 | B19: Garantia | C19: G
A20: 3.3 | B20: Risco | C20: R | D20: 0.011 | E20: 0.0146 | F20: 0.0232 | G20: 0.0316
A21: 4 | B21: DESPESAS FINANCEIRAS | C21: DF | D21: =F21 -> 0.0102 | E21: 0.0094 | F21: 0.0102 | G21: 0.01363
A22: 5 | B22: LUCRO | C22: L | D22: 0.07 | E22: 0.0714 | F22: 0.084 | G22: 0.1043
B23: BDI ADOTADO: | D23: =ROUND(((((1+D11+D17)*(1+D21)*(1+D22))/(1-D12))-1),4) -> 0.2228
A24: Considerações: O BDI foi calculado através da seguinte fórmula, regulamentada pelo Acórdão Nº 2622/2013 – TCU.
H173: =SUM(H174:H177) -> 0
D177: mec | F177: 2 | G177: 128

Sheet BDI serv Desonerado (hidden)
A1: Ministério do Desenvolvimento Regional
A2: Companhia de Desenvolvimento dos Vales do São Francisco e do Parnaíba
A3: ='Planilha Orçamentária'!A3:K3 -> 0
A4: COMPOSIÇÃO DE BDI - SERVIÇOS - DESONERADO
A5: OBRA: | B5: ='Planilha Orçamentária'!B5 -> SUBSTITUIÇÃO DAS COMPORTAS NA BARRAGEM DE BOACICA | D5: BDI (serv.): | E5: =D23 -> 0.3243
A6: LOCAL: | B6: ='Planilha Orçamentária'!B6 -> BARRAGEM BOACICA (IGREJA NOVA - AL) | D6: BDI (forn.): | E6: ='BDI forn Desonerado'!E6 -> 0.2032
A7: DATA BASE: | B7: ='Planilha Orçamentária'!B7 -> 2024-02-01
A8: PRAZO: | B8: ='Planilha Orçamentária'!B9 -> 240 DIAS
A9: ITEM | B9: DESCRIÇÃO | C9: SIGLA | D9: % APLICADO | E9: REFERÊNCIA TCU (ACÓRDÃO Nº 2622/2013)
E10: 1º QUARTIL | F10: 2º QUARTIL | G10: 3º QUARTIL
A11: 1 | B11: ADMINISTRAÇÃO CENTRAL | C11: AC | D11: =E11 -> 0.04 | E11: 0.04 | F11: 0.0552 | G11: 0.0785
A12: 2 | B12: IMPOSTOS | C12: T | D12: =SUM(D13:D16) -> 0.1315
A13: 2.1 | B13: ISS (*) | D13: 0.05 | E13: - | F13: - | G13: -
A14: 2.2 | B14: PIS | D14: 0.0065 | E14: - | F14: - | G14: -
A15: 2.3 | B15: Cofins | D15: 0.03 | E15: - | F15: - | G15: -
A16: 2.4 | B16: Contribuição previdênciária sobre a receita bruta (CPRB) | D16: 0.045 | E16: - | F16: - | G16: -
A17: 3 | B17: SEGURO, GARANTIA E RISCO | D17: =SUM(D18:D20) -> 0.0227
A18: 3.1 | B18: Seguro | C18: S | D18: =E18 -> 0.0081 | E18: 0.0081 | F18: 0.0122 | G18: 0.0199
A19: 3.2 | B19: Garantia | C19: G
A20: 3.3 | B20: Risco | C20: R | D20: =E20 -> 0.0146 | E20: 0.0146 | F20: 0.0232 | G20: 0.0316
A21: 4 | B21: DESPESAS FINANCEIRAS | C21: DF | D21: =F21 -> 0.0102 | E21: 0.0094 | F21: 0.0102 | G21: 0.01363
A22: 5 | B22: LUCRO | C22: L | D22: =E22 -> 0.0714 | E22: 0.0714 | F22: 0.084 | G22: 0.1043
B23: BDI ADOTADO: | D23: =ROUND(((((1+D11+D17)*(1+D21)*(1+D22))/(1-D12))-1),4) -> 0.3243
A24: Considerações: O BDI foi calculado através da seguinte fórmula, regulamentada pelo Acórdão Nº 2622/2013 – TCU.

Sheet BDI forn
A1: Ministério do Desenvolvimento Regional
A2: Companhia de Desenvolvimento dos Vales do São Francisco e do Parnaíba
A3: ='Planilha Orçamentária'!A3:K3 -> 0
A4: COMPOSIÇÃO DE BDI - FORNECIMENTO - ONERADO
A5: OBRA: | B5: ='Planilha Orçamentária'!B5 -> SUBSTITUIÇÃO DAS COMPORTAS NA BARRAGEM DE BOACICA | D5: BDI (serv.): | E5: ='BDI serv'!D23 -> 0.2228
A6: LOCAL: | B6: ='Planilha Orçamentária'!B6 -> BARRAGEM BOACICA (IGREJA NOVA - AL) | D6: BDI (forn.): | E6: =D23 -> 0.147
A7: DATA BASE: | B7: 2024-02-01
A8: PRAZO: | B8: ='Planilha Orçamentária'!B9 -> 240 DIAS
A9: ITEM | B9: DESCRIÇÃO | C9: SIGLA | D9: % APLICADO | E9: REFERÊNCIA TCU (ACÓRDÃO Nº 2622/2013)
E10: 1º QUARTIL | F10: 2º QUARTIL | G10: 3º QUARTIL
A11: 1 | B11: ADMINISTRAÇÃO CENTRAL | C11: AC | D11: 0.04 | E11: 0.015 | F11: 0.0345 | G11: 0.0449
A12: 2 | B12: IMPOSTOS | C12: T | D12: =SUM(D13:D16) -> 0.0365
A13: 2.1 | B13: ISS (*) | E13: - | F13: - | G13: -
A14: 2.2 | B14: PIS | D14: 0.0065 | E14: - | F14: - | G14: -
A15: 2.3 | B15: Cofins | D15: 0.03 | E15: - | F15: - | G15: -
A16: 2.4 | B16: Contribuição previdênciária sobre a receita bruta (CPRB) | E16: - | F16: - | G16: -
A17: 3 | B17: SEGURO, GARANTIA E RISCO | D17: =SUM(D18:D20) -> 0.0086
A18: 3.1 | B18: Seguro | C18: S | D18: =E18 -> 0.003 | E18: 0.003 | F18: 0.0048 | G18: 0.0082
A19: 3.2 | B19: Garantia | C19: G
A20: 3.3 | B20: Risco | C20: R | D20: =E20 -> 0.0056 | E20: 0.0056 | F20: 0.0085 | G20: 0.0089
A21: 4 | B21: DESPESAS FINANCEIRAS | C21: DF | D21: =F21 -> 0.0085 | E21: 0.0085 | F21: 0.0085 | G21: 0.0111
A22: 5 | B22: LUCRO | C22: L | D22: 0.045 | E22: 0.035 | F22: 0.0511 | G22: 0.0622
B23: BDI ADOTADO: | D23: =ROUND(((((1+D11+D17)*(1+D21)*(1+D22))/(1-D12))-1),4) -> 0.147
A24: Considerações: O BDI foi calculado através da seguinte fórmula, regulamentada pelo Acórdão Nº 2622/2013 – TCU.
H173: =SUM(H174:H177) -> 0
D177: mec | F177: 2 | G177: 128

Sheet BDI forn Desonerado (hidden)
A1: Ministério do Desenvolvimento Regional
A2: Companhia de Desenvolvimento dos Vales do São Francisco e do Parnaíba
A3: ='Planilha Orçamentária'!A3:K3 -> 0
A4: COMPOSIÇÃO DE BDI - FORNECIMENTO - DESONERADO
A5: OBRA: | B5: ='Planilha Orçamentária'!B5 -> SUBSTITUIÇÃO DAS COMPORTAS NA BARRAGEM DE BOACICA | D5: BDI (serv.): | E5: ='BDI serv Desonerado'!E5 -> 0.3243
A6: LOCAL: | B6: ='Planilha Orçamentária'!B6 -> BARRAGEM BOACICA (IGREJA NOVA - AL) | D6: BDI (forn.): | E6: =D23 -> 0.2032
A7: DATA BASE: | B7: ='Planilha Orçamentária'!B7 -> 2024-02-01
A8: PRAZO: | B8: ='Planilha Orçamentária'!B9 -> 240 DIAS
A9: ITEM | B9: DESCRIÇÃO | C9: SIGLA | D9: % APLICADO | E9: REFERÊNCIA TCU (ACÓRDÃO Nº 2622/2013)
E10: 1º QUARTIL | F10: 2º QUARTIL | G10: 3º QUARTIL
A11: 1 | B11: ADMINISTRAÇÃO CENTRAL | C11: AC | D11: 0.04 | E11: 0.015 | F11: 0.0345 | G11: 0.0449
A12: 2 | B12: IMPOSTOS | C12: T | D12: =SUM(D13:D16) -> 0.0815
A13: 2.1 | B13: ISS (*) | E13: - | F13: - | G13: -
A14: 2.2 | B14: PIS | D14: 0.0065 | E14: - | F14: - | G14: -
A15: 2.3 | B15: Cofins | D15: 0.03 | E15: - | F15: - | G15: -
A16: 2.4 | B16: Contribuição previdênciária sobre a receita bruta (CPRB) | D16: 0.045 | E16: - | F16: - | G16: -
A17: 3 | B17: SEGURO, GARANTIA E RISCO | D17: =SUM(D18:D20) -> 0.0086
A18: 3.1 | B18: Seguro | C18: S | D18: =E18 -> 0.003 | E18: 0.003 | F18: 0.0048 | G18: 0.0082
A19: 3.2 | B19: Garantia | C19: G
A20: 3.3 | B20: Risco | C20: R | D20: =E20 -> 0.0056 | E20: 0.0056 | F20: 0.0085 | G20: 0.0089
A21: 4 | B21: DESPESAS FINANCEIRAS | C21: DF | D21: =F21 -> 0.0085 | E21: 0.0085 | F21: 0.0085 | G21: 0.0111
A22: 5 | B22: LUCRO | C22: L | D22: 0.045 | E22: 0.035 | F22: 0.0511 | G22: 0.0622
B23: BDI ADOTADO: | D23: =ROUND(((((1+D11+D17)*(1+D21)*(1+D22))/(1-D12))-1),4) -> 0.2032
A24: Considerações: O BDI foi calculado através da seguinte fórmula, regulamentada pelo Acórdão Nº 2622/2013 – TCU.

Sheet Encargos Sociais
A1: Ministério do Desenvolvimento Regional
A2: Companhia de Desenvolvimento dos Vales do São Francisco e do Parnaíba
A3: ='Planilha Orçamentária'!A3:K3 -> 0
A4: COMPOSIÇÃO DE ENCARGOS SOCIAIS SOBRE A MÃO DE OBRA - ALAGOAS
A5: OBRA: | B5: ='Planilha Orçamentária'!B5 -> SUBSTITUIÇÃO DAS COMPORTAS NA BARRAGEM DE BOACICA | D5: BDI (serv.): | E5: ='BDI serv'!D23 -> 0.2228
A6: LOCAL: | B6: ='Planilha Orçamentária'!B6 -> BARRAGEM BOACICA (IGREJA NOVA - AL) | D6: BDI (forn.): | E6: ='BDI forn'!E6 -> 0.147
A7: DATA BASE: | B7: ='[44]Planilha Orçamentária'!B8 -> 2024-02-01
A8: PRAZO: | B8: ='Planilha Orçamentária'!B9 -> 240 DIAS
A9: CÓDIGO | B9: DESCRIÇÃO | C9: COM DESONERAÇÃO | E9: SEM DESONERAÇÃO
C10: HORISTA % | D10: MENSALISTA % | E10: HORISTA % | F10: MENSALISTA %
A11: GRUPO A
A12: A1 | B12: INSS | C12: 0 | D12: 0 | E12: 0.2 | F12: 0.2
A13: A2 | B13: SESI | C13: 0.015 | D13: 0.015 | E13: 0.015 | F13: 0.015
A14: A3 | B14: SENAI | C14: 0.01 | D14: 0.01 | E14: 0.01 | F14: 0.01
A15: A4 | B15: INCRA | C15: 0.002 | D15: 0.002 | E15: 0.002 | F15: 0.002
A16: A5 | B16: SEBRAE | C16: 0.006 | D16: 0.006 | E16: 0.006 | F16: 0.006
A17: A6 | B17: Salário Educação | C17: 0.025 | D17: 0.025 | E17: 0.025 | F17: 0.025
A18: A7 | B18: Seguro Contra Acidentes de Trabalho | C18: 0.03 | D18: 0.03 | E18: 0.03 | F18: 0.03
A19: A8 | B19: FGTS | C19: 0.08 | D19: 0.08 | E19: 0.08 | F19: 0.08
A20: A9 | B20: SECONCI | C20: 0 | D20: 0 | E20: 0 | F20: 0
A21: A | B21: Total | C21: =SUM(C12:C20) -> 0.168 | D21: =SUM(D12:D20) -> 0.168 | E21: =SUM(E12:E20) -> 0.368 | F21: =SUM(F12:F20) -> 0.368
A22: GRUPO B
A23: B1 | B23: Repouso Semanal Remunerado | C23: 0.1805 | D23: Não incide | E23: 0.1805 | F23: Não incide
A24: B2 | B24: Feriados | C24: 0.0467 | D24: Não incide | E24: 0.0467 | F24: Não incide
A25: B3 | B25: Auxílio - Enfermidade | C25: 0.0086 | D25: 0.0064 | E25: 0.0086 | F25: 0.0064
A26: B4 | B26: 13º Salário | C26: 0.1115 | D26: 0.0833 | E26: 0.1115 | F26: 0.0833
A27: B5 | B27: Licença Paternidade | C27: 0.0006 | D27: 0.0004 | E27: 0.0006 | F27: 0.0004
A28: B6 | B28: Faltas Justificadas | C28: 0.0074 | D28: 0.0056 | E28: 0.0074 | F28: 0.0056
A29: B7 | B29: Dias de Chuvas | C29: 0.0184 | D29: Não incide | E29: 0.0184 | F29: Não incide
A30: B8 | B30: Auxílio Acidente de Trabalho | C30: 0.001 | D30: 0.0008 | E30: 0.001 | F30: 0.0008
A31: B9 | B31: Férias Gozadas | C31: 0.1252 | D31: 0.0936 | E31: 0.1252 | F31: 0.0936
A32: B10 | B32: Salário Maternidade | C32: 0.0004 | D32: 0.0003 | E32: 0.0004 | F32: 0.0003
A33: B | B33: Total | C33: =SUM(C23:C32) -> 0.5003 | D33: =SUM(D23:D32) -> 0.1904 | E33: =SUM(E23:E32) -> 0.5003 | F33: =SUM(F23:F32) -> 0.1904
A34: GRUPO C
A35: C1 | B35: Aviso Prévio Indenizado | C35: 0.0485 | D35: 0.0362 | E35: 0.0485 | F35: 0.0362
A36: C2 | B36: Aviso Prévio Trabalhado | C36: 0.0011 | D36: 0.0009 | E36: 0.0011 | F36: 0.0009
A37: C3 | B37: Férias Indenizadas | C37: 0.0167 | D37: 0.0125 | E37: 0.0167 | F37: 0.0125
A38: C4 | B38: Depósito Rescisão Sem Justa Causa | C38: 0.0251 | D38: 0.0188 | E38: 0.0251 | F38: 0.0188
A39: C5 | B39: Indenização Adicional | C39: 0.0041 | D39: 0.003 | E39: 0.0041 | F39: 0.003
A40: C | B40: Total | C40: =SUM(C35:C39) -> 0.0955 | D40: =SUM(D35:D39) -> 0.0714 | E40: =SUM(E35:E39) -> 0.0955 | F40: =SUM(F35:F39) -> 0.0714
A41: GRUPO D
A42: D1 | B42: Reincidência de Grupo A sobre Grupo B | C42: 0.0841 | D42: 0.032 | E42: 0.1841 | F42: 0.0701
A43: D2 | B43: Reincidência de Grupo A sobre Aviso Prévio Trabalhado e Reincidência do FGTS sobre Aviso Prévio Indenizado | C43: 0.0041 | D43: 0.003 | E43: 0.0043 | F43: 0.0032
A44: D | B44: Total | C44: =SUM(C42:C43) -> 0.0882 | D44: =SUM(D42:D43) -> 0.035 | E44: =SUM(E42:E43) -> 0.1884 | F44: =SUM(F42:F43) -> 0.0733
A45: TOTAL(A+B+C+D) | C45: =C44+C40+C33+C21 -> 0.852 | D45: =D44+D40+D33+D21 -> 0.4648 | E45: =E44+E40+E33+E21 -> 1.1522 | F45: =F44+F40+F33+F21 -> 0.7031
H173: =SUM(H174:H177) -> 0
D177: mec | F177: 2 | G177: 128

Sheet Cronograma-desonerado (hidden)
A1: Ministério do Desenvolvimento Regional | B1: Ministério do Desenvolvimento Regional
A2: Companhia de Desenvolvimento dos Vales do São Francisco e do Parnaíba | B2: Companhia de Desenvolvimento dos Vales do São Francisco e do Parnaíba
A3: ='Planilha Orçamentária'!A3:K3 -> 0
A4: CRONOGRAMA FÍSICO-FINANCEIRO DO ORÇAMENTO DESONERADO
A5: OBRA: | B5: ='Planilha Orçamentária'!B5 -> SUBSTITUIÇÃO DAS COMPORTAS NA BARRAGEM DE BOACICA | D5: BDI (serv.): | E5: ='BDI serv Desonerado'!D23 -> 0.3243
A6: LOCAL: | B6: ='Planilha Orçamentária'!B6 -> BARRAGEM BOACICA (IGREJA NOVA - AL) | D6: BDI (forn.): | E6: ='BDI forn Desonerado'!E6 -> 0.2032
A7: DATA BASE: | B7: ='Planilha Orçamentária'!B7 -> 2024-02-01
A8: PRAZO: | B8: ='Planilha Orçamentária'!B9 -> 240 DIAS
A9: ITEM | B9: DESCRIÇÃO | C9: TOTAL POR ETAPA | D9: MESES | L9: TOTAL
D10: 1 | E10: 2 | F10: 3 | G10: 4 | H10: 5 | I10: 6 | J10: 7 | K10: 8
A11: 1 | B11: =VLOOKUP(A11,#REF!,4) ->  | C11: =SUMIF(#REF!,A11,#REF!) ->  | D11: =$C11*D12 ->  | L11: =SUM(D11:K11) ->  | M11: R$
C12: 1 | D12: =$C12/8 -> 0.125 | E12: 0.125 | F12: 0.125 | G12: 0.125 | H12: 0.125 | I12: 0.125 | J12: 0.125 | K12: 0.125 | L12: 1 | M12: %
A13: 2 | B13: =VLOOKUP(A13,#REF!,4) ->  | C13: =SUMIF(#REF!,A13,#REF!) ->  | D13: =$C13*D14 ->  | M13: R$
C14: 1 | D14: 1 | L14: 1 | M14: %
A15: 3 | B15: =VLOOKUP(A15,#REF!,4) ->  | C15: =SUMIF(#REF!,A15,#REF!) ->  | D15: =$C15*D16 ->  | M15: R$
C16: 1 | D16: 1 | L16: 1 | M16: %
A17: 4.1 | B17: =VLOOKUP(A17,#REF!,4) ->  | C17: =SUMIF(#REF!,A17,#REF!) ->  | E17: =$C17*E18 ->  | M17: R$
C18: 1 | E18: 1 | L18: 1 | M18: %
A19: 4.2 | B19: =VLOOKUP(A19,#REF!,4) ->  | C19: =SUMIF(#REF!,A19,#REF!) ->  | E19: =$C19*E20 ->  | F19: =$C19*F20 ->  | M19: R$
C20: 1 | E20: 0.5 | F20: 0.5 | L20: 1 | M20: %
A21: 5 | B21: =VLOOKUP(A21,#REF!,4) ->  | C21: =SUMIF(#REF!,A21,#REF!) ->  | G21: =$C21*G22 ->  | H21: =$C21*H22 ->  | I21: =$C21*I22 ->  | J21: =$C21*J22 ->  | K21: =$C21*K22 ->  | M21: R$
C22: 1 | G22: 0.2 | H22: 0.2 | I22: 0.2 | J22: 0.2 | K22: 0.2 | L22: 1 | M22: %
A23: 6 | B23: =VLOOKUP(A23,#REF!,4) ->  | C23: =SUMIF(#REF!,A23,#REF!) ->  | I23: =$C23*I24 ->  | J23: =$C23*J24 ->  | K23: =$C23*K24 ->  | M23: R$
C24: 1 | I24: 0.333 | J24: 0.3334 | K24: 0.3336 | L24: 1 | M24: %
A25: 7 | B25: =VLOOKUP(A25,#REF!,4) ->  | C25: =SUMIF(#REF!,A25,#REF!) ->  | K25: =$C25*K26 ->  | M25: R$
C26: 1 | K26: 1 | L26: 1 | M26: %
B27: VALOR TOTAL: | C27: =SUMIF($M$11:$M$26,"R$",C$11:C$26) -> 
B28: VALOR ACUMULADO: | D28: =D27 ->  | E28: =E27+D28 ->  | L28: =L27 -> 
B29: FÍSICO TOTAL: | D29: =D27/$C$27 -> 
B30: AVANÇO FÍSICO ACUMULADO: | D30: =D29 ->  | E30: =E29+D30 -> 

Sheet Comp SINAPI AL - NãoDesonerado
A1: PCI.817.01 - CUSTO DE COMPOSIÇÕES - SINTÉTICO DATA DE EMISSÃO: 18/01/2024 23:04:35 DATA DE RT: 18/01/2024
A2: ENCARGOS SOCIAIS SOBRE PREÇOS DA MÃO-DE-OBRA: 115,22%(HORA) 70,31%(MÊS)
A3: ABRANGÊNCIA : NACIONAL LOCALIDADE : MACEIO DATA DE PREÇO : 12/2023 REFERÊNCIA COLETA : MEDIANO
A5: DESCRICAO DA CLASSE | B5: SIGLA DA CLASSE | C5: DESCRICAO DO TIPO 1 | D5: SIGLA DO TIPO 1 | E5: CODIGO DO AGRUPADOR | F5: DESCRICAO DO AGRUPADOR | G5: CODIGO DA COMPOSICAO | H5: DESCRICAO DA COMPOSICAO | I5: UNIDADE | J5: ORIGEM DE PREÇO | K5: CUSTO TOTAL | L5: VINCULO
A7: ASSENTAMENTO DE TUBOS E PECAS | B7: ASTU | C7: FORNEC E/OU ASSENT DE TUBO DE FERRO FUNDIDO JUNTA ELASTICA | D7: 45 | G7: 97141 | H7: ASSENTAMENTO DE TUBO DE FERRO FUNDIDO PARA REDE DE ÁGUA, DN 80 MM, JUNTA ELÁSTICA, INSTALADO EM LOCAL COM NÍVEL ALTO DE INTERFERÊNCIAS (NÃO INCLUI FORNECIMENTO). AF_11/2017 | I7: M | J7: ATRIBUÍDO SÃO PAULO | K7: 7.21 | L7: CAIXA REFERENCIAL
A8: ASSENTAMENTO DE TUBOS E PECAS | B8: ASTU | C8: FORNEC E/OU ASSENT DE TUBO DE FERRO FUNDIDO JUNTA ELASTICA | D8: 45 | G8: 97142 | H8: ASSENTAMENTO DE TUBO DE FERRO FUNDIDO PARA REDE DE ÁGUA, DN 100 MM, JUNTA ELÁSTICA, INSTALADO EM LOCAL COM NÍVEL ALTO DE INTERFERÊNCIAS (NÃO INCLUI FORNECIMENTO). AF_11/2017 | I8: M | J8: ATRIBUÍDO SÃO PAULO | K8: 7.98 | L8: CAIXA REFERENCIAL
A9: ASSENTAMENTO DE TUBOS E PECAS | B9: ASTU | C9: FORNEC E/OU ASSENT DE TUBO DE FERRO FUNDIDO JUNTA ELASTICA | D9: 45 | G9: 97143 | H9: ASSENTAMENTO DE TUBO DE FERRO FUNDIDO PARA REDE DE ÁGUA, DN 150 MM, JUNTA ELÁSTICA, INSTALADO EM LOCAL COM NÍVEL ALTO DE INTERFERÊNCIAS (NÃO INCLUI FORNECIMENTO). AF_11/2017 | I9: M | J9: ATRIBUÍDO SÃO PAULO | K9: 9.96 | L9: CAIXA REFERENCIAL
A10: ASSENTAMENTO DE TUBOS E PECAS | B10: ASTU | C10: FORNEC E/OU ASSENT DE TUBO DE FERRO FUNDIDO JUNTA ELASTICA | D10: 45 | G10: 97144 | H10: ASSENTAMENTO DE TUBO DE FERRO FUNDIDO PARA REDE DE ÁGUA, DN 200 MM, JUNTA ELÁSTICA, INSTALADO EM LOCAL COM NÍVEL ALTO DE INTERFERÊNCIAS (NÃO INCLUI FORNECIMENTO). AF_11/2017 | I10: M | J10: ATRIBUÍDO SÃO PAULO | K10: 11.92 | L10: CAIXA REFERENCIAL
A11: ASSENTAMENTO DE TUBOS E PECAS | B11: ASTU | C11: FORNEC E/OU ASSENT DE TUBO DE FERRO FUNDIDO JUNTA ELASTICA | D11: 45 | G11: 97145 | H11: ASSENTAMENTO DE TUBO DE FERRO FUNDIDO PARA REDE DE ÁGUA, DN 250 MM, JUNTA ELÁSTICA, INSTALADO EM LOCAL COM NÍVEL ALTO DE INTERFERÊNCIAS (NÃO INCLUI FORNECIMENTO). AF_11/2017 | I11: M | J11: ATRIBUÍDO SÃO PAULO | K11: 13.91 | L11: CAIXA REFERENCIAL
A12: ASSENTAMENTO DE TUBOS E PECAS | B12: ASTU | C12: FORNEC E/OU ASSENT DE TUBO DE FERRO FUNDIDO JUNTA ELASTICA | D12: 45 | G12: 97146 | H12: ASSENTAMENTO DE TUBO DE FERRO FUNDIDO PARA REDE DE ÁGUA, DN 300 MM, JUNTA ELÁSTICA, INSTALADO EM LOCAL COM NÍVEL ALTO DE INTERFERÊNCIAS (NÃO INCLUI FORNECIMENTO). AF_11/2017 | I12: M | J12: ATRIBUÍDO SÃO PAULO | K12: 15.9 | L12: CAIXA REFERENCIAL
A13: ASSENTAMENTO DE TUBOS E PECAS | B13: ASTU | C13: FORNEC E/OU ASSENT DE TUBO DE FERRO FUNDIDO JUNTA ELASTICA | D13: 45 | G13: 97147 | H13: ASSENTAMENTO DE TUBO DE FERRO FUNDIDO PARA REDE DE ÁGUA, DN 350 MM, JUNTA ELÁSTICA, INSTALADO EM LOCAL COM NÍVEL ALTO DE INTERFERÊNCIAS (NÃO INCLUI FORNECIMENTO). AF_11/2017 | I13: M | J13: ATRIBUÍDO SÃO PAULO | K13: 17.88 | L13: CAIXA REFERENCIAL
A14: ASSENTAMENTO DE TUBOS E PECAS | B14: ASTU | C14: FORNEC E/OU ASSENT DE TUBO DE FERRO FUNDIDO JUNTA ELASTICA | D14: 45 | G14: 97148 | H14: ASSENTAMENTO DE TUBO DE FERRO FUNDIDO PARA REDE DE ÁGUA, DN 400 MM, JUNTA ELÁSTICA, INSTALADO EM LOCAL COM NÍVEL ALTO DE INTERFERÊNCIAS (NÃO INCLUI FORNECIMENTO). AF_11/2017 | I14: M | J14: ATRIBUÍDO SÃO PAULO | K14: 19.87 | L14: CAIXA REFERENCIAL
A15: ASSENTAMENTO DE TUBOS E PECAS | B15: ASTU | C15: FORNEC E/OU ASSENT DE TUBO DE FERRO FUNDIDO JUNTA ELASTICA | D15: 45 | G15: 97149 | H15: ASSENTAMENTO DE TUBO DE FERRO FUNDIDO PARA REDE DE ÁGUA, DN 450 MM, JUNTA ELÁSTICA, INSTALADO EM LOCAL COM NÍVEL ALTO DE INTERFERÊNCIAS (NÃO INCLUI FORNECIMENTO). AF_11/2017 | I15: M | J15: ATRIBUÍDO SÃO PAULO | K15: 21.86 | L15: CAIXA REFERENCIAL
A16: ASSENTAMENTO DE TUBOS E PECAS | B16: ASTU | C16: FORNEC E/OU ASSENT DE TUBO DE FERRO FUNDIDO JUNTA ELASTICA | D16: 45 | G16: 97150 | H16: ASSENTAMENTO DE TUBO DE FERRO FUNDIDO PARA REDE DE ÁGUA, DN 500 MM, JUNTA ELÁSTICA, INSTALADO EM LOCAL COM NÍVEL ALTO DE INTERFERÊNCIAS (NÃO INCLUI FORNECIMENTO). AF_11/2017 | I16: M | J16: ATRIBUÍDO SÃO PAULO | K16: 28.73 | L16: CAIXA REFERENCIAL
A17: ASSENTAMENTO DE TUBOS E PECAS | B17: ASTU | C17: FORNEC E/OU ASSENT DE TUBO DE FERRO FUNDIDO JUNTA ELASTICA | D17: 45 | G17: 97151 | H17: ASSENTAMENTO DE TUBO DE FERRO FUNDIDO PARA REDE DE ÁGUA, DN 600 MM, JUNTA ELÁSTICA, INSTALADO EM LOCAL COM NÍVEL ALTO DE INTERFERÊNCIAS (NÃO INCLUI FORNECIMENTO). AF_11/2017 | I17: M | J17: ATRIBUÍDO SÃO PAULO | K17: 33.42 | L17: CAIXA REFERENCIAL
A18: ASSENTAMENTO DE TUBOS E PECAS | B18: ASTU | C18: FORNEC E/OU ASSENT DE TUBO DE FERRO FUNDIDO JUNTA ELASTICA | D18: 45 | G18: 97152 | H18: ASSENTAMENTO DE TUBO DE FERRO FUNDIDO PARA REDE DE ÁGUA, DN 700 MM, JUNTA ELÁSTICA, INSTALADO EM LOCAL COM NÍVEL ALTO DE INTERFERÊNCIAS (NÃO INCLUI FORNECIMENTO). AF_11/2017 | I18: M | J18: ATRIBUÍDO SÃO PAULO | K18: 37.92 | L18: CAIXA REFERENCIAL
A19: ASSENTAMENTO DE TUBOS E PECAS | B19: ASTU | C19: FORNEC E/OU ASSENT DE TUBO DE FERRO FUNDIDO JUNTA ELASTICA | D19: 45 | G19: 97153 | H19: ASSENTAMENTO DE TUBO DE FERRO FUNDIDO PARA REDE DE ÁGUA, DN 800 MM, JUNTA ELÁSTICA, INSTALADO EM LOCAL COM NÍVEL ALTO DE INTERFERÊNCIAS (NÃO INCLUI FORNECIMENTO). AF_11/2017 | I19: M | J19: ATRIBUÍDO SÃO PAULO | K19: 42.54 | L19: CAIXA REFERENCIAL
A20: ASSENTAMENTO DE TUBOS E PECAS | B20: ASTU | C20: FORNEC E/OU ASSENT DE TUBO DE FERRO FUNDIDO JUNTA ELASTICA | D20: 45 | G20: 97154 | H20: ASSENTAMENTO DE TUBO DE FERRO FUNDIDO PARA REDE DE ÁGUA, DN 900 MM, JUNTA ELÁSTICA, INSTALADO EM LOCAL COM NÍVEL ALTO DE INTERFERÊNCIAS (NÃO INCLUI FORNECIMENTO). AF_11/2017 | I20: M | J20: ATRIBUÍDO SÃO PAULO | K20: 47.17 | L20: CAIXA REFERENCIAL
A21: ASSENTAMENTO DE TUBOS E PECAS | B21: ASTU | C21: FORNEC E/OU ASSENT DE TUBO DE FERRO FUNDIDO JUNTA ELASTICA | D21: 45 | G21: 97155 | H21: ASSENTAMENTO DE TUBO DE FERRO FUNDIDO PARA REDE DE ÁGUA, DN 1000 MM, JUNTA ELÁSTICA, INSTALADO EM LOCAL COM NÍVEL ALTO DE INTERFERÊNCIAS (NÃO INCLUI FORNECIMENTO). AF_11/2017 | I21: M | J21: ATRIBUÍDO SÃO PAULO | K21: 51.83 | L21: CAIXA REFERENCIAL
A22: ASSENTAMENTO DE TUBOS E PECAS | B22: ASTU | C22: FORNEC E/OU ASSENT DE TUBO DE FERRO FUNDIDO JUNTA ELASTICA | D22: 45 | G22: 97156 | H22: ASSENTAMENTO DE TUBO DE FERRO FUNDIDO PARA REDE DE ÁGUA, DN 1200 MM, JUNTA ELÁSTICA, INSTALADO EM LOCAL COM NÍVEL ALTO DE INTERFERÊNCIAS (NÃO INCLUI FORNECIMENTO). AF_11/2017 | I22: M | J22: ATRIBUÍDO SÃO PAULO | K22: 61.45 | L22: CAIXA REFERENCIAL
A23: ASSENTAMENTO DE TUBOS E PECAS | B23: ASTU | C23: FORNEC E/OU ASSENT DE TUBO DE FERRO FUNDIDO JUNTA ELASTICA | D23: 45 | G23: 97157 | H23: ASSENTAMENTO DE TUBO DE FERRO FUNDIDO PARA REDE DE ÁGUA, DN 80 MM, JUNTA ELÁSTICA, INSTALADO EM LOCAL COM NÍVEL BAIXO DE INTERFERÊNCIAS (NÃO INCLUI FORNECIMENTO). AF_11/2017 | I23: M | J23: ATRIBUÍDO SÃO PAULO | K23: 4.39 | L23: CAIXA REFERENCIAL
A24: ASSENTAMENTO DE TUBOS E PECAS | B24: ASTU | C24: FORNEC E/OU ASSENT DE TUBO DE FERRO FUNDIDO JUNTA ELASTICA | D24: 45 | G24: 97158 | H24: ASSENTAMENTO DE TUBO DE FERRO FUNDIDO PARA REDE DE ÁGUA, DN 100 MM, JUNTA ELÁSTICA, INSTALADO EM LOCAL COM NÍVEL BAIXO DE INTERFERÊNCIAS (NÃO INCLUI FORNECIMENTO). AF_11/2017 | I24: M | J24: ATRIBUÍDO SÃO PAULO | K24: 4.87 | L24: CAIXA REFERENCIAL
A25: ASSENTAMENTO DE TUBOS E PECAS | B25: ASTU | C25: FORNEC E/OU ASSENT DE TUBO DE FERRO FUNDIDO JUNTA ELASTICA | D25: 45 | G25: 97159 | H25: ASSENTAMENTO DE TUBO DE FERRO FUNDIDO PARA REDE DE ÁGUA, DN 150 MM, JUNTA ELÁSTICA, INSTALADO EM LOCAL COM NÍVEL BAIXO DE INTERFERÊNCIAS (NÃO INCLUI FORNECIMENTO). AF_11/2017 | I25: M | J25: ATRIBUÍDO SÃO PAULO | K25: 6.08 | L25: CAIXA REFERENCIAL
A26: ASSENTAMENTO DE TUBOS E PECAS | B26: ASTU | C26: FORNEC E/OU ASSENT DE TUBO DE FERRO FUNDIDO JUNTA ELASTICA | D26: 45 | G26: 97160 | H26: ASSENTAMENTO DE TUBO DE FERRO FUNDIDO PARA REDE DE ÁGUA, DN 200 MM, JUNTA ELÁSTICA, INSTALADO EM LOCAL COM NÍVEL BAIXO DE INTERFERÊNCIAS (NÃO INCLUI FORNECIMENTO). AF_11/2017 | I26: M | J26: ATRIBUÍDO SÃO PAULO | K26: 7.27 | L26: CAIXA REFERENCIAL
A27: ASSENTAMENTO DE TUBOS E PECAS | B27: ASTU | C27: FORNEC E/OU ASSENT DE TUBO DE FERRO FUNDIDO JUNTA ELASTICA | D27: 45 | G27: 97161 | H27: ASSENTAMENTO DE TUBO DE FERRO FUNDIDO PARA REDE DE ÁGUA, DN 250 MM, JUNTA ELÁSTICA, INSTALADO EM LOCAL COM NÍVEL BAIXO DE INTERFERÊNCIAS (NÃO INCLUI FORNECIMENTO). AF_11/2017 | I27: M | J27: ATRIBUÍDO SÃO PAULO | K27: 8.5 | L27: CAIXA REFERENCIAL
A28: ASSENTAMENTO DE TUBOS E PECAS | B28: ASTU | C28: FORNEC E/OU ASSENT DE TUBO DE FERRO FUNDIDO JUNTA ELASTICA | D28: 45 | G28: 97162 | H28: ASSENTAMENTO DE TUBO DE FERRO FUNDIDO PARA REDE DE ÁGUA, DN 300 MM, JUNTA ELÁSTICA, INSTALADO EM LOCAL COM NÍVEL BAIXO DE INTERFERÊNCIAS (NÃO INCLUI FORNECIMENTO). AF_11/2017 | I28: M | J28: ATRIBUÍDO SÃO PAULO | K28: 9.73 | L28: CAIXA REFERENCIAL
A29: ASSENTAMENTO DE TUBOS E PECAS | B29: ASTU | C29: FORNEC E/OU ASSENT DE TUBO DE FERRO FUNDIDO JUNTA ELASTICA | D29: 45 | G29: 97163 | H29: ASSENTAMENTO DE TUBO DE FERRO FUNDIDO PARA REDE DE ÁGUA, DN 350 MM, JUNTA ELÁSTICA, INSTALADO EM LOCAL COM NÍVEL BAIXO DE INTERFERÊNCIAS (NÃO INCLUI FORNECIMENTO). AF_11/2017 | I29: M | J29: ATRIBUÍDO SÃO PAULO | K29: 10.96 | L29: CAIXA REFERENCIAL
A30: ASSENTAMENTO DE TUBOS E PECAS | B30: ASTU | C30: FORNEC E/OU ASSENT DE TUBO DE FERRO FUNDIDO JUNTA ELASTICA | D30: 45 | G30: 97164 | H30: ASSENTAMENTO DE TUBO DE FERRO FUNDIDO PARA REDE DE ÁGUA, DN 400 MM, JUNTA ELÁSTICA, INSTALADO EM LOCAL COM NÍVEL BAIXO DE INTERFERÊNCIAS (NÃO INCLUI FORNECIMENTO). AF_11/2017 | I30: M | J30: ATRIBUÍDO SÃO PAULO | K30: 12.18 | L30: CAIXA REFERENCIAL
A31: ASSENTAMENTO DE TUBOS E PECAS | B31: ASTU | C31: FORNEC E/OU ASSENT DE TUBO DE FERRO FUNDIDO JUNTA ELASTICA | D31: 45 | G31: 97165 | H31: ASSENTAMENTO DE TUBO DE FERRO FUNDIDO PARA REDE DE ÁGUA, DN 450 MM, JUNTA ELÁSTICA, INSTALADO EM LOCAL COM NÍVEL BAIXO DE INTERFERÊNCIAS (NÃO INCLUI FORNECIMENTO). AF_11/2017 | I31: M | J31: ATRIBUÍDO SÃO PAULO | K31: 13.41 | L31: CAIXA REFERENCIAL
A32: ASSENTAMENTO DE TUBOS E PECAS | B32: ASTU | C32: FORNEC E/OU ASSENT DE TUBO DE FERRO FUNDIDO JUNTA ELASTICA | D32: 45 | G32: 97166 | H32: ASSENTAMENTO DE TUBO DE FERRO FUNDIDO PARA REDE DE ÁGUA, DN 500 MM, JUNTA ELÁSTICA, INSTALADO EM LOCAL COM NÍVEL BAIXO DE INTERFERÊNCIAS (NÃO INCLUI FORNECIMENTO). AF_11/2017 | I32: M | J32: ATRIBUÍDO SÃO PAULO | K32: 17.58 | L32: CAIXA REFERENCIAL
A33: ASSENTAMENTO DE TUBOS E PECAS | B33: ASTU | C33: FORNEC E/OU ASSENT DE TUBO DE FERRO FUNDIDO JUNTA ELASTICA | D33: 45 | G33: 97167 | H33: ASSENTAMENTO DE TUBO DE FERRO FUNDIDO PARA REDE DE ÁGUA, DN 600 MM, JUNTA ELÁSTICA, INSTALADO EM LOCAL COM NÍVEL BAIXO DE INTERFERÊNCIAS (NÃO INCLUI FORNECIMENTO). AF_11/2017 | I33: M | J33: ATRIBUÍDO SÃO PAULO | K33: 20.48 | L33: CAIXA REFERENCIAL
A34: ASSENTAMENTO DE TUBOS E PECAS | B34: ASTU | C34: FORNEC E/OU ASSENT DE TUBO DE FERRO FUNDIDO JUNTA ELASTICA | D34: 45 | G34: 97168 | H34: ASSENTAMENTO DE TUBO DE FERRO FUNDIDO PARA REDE DE ÁGUA, DN 700 MM, JUNTA ELÁSTICA, INSTALADO EM LOCAL COM NÍVEL BAIXO DE INTERFERÊNCIAS (NÃO INCLUI FORNECIMENTO). AF_11/2017 | I34: M | J34: ATRIBUÍDO SÃO PAULO | K34: 23.16 | L34: CAIXA REFERENCIAL
A35: ASSENTAMENTO DE TUBOS E PECAS | B35: ASTU | C35: FORNEC E/OU ASSENT DE TUBO DE FERRO FUNDIDO JUNTA ELASTICA | D35: 45 | G35: 97169 | H35: ASSENTAMENTO DE TUBO DE FERRO FUNDIDO PARA REDE DE ÁGUA, DN 800 MM, JUNTA ELÁSTICA, INSTALADO EM LOCAL COM NÍVEL BAIXO DE INTERFERÊNCIAS (NÃO INCLUI FORNECIMENTO). AF_11/2017 | I35: M | J35: ATRIBUÍDO SÃO PAULO | K35: 26 | L35: CAIXA REFERENCIAL
A36: ASSENTAMENTO DE TUBOS E PECAS | B36: ASTU | C36: FORNEC E/OU ASSENT DE TUBO DE FERRO FUNDIDO JUNTA ELASTICA | D36: 45 | G36: 97170 | H36: ASSENTAMENTO DE TUBO DE FERRO FUNDIDO PARA REDE DE ÁGUA, DN 900 MM, JUNTA ELÁSTICA, INSTALADO EM LOCAL COM NÍVEL BAIXO DE INTERFERÊNCIAS (NÃO INCLUI FORNECIMENTO). AF_11/2017 | I36: M | J36: ATRIBUÍDO SÃO PAULO | K36: 28.83 | L36: CAIXA REFERENCIAL
A37: ASSENTAMENTO DE TUBOS E PECAS | B37: ASTU | C37: FORNEC E/OU ASSENT DE TUBO DE FERRO FUNDIDO JUNTA ELASTICA | D37: 45 | G37: 97171 | H37: ASSENTAMENTO DE TUBO DE FERRO FUNDIDO PARA REDE DE ÁGUA, DN 1000 MM, JUNTA ELÁSTICA, INSTALADO EM LOCAL COM NÍVEL BAIXO DE INTERFERÊNCIAS (NÃO INCLUI FORNECIMENTO). AF_11/2017 | I37: M | J37: ATRIBUÍDO SÃO PAULO | K37: 31.7 | L37: CAIXA REFERENCIAL
A38: ASSENTAMENTO DE TUBOS E PECAS | B38: ASTU | C38: FORNEC E/OU ASSENT DE TUBO DE FERRO FUNDIDO JUNTA ELASTICA | D38: 45 | G38: 97172 | H38: ASSENTAMENTO DE TUBO DE FERRO FUNDIDO PARA REDE DE ÁGUA, DN 1200 MM, JUNTA ELÁSTICA, INSTALADO EM LOCAL COM NÍVEL BAIXO DE INTERFERÊNCIAS (NÃO INCLUI FORNECIMENTO). AF_11/2017 | I38: M | J38: ATRIBUÍDO SÃO PAULO | K38: 37.72 | L38: CAIXA REFERENCIAL
A39: ASSENTAMENTO DE TUBOS E PECAS | B39: ASTU | C39: FORNEC E/OU ASSENT DE TUBO DE ACO COM JUNTA SOLDADA | D39: 46 | G39: 97173 | H39: ASSENTAMENTO DE TUBO DE AÇO CARBONO PARA REDE DE ÁGUA, DN 600 MM (24), JUNTA SOLDADA, INSTALADO EM LOCAL COM NÍVEL ALTO DE INTERFERÊNCIAS (NÃO INCLUI FORNECIMENTO). AF_11/2017 | I39: M | J39: ATRIBUÍDO SÃO PAULO | K39: 40.23 | L39: CAIXA REFERENCIAL
A40: ASSENTAMENTO DE TUBOS E PECAS | B40: ASTU | C40: FORNEC E/OU ASSENT DE TUBO DE ACO COM JUNTA SOLDADA | D40: 46 | G40: 97174 | H40: ASSENTAMENTO DE TUBO DE AÇO CARBONO PARA REDE DE ÁGUA, DN 700 MM (28), JUNTA SOLDADA, INSTALADO EM LOCAL COM NÍVEL ALTO DE INTERFERÊNCIAS (NÃO INCLUI FORNECIMENTO). AF_11/2017 | I40: M | J40: ATRIBUÍDO SÃO PAULO | K40: 46.67 | L40: CAIXA REFERENCIAL
A41: ASSENTAMENTO DE TUBOS E PECAS | B41: ASTU | C41: FORNEC E/OU ASSENT DE TUBO DE ACO COM JUNTA SOLDADA | D41: 46 | G41: 97175 | H41: ASSENTAMENTO DE TUBO DE AÇO CARBONO PARA REDE DE ÁGUA, DN 800 MM (32), JUNTA SOLDADA, INSTALADO EM LOCAL COM NÍVEL ALTO DE INTERFERÊNCIAS (NÃO INCLUI FORNECIMENTO). AF_11/2017 | I41: M | J41: ATRIBUÍDO SÃO PAULO | K41: 53.09 | L41: CAIXA REFERENCIAL
A42: ASSENTAMENTO DE TUBOS E PECAS | B42: ASTU | C42: FORNEC E/OU ASSENT DE TUBO DE ACO COM JUNTA SOLDADA | D42: 46 | G42: 97176 | H42: ASSENTAMENTO DE TUBO DE AÇO CARBONO PARA REDE DE ÁGUA, DN 900 MM (36), JUNTA SOLDADA, INSTALADO EM LOCAL COM NÍVEL ALTO DE INTERFERÊNCIAS (NÃO INCLUI FORNECIMENTO). AF_11/2017 | I42: M | J42: ATRIBUÍDO SÃO PAULO | K42: 59.55 | L42: CAIXA REFERENCIAL
A43: ASSENTAMENTO DE TUBOS E PECAS | B43: ASTU | C43: FORNEC E/OU ASSENT DE TUBO DE ACO COM JUNTA SOLDADA | D43: 46 | G43: 97177 | H43: ASSENTAMENTO DE TUBO DE AÇO CARBONO PARA REDE DE ÁGUA, DN 1000 MM (40) OU DN 1100 MM (44), JUNTA SOLDADA, INSTALADO EM LOCAL COM NÍVEL ALTO DE INTERFERÊNCIAS (NÃO INCLUI FORNECIMENTO). AF_11/2017 | I43: M | J43: ATRIBUÍDO SÃO PAULO | K43: 72.42 | L43: CAIXA REFERENCIAL
A44: ASSENTAMENTO DE TUBOS E PECAS | B44: ASTU | C44: FORNEC E/OU ASSENT DE TUBO DE ACO COM JUNTA SOLDADA | D44: 46 | G44: 97178 | H44: ASSENTAMENTO DE TUBO DE AÇO CARBONO PARA REDE DE ÁGUA, DN 1200 MM (48) OU DN 1300 MM (52), JUNTA SOLDADA, INSTALADO EM LOCAL COM NÍVEL ALTO DE INTERFERÊNCIAS (NÃO INCLUI FORNECIMENTO). AF_11/2017 | I44: M | J44: ATRIBUÍDO SÃO PAULO | K44: 85.29 | L44: CAIXA REFERENCIAL
A45: ASSENTAMENTO DE TUBOS E PECAS | B45: ASTU | C45: FORNEC E/OU ASSENT DE TUBO DE ACO COM JUNTA SOLDADA | D45: 46 | G45: 97179 | H45: ASSENTAMENTO DE TUBO DE AÇO CARBONO PARA REDE DE ÁGUA, DN 1400 MM (56'') OU DN 1500 MM (60), JUNTA SOLDADA, INSTALADO EM LOCAL COM NÍVEL ALTO DE INTERFERÊNCIAS (NÃO INCLUI FORNECIMENTO). AF_11/2017 | I45: M | J45: ATRIBUÍDO SÃO PAULO | K45: 98.17 | L45: CAIXA REFERENCIAL
A46: ASSENTAMENTO DE TUBOS E PECAS | B46: ASTU | C46: FORNEC E/OU ASSENT DE TUBO DE ACO COM JUNTA SOLDADA | D46: 46 | G46: 97180 | H46: ASSENTAMENTO DE TUBO DE AÇO CARBONO PARA REDE DE ÁGUA, DN 1600 MM (64) OU DN 1700 MM (68), JUNTA SOLDADA, INSTALADO EM LOCAL COM NÍVEL ALTO DE INTERFERÊNCIAS (NÃO INCLUI FORNECIMENTO). AF_11/2017 | I46: M | J46: ATRIBUÍDO SÃO PAULO | K46: 111.05 | L46: CAIXA REFERENCIAL
A47: ASSENTAMENTO DE TUBOS E PECAS | B47: ASTU | C47: FORNEC E/OU ASSENT DE TUBO DE ACO COM JUNTA SOLDADA | D47: 46 | G47: 97181 | H47: ASSENTAMENTO DE TUBO DE AÇO CARBONO PARA REDE DE ÁGUA, DN 1800 MM (72) OU DN 1900 MM (76), JUNTA SOLDADA, INSTALADO EM LOCAL COM NÍVEL ALTO DE INTERFERÊNCIAS (NÃO INCLUI FORNECIMENTO). AF_11/2017 | I47: M | J47: ATRIBUÍDO SÃO PAULO | K47: 128.58 | L47: CAIXA REFERENCIAL
A48: ASSENTAMENTO DE TUBOS E PECAS | B48: ASTU | C48: FORNEC E/OU ASSENT DE TUBO DE ACO COM JUNTA SOLDADA | D48: 46 | G48: 97182 | H48: ASSENTAMENTO DE TUBO DE AÇO CARBONO PARA REDE DE ÁGUA, DN 2000 MM (80) OU DN 2100 MM (84), JUNTA SOLDADA, INSTALADO EM LOCAL COM NÍVEL ALTO DE INTERFERÊNCIAS (NÃO INCLUI FORNECIMENTO). AF_11/2017 | I48: M | J48: ATRIBUÍDO SÃO PAULO | K48: 141.96 | L48: CAIXA REFERENCIAL
A49: ASSENTAMENTO DE TUBOS E PECAS | B49: ASTU | C49: FORNEC E/OU ASSENT DE TUBO DE ACO COM JUNTA SOLDADA | D49: 46 | G49: 97183 | H49: ASSENTAMENTO DE TUBO DE AÇO CARBONO PARA REDE DE ÁGUA, DN 600 MM (24), JUNTA SOLDADA, INSTALADO EM LOCAL COM NÍVEL BAIXO DE INTERFERÊNCIAS (NÃO INCLUI FORNECIMENTO). AF_11/2017 | I49: M | J49: ATRIBUÍDO SÃO PAULO | K49: 33.78 | L49: CAIXA REFERENCIAL
A50: ASSENTAMENTO DE TUBOS E PECAS | B50: ASTU | C50: FORNEC E/OU ASSENT DE TUBO DE ACO COM JUNTA SOLDADA | D50: 46 | G50: 97184 | H50: ASSENTAMENTO DE TUBO DE AÇO CARBONO PARA REDE DE ÁGUA, DN 700 MM (28), JUNTA SOLDADA, INSTALADO EM LOCAL COM NÍVEL BAIXO DE INTERFERÊNCIAS (NÃO INCLUI FORNECIMENTO). AF_11/2017 | I50: M | J50: ATRIBUÍDO SÃO PAULO | K50: 39.24 | L50: CAIXA REFERENCIAL
A51: ASSENTAMENTO DE TUBOS E PECAS | B51: ASTU | C51: FORNEC E/OU ASSENT DE TUBO DE ACO COM JUNTA SOLDADA | D51: 46 | G51: 97185 | H51: ASSENTAMENTO DE TUBO DE AÇO CARBONO PARA REDE DE ÁGUA, DN 800 MM (32), JUNTA SOLDADA, INSTALADO EM LOCAL COM NÍVEL BAIXO DE INTERFERÊNCIAS (NÃO INCLUI FORNECIMENTO). AF_11/2017 | I51: M | J51: ATRIBUÍDO SÃO PAULO | K51: 44.71 | L51: CAIXA REFERENCIAL
A52: ASSENTAMENTO DE TUBOS E PECAS | B52: ASTU | C52: FORNEC E/OU ASSENT DE TUBO DE ACO COM JUNTA SOLDADA | D52: 46 | G52: 97186 | H52: ASSENTAMENTO DE TUBO DE AÇO CARBONO PARA REDE DE ÁGUA, DN 900 MM (36), JUNTA SOLDADA, INSTALADO EM LOCAL COM NÍVEL BAIXO DE INTERFERÊNCIAS (NÃO INCLUI FORNECIMENTO). AF_11/2017 | I52: M | J52: ATRIBUÍDO SÃO PAULO | K52: 50.18 | L52: CAIXA REFERENCIAL
A53: ASSENTAMENTO DE TUBOS E PECAS | B53: ASTU | C53: FORNEC E/OU ASSENT DE TUBO DE ACO COM JUNTA SOLDADA | D53: 46 | G53: 97187 | H53: ASSENTAMENTO DE TUBO DE AÇO CARBONO PARA REDE DE ÁGUA, DN 1000 MM (40 ) OU DN 1100 MM (44 ), JUNTA SOLDADA, INSTALADO EM LOCAL COM NÍVEL BAIXO DE INTERFERÊNCIAS (NÃO INCLUI FORNECIMENTO). AF_11/2017 | I53: M | J53: ATRIBUÍDO SÃO PAULO | K53: 61.12 | L53: CAIXA REFERENCIAL
A54: ASSENTAMENTO DE TUBOS E PECAS | B54: ASTU | C54: FORNEC E/OU ASSENT DE TUBO DE ACO COM JUNTA SOLDADA | D54: 46 | G54: 97188 | H54: ASSENTAMENTO DE TUBO DE AÇO CARBONO PARA REDE DE ÁGUA, DN 1200 MM (48) OU DN 1300 MM (52), JUNTA SOLDADA, INSTALADO EM LOCAL COM NÍVEL BAIXO DE INTERFERÊNCIAS (NÃO INCLUI FORNECIMENTO). AF_11/2017 | I54: M | J54: ATRIBUÍDO SÃO PAULO | K54: 72.06 | L54: CAIXA REFERENCIAL
A55: ASSENTAMENTO DE TUBOS E PECAS | B55: ASTU | C55: FORNEC E/OU ASSENT DE TUBO DE ACO COM JUNTA SOLDADA | D55: 46 | G55: 97189 | H55: ASSENTAMENTO DE TUBO DE AÇO CARBONO PARA REDE DE ÁGUA, DN 1400 MM (56'') OU DN 1500 MM (60), JUNTA SOLDADA, INSTALADO EM LOCAL COM NÍVEL BAIXO DE INTERFERÊNCIAS (NÃO INCLUI FORNECIMENTO). AF_11/2017 | I55: M | J55: ATRIBUÍDO SÃO PAULO | K55: 82.99 | L55: CAIXA REFERENCIAL
A56: ASSENTAMENTO DE TUBOS E PECAS | B56: ASTU | C56: FORNEC E/OU ASSENT DE TUBO DE ACO COM JUNTA SOLDADA | D56: 46 | G56: 97190 | H56: ASSENTAMENTO DE TUBO DE AÇO CARBONO PARA REDE DE ÁGUA, DN 1600 MM (64) OU DN 1700 MM (68), JUNTA SOLDADA, INSTALADO EM LOCAL COM NÍVEL BAIXO DE INTERFERÊNCIAS (NÃO INCLUI FORNECIMENTO). AF_11/2017 | I56: M | J56: ATRIBUÍDO SÃO PAULO | K56: 93.92 | L56: CAIXA REFERENCIAL
A57: ASSENTAMENTO DE TUBOS E PECAS | B57: ASTU | C57: FORNEC E/OU ASSENT DE TUBO DE ACO COM JUNTA SOLDADA | D57: 46 | G57: 97191 | H57: ASSENTAMENTO DE TUBO DE AÇO CARBONO PARA REDE DE ÁGUA, DN 1800 MM (72) OU DN 1900 MM (76), JUNTA SOLDADA, INSTALADO EM LOCAL COM NÍVEL BAIXO DE INTERFERÊNCIAS (NÃO INCLUI FORNECIMENTO). AF_11/2017 | I57: M | J57: ATRIBUÍDO SÃO PAULO | K57: 108.27 | L57: CAIXA REFERENCIAL
A58: ASSENTAMENTO DE TUBOS E PECAS | B58: ASTU | C58: FORNEC E/OU ASSENT DE TUBO DE ACO COM JUNTA SOLDADA | D58: 46 | G58: 97192 | H58: ASSENTAMENTO DE TUBO DE AÇO CARBONO PARA REDE DE ÁGUA, DN 2000 MM (80) OU DN 2100 MM (84), JUNTA SOLDADA, INSTALADO EM LOCAL COM NÍVEL BAIXO DE INTERFERÊNCIAS (NÃO INCLUI FORNECIMENTO). AF_11/2017 | I58: M | J58: ATRIBUÍDO SÃO PAULO | K58: 119.58 | L58: CAIXA REFERENCIAL
A59: ASSENTAMENTO DE TUBOS E PECAS | B59: ASTU | C59: FORNEC E/OU ASSENT DE TUBO DE PVC COM JUNTA ELASTICA | D59: 48 | G59: 90694 | H59: TUBO DE PVC PARA REDE COLETORA DE ESGOTO DE PAREDE MACIÇA, DN 100 MM, JUNTA ELÁSTICA - FORNECIMENTO E ASSENTAMENTO. AF_01/2021 | I59: M | J59: COEFICIENTE DE REPRESENTATIVIDADE | K59: 40.57 | L59: CAIXA REFERENCIAL
A60: ASSENTAMENTO DE TUBOS E PECAS | B60: ASTU | C60: FORNEC E/OU ASSENT DE TUBO DE PVC COM JUNTA ELASTICA | D60: 48 | G60: 90695 | H60: TUBO DE PVC PARA REDE COLETORA DE ESGOTO DE PAREDE MACIÇA, DN 150 MM, JUNTA ELÁSTICA - FORNECIMENTO E ASSENTAMENTO. AF_01/2021 | I60: M | J60: COEFICIENTE DE REPRESENTATIVIDADE | K60: 77.42 | L60: CAIXA REFERENCIAL
A61: ASSENTAMENTO DE TUBOS E PECAS | B61: ASTU | C61: FORNEC E/OU ASSENT DE TUBO DE PVC COM JUNTA ELASTICA | D61: 48 | G61: 90696 | H61: TUBO DE PVC PARA REDE COLETORA DE ESGOTO DE PAREDE MACIÇA, DN 200 MM, JUNTA ELÁSTICA - FORNECIMENTO E ASSENTAMENTO. AF_01/2021 | I61: M | J61: COEFICIENTE DE REPRESENTATIVIDADE | K61: 129.61 | L61: CAIXA REFERENCIAL
A62: ASSENTAMENTO DE TUBOS E PECAS | B62: ASTU | C62: FORNEC E/OU ASSENT DE TUBO DE PVC COM JUNTA ELASTICA | D62: 48 | G62: 90697 | H62: TUBO DE PVC PARA REDE COLETORA DE ESGOTO DE PAREDE MACIÇA, DN 250 MM, JUNTA ELÁSTICA - FORNECIMENTO E ASSENTAMENTO. AF_01/2021 | I62: M | J62: COEFICIENTE DE REPRESENTATIVIDADE | K62: 201.33 | L62: CAIXA REFERENCIAL
A63: ASSENTAMENTO DE TUBOS E PECAS | B63: ASTU | C63: FORNEC E/OU ASSENT DE TUBO DE PVC COM JUNTA ELASTICA | D63: 48 | G63: 90698 | H63: TUBO DE PVC PARA REDE COLETORA DE ESGOTO DE PAREDE MACIÇA, DN 300 MM, JUNTA ELÁSTICA, FORNECIMENTO E ASSENTAMENTO. AF_01/2021 | I63: M | J63: COEFICIENTE DE REPRESENTATIVIDADE | K63: 308.01 | L63: CAIXA REFERENCIAL
A64: ASSENTAMENTO DE TUBOS E PECAS | B64: ASTU | C64: FORNEC E/OU ASSENT DE TUBO DE PVC COM JUNTA ELASTICA | D64: 48 | G64: 90699 | H64: TUBO DE PVC PARA REDE COLETORA DE ESGOTO DE PAREDE MACIÇA, DN 350 MM, JUNTA ELÁSTICA - FORNECIMENTO E ASSENTAMENTO. AF_01/2021 | I64: M | J64: COEFICIENTE DE REPRESENTATIVIDADE | K64: 433.76 | L64: CAIXA REFERENCIAL
A65: ASSENTAMENTO DE TUBOS E PECAS | B65: ASTU | C65: FORNEC E/OU ASSENT DE TUBO DE PVC COM JUNTA ELASTICA | D65: 48 | G65: 90700 | H65: TUBO DE PVC PARA REDE COLETORA DE ESGOTO DE PAREDE MACIÇA, DN 400 MM, JUNTA ELÁSTICA FORNECIMENTO E ASSENTAMENTO. AF_01/2021 | I65: M | J65: ATRIBUÍDO SÃO PAULO | K65: 507.1 | L65: CAIXA REFERENCIAL
A66: ASSENTAMENTO DE TUBOS E PECAS | B66: ASTU | C66: FORNEC E/OU ASSENT DE TUBO DE PVC COM JUNTA ELASTICA | D66: 48 | G66: 90701 | H66: TUBO DE PVC CORRUGADO DE DUPLA PAREDE PARA REDE COLETORA DE ESGOTO, DN 150 MM, JUNTA ELÁSTICA - FORNECIMENTO E ASSENTAMENTO. AF_01/2021 | I66: M | J66: COEFICIENTE DE REPRESENTATIVIDADE | K66: 61.3 | L66: CAIXA REFERENCIAL
A67: ASSENTAMENTO DE TUBOS E PECAS | B67: ASTU | C67: FORNEC E/OU ASSENT DE TUBO DE PVC COM JUNTA ELASTICA | D67: 48 | G67: 90702 | H67: TUBO DE PVC CORRUGADO DE DUPLA PAREDE PARA REDE COLETORA DE ESGOTO, DN 200 MM, JUNTA ELÁSTICA - FORNECIMENTO E ASSENTAMENTO. AF_01/2021 | I67: M | J67: COEFICIENTE DE REPRESENTATIVIDADE | K67: 101.71 | L67: CAIXA REFERENCIAL
A68: ASSENTAMENTO DE TUBOS E PECAS | B68: ASTU | C68: FORNEC E/OU ASSENT DE TUBO DE PVC COM JUNTA ELASTICA | D68: 48 | G68: 90703 | H68: TUBO DE PVC CORRUGADO DE DUPLA PAREDE PARA REDE COLETORA DE ESGOTO, DN 250 MM, JUNTA ELÁSTICA - FORNECIMENTO E ASSENTAMENTO. AF_01/2021 | I68: M | J68: COEFICIENTE DE REPRESENTATIVIDADE | K68: 160.58 | L68: CAIXA REFERENCIAL
A69: ASSENTAMENTO DE TUBOS E PECAS | B69: ASTU | C69: FORNEC E/OU ASSENT DE TUBO DE PVC COM JUNTA ELASTICA | D69: 48 | G69: 90704 | H69: TUBO DE PVC CORRUGADO DE DUPLA PAREDE PARA REDE COLETORA DE ESGOTO, DN 300 MM, JUNTA ELÁSTICA - FORNECIMENTO E ASSENTAMENTO. AF_01/2021 | I69: M | J69: COEFICIENTE DE REPRESENTATIVIDADE | K69: 240.83 | L69: CAIXA REFERENCIAL
A70: ASSENTAMENTO DE TUBOS E PECAS | B70: ASTU | C70: FORNEC E/OU ASSENT DE TUBO DE PVC COM JUNTA ELASTICA | D70: 48 | G70: 90705 | H70: TUBO DE PVC CORRUGADO DE DUPLA PAREDE PARA REDE COLETORA DE ESGOTO, DN 350 MM, JUNTA ELÁSTICA - FORNECIMENTO E ASSENTAMENTO. AF_01/2021 | I70: M | J70: COEFICIENTE DE REPRESENTATIVIDADE | K70: 311.67 | L70: CAIXA REFERENCIAL
A71: ASSENTAMENTO DE TUBOS E PECAS | B71: ASTU | C71: FORNEC E/OU ASSENT DE TUBO DE PVC COM JUNTA ELASTICA | D71: 48 | G71: 90706 | H71: TUBO DE PVC CORRUGADO DE DUPLA PAREDE PARA REDE COLETORA DE ESGOTO, DN 400 MM, JUNTA ELÁSTICA - FORNECIMENTO E ASSENTAMENTO. AF_01/2021 | I71: M | J71: ATRIBUÍDO SÃO PAULO | K71: 414.07 | L71: CAIXA REFERENCIAL
A72: ASSENTAMENTO DE TUBOS E PECAS | B72: ASTU | C72: FORNEC E/OU ASSENT DE TUBO DE PVC COM JUNTA ELASTICA | D72: 48 | G72: 90708 | H72: TUBO DE PEAD CORRUGADO DE DUPLA PAREDE PARA REDE COLETORA DE ESGOTO, DN 600 MM, JUNTA ELÁSTICA INTEGRADA - FORNECIMENTO E ASSENTAMENTO. AF_01/2021 | I72: M | J72: ATRIBUÍDO SÃO PAULO | K72: 796.37 | L72: CAIXA REFERENCIAL
A73: ASSENTAMENTO DE TUBOS E PECAS | B73: ASTU | C73: FORNEC E/OU ASSENT DE TUBO DE PVC COM JUNTA ELASTICA | D73: 48 | G73: 90724 | H73: JUNTA ARGAMASSADA ENTRE TUBO DN 100 MM E O POÇO DE VISITA/ CAIXA DE CONCRETO OU ALVENARIA EM REDES DE ESGOTO. AF_01/2021 | I73: UN | J73: COEFICIENTE DE REPRESENTATIVIDADE | K73: 19.06 | L73: CAIXA REFERENCIAL
A74: ASSENTAMENTO DE TUBOS E PECAS | B74: ASTU | C74: FORNEC E/OU ASSENT DE TUBO DE PVC COM JUNTA ELASTICA | D74: 48 | G74: 90725 | H74: JUNTA ARGAMASSADA ENTRE TUBO DN 150 MM E O POÇO DE VISITA/ CAIXA DE CONCRETO OU ALVENARIA EM REDES DE ESGOTO. AF_01/2021 | I74: UN | J74: COEFICIENTE DE REPRESENTATIVIDADE | K74: 23.5 | L74: CAIXA REFERENCIAL
A75: ASSENTAMENTO DE TUBOS E PECAS | B75: ASTU | C75: FORNEC E/OU ASSENT DE TUBO DE PVC COM JUNTA ELASTICA | D75: 48 | G75: 90726 | H75: JUNTA ARGAMASSADA ENTRE TUBO DN 200 MM E O POÇO/ CAIXA DE CONCRETO OU ALVENARIA EM REDES DE ESGOTO. AF_01/2021 | I75: UN | J75: COEFICIENTE DE REPRESENTATIVIDADE | K75: 28 | L75: CAIXA REFERENCIAL
A76: ASSENTAMENTO DE TUBOS E PECAS | B76: ASTU | C76: FORNEC E/OU ASSENT DE TUBO DE PVC COM JUNTA ELASTICA | D76: 48 | G76: 90727 | H76: JUNTA ARGAMASSADA ENTRE TUBO DN 250 MM E O POÇO DE VISITA/ CAIXA DE CONCRETO OU ALVENARIA EM REDES DE ESGOTO. AF_01/2021 | I76: UN | J76: COEFICIENTE DE REPRESENTATIVIDADE | K76: 32.42 | L76: CAIXA REFERENCIAL
A77: ASSENTAMENTO DE TUBOS E PECAS | B77: ASTU | C77: FORNEC E/OU ASSENT DE TUBO DE PVC COM JUNTA ELASTICA | D77: 48 | G77: 90728 | H77: JUNTA ARGAMASSADA ENTRE TUBO DN 300 MM E O POÇO DE VISITA/ CAIXA DE CONCRETO OU ALVENARIA EM REDES DE ESGOTO. AF_01/2021 | I77: UN | J77: COEFICIENTE DE REPRESENTATIVIDADE | K77: 36.87 | L77: CAIXA REFERENCIAL
A78: ASSENTAMENTO DE TUBOS E PECAS | B78: ASTU | C78: FORNEC E/OU ASSENT DE TUBO DE PVC COM JUNTA ELASTICA | D78: 48 | G78: 90729 | H78: JUNTA ARGAMASSADA ENTRE TUBO DN 350 MM E O POÇO DE VISITA/ CAIXA DE CONCRETO OU ALVENARIA EM REDES DE ESGOTO. AF_01/2021 | I78: UN | J78: COEFICIENTE DE REPRESENTATIVIDADE | K78: 41.3 | L78: CAIXA REFERENCIAL
A79: ASSENTAMENTO DE TUBOS E PECAS | B79: ASTU | C79: FORNEC E/OU ASSENT DE TUBO DE PVC COM JUNTA ELASTICA | D79: 48 | G79: 90730 | H79: JUNTA ARGAMASSADA ENTRE TUBO DN 400 MM E O POÇO DE VISITA/ CAIXA DE CONCRETO OU ALVENARIA EM REDES DE ESGOTO. AF_01/2021 | I79: UN | J79: COEFICIENTE DE REPRESENTATIVIDADE | K79: 45.73 | L79: CAIXA REFERENCIAL
A80: ASSENTAMENTO DE TUBOS E PECAS | B80: ASTU | C80: FORNEC E/OU ASSENT DE TUBO DE PVC COM JUNTA ELASTICA | D80: 48 | G80: 90731 | H80: JUNTA ARGAMASSADA ENTRE TUBO DN 450 MM E O POÇO DE VISITA/ CAIXA DE CONCRETO OU ALVENARIA EM REDES DE ESGOTO. AF_01/2021 | I80: UN | J80: COEFICIENTE DE REPRESENTATIVIDADE | K80: 50.17 | L80: CAIXA REFERENCIAL
A81: ASSENTAMENTO DE TUBOS E PECAS | B81: ASTU | C81: FORNEC E/OU ASSENT DE TUBO DE PVC COM JUNTA ELASTICA | D81: 48 | G81: 90732 | H81: JUNTA ARGAMASSADA ENTRE TUBO DN 600 MM E O POÇO DE VISITA/ CAIXA DE CONCRETO OU ALVENARIA EM REDES DE ESGOTO. AF_01/2021 | I81: UN | J81: COEFICIENTE DE REPRESENTATIVIDADE | K81: 63.48 | L81: CAIXA REFERENCIAL
A82: ASSENTAMENTO DE TUBOS E PECAS | B82: ASTU | C82: FORNEC E/OU ASSENT DE TUBO DE PVC COM JUNTA ELASTICA | D82: 48 | G82: 90733 | H82: ASSENTAMENTO DE TUBO DE PVC PARA REDE COLETORA DE ESGOTO DE PAREDE MACIÇA, DN 100 MM, JUNTA ELÁSTICA (NÃO INCLUI FORNECIMENTO). AF_01/2021 | I82: M | J82: COEFICIENTE DE REPRESENTATIVIDADE | K82: 2.65 | L82: CAIXA REFERENCIAL
A83: ASSENTAMENTO DE TUBOS E PECAS | B83: ASTU | C83: FORNEC E/OU ASSENT DE TUBO DE PVC COM JUNTA ELASTICA | D83: 48 | G83: 90734 | H83: ASSENTAMENTO DE TUBO DE PVC PARA REDE COLETORA DE ESGOTO DE PAREDE MACIÇA, DN 150 MM, JUNTA ELÁSTICA, (NÃO INCLUI FORNECIMENTO). AF_01/2021 | I83: M | J83: COEFICIENTE DE REPRESENTATIVIDADE | K83: 3.14 | L83: CAIXA REFERENCIAL
A84: ASSENTAMENTO DE TUBOS E PECAS | B84: ASTU | C84: FORNEC E/OU ASSENT DE TUBO DE PVC COM JUNTA ELASTICA | D84: 48 | G84: 90735 | H84: ASSENTAMENTO DE TUBO DE PVC PARA REDE COLETORA DE ESGOTO DE PAREDE MACIÇA, DN 200 MM, JUNTA ELÁSTICA (NÃO INCLUI FORNECIMENTO). AF_01/2021 | I84: M | J84: COEFICIENTE DE REPRESENTATIVIDADE | K84: 3.62 | L84: CAIXA REFERENCIAL
A85: ASSENTAMENTO DE TUBOS E PECAS | B85: ASTU | C85: FORNEC E/OU ASSENT DE TUBO DE PVC COM JUNTA ELASTICA | D85: 48 | G85: 90736 | H85: ASSENTAMENTO DE TUBO DE PVC PARA REDE COLETORA DE ESGOTO DE PAREDE MACIÇA, DN 250 MM, JUNTA ELÁSTICA (NÃO INCLUI FORNECIMENTO). AF_01/2021 | I85: M | J85: COEFICIENTE DE REPRESENTATIVIDADE | K85: 4.11 | L85: CAIXA REFERENCIAL
A86: ASSENTAMENTO DE TUBOS E PECAS | B86: ASTU | C86: FORNEC E/OU ASSENT DE TUBO DE PVC COM JUNTA ELASTICA | D86: 48 | G86: 90737 | H86: ASSENTAMENTO DE TUBO DE PVC PARA REDE COLETORA DE ESGOTO DE PAREDE MACIÇA, DN 300 MM, JUNTA ELÁSTICA (NÃO INCLUI FORNECIMENTO). AF_01/2021 | I86: M | J86: COEFICIENTE DE REPRESENTATIVIDADE | K86: 4.6 | L86: CAIXA REFERENCIAL
A87: ASSENTAMENTO DE TUBOS E PECAS | B87: ASTU | C87: FORNEC E/OU ASSENT DE TUBO DE PVC COM JUNTA ELASTICA | D87: 48 | G87: 90738 | H87: ASSENTAMENTO DE TUBO DE PVC PARA REDE COLETORA DE ESGOTO DE PAREDE MACIÇA, DN 350 MM, JUNTA ELÁSTICA (NÃO INCLUI FORNECIMENTO). AF_01/2021 | I87: M | J87: COEFICIENTE DE REPRESENTATIVIDADE | K87: 5.09 | L87: CAIXA REFERENCIAL
A88: ASSENTAMENTO DE TUBOS E PECAS | B88: ASTU | C88: FORNEC E/OU ASSENT DE TUBO DE PVC COM JUNTA ELASTICA | D88: 48 | G88: 90739 | H88: ASSENTAMENTO DE TUBO DE PVC PARA REDE COLETORA DE ESGOTO DE PAREDE MACIÇA, DN 400 MM, JUNTA ELÁSTICA (NÃO INCLUI FORNECIMENTO). AF_01/2021 | I88: M | J88: ATRIBUÍDO SÃO PAULO | K88: 7.88 | L88: CAIXA REFERENCIAL
A89: ASSENTAMENTO DE TUBOS E PECAS | B89: ASTU | C89: FORNEC E/OU ASSENT DE TUBO DE PVC COM JUNTA ELASTICA | D89: 48 | G89: 90740 | H89: ASSENTAMENTO DE TUBO DE PVC CORRUGADO DE DUPLA PAREDE PARA REDE COLETORA DE ESGOTO, DN 150 MM, JUNTA ELÁSTICA (NÃO INCLUI FORNECIMENTO). AF_01/2021 | I89: M | J89: COEFICIENTE DE REPRESENTATIVIDADE | K89: 3.49 | L89: CAIXA REFERENCIAL
A90: ASSENTAMENTO DE TUBOS E PECAS | B90: ASTU | C90: FORNEC E/OU ASSENT DE TUBO DE PVC COM JUNTA ELASTICA | D90: 48 | G90: 90741 | H90: ASSENTAMENTO DE TUBO DE PVC CORRUGADO DE DUPLA PAREDE PARA REDE COLETORA DE ESGOTO, DN 200 MM, JUNTA ELÁSTICA (NÃO INCLUI FORNECIMENTO). AF_01/2021 | I90: M | J90: COEFICIENTE DE REPRESENTATIVIDADE | K90: 3.98 | L90: CAIXA REFERENCIAL
A91: ASSENTAMENTO DE TUBOS E PECAS | B91: ASTU | C91: FORNEC E/OU ASSENT DE TUBO DE PVC COM JUNTA ELASTICA | D91: 48 | G91: 90742 | H91: ASSENTAMENTO DE TUBO DE PVC CORRUGADO DE DUPLA PAREDE PARA REDE COLETORA DE ESGOTO, DN 250 MM, JUNTA ELÁSTICA (NÃO INCLUI FORNECIMENTO). AF_01/2021 | I91: M | J91: COEFICIENTE DE REPRESENTATIVIDADE | K91: 4.48 | L91: CAIXA REFERENCIAL
A92: ASSENTAMENTO DE TUBOS E PECAS | B92: ASTU | C92: FORNEC E/OU ASSENT DE TUBO DE PVC COM JUNTA ELASTICA | D92: 48 | G92: 90743 | H92: ASSENTAMENTO DE TUBO DE PVC CORRUGADO DE DUPLA PAREDE PARA REDE COLETORA DE ESGOTO, DN 300 MM, JUNTA ELÁSTICA (NÃO INCLUI FORNECIMENTO). AF_01/2021 | I92: M | J92: COEFICIENTE DE REPRESENTATIVIDADE | K92: 4.96 | L92: CAIXA REFERENCIAL
A93: ASSENTAMENTO DE TUBOS E PECAS | B93: ASTU | C93: FORNEC E/OU ASSENT DE TUBO DE PVC COM JUNTA ELASTICA | D93: 48 | G93: 90744 | H93: ASSENTAMENTO DE TUBO DE PVC CORRUGADO DE DUPLA PAREDE PARA REDE COLETORA DE ESGOTO, DN 350 MM, JUNTA ELÁSTICA (NÃO INCLUI FORNECIMENTO). AF_01/2021 | I93: M | J93: COEFICIENTE DE REPRESENTATIVIDADE | K93: 5.45 | L93: CAIXA REFERENCIAL
A94: ASSENTAMENTO DE TUBOS E PECAS | B94: ASTU | C94: FORNEC E/OU ASSENT DE TUBO DE PVC COM JUNTA ELASTICA | D94: 48 | G94: 90745 | H94: ASSENTAMENTO DE TUBO DE PVC CORRUGADO DE DUPLA PAREDE PARA REDE COLETORA DE ESGOTO, DN 400 MM, JUNTA ELÁSTICA (NÃO INCLUI FORNECIMENTO). AF_01/2021 | I94: M | J94: ATRIBUÍDO SÃO PAULO | K94: 8.8 | L94: CAIXA REFERENCIAL
A95: ASSENTAMENTO DE TUBOS E PECAS | B95: ASTU | C95: FORNEC E/OU ASSENT DE TUBO DE PVC COM JUNTA ELASTICA | D95: 48 | G95: 90746 | H95: ASSENTAMENTO DE TUBO DE PEAD CORRUGADO DE DUPLA PAREDE PARA REDE COLETORA DE ESGOTO, DN 450 MM, JUNTA ELÁSTICA INTEGRADA (NÃO INCLUI FORNECIMENTO). AF_01/2021 | I95: M | J95: COEFICIENTE DE REPRESENTATIVIDADE | K95: 2.86 | L95: CAIXA REFERENCIAL
A96: ASSENTAMENTO DE TUBOS E PECAS | B96: ASTU | C96: FORNEC E/OU ASSENT DE TUBO DE PVC COM JUNTA ELASTICA | D96: 48 | G96: 90747 | H96: ASSENTAMENTO DE TUBO DE PEAD CORRUGADO DE DUPLA PAREDE PARA REDE COLETORA DE ESGOTO, DN 600 MM, JUNTA ELÁSTICA INTEGRADA (NÃO INCLUI FORNECIMENTO). AF_01/2021 | I96: M | J96: ATRIBUÍDO SÃO PAULO | K96: 15.31 | L96: CAIXA REFERENCIAL
A97: ASSENTAMENTO DE TUBOS E PECAS | B97: ASTU | C97: FORNEC E/OU ASSENT DE TUBO DE PVC COM JUNTA ELASTICA | D97: 48 | G97: 94869 | H97: TUBO DE PEAD CORRUGADO DE DUPLA PAREDE PARA REDE COLETORA DE ESGOTO, DN 250 MM, JUNTA ELÁSTICA INTEGRADA - FORNECIMENTO E ASSENTAMENTO. AF_01/2021 | I97: M | J97: ATRIBUÍDO SÃO PAULO | K97: 140.41 | L97: CAIXA REFERENCIAL
A98: ASSENTAMENTO DE TUBOS E PECAS | B98: ASTU | C98: FORNEC E/OU ASSENT DE TUBO DE PVC COM JUNTA ELASTICA | D98: 48 | G98: 94870 | H98: ASSENTAMENTO DE TUBO DE PEAD CORRUGADO DE DUPLA PAREDE PARA REDE COLETORA DE ESGOTO, DN 250 MM, JUNTA ELÁSTICA INTEGRADA (NÃO INCLUI FORNECIMENTO). AF_01/2021 | I98: M | J98: COEFICIENTE DE REPRESENTATIVIDADE | K98: 1.5 | L98: CAIXA REFERENCIAL
A99: ASSENTAMENTO DE TUBOS E PECAS | B99: ASTU | C99: FORNEC E/OU ASSENT DE TUBO DE PVC COM JUNTA ELASTICA | D99: 48 | G99: 94871 | H99: TUBO DE PEAD CORRUGADO DE DUPLA PAREDE PARA REDE COLETORA DE ESGOTO, DN 300 MM, JUNTA ELÁSTICA INTEGRADA - FORNECIMENTO E ASSENTAMENTO. AF_01/2021 | I99: M | J99: ATRIBUÍDO SÃO PAULO | K99: 219.73 | L99: CAIXA REFERENCIAL
A100: ASSENTAMENTO DE TUBOS E PECAS | B100: ASTU | C100: FORNEC E/OU ASSENT DE TUBO DE PVC COM JUNTA ELASTICA | D100: 48 | G100: 94872 | H100: ASSENTAMENTO DE TUBO DE PEAD CORRUGADO DE DUPLA PAREDE PARA REDE COLETORA DE ESGOTO, DN 300 MM, JUNTA ELÁSTICA INTEGRADA (NÃO INCLUI FORNECIMENTO). AF_01/2021 | I100: M | J100: COEFICIENTE DE REPRESENTATIVIDADE | K100: 2.1 | L100: CAIXA REFERENCIAL
A101: ASSENTAMENTO DE TUBOS E PECAS | B101: ASTU | C101: FORNEC E/OU ASSENT DE TUBO DE PVC COM JUNTA ELASTICA | D101: 48 | G101: 94875 | H101: TUBO DE PEAD CORRUGADO DE DUPLA PAREDE PARA REDE COLETORA DE ESGOTO, DN 800 MM, JUNTA ELÁSTICA INTEGRADA - FORNECIMENTO E ASSENTAMENTO. AF_01/2021 | I101: M | J101: ATRIBUÍDO SÃO PAULO | K101: 1293.43 | L101: CAIXA REFERENCIAL
A102: ASSENTAMENTO DE TUBOS E PECAS | B102: ASTU | C102: FORNEC E/OU ASSENT DE TUBO DE PVC COM JUNTA ELASTICA | D102: 48 | G102: 94876 | H102: ASSENTAMENTO DE TUBO DE PEAD CORRUGADO DE DUPLA PAREDE PARA REDE COLETORA DE ESGOTO, DN 800 MM, JUNTA ELÁSTICA INTEGRADA (NÃO INCLUI FORNECIMENTO). AF_01/2021 | I102: M | J102: ATRIBUÍDO SÃO PAULO | K102: 25.38 | L102: CAIXA REFERENCIAL
A103: ASSENTAMENTO DE TUBOS E PECAS | B103: ASTU | C103: FORNEC E/OU ASSENT DE TUBO DE PVC COM JUNTA ELASTICA | D103: 48 | G103: 94878 | H103: ASSENTAMENTO DE TUBO DE PEAD CORRUGADO DE DUPLA PAREDE PARA REDE COLETORA DE ESGOTO, DN 900 MM, JUNTA ELÁSTICA INTEGRADA (NÃO INCLUI FORNECIMENTO). AF_01/2021 | I103: M | J103: ATRIBUÍDO SÃO PAULO | K103: 29.41 | L103: CAIXA REFERENCIAL
A104: ASSENTAMENTO DE TUBOS E PECAS | B104: ASTU | C104: FORNEC E/OU ASSENT DE TUBO DE PVC COM JUNTA ELASTICA | D104: 48 | G104: 94879 | H104: TUBO DE PEAD CORRUGADO DE DUPLA PAREDE PARA REDE COLETORA DE ESGOTO, DN 1000 MM, JUNTA ELÁSTICA INTEGRADA - FORNECIMENTO E ASSENTAMENTO. AF_01/2021 | I104: M | J104: ATRIBUÍDO SÃO PAULO | K104: 1991.12 | L104: CAIXA REFERENCIAL
A105: ASSENTAMENTO DE TUBOS E PECAS | B105: ASTU | C105: FORNEC E/OU ASSENT DE TUBO DE PVC COM JUNTA ELASTICA | D105: 48 | G105: 94880 | H105: ASSENTAMENTO DE TUBO DE PEAD CORRUGADO DE DUPLA PAREDE PARA REDE COLETORA DE ESGOTO, DN 1000 MM, JUNTA ELÁSTICA INTEGRADA (NÃO INCLUI FORNECIMENTO). AF_01/2021 | I105: M | J105: ATRIBUÍDO SÃO PAULO | K105: 37.72 | L105: CAIXA REFERENCIAL
A106: ASSENTAMENTO DE TUBOS E PECAS | B106: ASTU | C106: FORNEC E/OU ASSENT DE TUBO DE PVC COM JUNTA ELASTICA | D106: 48 | G106: 94881 | H106: TUBO DE PEAD CORRUGADO DE DUPLA PAREDE PARA REDE COLETORA DE ESGOTO, DN 1200 MM, JUNTA ELÁSTICA INTEGRADA - FORNECIMENTO E ASSENTAMENTO. AF_01/2021 | I106: M | J106: ATRIBUÍDO SÃO PAULO | K106: 2743.65 | L106: CAIXA REFERENCIAL
A107: ASSENTAMENTO DE TUBOS E PECAS | B107: ASTU | C107: FORNEC E/OU ASSENT DE TUBO DE PVC COM JUNTA ELASTICA | D107: 48 | G107: 94882 | H107: ASSENTAMENTO DE TUBO DE PEAD CORRUGADO DE DUPLA PAREDE PARA REDE COLETORA DE ESGOTO, DN 1200 MM, JUNTA ELÁSTICA INTEGRADA (NÃO INCLUI FORNECIMENTO). AF_01/2021 | I107: M | J107: ATRIBUÍDO SÃO PAULO | K107: 43.92 | L107: CAIXA REFERENCIAL
A108: ASSENTAMENTO DE TUBOS E PECAS | B108: ASTU | C108: FORNEC E/OU ASSENT DE TUBO DE PVC COM JUNTA ELASTICA | D108: 48 | G108: 94884 | H108: ASSENTAMENTO DE TUBO DE PEAD CORRUGADO DE DUPLA PAREDE PARA REDE COLETORA DE ESGOTO, DN 1500 MM, JUNTA ELÁSTICA INTEGRADA (NÃO INCLUI FORNECIMENTO). AF_01/2021 | I108: M | J108: ATRIBUÍDO SÃO PAULO | K108: 56.5 | L108: CAIXA REFERENCIAL
A109: ASSENTAMENTO DE TUBOS E PECAS | B109: ASTU | C109: FORNEC E/OU ASSENT DE TUBO DE PVC COM JUNTA ELASTICA | D109: 48 | G109: 97121 | H109: ASSENTAMENTO DE TUBO DE PVC PBA PARA REDE DE ÁGUA, DN 50 MM, JUNTA ELÁSTICA INTEGRADA, INSTALADO EM LOCAL COM NÍVEL ALTO DE INTERFERÊNCIAS (NÃO INCLUI FORNECIMENTO). AF_11/2017 | I109: M | J109: COEFICIENTE DE REPRESENTATIVIDADE | K109: 1.58 | L109: CAIXA REFERENCIAL
A110: ASSENTAMENTO DE TUBOS E PECAS | B110: ASTU | C110: FORNEC E/OU ASSENT DE TUBO DE PVC COM JUNTA ELASTICA | D110: 48 | G110: 97122 | H110: ASSENTAMENTO DE TUBO DE PVC PBA PARA REDE DE ÁGUA, DN 75 MM, JUNTA ELÁSTICA INTEGRADA, INSTALADO EM LOCAL COM NÍVEL ALTO DE INTERFERÊNCIAS (NÃO INCLUI FORNECIMENTO). AF_11/2017 | I110: M | J110: COEFICIENTE DE REPRESENTATIVIDADE | K110: 2.19 | L110: CAIXA REFERENCIAL
A111: ASSENTAMENTO DE TUBOS E PECAS | B111: ASTU | C111: FORNEC E/OU ASSENT DE TUBO DE PVC COM JUNTA ELASTICA | D111: 48 | G111: 97123 | H111: ASSENTAMENTO DE TUBO DE PVC PBA PARA REDE DE ÁGUA, DN 100 MM, JUNTA ELÁSTICA INTEGRADA, INSTALADO EM LOCAL COM NÍVEL ALTO DE INTERFERÊNCIAS (NÃO INCLUI FORNECIMENTO). AF_11/2017 | I111: M | J111: COEFICIENTE DE REPRESENTATIVIDADE | K111: 2.78 | L111: CAIXA REFERENCIAL
A112: ASSENTAMENTO DE TUBOS E PECAS | B112: ASTU | C112: FORNEC E/OU ASSENT DE TUBO DE PVC COM JUNTA ELASTICA | D112: 48 | G112: 97124 | H112: ASSENTAMENTO DE TUBO DE PVC PBA PARA REDE DE ÁGUA, DN 50 MM, JUNTA ELÁSTICA INTEGRADA, INSTALADO EM LOCAL COM NÍVEL BAIXO DE INTERFERÊNCIAS (NÃO INCLUI FORNECIMENTO). AF_11/2017 | I112: M | J112: COEFICIENTE DE REPRESENTATIVIDADE | K112: 0.7 | L112: CAIXA REFERENCIAL
A113: ASSENTAMENTO DE TUBOS E PECAS | B113: ASTU | C113: FORNEC E/OU ASSENT DE TUBO DE PVC COM JUNTA ELASTICA | D113: 48 | G113: 97125 | H113: ASSENTAMENTO DE TUBO DE PVC PBA PARA REDE DE ÁGUA, DN 75 MM, JUNTA ELÁSTICA INTEGRADA, INSTALADO EM LOCAL COM NÍVEL BAIXO DE INTERFERÊNCIAS (NÃO INCLUI FORNECIMENTO). AF_11/2017 | I113: M | J113: COEFICIENTE DE REPRESENTATIVIDADE | K113: 0.99 | L113: CAIXA REFERENCIAL
A114: ASSENTAMENTO DE TUBOS E PECAS | B114: ASTU | C114: FORNEC E/OU ASSENT DE TUBO DE PVC COM JUNTA ELASTICA | D114: 48 | G114: 97126 | H114: ASSENTAMENTO DE TUBO DE PVC PBA PARA REDE DE ÁGUA, DN 100 MM, JUNTA ELÁSTICA INTEGRADA, INSTALADO EM LOCAL COM NÍVEL BAIXO DE INTERFERÊNCIAS (NÃO INCLUI FORNECIMENTO). AF_11/2017 | I114: M | J114: COEFICIENTE DE REPRESENTATIVIDADE | K114: 1.26 | L114: CAIXA REFERENCIAL
A115: ASSENTAMENTO DE TUBOS E PECAS | B115: ASTU | C115: FORNEC E/OU ASSENT DE TUBO DE PVC COM JUNTA ELASTICA | D115: 48 | G115: 102264 | H115: TUBO DE PVC BRANCO PARA REDE COLETORA DE ESGOTO CONDOMINIAL DE PAREDE MACIÇA, DN 100 MM, JUNTA ELÁSTICA - FORNECIMENTO E ASSENTAMENTO. AF_01/2021 | I115: M | J115: COEFICIENTE DE REPRESENTATIVIDADE | K115: 17.55 | L115: CAIXA REFERENCIAL
A116: ASSENTAMENTO DE TUBOS E PECAS | B116: ASTU | C116: FORNEC E/OU ASSENT DE TUBO DE PVC COM JUNTA ELASTICA | D116: 48 | G116: 102265 | H116: JUNTA ARGAMASSADA ENTRE TUBO DN 800 MM E O POÇO DE VISITA/ CAIXA DE CONCRETO OU ALVENARIA EM REDES DE ESGOTO. AF_01/2021 | I116: UN | J116: COEFICIENTE DE REPRESENTATIVIDADE | K116: 81.2 | L116: CAIXA REFERENCIAL
A117: ASSENTAMENTO DE TUBOS E PECAS | B117: ASTU | C117: FORNEC E/OU ASSENT DE TUBO DE PVC COM JUNTA ELASTICA | D117: 48 | G117: 102266 | H117: JUNTA ARGAMASSADA ENTRE TUBO DN 900 MM E O POÇO DE VISITA/ CAIXA DE CONCRETO OU ALVENARIA EM REDES DE ESGOTO. AF_01/2021 | I117: UN | J117: COEFICIENTE DE REPRESENTATIVIDADE | K117: 90.07 | L117: CAIXA REFERENCIAL
A118: ASSENTAMENTO DE TUBOS E PECAS | B118: ASTU | C118: FORNEC E/OU ASSENT DE TUBO DE PVC COM JUNTA ELASTICA | D118: 48 | G118: 102267 | H118: JUNTA ARGAMASSADA ENTRE TUBO DN 1000 MM E O POÇO DE VISITA/ CAIXA DE CONCRETO OU ALVENARIA EM REDES DE ESGOTO. AF_01/2021 | I118: UN | J118: COEFICIENTE DE REPRESENTATIVIDADE | K118: 103.45 | L118: CAIXA REFERENCIAL
A119: ASSENTAMENTO DE TUBOS E PECAS | B119: ASTU | C119: FORNEC E/OU ASSENT DE TUBO DE PVC COM JUNTA ELASTICA | D119: 48 | G119: 102268 | H119: JUNTA ARGAMASSADA ENTRE TUBO DN 1200 MM E O POÇO DE VISITA/ CAIXA DE CONCRETO OU ALVENARIA EM REDES DE ESGOTO. AF_01/2021 | I119: UN | J119: COEFICIENTE DE REPRESENTATIVIDADE | K119: 116.74 | L119: CAIXA REFERENCIAL
A120: ASSENTAMENTO DE TUBOS E PECAS | B120: ASTU | C120: FORNEC E/OU ASSENT DE TUBO DE PVC COM JUNTA ELASTICA | D120: 48 | G120: 102269 | H120: JUNTA ARGAMASSADA ENTRE TUBO DN 1500 MM E O POÇO DE VISITA/ CAIXA DE CONCRETO OU ALVENARIA EM REDES DE ESGOTO. AF_01/2021 | I120: UN | J120: COEFICIENTE DE REPRESENTATIVIDADE | K120: 143.34 | L120: CAIXA REFERENCIAL
A121: ASSENTAMENTO DE TUBOS E PECAS | B121: ASTU | C121: FORNEC E/OU ASSENT DE TUBO DE CONCRETO COM JUNTA ELASTICA | D121: 51 | G121: 92833 | H121: TUBO DE CONCRETO PARA REDES COLETORAS DE ESGOTO SANITÁRIO, DIÂMETRO DE 300 MM, JUNTA ELÁSTICA, INSTALADO EM LOCAL COM BAIXO NÍVEL DE INTERFERÊNCIAS - FORNECIMENTO E ASSENTAMENTO. AF_12/2015 | I121: M | J121: ATRIBUÍDO SÃO PAULO | K121: 161.31 | L121: CAIXA REFERENCIAL
A122: ASSENTAMENTO DE TUBOS E PECAS | B122: ASTU | C122: FORNEC E/OU ASSENT DE TUBO DE CONCRETO COM JUNTA ELASTICA | D122: 51 | G122: 92834 | H122: ASSENTAMENTO DE TUBO DE CONCRETO PARA REDES COLETORAS DE ESGOTO SANITÁRIO, DIÂMETRO DE 300 MM, JUNTA ELÁSTICA, INSTALADO EM LOCAL COM BAIXO NÍVEL DE INTERFERÊNCIAS (NÃO INCLUI FORNECIMENTO). AF_12/2015 | I122: M | J122: ATRIBUÍDO SÃO PAULO | K122: 8.29 | L122: CAIXA REFERENCIAL
A123: ASSENTAMENTO DE TUBOS E PECAS | B123: ASTU | C123: FORNEC E/OU ASSENT DE TUBO DE CONCRETO COM JUNTA ELASTICA | D123: 51 | G123: 92835 | H123: TUBO DE CONCRETO PARA REDES COLETORAS DE ESGOTO SANITÁRIO, DIÂMETRO DE 400 MM, JUNTA ELÁSTICA, INSTALADO EM LOCAL COM BAIXO NÍVEL DE INTERFERÊNCIAS - FORNECIMENTO E ASSENTAMENTO. AF_12/2015 | I123: M | J123: ATRIBUÍDO SÃO PAULO | K123: 169.85 | L123: CAIXA REFERENCIAL
A124: ASSENTAMENTO DE TUBOS E PECAS | B124: ASTU | C124: FORNEC E/OU ASSENT DE TUBO DE CONCRETO COM JUNTA ELASTICA | D124: 51 | G124: 92836 | H124: ASSENTAMENTO DE TUBO DE CONCRETO PARA REDES COLETORAS DE ESGOTO SANITÁRIO, DIÂMETRO DE 400 MM, JUNTA ELÁSTICA, INSTALADO EM LOCAL COM BAIXO NÍVEL DE INTERFERÊNCIAS (NÃO INCLUI FORNECIMENTO). AF_12/2015 | I124: M | J124: ATRIBUÍDO SÃO PAULO | K124: 10.59 | L124: CAIXA REFERENCIAL
A125: ASSENTAMENTO DE TUBOS E PECAS | B125: ASTU | C125: FORNEC E/OU ASSENT DE TUBO DE CONCRETO COM JUNTA ELASTICA | D125: 51 | G125: 92837 | H125: TUBO DE CONCRETO PARA REDES COLETORAS DE ESGOTO SANITÁRIO, DIÂMETRO DE 500 MM, JUNTA ELÁSTICA, INSTALADO EM LOCAL COM BAIXO NÍVEL DE INTERFERÊNCIAS - FORNECIMENTO E ASSENTAMENTO. AF_12/2015 | I125: M | J125: ATRIBUÍDO SÃO PAULO | K125: 296.52 | L125: CAIXA REFERENCIAL
A126: ASSENTAMENTO DE TUBOS E PECAS | B126: ASTU | C126: FORNEC E/OU ASSENT DE TUBO DE CONCRETO COM JUNTA ELASTICA | D126: 51 | G126: 92838 | H126: ASSENTAMENTO DE TUBO DE CONCRETO PARA REDES COLETORAS DE ESGOTO SANITÁRIO, DIÂMETRO DE 500 MM, JUNTA ELÁSTICA, INSTALADO EM LOCAL COM BAIXO NÍVEL DE INTERFERÊNCIAS (NÃO INCLUI FORNECIMENTO). AF_12/2015 | I126: M | J126: ATRIBUÍDO SÃO PAULO | K126: 12.69 | L126: CAIXA REFERENCIAL
A127: ASSENTAMENTO DE TUBOS E PECAS | B127: ASTU | C127: FORNEC E/OU ASSENT DE TUBO DE CONCRETO COM JUNTA ELASTICA | D127: 51 | G127: 92839 | H127: TUBO DE CONCRETO PARA REDES COLETORAS DE ESGOTO SANITÁRIO, DIÂMETRO DE 600 MM, JUNTA ELÁSTICA, INSTALADO EM LOCAL COM BAIXO NÍVEL DE INTERFERÊNCIAS - FORNECIMENTO E ASSENTAMENTO. AF_12/2015 | I127: M | J127: ATRIBUÍDO SÃO PAULO | K127: 362.51 | L127: CAIXA REFERENCIAL
A128: ASSENTAMENTO DE TUBOS E PECAS | B128: ASTU | C128: FORNEC E/OU ASSENT DE TUBO DE CONCRETO COM JUNTA ELASTICA | D128: 51 | G128: 92840 | H128: ASSENTAMENTO DE TUBO DE CONCRETO PARA REDES COLETORAS DE ESGOTO SANITÁRIO, DIÂMETRO DE 600 MM, JUNTA ELÁSTICA, INSTALADO EM LOCAL COM BAIXO NÍVEL DE INTERFERÊNCIAS (NÃO INCLUI FORNECIMENTO). AF_12/2015 | I128: M | J128: ATRIBUÍDO SÃO PAULO | K128: 15.05 | L128: CAIXA REFERENCIAL
A129: ASSENTAMENTO DE TUBOS E PECAS | B129: ASTU | C129: FORNEC E/OU ASSENT DE TUBO DE CONCRETO COM JUNTA ELASTICA | D129: 51 | G129: 92841 | H129: TUBO DE CONCRETO PARA REDES COLETORAS DE ESGOTO SANITÁRIO, DIÂMETRO DE 700 MM, JUNTA ELÁSTICA, INSTALADO EM LOCAL COM BAIXO NÍVEL DE INTERFERÊNCIAS - FORNECIMENTO E ASSENTAMENTO. AF_12/2015 | I129: M | J129: ATRIBUÍDO SÃO PAULO | K129: 472.35 | L129: CAIXA REFERENCIAL
A130: ASSENTAMENTO DE TUBOS E PECAS | B130: ASTU | C130: FORNEC E/OU ASSENT DE TUBO DE CONCRETO COM JUNTA ELASTICA | D130: 51 | G130: 92842 | H130: ASSENTAMENTO DE TUBO DE CONCRETO PARA REDES COLETORAS DE ESGOTO SANITÁRIO, DIÂMETRO DE 700 MM, JUNTA ELÁSTICA, INSTALADO EM LOCAL COM BAIXO NÍVEL DE INTERFERÊNCIAS (NÃO INCLUI FORNECIMENTO). AF_12/2015 | I130: M | J130: ATRIBUÍDO SÃO PAULO | K130: 17.17 | L130: CAIXA REFERENCIAL
A131: ASSENTAMENTO DE TUBOS E PECAS | B131: ASTU | C131: FORNEC E/OU ASSENT DE TUBO DE CONCRETO COM JUNTA ELASTICA | D131: 51 | G131: 92843 | H131: TUBO DE CONCRETO PARA REDES COLETORAS DE ESGOTO SANITÁRIO, DIÂMETRO DE 800 MM, JUNTA ELÁSTICA, INSTALADO EM LOCAL COM BAIXO NÍVEL DE INTERFERÊNCIAS - FORNECIMENTO E ASSENTAMENTO. AF_12/2015 | I131: M | J131: ATRIBUÍDO SÃO PAULO | K131: 491.43 | L131: CAIXA REFERENCIAL
A132: ASSENTAMENTO DE TUBOS E PECAS | B132: ASTU | C132: FORNEC E/OU ASSENT DE TUBO DE CONCRETO COM JUNTA ELASTICA | D132: 51 | G132: 92844 | H132: ASSENTAMENTO DE TUBO DE CONCRETO PARA REDES COLETORAS DE ESGOTO SANITÁRIO, DIÂMETRO DE 800 MM, JUNTA ELÁSTICA, INSTALADO EM LOCAL COM BAIXO NÍVEL DE INTERFERÊNCIAS (NÃO INCLUI FORNECIMENTO). AF_12/2015 | I132: M | J132: ATRIBUÍDO SÃO PAULO | K132: 19.53 | L132: CAIXA REFERENCIAL
A133: ASSENTAMENTO DE TUBOS E PECAS | B133: ASTU | C133: FORNEC E/OU ASSENT DE TUBO DE CONCRETO COM JUNTA ELASTICA | D133: 51 | G133: 92845 | H133: TUBO DE CONCRETO PARA REDES COLETORAS DE ESGOTO SANITÁRIO, DIÂMETRO DE 900 MM, JUNTA ELÁSTICA, INSTALADO EM LOCAL COM BAIXO NÍVEL DE INTERFERÊNCIAS - FORNECIMENTO E ASSENTAMENTO. AF_12/2015 | I133: M | J133: ATRIBUÍDO SÃO PAULO | K133: 723.23 | L133: CAIXA REFERENCIAL
A134: ASSENTAMENTO DE TUBOS E PECAS | B134: ASTU | C134: FORNEC E/OU ASSENT DE TUBO DE CONCRETO COM JUNTA ELASTICA | D134: 51 | G134: 92846 | H134: ASSENTAMENTO DE TUBO DE CONCRETO PARA REDES COLETORAS DE ESGOTO SANITÁRIO, DIÂMETRO DE 900 MM, JUNTA ELÁSTICA, INSTALADO EM LOCAL COM BAIXO NÍVEL DE INTERFERÊNCIAS (NÃO INCLUI FORNECIMENTO). AF_12/2015 | I134: M | J134: ATRIBUÍDO SÃO PAULO | K134: 21.63 | L134: CAIXA REFERENCIAL
A135: ASSENTAMENTO DE TUBOS E PECAS | B135: ASTU | C135: FORNEC E/OU ASSENT DE TUBO DE CONCRETO COM JUNTA ELASTICA | D135: 51 | G135: 92847 | H135: TUBO DE CONCRETO PARA REDES COLETORAS DE ESGOTO SANITÁRIO, DIÂMETRO DE 1000 MM, JUNTA ELÁSTICA, INSTALADO EM LOCAL COM BAIXO NÍVEL DE INTERFERÊNCIAS - FORNECIMENTO E ASSENTAMENTO. AF_12/2015 | I135: M | J135: ATRIBUÍDO SÃO PAULO | K135: 746.53 | L135: CAIXA REFERENCIAL
A136: ASSENTAMENTO DE TUBOS E PECAS | B136: ASTU | C136: FORNEC E/OU ASSENT DE TUBO DE CONCRETO COM JUNTA ELASTICA | D136: 51 | G136: 92848 | H136: ASSENTAMENTO DE TUBO DE CONCRETO PARA REDES COLETORAS DE ESGOTO SANITÁRIO, DIÂMETRO DE 1000 MM, JUNTA ELÁSTICA, INSTALADO EM LOCAL COM BAIXO NÍVEL DE INTERFERÊNCIAS (NÃO INCLUI FORNECIMENTO). AF_12/2015 | I136: M | J136: ATRIBUÍDO SÃO PAULO | K136: 24.01 | L136: CAIXA REFERENCIAL
A137: ASSENTAMENTO DE TUBOS E PECAS | B137: ASTU | C137: FORNEC E/OU ASSENT DE TUBO DE CONCRETO COM JUNTA ELASTICA | D137: 51 | G137: 92849 | H137: TUBO DE CONCRETO PARA REDES COLETORAS DE ESGOTO SANITÁRIO, DIÂMETRO DE 300 MM, JUNTA ELÁSTICA, INSTALADO EM LOCAL COM ALTO NÍVEL DE INTERFERÊNCIAS - FORNECIMENTO E ASSENTAMENTO. AF_12/2015 | I137: M | J137: ATRIBUÍDO SÃO PAULO | K137: 168.69 | L137: CAIXA REFERENCIAL
A138: ASSENTAMENTO DE TUBOS E PECAS | B138: ASTU | C138: FORNEC E/OU ASSENT DE TUBO DE CONCRETO COM JUNTA ELASTICA | D138: 51 | G138: 92850 | H138: ASSENTAMENTO DE TUBO DE CONCRETO PARA REDES COLETORAS DE ESGOTO SANITÁRIO, DIÂMETRO DE 300 MM, JUNTA ELÁSTICA, INSTALADO EM LOCAL COM ALTO NÍVEL DE INTERFERÊNCIAS (NÃO INCLUI FORNECIMENTO). AF_12/2015 | I138: M | J138: ATRIBUÍDO SÃO PAULO | K138: 15.67 | L138: CAIXA REFERENCIAL
A139: ASSENTAMENTO DE TUBOS E PECAS | B139: ASTU | C139: FORNEC E/OU ASSENT DE TUBO DE CONCRETO COM JUNTA ELASTICA | D139: 51 | G139: 92851 | H139: TUBO DE CONCRETO PARA REDES COLETORAS DE ESGOTO SANITÁRIO, DIÂMETRO DE 400 MM, JUNTA ELÁSTICA, INSTALADO EM LOCAL COM ALTO NÍVEL DE INTERFERÊNCIAS - FORNECIMENTO E ASSENTAMENTO. AF_12/2015 | I139: M | J139: ATRIBUÍDO SÃO PAULO | K139: 179.04 | L139: CAIXA REFERENCIAL
A140: ASSENTAMENTO DE TUBOS E PECAS | B140: ASTU | C140: FORNEC E/OU ASSENT DE TUBO DE CONCRETO COM JUNTA ELASTICA | D140: 51 | G140: 92852 | H140: ASSENTAMENTO DE TUBO DE CONCRETO PARA REDES COLETORAS DE ESGOTO SANITÁRIO, DIÂMETRO DE 400 MM, JUNTA ELÁSTICA, INSTALADO EM LOCAL COM ALTO NÍVEL DE INTERFERÊNCIAS (NÃO INCLUI FORNECIMENTO). AF_12/2015 | I140: M | J140: ATRIBUÍDO SÃO PAULO | K140: 19.78 | L140: CAIXA REFERENCIAL
A141: ASSENTAMENTO DE TUBOS E PECAS | B141: ASTU | C141: FORNEC E/OU ASSENT DE TUBO DE CONCRETO COM JUNTA ELASTICA | D141: 51 | G141: 92853 | H141: TUBO DE CONCRETO PARA REDES COLETORAS DE ESGOTO SANITÁRIO, DIÂMETRO DE 500 MM, JUNTA ELÁSTICA, INSTALADO EM LOCAL COM ALTO NÍVEL DE INTERFERÊNCIAS - FORNECIMENTO E ASSENTAMENTO. AF_12/2015 | I141: M | J141: ATRIBUÍDO SÃO PAULO | K141: 307.92 | L141: CAIXA REFERENCIAL
A142: ASSENTAMENTO DE TUBOS E PECAS | B142: ASTU | C142: FORNEC E/OU ASSENT DE TUBO DE CONCRETO COM JUNTA ELASTICA | D142: 51 | G142: 92854 | H142: ASSENTAMENTO DE TUBO DE CONCRETO PARA REDES COLETORAS DE ESGOTO SANITÁRIO, DIÂMETRO DE 500 MM, JUNTA ELÁSTICA, INSTALADO EM LOCAL COM ALTO NÍVEL DE INTERFERÊNCIAS (NÃO INCLUI FORNECIMENTO). AF_12/2015 | I142: M | J142: ATRIBUÍDO SÃO PAULO | K142: 24.09 | L142: CAIXA REFERENCIAL
A143: ASSENTAMENTO DE TUBOS E PECAS | B143: ASTU | C143: FORNEC E/OU ASSENT DE TUBO DE CONCRETO COM JUNTA ELASTICA | D143: 51 | G143: 92855 | H143: TUBO DE CONCRETO PARA REDES COLETORAS DE ESGOTO SANITÁRIO, DIÂMETRO DE 600 MM, JUNTA ELÁSTICA, INSTALADO EM LOCAL COM ALTO NÍVEL DE INTERFERÊNCIAS - FORNECIMENTO E ASSENTAMENTO. AF_12/2015 | I143: M | J143: ATRIBUÍDO SÃO PAULO | K143: 375.85 | L143: CAIXA REFERENCIAL
A144: ASSENTAMENTO DE TUBOS E PECAS | B144: ASTU | C144: FORNEC E/OU ASSENT DE TUBO DE CONCRETO COM JUNTA ELASTICA | D144: 51 | G144: 92856 | H144: ASSENTAMENTO DE TUBO DE CONCRETO PARA REDES COLETORAS DE ESGOTO SANITÁRIO, DIÂMETRO DE 600 MM, JUNTA ELÁSTICA, INSTALADO EM LOCAL COM ALTO NÍVEL DE INTERFERÊNCIAS (NÃO INCLUI FORNECIMENTO). AF_12/2015 | I144: M | J144: ATRIBUÍDO SÃO PAULO | K144: 28.39 | L144: CAIXA REFERENCIAL
A145: ASSENTAMENTO DE TUBOS E PECAS | B145: ASTU | C145: FORNEC E/OU ASSENT DE TUBO DE CONCRETO COM JUNTA ELASTICA | D145: 51 | G145: 92857 | H145: TUBO DE CONCRETO PARA REDES COLETORAS DE ESGOTO SANITÁRIO, DIÂMETRO DE 700 MM, JUNTA ELÁSTICA, INSTALADO EM LOCAL COM ALTO NÍVEL DE INTERFERÊNCIAS - FORNECIMENTO E ASSENTAMENTO. AF_12/2015 | I145: M | J145: ATRIBUÍDO SÃO PAULO | K145: 487.67 | L145: CAIXA REFERENCIAL
A146: ASSENTAMENTO DE TUBOS E PECAS | B146: ASTU | C146: FORNEC E/OU ASSENT DE TUBO DE CONCRETO COM JUNTA ELASTICA | D146: 51 | G146: 92858 | H146: ASSENTAMENTO DE TUBO DE CONCRETO PARA REDES COLETORAS DE ESGOTO SANITÁRIO, DIÂMETRO DE 700 MM, JUNTA ELÁSTICA, INSTALADO EM LOCAL COM ALTO NÍVEL DE INTERFERÊNCIAS (NÃO INCLUI FORNECIMENTO). AF_12/2015 | I146: M | J146: ATRIBUÍDO SÃO PAULO | K146: 32.49 | L146: CAIXA REFERENCIAL
A147: ASSENTAMENTO DE TUBOS E PECAS | B147: ASTU | C147: FORNEC E/OU ASSENT DE TUBO DE CONCRETO COM JUNTA ELASTICA | D147: 51 | G147: 92859 | H147: TUBO DE CONCRETO PARA REDES COLETORAS DE ESGOTO SANITÁRIO, DIÂMETRO DE 800 MM, JUNTA ELÁSTICA, INSTALADO EM LOCAL COM ALTO NÍVEL DE INTERFERÊNCIAS - FORNECIMENTO E ASSENTAMENTO. AF_12/2015 | I147: M | J147: ATRIBUÍDO SÃO PAULO | K147: 508.79 | L147: CAIXA REFERENCIAL
A148: ASSENTAMENTO DE TUBOS E PECAS | B148: ASTU | C148: FORNEC E/OU ASSENT DE TUBO DE CONCRETO COM JUNTA ELASTICA | D148: 51 | G148: 92860 | H148: ASSENTAMENTO DE TUBO DE CONCRETO PARA REDES COLETORAS DE ESGOTO SANITÁRIO, DIÂMETRO DE 800 MM, JUNTA ELÁSTICA, INSTALADO EM LOCAL COM ALTO NÍVEL DE INTERFERÊNCIAS (NÃO INCLUI FORNECIMENTO). AF_12/2015 | I148: M | J148: ATRIBUÍDO SÃO PAULO | K148: 36.89 | L148: CAIXA REFERENCIAL
A149: ASSENTAMENTO DE TUBOS E PECAS | B149: ASTU | C149: FORNEC E/OU ASSENT DE TUBO DE CONCRETO COM JUNTA ELASTICA | D149: 51 | G149: 92861 | H149: TUBO DE CONCRETO PARA REDES COLETORAS DE ESGOTO SANITÁRIO, DIÂMETRO DE 900 MM, JUNTA ELÁSTICA, INSTALADO EM LOCAL COM ALTO NÍVEL DE INTERFERÊNCIAS - FORNECIMENTO E ASSENTAMENTO. AF_12/2015 | I149: M | J149: ATRIBUÍDO SÃO PAULO | K149: 742.77 | L149: CAIXA REFERENCIAL
A150: ASSENTAMENTO DE TUBOS E PECAS | B150: ASTU | C150: FORNEC E/OU ASSENT DE TUBO DE CONCRETO COM JUNTA ELASTICA | D150: 51 | G150: 92862 | H150: ASSENTAMENTO DE TUBO DE CONCRETO PARA REDES COLETORAS DE ESGOTO SANITÁRIO, DIÂMETRO DE 900 MM, JUNTA ELÁSTICA, INSTALADO EM LOCAL COM ALTO NÍVEL DE INTERFERÊNCIAS (NÃO INCLUI FORNECIMENTO). AF_12/2015 | I150: M | J150: ATRIBUÍDO SÃO PAULO | K150: 41.17 | L150: CAIXA REFERENCIAL
A151: ASSENTAMENTO DE TUBOS E PECAS | B151: ASTU | C151: FORNEC E/OU ASSENT DE TUBO DE CONCRETO COM JUNTA ELASTICA | D151: 51 | G151: 92863 | H151: TUBO DE CONCRETO PARA REDES COLETORAS DE ESGOTO SANITÁRIO, DIÂMETRO DE 1000 MM, JUNTA ELÁSTICA, INSTALADO EM LOCAL COM ALTO NÍVEL DE INTERFERÊNCIAS - FORNECIMENTO E ASSENTAMENTO. AF_12/2015 | I151: M | J151: ATRIBUÍDO SÃO PAULO | K151: 768 | L151: CAIXA REFERENCIAL
A152: ASSENTAMENTO DE TUBOS E PECAS | B152: ASTU | C152: FORNEC E/OU ASSENT DE TUBO DE CONCRETO COM JUNTA ELASTICA | D152: 51 | G152: 92864 | H152: ASSENTAMENTO DE TUBO DE CONCRETO PARA REDES COLETORAS DE ESGOTO SANITÁRIO, DIÂMETRO DE 1000 MM, JUNTA ELÁSTICA, INSTALADO EM LOCAL COM ALTO NÍVEL DE INTERFERÊNCIAS (NÃO INCLUI FORNECIMENTO). AF_12/2015 | I152: M | J152: ATRIBUÍDO SÃO PAULO | K152: 45.48 | L152: CAIXA REFERENCIAL
A153: ASSENTAMENTO DE TUBOS E PECAS | B153: ASTU | C153: FORNEC E/OU ASSENT DE TUBO DE CONCRETO COM JUNTA ARGAMASSADA | D153: 52 | G153: 92210 | H153: TUBO DE CONCRETO PARA REDES COLETORAS DE ÁGUAS PLUVIAIS, DIÂMETRO DE 400 MM, JUNTA RÍGIDA, INSTALADO EM LOCAL COM BAIXO NÍVEL DE INTERFERÊNCIAS - FORNECIMENTO E ASSENTAMENTO. AF_12/2015 | I153: M | J153: ATRIBUÍDO SÃO PAULO | K153: 135.81 | L153: CAIXA REFERENCIAL
A154: ASSENTAMENTO DE TUBOS E PECAS | B154: ASTU | C154: FORNEC E/OU ASSENT DE TUBO DE CONCRETO COM JUNTA ARGAMASSADA | D154: 52 | G154: 92211 | H154: TUBO DE CONCRETO PARA REDES COLETORAS DE ÁGUAS PLUVIAIS, DIÂMETRO DE 500 MM, JUNTA RÍGIDA, INSTALADO EM LOCAL COM BAIXO NÍVEL DE INTERFERÊNCIAS - FORNECIMENTO E ASSENTAMENTO. AF_12/2015 | I154: M | J154: ATRIBUÍDO SÃO PAULO | K154: 163.38 | L154: CAIXA REFERENCIAL
A155: ASSENTAMENTO DE TUBOS E PECAS | B155: ASTU | C155: FORNEC E/OU ASSENT DE TUBO DE CONCRETO COM JUNTA ARGAMASSADA | D155: 52 | G155: 92212 | H155: TUBO DE CONCRETO PARA REDES COLETORAS DE ÁGUAS PLUVIAIS, DIÂMETRO DE 600 MM, JUNTA RÍGIDA, INSTALADO EM LOCAL COM BAIXO NÍVEL DE INTERFERÊNCIAS - FORNECIMENTO E ASSENTAMENTO. AF_12/2015 | I155: M | J155: ATRIBUÍDO SÃO PAULO | K155: 239.62 | L155: CAIXA REFERENCIAL
A156: ASSENTAMENTO DE TUBOS E PECAS | B156: ASTU | C156: FORNEC E/OU ASSENT DE TUBO DE CONCRETO COM JUNTA ARGAMASSADA | D156: 52 | G156: 92213 | H156: TUBO DE CONCRETO PARA REDES COLETORAS DE ÁGUAS PLUVIAIS, DIÂMETRO DE 700 MM, JUNTA RÍGIDA, INSTALADO EM LOCAL COM BAIXO NÍVEL DE INTERFERÊNCIAS - FORNECIMENTO E ASSENTAMENTO. AF_12/2015 | I156: M | J156: ATRIBUÍDO SÃO PAULO | K156: 312.37 | L156: CAIXA REFERENCIAL
A157: ASSENTAMENTO DE TUBOS E PECAS | B157: ASTU | C157: FORNEC E/OU ASSENT DE TUBO DE CONCRETO COM JUNTA ARGAMASSADA | D157: 52 | G157: 92214 | H157: TUBO DE CONCRETO PARA REDES COLETORAS DE ÁGUAS PLUVIAIS, DIÂMETRO DE 800 MM, JUNTA RÍGIDA, INSTALADO EM LOCAL COM BAIXO NÍVEL DE INTERFERÊNCIAS - FORNECIMENTO E ASSENTAMENTO. AF_12/2015 | I157: M | J157: ATRIBUÍDO SÃO PAULO | K157: 376.67 | L157: CAIXA REFERENCIAL
A158: ASSENTAMENTO DE TUBOS E PECAS | B158: ASTU | C158: FORNEC E/OU ASSENT DE TUBO DE CONCRETO COM JUNTA ARGAMASSADA | D158: 52 | G158: 92215 | H158: TUBO DE CONCRETO PARA REDES COLETORAS DE ÁGUAS PLUVIAIS, DIÂMETRO DE 900 MM, JUNTA RÍGIDA, INSTALADO EM LOCAL COM BAIXO NÍVEL DE INTERFERÊNCIAS - FORNECIMENTO E ASSENTAMENTO. AF_12/2015 | I158: M | J158: ATRIBUÍDO SÃO PAULO | K158: 432.65 | L158: CAIXA REFERENCIAL
A159: ASSENTAMENTO DE TUBOS E PECAS | B159: ASTU | C159: FORNEC E/OU ASSENT DE TUBO DE CONCRETO COM JUNTA ARGAMASSADA | D159: 52 | G159: 92216 | H159: TUBO DE CONCRETO PARA REDES COLETORAS DE ÁGUAS PLUVIAIS, DIÂMETRO DE 1000 MM, JUNTA RÍGIDA, INSTALADO EM LOCAL COM BAIXO NÍVEL DE INTERFERÊNCIAS - FORNECIMENTO E ASSENTAMENTO. AF_12/2015 | I159: M | J159: ATRIBUÍDO SÃO PAULO | K159: 455.14 | L159: CAIXA REFERENCIAL
A160: ASSENTAMENTO DE TUBOS E PECAS | B160: ASTU | C160: FORNEC E/OU ASSENT DE TUBO DE CONCRETO COM JUNTA ARGAMASSADA | D160: 52 | G160: 92219 | H160: TUBO DE CONCRETO PARA REDES COLETORAS DE ÁGUAS PLUVIAIS, DIÂMETRO DE 400 MM, JUNTA RÍGIDA, INSTALADO EM LOCAL COM ALTO NÍVEL DE INTERFERÊNCIAS - FORNECIMENTO E ASSENTAMENTO. AF_12/2015 | I160: M | J160: ATRIBUÍDO SÃO PAULO | K160: 144.99 | L160: CAIXA REFERENCIAL
A161: ASSENTAMENTO DE TUBOS E PECAS | B161: ASTU | C161: FORNEC E/OU ASSENT DE TUBO DE CONCRETO COM JUNTA ARGAMASSADA | D161: 52 | G161: 92220 | H161: TUBO DE CONCRETO PARA REDES COLETORAS DE ÁGUAS PLUVIAIS, DIÂMETRO DE 500 MM, JUNTA RÍGIDA, INSTALADO EM LOCAL COM ALTO NÍVEL DE INTERFERÊNCIAS - FORNECIMENTO E ASSENTAMENTO. AF_12/2015 | I161: M | J161: ATRIBUÍDO SÃO PAULO | K161: 174.78 | L161: CAIXA REFERENCIAL
A162: ASSENTAMENTO DE TUBOS E PECAS | B162: ASTU | C162: FORNEC E/OU ASSENT DE TUBO DE CONCRETO COM JUNTA ARGAMASSADA | D162: 52 | G162: 92221 | H162: TUBO DE CONCRETO PARA REDES COLETORAS DE ÁGUAS PLUVIAIS, DIÂMETRO DE 600 MM, JUNTA RÍGIDA, INSTALADO EM LOCAL COM ALTO NÍVEL DE INTERFERÊNCIAS - FORNECIMENTO E ASSENTAMENTO. AF_12/2015 | I162: M | J162: ATRIBUÍDO SÃO PAULO | K162: 252.97 | L162: CAIXA REFERENCIAL
A163: ASSENTAMENTO DE TUBOS E PECAS | B163: ASTU | C163: FORNEC E/OU ASSENT DE TUBO DE CONCRETO COM JUNTA ARGAMASSADA | D163: 52 | G163: 92222 | H163: TUBO DE CONCRETO PARA REDES COLETORAS DE ÁGUAS PLUVIAIS, DIÂMETRO DE 700 MM, JUNTA RÍGIDA, INSTALADO EM LOCAL COM ALTO NÍVEL DE INTERFERÊNCIAS - FORNECIMENTO E ASSENTAMENTO. AF_12/2015 | I163: M | J163: ATRIBUÍDO SÃO PAULO | K163: 327.92 | L163: CAIXA REFERENCIAL
A164: ASSENTAMENTO DE TUBOS E PECAS | B164: ASTU | C164: FORNEC E/OU ASSENT DE TUBO DE CONCRETO COM JUNTA ARGAMASSADA | D164: 52 | G164: 92223 | H164: TUBO DE CONCRETO PARA REDES COLETORAS DE ÁGUAS PLUVIAIS, DIÂMETRO DE 800 MM, JUNTA RÍGIDA, INSTALADO EM LOCAL COM ALTO NÍVEL DE INTERFERÊNCIAS - FORNECIMENTO E ASSENTAMENTO. AF_12/2015 | I164: M | J164: ATRIBUÍDO SÃO PAULO | K164: 394.03 | L164: CAIXA REFERENCIAL
A165: ASSENTAMENTO DE TUBOS E PECAS | B165: ASTU | C165: FORNEC E/OU ASSENT DE TUBO DE CONCRETO COM JUNTA ARGAMASSADA | D165: 52 | G165: 92224 | H165: TUBO DE CONCRETO PARA REDES COLETORAS DE ÁGUAS PLUVIAIS, DIÂMETRO DE 900 MM, JUNTA RÍGIDA, INSTALADO EM LOCAL COM ALTO NÍVEL DE INTERFERÊNCIAS - FORNECIMENTO E ASSENTAMENTO. AF_12/2015 | I165: M | J165: ATRIBUÍDO SÃO PAULO | K165: 451.91 | L165: CAIXA REFERENCIAL
A166: ASSENTAMENTO DE TUBOS E PECAS | B166: ASTU | C166: FORNEC E/OU ASSENT DE TUBO DE CONCRETO COM JUNTA ARGAMASSADA | D166: 52 | G166: 92226 | H166: TUBO DE CONCRETO PARA REDES COLETORAS DE ÁGUAS PLUVIAIS, DIÂMETRO DE 1000 MM, JUNTA RÍGIDA, INSTALADO EM LOCAL COM ALTO NÍVEL DE INTERFERÊNCIAS - FORNECIMENTO E ASSENTAMENTO. AF_12/2015 | I166: M | J166: ATRIBUÍDO SÃO PAULO | K166: 476.72 | L166: CAIXA REFERENCIAL
A167: ASSENTAMENTO DE TUBOS E PECAS | B167: ASTU | C167: FORNEC E/OU ASSENT DE TUBO DE CONCRETO COM JUNTA ARGAMASSADA | D167: 52 | G167: 92808 | H167: ASSENTAMENTO DE TUBO DE CONCRETO PARA REDES COLETORAS DE ÁGUAS PLUVIAIS, DIÂMETRO DE 300 MM, JUNTA RÍGIDA, INSTALADO EM LOCAL COM BAIXO NÍVEL DE INTERFERÊNCIAS (NÃO INCLUI FORNECIMENTO). AF_12/2015 | I167: M | J167: ATRIBUÍDO SÃO PAULO | K167: 37.37 | L167: CAIXA REFERENCIAL
A168: ASSENTAMENTO DE TUBOS E PECAS | B168: ASTU | C168: FORNEC E/OU ASSENT DE TUBO DE CONCRETO COM JUNTA ARGAMASSADA | D168: 52 | G168: 92809 | H168: ASSENTAMENTO DE TUBO DE CONCRETO PARA REDES COLETORAS DE ÁGUAS PLUVIAIS, DIÂMETRO DE 400 MM, JUNTA RÍGIDA, INSTALADO EM LOCAL COM BAIXO NÍVEL DE INTERFERÊNCIAS (NÃO INCLUI FORNECIMENTO). AF_12/2015 | I168: M | J168: ATRIBUÍDO SÃO PAULO | K168: 47.99 | L168: CAIXA REFERENCIAL
A169: ASSENTAMENTO DE TUBOS E PECAS | B169: ASTU | C169: FORNEC E/OU ASSENT DE TUBO DE CONCRETO COM JUNTA ARGAMASSADA | D169: 52 | G169: 92810 | H169: ASSENTAMENTO DE TUBO DE CONCRETO PARA REDES COLETORAS DE ÁGUAS PLUVIAIS, DIÂMETRO DE 500 MM, JUNTA RÍGIDA, INSTALADO EM LOCAL COM BAIXO NÍVEL DE INTERFERÊNCIAS (NÃO INCLUI FORNECIMENTO). AF_12/2015 | I169: M | J169: ATRIBUÍDO SÃO PAULO | K169: 58.42 | L169: CAIXA REFERENCIAL
A170: ASSENTAMENTO DE TUBOS E PECAS | B170: ASTU | C170: FORNEC E/OU ASSENT DE TUBO DE CONCRETO COM JUNTA ARGAMASSADA | D170: 52 | G170: 92811 | H170: ASSENTAMENTO DE TUBO DE CONCRETO PARA REDES COLETORAS DE ÁGUAS PLUVIAIS, DIÂMETRO DE 600 MM, JUNTA RÍGIDA, INSTALADO EM LOCAL COM BAIXO NÍVEL DE INTERFERÊNCIAS (NÃO INCLUI FORNECIMENTO). AF_12/2015 | I170: M | J170: ATRIBUÍDO SÃO PAULO | K170: 69.67 | L170: CAIXA REFERENCIAL
A171: ASSENTAMENTO DE TUBOS E PECAS | B171: ASTU | C171: FORNEC E/OU ASSENT DE TUBO DE CONCRETO COM JUNTA ARGAMASSADA | D171: 52 | G171: 92812 | H171: ASSENTAMENTO DE TUBO DE CONCRETO PARA REDES COLETORAS DE ÁGUAS PLUVIAIS, DIÂMETRO DE 700 MM, JUNTA RÍGIDA, INSTALADO EM LOCAL COM BAIXO NÍVEL DE INTERFERÊNCIAS (NÃO INCLUI FORNECIMENTO). AF_12/2015 | I171: M | J171: ATRIBUÍDO SÃO PAULO | K171: 80.74 | L171: CAIXA REFERENCIAL
A172: ASSENTAMENTO DE TUBOS E PECAS | B172: ASTU | C172: FORNEC E/OU ASSENT DE TUBO DE CONCRETO COM JUNTA ARGAMASSADA | D172: 52 | G172: 92813 | H172: ASSENTAMENTO DE TUBO DE CONCRETO PARA REDES COLETORAS DE ÁGUAS PLUVIAIS, DIÂMETRO DE 800 MM, JUNTA RÍGIDA, INSTALADO EM LOCAL COM BAIXO NÍVEL DE INTERFERÊNCIAS (NÃO INCLUI FORNECIMENTO). AF_12/2015 | I172: M | J172: ATRIBUÍDO SÃO PAULO | K172: 93.91 | L172: CAIXA REFERENCIAL
A173: ASSENTAMENTO DE TUBOS E PECAS | B173: ASTU | C173: FORNEC E/OU ASSENT DE TUBO DE CONCRETO COM JUNTA ARGAMASSADA | D173: 52 | G173: 92814 | H173: ASSENTAMENTO DE TUBO DE CONCRETO PARA REDES COLETORAS DE ÁGUAS PLUVIAIS, DIÂMETRO DE 900 MM, JUNTA RÍGIDA, INSTALADO EM LOCAL COM BAIXO NÍVEL DE INTERFERÊNCIAS (NÃO INCLUI FORNECIMENTO). AF_12/2015 | I173: M | J173: ATRIBUÍDO SÃO PAULO | K173: 107.75 | L173: CAIXA REFERENCIAL
A174: ASSENTAMENTO DE TUBOS E PECAS | B174: ASTU | C174: FORNEC E/OU ASSENT DE TUBO DE CONCRETO COM JUNTA ARGAMASSADA | D174: 52 | G174: 92815 | H174: ASSENTAMENTO DE TUBO DE CONCRETO PARA REDES COLETORAS DE ÁGUAS PLUVIAIS, DIÂMETRO DE 1000 MM, JUNTA RÍGIDA, INSTALADO EM LOCAL COM BAIXO NÍVEL DE INTERFERÊNCIAS (NÃO INCLUI FORNECIMENTO). AF_12/2015 | I174: M | J174: ATRIBUÍDO SÃO PAULO | K174: 123.81 | L174: CAIXA REFERENCIAL
A175: ASSENTAMENTO DE TUBOS E PECAS | B175: ASTU | C175: FORNEC E/OU ASSENT DE TUBO DE CONCRETO COM JUNTA ARGAMASSADA | D175: 52 | G175: 92816 | H175: TUBO DE CONCRETO PARA REDES COLETORAS DE ÁGUAS PLUVIAIS, DIÂMETRO DE 1200 MM, JUNTA RÍGIDA, INSTALADO EM LOCAL COM BAIXO NÍVEL DE INTERFERÊNCIAS - FORNECIMENTO E ASSENTAMENTO. AF_12/2015 | I175: M | J175: ATRIBUÍDO SÃO PAULO | K175: 649.77 | L175: CAIXA REFERENCIAL
A176: ASSENTAMENTO DE TUBOS E PECAS | B176: ASTU | C176: FORNEC E/OU ASSENT DE TUBO DE CONCRETO COM JUNTA ARGAMASSADA | D176: 52 | G176: 92817 | H176: ASSENTAMENTO DE TUBO DE CONCRETO PARA REDES COLETORAS DE ÁGUAS PLUVIAIS, DIÂMETRO DE 1200 MM, JUNTA RÍGIDA, INSTALADO EM LOCAL COM BAIXO NÍVEL DE INTERFERÊNCIAS (NÃO INCLUI FORNECIMENTO). AF_12/2015 | I176: M | J176: ATRIBUÍDO SÃO PAULO | K176: 154.92 | L176: CAIXA REFERENCIAL
A177: ASSENTAMENTO DE TUBOS E PECAS | B177: ASTU | C177: FORNEC E/OU ASSENT DE TUBO DE CONCRETO COM JUNTA ARGAMASSADA | D177: 52 | G177: 92818 | H177: TUBO DE CONCRETO PARA REDES COLETORAS DE ÁGUAS PLUVIAIS, DIÂMETRO DE 1500 MM, JUNTA RÍGIDA, INSTALADO EM LOCAL COM BAIXO NÍVEL DE INTERFERÊNCIAS - FORNECIMENTO E ASSENTAMENTO. AF_12/2015 | I177: M | J177: ATRIBUÍDO SÃO PAULO | K177: 925.46 | L177: CAIXA REFERENCIAL
A178: ASSENTAMENTO DE TUBOS E PECAS | B178: ASTU | C178: FORNEC E/OU ASSENT DE TUBO DE CONCRETO COM JUNTA ARGAMASSADA | D178: 52 | G178: 92819 | H178: ASSENTAMENTO DE TUBO DE CONCRETO PARA REDES COLETORAS DE ÁGUAS PLUVIAIS, DIÂMETRO DE 1500 MM, JUNTA RÍGIDA, INSTALADO EM LOCAL COM BAIXO NÍVEL DE INTERFERÊNCIAS (NÃO INCLUI FORNECIMENTO). AF_12/2015 | I178: M | J178: ATRIBUÍDO SÃO PAULO | K178: 208.53 | L178: CAIXA REFERENCIAL
A179: ASSENTAMENTO DE TUBOS E PECAS | B179: ASTU | C179: FORNEC E/OU ASSENT DE TUBO DE CONCRETO COM JUNTA ARGAMASSADA | D179: 52 | G179: 92820 | H179: ASSENTAMENTO DE TUBO DE CONCRETO PARA REDES COLETORAS DE ÁGUAS PLUVIAIS, DIÂMETRO DE 300 MM, JUNTA RÍGIDA, INSTALADO EM LOCAL COM ALTO NÍVEL DE INTERFERÊNCIAS (NÃO INCLUI FORNECIMENTO). AF_12/2015 | I179: M | J179: ATRIBUÍDO SÃO PAULO | K179: 44.55 | L179: CAIXA REFERENCIAL
A180: ASSENTAMENTO DE TUBOS E PECAS | B180: ASTU | C180: FORNEC E/OU ASSENT DE TUBO DE CONCRETO COM JUNTA ARGAMASSADA | D180: 52 | G180: 92821 | H180: ASSENTAMENTO DE TUBO DE CONCRETO PARA REDES COLETORAS DE ÁGUAS PLUVIAIS, DIÂMETRO DE 400 MM, JUNTA RÍGIDA, INSTALADO EM LOCAL COM ALTO NÍVEL DE INTERFERÊNCIAS (NÃO INCLUI FORNECIMENTO). AF_12/2015 | I180: M | J180: ATRIBUÍDO SÃO PAULO | K180: 57.17 | L180: CAIXA REFERENCIAL
A181: ASSENTAMENTO DE TUBOS E PECAS | B181: ASTU | C181: FORNEC E/OU ASSENT DE TUBO DE CONCRETO COM JUNTA ARGAMASSADA | D181: 52 | G181: 92822 | H181: ASSENTAMENTO DE TUBO DE CONCRETO PARA REDES COLETORAS DE ÁGUAS PLUVIAIS, DIÂMETRO DE 500 MM, JUNTA RÍGIDA, INSTALADO EM LOCAL COM ALTO NÍVEL DE INTERFERÊNCIAS (NÃO INCLUI FORNECIMENTO). AF_12/2015 | I181: M | J181: ATRIBUÍDO SÃO PAULO | K181: 69.82 | L181: CAIXA REFERENCIAL
A182: ASSENTAMENTO DE TUBOS E PECAS | B182: ASTU | C182: FORNEC E/OU ASSENT DE TUBO DE CONCRETO COM JUNTA ARGAMASSADA | D182: 52 | G182: 92824 | H182: ASSENTAMENTO DE TUBO DE CONCRETO PARA REDES COLETORAS DE ÁGUAS PLUVIAIS, DIÂMETRO DE 600 MM, JUNTA RÍGIDA, INSTALADO EM LOCAL COM ALTO NÍVEL DE INTERFERÊNCIAS (NÃO INCLUI FORNECIMENTO). AF_12/2015 | I182: M | J182: ATRIBUÍDO SÃO PAULO | K182: 83.02 | L182: CAIXA REFERENCIAL
A183: ASSENTAMENTO DE TUBOS E PECAS | B183: ASTU | C183: FORNEC E/OU ASSENT DE TUBO DE CONCRETO COM JUNTA ARGAMASSADA | D183: 52 | G183: 92825 | H183: ASSENTAMENTO DE TUBO DE CONCRETO PARA REDES COLETORAS DE ÁGUAS PLUVIAIS, DIÂMETRO DE 700 MM, JUNTA RÍGIDA, INSTALADO EM LOCAL COM ALTO NÍVEL DE INTERFERÊNCIAS (NÃO INCLUI FORNECIMENTO). AF_12/2015 | I183: M | J183: ATRIBUÍDO SÃO PAULO | K183: 96.29 | L183: CAIXA REFERENCIAL
A184: ASSENTAMENTO DE TUBOS E PECAS | B184: ASTU | C184: FORNEC E/OU ASSENT DE TUBO DE CONCRETO COM JUNTA ARGAMASSADA | D184: 52 | G184: 92826 | H184: ASSENTAMENTO DE TUBO DE CONCRETO PARA REDES COLETORAS DE ÁGUAS PLUVIAIS, DIÂMETRO DE 800 MM, JUNTA RÍGIDA, INSTALADO EM LOCAL COM ALTO NÍVEL DE INTERFERÊNCIAS (NÃO INCLUI FORNECIMENTO). AF_12/2015 | I184: M | J184: ATRIBUÍDO SÃO PAULO | K184: 111.27 | L184: CAIXA REFERENCIAL
A185: ASSENTAMENTO DE TUBOS E PECAS | B185: ASTU | C185: FORNEC E/OU ASSENT DE TUBO DE CONCRETO COM JUNTA ARGAMASSADA | D185: 52 | G185: 92827 | H185: ASSENTAMENTO DE TUBO DE CONCRETO PARA REDES COLETORAS DE ÁGUAS PLUVIAIS, DIÂMETRO DE 900 MM, JUNTA RÍGIDA, INSTALADO EM LOCAL COM ALTO NÍVEL DE INTERFERÊNCIAS (NÃO INCLUI FORNECIMENTO). AF_12/2015 | I185: M | J185: ATRIBUÍDO SÃO PAULO | K185: 127.01 | L185: CAIXA REFERENCIAL
A186: ASSENTAMENTO DE TUBOS E PECAS | B186: ASTU | C186: FORNEC E/OU ASSENT DE TUBO DE CONCRETO COM JUNTA ARGAMASSADA | D186: 52 | G186: 92828 | H186: ASSENTAMENTO DE TUBO DE CONCRETO PARA REDES COLETORAS DE ÁGUAS PLUVIAIS, DIÂMETRO DE 1000 MM, JUNTA RÍGIDA, INSTALADO EM LOCAL COM ALTO NÍVEL DE INTERFERÊNCIAS (NÃO INCLUI FORNECIMENTO). AF_12/2015 | I186: M | J186: ATRIBUÍDO SÃO PAULO | K186: 145.39 | L186: CAIXA REFERENCIAL
A187: ASSENTAMENTO DE TUBOS E PECAS | B187: ASTU | C187: FORNEC E/OU ASSENT DE TUBO DE CONCRETO COM JUNTA ARGAMASSADA | D187: 52 | G187: 92829 | H187: TUBO DE CONCRETO PARA REDES COLETORAS DE ÁGUAS PLUVIAIS, DIÂMETRO DE 1200 MM, JUNTA RÍGIDA, INSTALADO EM LOCAL COM ALTO NÍVEL DE INTERFERÊNCIAS - FORNECIMENTO E ASSENTAMENTO. AF_12/2015 | I187: M | J187: ATRIBUÍDO SÃO PAULO | K187: 675.2 | L187: CAIXA REFERENCIAL
A188: ASSENTAMENTO DE TUBOS E PECAS | B188: ASTU | C188: FORNEC E/OU ASSENT DE TUBO DE CONCRETO COM JUNTA ARGAMASSADA | D188: 52 | G188: 92830 | H188: ASSENTAMENTO DE TUBO DE CONCRETO PARA REDES COLETORAS DE ÁGUAS PLUVIAIS, DIÂMETRO DE 1200 MM, JUNTA RÍGIDA, INSTALADO EM LOCAL COM ALTO NÍVEL DE INTERFERÊNCIAS (NÃO INCLUI FORNECIMENTO). AF_12/2015 | I188: M | J188: ATRIBUÍDO SÃO PAULO | K188: 180.35 | L188: CAIXA REFERENCIAL
A189: ASSENTAMENTO DE TUBOS E PECAS | B189: ASTU | C189: FORNEC E/OU ASSENT DE TUBO DE CONCRETO COM JUNTA ARGAMASSADA | D189: 52 | G189: 92831 | H189: TUBO DE CONCRETO PARA REDES COLETORAS DE ÁGUAS PLUVIAIS, DIÂMETRO DE 1500 MM, JUNTA RÍGIDA, INSTALADO EM LOCAL COM ALTO NÍVEL DE INTERFERÊNCIAS - FORNECIMENTO E ASSENTAMENTO. AF_12/2015 | I189: M | J189: ATRIBUÍDO SÃO PAULO | K189: 956.68 | L189: CAIXA REFERENCIAL
A190: ASSENTAMENTO DE TUBOS E PECAS | B190: ASTU | C190: FORNEC E/OU ASSENT DE TUBO DE CONCRETO COM JUNTA ARGAMASSADA | D190: 52 | G190: 92832 | H190: ASSENTAMENTO DE TUBO DE CONCRETO PARA REDES COLETORAS DE ÁGUAS PLUVIAIS, DIÂMETRO DE 1500 MM, JUNTA RÍGIDA, INSTALADO EM LOCAL COM ALTO NÍVEL DE INTERFERÊNCIAS (NÃO INCLUI FORNECIMENTO). AF_12/2015 | I190: M | J190: ATRIBUÍDO SÃO PAULO | K190: 239.75 | L190: CAIXA REFERENCIAL
A191: ASSENTAMENTO DE TUBOS E PECAS | B191: ASTU | C191: FORNEC E/OU ASSENT DE TUBO DE CONCRETO COM JUNTA ARGAMASSADA | D191: 52 | G191: 95565 | H191: TUBO DE CONCRETO PARA REDES COLETORAS DE ÁGUAS PLUVIAIS, DIÂMETRO DE 300MM, JUNTA RÍGIDA, INSTALADO EM LOCAL COM BAIXO NÍVEL DE INTERFERÊNCIAS - FORNECIMENTO E ASSENTAMENTO. AF_12/2015 | I191: M | J191: ATRIBUÍDO SÃO PAULO | K191: 115.19 | L191: CAIXA REFERENCIAL
A192: ASSENTAMENTO DE TUBOS E PECAS | B192: ASTU | C192: FORNEC E/OU ASSENT DE TUBO DE CONCRETO COM JUNTA ARGAMASSADA | D192: 52 | G192: 95566 | H192: TUBO DE CONCRETO PARA REDES COLETORAS DE ÁGUAS PLUVIAIS, DIÂMETRO DE 300MM, JUNTA RÍGIDA, INSTALADO EM LOCAL COM ALTO NÍVEL DE INTERFERÊNCIAS - FORNECIMENTO E ASSENTAMENTO. AF_12/2015 | I192: M | J192: ATRIBUÍDO SÃO PAULO | K192: 122.37 | L192: CAIXA REFERENCIAL
A193: ASSENTAMENTO DE TUBOS E PECAS | B193: ASTU | C193: FORNEC E/OU ASSENT DE TUBO DE CONCRETO COM JUNTA ARGAMASSADA | D193: 52 | G193: 95567 | H193: TUBO DE CONCRETO (SIMPLES) PARA REDES COLETORAS DE ÁGUAS PLUVIAIS, DIÂMETRO DE 300 MM, JUNTA RÍGIDA, INSTALADO EM LOCAL COM BAIXO NÍVEL DE INTERFERÊNCIAS - FORNECIMENTO E ASSENTAMENTO. AF_12/2015 | I193: M | J193: ATRIBUÍDO SÃO PAULO | K193: 79.9 | L193: CAIXA REFERENCIAL
A194: ASSENTAMENTO DE TUBOS E PECAS | B194: ASTU | C194: FORNEC E/OU ASSENT DE TUBO DE CONCRETO COM JUNTA ARGAMASSADA | D194: 52 | G194: 95568 | H194: TUBO DE CONCRETO (SIMPLES) PARA REDES COLETORAS DE ÁGUAS PLUVIAIS, DIÂMETRO DE 400 MM, JUNTA RÍGIDA, INSTALADO EM LOCAL COM BAIXO NÍVEL DE INTERFERÊNCIAS - FORNECIMENTO E ASSENTAMENTO. AF_12/2015 | I194: M | J194: ATRIBUÍDO SÃO PAULO | K194: 98.25 | L194: CAIXA REFERENCIAL
A195: ASSENTAMENTO DE TUBOS E PECAS | B195: ASTU | C195: FORNEC E/OU ASSENT DE TUBO DE CONCRETO COM JUNTA ARGAMASSADA | D195: 52 | G195: 95569 | H195: TUBO DE CONCRETO (SIMPLES) PARA REDES COLETORAS DE ÁGUAS PLUVIAIS, DIÂMETRO DE 500 MM, JUNTA RÍGIDA, INSTALADO EM LOCAL COM BAIXO NÍVEL DE INTERFERÊNCIAS - FORNECIMENTO E ASSENTAMENTO. AF_12/2015 | I195: M | J195: ATRIBUÍDO SÃO PAULO | K195: 133.22 | L195: CAIXA REFERENCIAL
A196: ASSENTAMENTO DE TUBOS E PECAS | B196: ASTU | C196: FORNEC E/OU ASSENT DE TUBO DE CONCRETO COM JUNTA ARGAMASSADA | D196: 52 | G196: 95570 | H196: TUBO DE CONCRETO (SIMPLES) PARA REDES COLETORAS DE ÁGUAS PLUVIAIS, DIÂMETRO DE 300 MM, JUNTA RÍGIDA, INSTALADO EM LOCAL COM ALTO NÍVEL DE INTERFERÊNCIAS - FORNECIMENTO E ASSENTAMENTO. AF_12/2015 | I196: M | J196: ATRIBUÍDO SÃO PAULO | K196: 87.08 | L196: CAIXA REFERENCIAL
A197: ASSENTAMENTO DE TUBOS E PECAS | B197: ASTU | C197: FORNEC E/OU ASSENT DE TUBO DE CONCRETO COM JUNTA ARGAMASSADA | D197: 52 | G197: 95571 | H197: TUBO DE CONCRETO (SIMPLES) PARA REDES COLETORAS DE ÁGUAS PLUVIAIS, DIÂMETRO DE 400 MM, JUNTA RÍGIDA, INSTALADO EM LOCAL COM ALTO NÍVEL DE INTERFERÊNCIAS - FORNECIMENTO E ASSENTAMENTO. AF_12/2015 | I197: M | J197: ATRIBUÍDO SÃO PAULO | K197: 107.43 | L197: CAIXA REFERENCIAL
A198: ASSENTAMENTO DE TUBOS E PECAS | B198: ASTU | C198: FORNEC E/OU ASSENT DE TUBO DE CONCRETO COM JUNTA ARGAMASSADA | D198: 52 | G198: 95572 | H198: TUBO DE CONCRETO (SIMPLES) PARA REDES COLETORAS DE ÁGUAS PLUVIAIS, DIÂMETRO DE 500 MM, JUNTA RÍGIDA, INSTALADO EM LOCAL COM ALTO NÍVEL DE INTERFERÊNCIAS - FORNECIMENTO E ASSENTAMENTO. AF_12/2015 | I198: M | J198: ATRIBUÍDO SÃO PAULO | K198: 144.62 | L198: CAIXA REFERENCIAL
A199: ASSENTAMENTO DE TUBOS E PECAS | B199: ASTU | C199: FORNEC E/OU ASSENT DE TUBO PVC DEFOFO COM JUNTA ELASTICA | D199: 230 | G199: 97127 | H199: ASSENTAMENTO DE TUBO DE PVC DEFOFO OU PRFV OU RPVC PARA REDE DE ÁGUA, DN 150 MM, JUNTA ELÁSTICA INTEGRADA, INSTALADO EM LOCAL COM NÍVEL ALTO DE INTERFERÊNCIAS (NÃO INCLUI FORNECIMENTO). AF_11/2017 | I199: M | J199: COEFICIENTE DE REPRESENTATIVIDADE | K199: 4 | L199: CAIXA REFERENCIAL
A200: ASSENTAMENTO DE TUBOS E PECAS | B200: ASTU | C200: FORNEC E/OU ASSENT DE TUBO PVC DEFOFO COM JUNTA ELASTICA | D200: 230 | G200: 97128 | H200: ASSENTAMENTO DE TUBO DE PVC DEFOFO OU PRFV OU RPVC PARA REDE DE ÁGUA, DN 200 MM, JUNTA ELÁSTICA INTEGRADA, INSTALADO EM LOCAL COM NÍVEL ALTO DE INTERFERÊNCIAS (NÃO INCLUI FORNECIMENTO). AF_11/2017 | I200: M | J200: ATRIBUÍDO SÃO PAULO | K200: 8.6 | L200: CAIXA REFERENCIAL
A201: ASSENTAMENTO DE TUBOS E PECAS | B201: ASTU | C201: FORNEC E/OU ASSENT DE TUBO PVC DEFOFO COM JUNTA ELASTICA | D201: 230 | G201: 97129 | H201: ASSENTAMENTO DE TUBO DE PVC DEFOFO OU PRFV OU RPVC PARA REDE DE ÁGUA, DN 250 MM, JUNTA ELÁSTICA INTEGRADA, INSTALADO EM LOCAL COM NÍVEL ALTO DE INTERFERÊNCIAS (NÃO INCLUI FORNECIMENTO). AF_11/2017 | I201: M | J201: ATRIBUÍDO SÃO PAULO | K201: 10.58 | L201: CAIXA REFERENCIAL
A202: ASSENTAMENTO DE TUBOS E PECAS | B202: ASTU | C202: FORNEC E/OU ASSENT DE TUBO PVC DEFOFO COM JUNTA ELASTICA | D202: 230 | G202: 97130 | H202: ASSENTAMENTO DE TUBO DE PVC DEFOFO OU PRFV OU RPVC PARA REDE DE ÁGUA, DN 300 MM, JUNTA ELÁSTICA INTEGRADA, INSTALADO EM LOCAL COM NÍVEL ALTO DE INTERFERÊNCIAS (NÃO INCLUI FORNECIMENTO). AF_11/2017 | I202: M | J202: ATRIBUÍDO SÃO PAULO | K202: 12.55 | L202: CAIXA REFERENCIAL
... 7358 more rows

Sheet Comp SINAPI AL 03-2023 Desoner (hidden)
A1: PCI.817.01 - CUSTO DE COMPOSIÇÕES - SINTÉTICO DATA DE EMISSÃO: 13/04/2023 23:05:33 DATA DE RT: 13/04/2023
A2: ENCARGOS SOCIAIS DESONERADOS: 85,14%(HORA) 46,59%(MÊS)
A3: ABRANGÊNCIA : NACIONAL LOCALIDADE : MACEIO DATA DE PREÇO : 03/2023 REFERÊNCIA COLETA : MEDIANO
A5: DESCRICAO DA CLASSE | B5: SIGLA DA CLASSE | C5: DESCRICAO DO TIPO 1 | D5: SIGLA DO TIPO 1 | E5: CODIGO DO AGRUPADOR | F5: DESCRICAO DO AGRUPADOR | G5: CODIGO DA COMPOSICAO | H5: DESCRICAO DA COMPOSICAO | I5: UNIDADE | J5: ORIGEM DE PREÇO | K5: CUSTO TOTAL | L5: VINCULO
A7: ASSENTAMENTO DE TUBOS E PECAS | B7: ASTU | C7: FORNEC E/OU ASSENT DE TUBO DE FERRO FUNDIDO JUNTA ELASTICA | D7: 45 | G7: 97141 | H7: ASSENTAMENTO DE TUBO DE FERRO FUNDIDO PARA REDE DE ÁGUA, DN 80 MM, JUNTA ELÁSTICA, INSTALADO EM LOCAL COM NÍVEL ALTO DE INTERFERÊNCIAS (NÃO INCLUI FORNECIMENTO). AF_11/2017 | I7: M | J7: ATRIBUÍDO SÃO PAULO | K7: 6.79 | L7: CAIXA REFERENCIAL
A8: ASSENTAMENTO DE TUBOS E PECAS | B8: ASTU | C8: FORNEC E/OU ASSENT DE TUBO DE FERRO FUNDIDO JUNTA ELASTICA | D8: 45 | G8: 97142 | H8: ASSENTAMENTO DE TUBO DE FERRO FUNDIDO PARA REDE DE ÁGUA, DN 100 MM, JUNTA ELÁSTICA, INSTALADO EM LOCAL COM NÍVEL ALTO DE INTERFERÊNCIAS (NÃO INCLUI FORNECIMENTO). AF_11/2017 | I8: M | J8: ATRIBUÍDO SÃO PAULO | K8: 7.54 | L8: CAIXA REFERENCIAL
A9: ASSENTAMENTO DE TUBOS E PECAS | B9: ASTU | C9: FORNEC E/OU ASSENT DE TUBO DE FERRO FUNDIDO JUNTA ELASTICA | D9: 45 | G9: 97143 | H9: ASSENTAMENTO DE TUBO DE FERRO FUNDIDO PARA REDE DE ÁGUA, DN 150 MM, JUNTA ELÁSTICA, INSTALADO EM LOCAL COM NÍVEL ALTO DE INTERFERÊNCIAS (NÃO INCLUI FORNECIMENTO). AF_11/2017 | I9: M | J9: ATRIBUÍDO SÃO PAULO | K9: 9.4 | L9: CAIXA REFERENCIAL
A10: ASSENTAMENTO DE TUBOS E PECAS | B10: ASTU | C10: FORNEC E/OU ASSENT DE TUBO DE FERRO FUNDIDO JUNTA ELASTICA | D10: 45 | G10: 97144 | H10: ASSENTAMENTO DE TUBO DE FERRO FUNDIDO PARA REDE DE ÁGUA, DN 200 MM, JUNTA ELÁSTICA, INSTALADO EM LOCAL COM NÍVEL ALTO DE INTERFERÊNCIAS (NÃO INCLUI FORNECIMENTO). AF_11/2017 | I10: M | J10: ATRIBUÍDO SÃO PAULO | K10: 11.23 | L10: CAIXA REFERENCIAL
A11: ASSENTAMENTO DE TUBOS E PECAS | B11: ASTU | C11: FORNEC E/OU ASSENT DE TUBO DE FERRO FUNDIDO JUNTA ELASTICA | D11: 45 | G11: 97145 | H11: ASSENTAMENTO DE TUBO DE FERRO FUNDIDO PARA REDE DE ÁGUA, DN 250 MM, JUNTA ELÁSTICA, INSTALADO EM LOCAL COM NÍVEL ALTO DE INTERFERÊNCIAS (NÃO INCLUI FORNECIMENTO). AF_11/2017 | I11: M | J11: ATRIBUÍDO SÃO PAULO | K11: 13.12 | L11: CAIXA REFERENCIAL
A12: ASSENTAMENTO DE TUBOS E PECAS | B12: ASTU | C12: FORNEC E/OU ASSENT DE TUBO DE FERRO FUNDIDO JUNTA ELASTICA | D12: 45 | G12: 97146 | H12: ASSENTAMENTO DE TUBO DE FERRO FUNDIDO PARA REDE DE ÁGUA, DN 300 MM, JUNTA ELÁSTICA, INSTALADO EM LOCAL COM NÍVEL ALTO DE INTERFERÊNCIAS (NÃO INCLUI FORNECIMENTO). AF_11/2017 | I12: M | J12: ATRIBUÍDO SÃO PAULO | K12: 14.97 | L12: CAIXA REFERENCIAL
A13: ASSENTAMENTO DE TUBOS E PECAS | B13: ASTU | C13: FORNEC E/OU ASSENT DE TUBO DE FERRO FUNDIDO JUNTA ELASTICA | D13: 45 | G13: 97147 | H13: ASSENTAMENTO DE TUBO DE FERRO FUNDIDO PARA REDE DE ÁGUA, DN 350 MM, JUNTA ELÁSTICA, INSTALADO EM LOCAL COM NÍVEL ALTO DE INTERFERÊNCIAS (NÃO INCLUI FORNECIMENTO). AF_11/2017 | I13: M | J13: ATRIBUÍDO SÃO PAULO | K13: 16.85 | L13: CAIXA REFERENCIAL
A14: ASSENTAMENTO DE TUBOS E PECAS | B14: ASTU | C14: FORNEC E/OU ASSENT DE TUBO DE FERRO FUNDIDO JUNTA ELASTICA | D14: 45 | G14: 97148 | H14: ASSENTAMENTO DE TUBO DE FERRO FUNDIDO PARA REDE DE ÁGUA, DN 400 MM, JUNTA ELÁSTICA, INSTALADO EM LOCAL COM NÍVEL ALTO DE INTERFERÊNCIAS (NÃO INCLUI FORNECIMENTO). AF_11/2017 | I14: M | J14: ATRIBUÍDO SÃO PAULO | K14: 18.7 | L14: CAIXA REFERENCIAL
A15: ASSENTAMENTO DE TUBOS E PECAS | B15: ASTU | C15: FORNEC E/OU ASSENT DE TUBO DE FERRO FUNDIDO JUNTA ELASTICA | D15: 45 | G15: 97149 | H15: ASSENTAMENTO DE TUBO DE FERRO FUNDIDO PARA REDE DE ÁGUA, DN 450 MM, JUNTA ELÁSTICA, INSTALADO EM LOCAL COM NÍVEL ALTO DE INTERFERÊNCIAS (NÃO INCLUI FORNECIMENTO). AF_11/2017 | I15: M | J15: ATRIBUÍDO SÃO PAULO | K15: 20.6 | L15: CAIXA REFERENCIAL
A16: ASSENTAMENTO DE TUBOS E PECAS | B16: ASTU | C16: FORNEC E/OU ASSENT DE TUBO DE FERRO FUNDIDO JUNTA ELASTICA | D16: 45 | G16: 97150 | H16: ASSENTAMENTO DE TUBO DE FERRO FUNDIDO PARA REDE DE ÁGUA, DN 500 MM, JUNTA ELÁSTICA, INSTALADO EM LOCAL COM NÍVEL ALTO DE INTERFERÊNCIAS (NÃO INCLUI FORNECIMENTO). AF_11/2017 | I16: M | J16: ATRIBUÍDO SÃO PAULO | K16: 26.62 | L16: CAIXA REFERENCIAL
A17: ASSENTAMENTO DE TUBOS E PECAS | B17: ASTU | C17: FORNEC E/OU ASSENT DE TUBO DE FERRO FUNDIDO JUNTA ELASTICA | D17: 45 | G17: 97151 | H17: ASSENTAMENTO DE TUBO DE FERRO FUNDIDO PARA REDE DE ÁGUA, DN 600 MM, JUNTA ELÁSTICA, INSTALADO EM LOCAL COM NÍVEL ALTO DE INTERFERÊNCIAS (NÃO INCLUI FORNECIMENTO). AF_11/2017 | I17: M | J17: ATRIBUÍDO SÃO PAULO | K17: 30.99 | L17: CAIXA REFERENCIAL
A18: ASSENTAMENTO DE TUBOS E PECAS | B18: ASTU | C18: FORNEC E/OU ASSENT DE TUBO DE FERRO FUNDIDO JUNTA ELASTICA | D18: 45 | G18: 97152 | H18: ASSENTAMENTO DE TUBO DE FERRO FUNDIDO PARA REDE DE ÁGUA, DN 700 MM, JUNTA ELÁSTICA, INSTALADO EM LOCAL COM NÍVEL ALTO DE INTERFERÊNCIAS (NÃO INCLUI FORNECIMENTO). AF_11/2017 | I18: M | J18: ATRIBUÍDO SÃO PAULO | K18: 35.15 | L18: CAIXA REFERENCIAL
A19: ASSENTAMENTO DE TUBOS E PECAS | B19: ASTU | C19: FORNEC E/OU ASSENT DE TUBO DE FERRO FUNDIDO JUNTA ELASTICA | D19: 45 | G19: 97153 | H19: ASSENTAMENTO DE TUBO DE FERRO FUNDIDO PARA REDE DE ÁGUA, DN 800 MM, JUNTA ELÁSTICA, INSTALADO EM LOCAL COM NÍVEL ALTO DE INTERFERÊNCIAS (NÃO INCLUI FORNECIMENTO). AF_11/2017 | I19: M | J19: ATRIBUÍDO SÃO PAULO | K19: 39.43 | L19: CAIXA REFERENCIAL
A20: ASSENTAMENTO DE TUBOS E PECAS | B20: ASTU | C20: FORNEC E/OU ASSENT DE TUBO DE FERRO FUNDIDO JUNTA ELASTICA | D20: 45 | G20: 97154 | H20: ASSENTAMENTO DE TUBO DE FERRO FUNDIDO PARA REDE DE ÁGUA, DN 900 MM, JUNTA ELÁSTICA, INSTALADO EM LOCAL COM NÍVEL ALTO DE INTERFERÊNCIAS (NÃO INCLUI FORNECIMENTO). AF_11/2017 | I20: M | J20: ATRIBUÍDO SÃO PAULO | K20: 43.72 | L20: CAIXA REFERENCIAL
A21: ASSENTAMENTO DE TUBOS E PECAS | B21: ASTU | C21: FORNEC E/OU ASSENT DE TUBO DE FERRO FUNDIDO JUNTA ELASTICA | D21: 45 | G21: 97155 | H21: ASSENTAMENTO DE TUBO DE FERRO FUNDIDO PARA REDE DE ÁGUA, DN 1000 MM, JUNTA ELÁSTICA, INSTALADO EM LOCAL COM NÍVEL ALTO DE INTERFERÊNCIAS (NÃO INCLUI FORNECIMENTO). AF_11/2017 | I21: M | J21: ATRIBUÍDO SÃO PAULO | K21: 48.05 | L21: CAIXA REFERENCIAL
A22: ASSENTAMENTO DE TUBOS E PECAS | B22: ASTU | C22: FORNEC E/OU ASSENT DE TUBO DE FERRO FUNDIDO JUNTA ELASTICA | D22: 45 | G22: 97156 | H22: ASSENTAMENTO DE TUBO DE FERRO FUNDIDO PARA REDE DE ÁGUA, DN 1200 MM, JUNTA ELÁSTICA, INSTALADO EM LOCAL COM NÍVEL ALTO DE INTERFERÊNCIAS (NÃO INCLUI FORNECIMENTO). AF_11/2017 | I22: M | J22: ATRIBUÍDO SÃO PAULO | K22: 57 | L22: CAIXA REFERENCIAL
A23: ASSENTAMENTO DE TUBOS E PECAS | B23: ASTU | C23: FORNEC E/OU ASSENT DE TUBO DE FERRO FUNDIDO JUNTA ELASTICA | D23: 45 | G23: 97157 | H23: ASSENTAMENTO DE TUBO DE FERRO FUNDIDO PARA REDE DE ÁGUA, DN 80 MM, JUNTA ELÁSTICA, INSTALADO EM LOCAL COM NÍVEL BAIXO DE INTERFERÊNCIAS (NÃO INCLUI FORNECIMENTO). AF_11/2017 | I23: M | J23: ATRIBUÍDO SÃO PAULO | K23: 4.18 | L23: CAIXA REFERENCIAL
A24: ASSENTAMENTO DE TUBOS E PECAS | B24: ASTU | C24: FORNEC E/OU ASSENT DE TUBO DE FERRO FUNDIDO JUNTA ELASTICA | D24: 45 | G24: 97158 | H24: ASSENTAMENTO DE TUBO DE FERRO FUNDIDO PARA REDE DE ÁGUA, DN 100 MM, JUNTA ELÁSTICA, INSTALADO EM LOCAL COM NÍVEL BAIXO DE INTERFERÊNCIAS (NÃO INCLUI FORNECIMENTO). AF_11/2017 | I24: M | J24: ATRIBUÍDO SÃO PAULO | K24: 4.65 | L24: CAIXA REFERENCIAL
A25: ASSENTAMENTO DE TUBOS E PECAS | B25: ASTU | C25: FORNEC E/OU ASSENT DE TUBO DE FERRO FUNDIDO JUNTA ELASTICA | D25: 45 | G25: 97159 | H25: ASSENTAMENTO DE TUBO DE FERRO FUNDIDO PARA REDE DE ÁGUA, DN 150 MM, JUNTA ELÁSTICA, INSTALADO EM LOCAL COM NÍVEL BAIXO DE INTERFERÊNCIAS (NÃO INCLUI FORNECIMENTO). AF_11/2017 | I25: M | J25: ATRIBUÍDO SÃO PAULO | K25: 5.79 | L25: CAIXA REFERENCIAL
A26: ASSENTAMENTO DE TUBOS E PECAS | B26: ASTU | C26: FORNEC E/OU ASSENT DE TUBO DE FERRO FUNDIDO JUNTA ELASTICA | D26: 45 | G26: 97160 | H26: ASSENTAMENTO DE TUBO DE FERRO FUNDIDO PARA REDE DE ÁGUA, DN 200 MM, JUNTA ELÁSTICA, INSTALADO EM LOCAL COM NÍVEL BAIXO DE INTERFERÊNCIAS (NÃO INCLUI FORNECIMENTO). AF_11/2017 | I26: M | J26: ATRIBUÍDO SÃO PAULO | K26: 6.92 | L26: CAIXA REFERENCIAL
A27: ASSENTAMENTO DE TUBOS E PECAS | B27: ASTU | C27: FORNEC E/OU ASSENT DE TUBO DE FERRO FUNDIDO JUNTA ELASTICA | D27: 45 | G27: 97161 | H27: ASSENTAMENTO DE TUBO DE FERRO FUNDIDO PARA REDE DE ÁGUA, DN 250 MM, JUNTA ELÁSTICA, INSTALADO EM LOCAL COM NÍVEL BAIXO DE INTERFERÊNCIAS (NÃO INCLUI FORNECIMENTO). AF_11/2017 | I27: M | J27: ATRIBUÍDO SÃO PAULO | K27: 8.1 | L27: CAIXA REFERENCIAL
A28: ASSENTAMENTO DE TUBOS E PECAS | B28: ASTU | C28: FORNEC E/OU ASSENT DE TUBO DE FERRO FUNDIDO JUNTA ELASTICA | D28: 45 | G28: 97162 | H28: ASSENTAMENTO DE TUBO DE FERRO FUNDIDO PARA REDE DE ÁGUA, DN 300 MM, JUNTA ELÁSTICA, INSTALADO EM LOCAL COM NÍVEL BAIXO DE INTERFERÊNCIAS (NÃO INCLUI FORNECIMENTO). AF_11/2017 | I28: M | J28: ATRIBUÍDO SÃO PAULO | K28: 9.24 | L28: CAIXA REFERENCIAL
A29: ASSENTAMENTO DE TUBOS E PECAS | B29: ASTU | C29: FORNEC E/OU ASSENT DE TUBO DE FERRO FUNDIDO JUNTA ELASTICA | D29: 45 | G29: 97163 | H29: ASSENTAMENTO DE TUBO DE FERRO FUNDIDO PARA REDE DE ÁGUA, DN 350 MM, JUNTA ELÁSTICA, INSTALADO EM LOCAL COM NÍVEL BAIXO DE INTERFERÊNCIAS (NÃO INCLUI FORNECIMENTO). AF_11/2017 | I29: M | J29: ATRIBUÍDO SÃO PAULO | K29: 10.41 | L29: CAIXA REFERENCIAL
A30: ASSENTAMENTO DE TUBOS E PECAS | B30: ASTU | C30: FORNEC E/OU ASSENT DE TUBO DE FERRO FUNDIDO JUNTA ELASTICA | D30: 45 | G30: 97164 | H30: ASSENTAMENTO DE TUBO DE FERRO FUNDIDO PARA REDE DE ÁGUA, DN 400 MM, JUNTA ELÁSTICA, INSTALADO EM LOCAL COM NÍVEL BAIXO DE INTERFERÊNCIAS (NÃO INCLUI FORNECIMENTO). AF_11/2017 | I30: M | J30: ATRIBUÍDO SÃO PAULO | K30: 11.56 | L30: CAIXA REFERENCIAL
A31: ASSENTAMENTO DE TUBOS E PECAS | B31: ASTU | C31: FORNEC E/OU ASSENT DE TUBO DE FERRO FUNDIDO JUNTA ELASTICA | D31: 45 | G31: 97165 | H31: ASSENTAMENTO DE TUBO DE FERRO FUNDIDO PARA REDE DE ÁGUA, DN 450 MM, JUNTA ELÁSTICA, INSTALADO EM LOCAL COM NÍVEL BAIXO DE INTERFERÊNCIAS (NÃO INCLUI FORNECIMENTO). AF_11/2017 | I31: M | J31: ATRIBUÍDO SÃO PAULO | K31: 12.74 | L31: CAIXA REFERENCIAL
A32: ASSENTAMENTO DE TUBOS E PECAS | B32: ASTU | C32: FORNEC E/OU ASSENT DE TUBO DE FERRO FUNDIDO JUNTA ELASTICA | D32: 45 | G32: 97166 | H32: ASSENTAMENTO DE TUBO DE FERRO FUNDIDO PARA REDE DE ÁGUA, DN 500 MM, JUNTA ELÁSTICA, INSTALADO EM LOCAL COM NÍVEL BAIXO DE INTERFERÊNCIAS (NÃO INCLUI FORNECIMENTO). AF_11/2017 | I32: M | J32: ATRIBUÍDO SÃO PAULO | K32: 16.45 | L32: CAIXA REFERENCIAL
A33: ASSENTAMENTO DE TUBOS E PECAS | B33: ASTU | C33: FORNEC E/OU ASSENT DE TUBO DE FERRO FUNDIDO JUNTA ELASTICA | D33: 45 | G33: 97167 | H33: ASSENTAMENTO DE TUBO DE FERRO FUNDIDO PARA REDE DE ÁGUA, DN 600 MM, JUNTA ELÁSTICA, INSTALADO EM LOCAL COM NÍVEL BAIXO DE INTERFERÊNCIAS (NÃO INCLUI FORNECIMENTO). AF_11/2017 | I33: M | J33: ATRIBUÍDO SÃO PAULO | K33: 19.19 | L33: CAIXA REFERENCIAL
A34: ASSENTAMENTO DE TUBOS E PECAS | B34: ASTU | C34: FORNEC E/OU ASSENT DE TUBO DE FERRO FUNDIDO JUNTA ELASTICA | D34: 45 | G34: 97168 | H34: ASSENTAMENTO DE TUBO DE FERRO FUNDIDO PARA REDE DE ÁGUA, DN 700 MM, JUNTA ELÁSTICA, INSTALADO EM LOCAL COM NÍVEL BAIXO DE INTERFERÊNCIAS (NÃO INCLUI FORNECIMENTO). AF_11/2017 | I34: M | J34: ATRIBUÍDO SÃO PAULO | K34: 21.69 | L34: CAIXA REFERENCIAL
A35: ASSENTAMENTO DE TUBOS E PECAS | B35: ASTU | C35: FORNEC E/OU ASSENT DE TUBO DE FERRO FUNDIDO JUNTA ELASTICA | D35: 45 | G35: 97169 | H35: ASSENTAMENTO DE TUBO DE FERRO FUNDIDO PARA REDE DE ÁGUA, DN 800 MM, JUNTA ELÁSTICA, INSTALADO EM LOCAL COM NÍVEL BAIXO DE INTERFERÊNCIAS (NÃO INCLUI FORNECIMENTO). AF_11/2017 | I35: M | J35: ATRIBUÍDO SÃO PAULO | K35: 24.34 | L35: CAIXA REFERENCIAL
A36: ASSENTAMENTO DE TUBOS E PECAS | B36: ASTU | C36: FORNEC E/OU ASSENT DE TUBO DE FERRO FUNDIDO JUNTA ELASTICA | D36: 45 | G36: 97170 | H36: ASSENTAMENTO DE TUBO DE FERRO FUNDIDO PARA REDE DE ÁGUA, DN 900 MM, JUNTA ELÁSTICA, INSTALADO EM LOCAL COM NÍVEL BAIXO DE INTERFERÊNCIAS (NÃO INCLUI FORNECIMENTO). AF_11/2017 | I36: M | J36: ATRIBUÍDO SÃO PAULO | K36: 26.99 | L36: CAIXA REFERENCIAL
A37: ASSENTAMENTO DE TUBOS E PECAS | B37: ASTU | C37: FORNEC E/OU ASSENT DE TUBO DE FERRO FUNDIDO JUNTA ELASTICA | D37: 45 | G37: 97171 | H37: ASSENTAMENTO DE TUBO DE FERRO FUNDIDO PARA REDE DE ÁGUA, DN 1000 MM, JUNTA ELÁSTICA, INSTALADO EM LOCAL COM NÍVEL BAIXO DE INTERFERÊNCIAS (NÃO INCLUI FORNECIMENTO). AF_11/2017 | I37: M | J37: ATRIBUÍDO SÃO PAULO | K37: 29.68 | L37: CAIXA REFERENCIAL
A38: ASSENTAMENTO DE TUBOS E PECAS | B38: ASTU | C38: FORNEC E/OU ASSENT DE TUBO DE FERRO FUNDIDO JUNTA ELASTICA | D38: 45 | G38: 97172 | H38: ASSENTAMENTO DE TUBO DE FERRO FUNDIDO PARA REDE DE ÁGUA, DN 1200 MM, JUNTA ELÁSTICA, INSTALADO EM LOCAL COM NÍVEL BAIXO DE INTERFERÊNCIAS (NÃO INCLUI FORNECIMENTO). AF_11/2017 | I38: M | J38: ATRIBUÍDO SÃO PAULO | K38: 35.33 | L38: CAIXA REFERENCIAL
A39: ASSENTAMENTO DE TUBOS E PECAS | B39: ASTU | C39: FORNEC E/OU ASSENT DE TUBO DE ACO COM JUNTA SOLDADA | D39: 46 | G39: 97173 | H39: ASSENTAMENTO DE TUBO DE AÇO CARBONO PARA REDE DE ÁGUA, DN 600 MM (24), JUNTA SOLDADA, INSTALADO EM LOCAL COM NÍVEL ALTO DE INTERFERÊNCIAS (NÃO INCLUI FORNECIMENTO). AF_11/2017 | I39: M | J39: ATRIBUÍDO SÃO PAULO | K39: 34.45 | L39: CAIXA REFERENCIAL
A40: ASSENTAMENTO DE TUBOS E PECAS | B40: ASTU | C40: FORNEC E/OU ASSENT DE TUBO DE ACO COM JUNTA SOLDADA | D40: 46 | G40: 97174 | H40: ASSENTAMENTO DE TUBO DE AÇO CARBONO PARA REDE DE ÁGUA, DN 700 MM (28), JUNTA SOLDADA, INSTALADO EM LOCAL COM NÍVEL ALTO DE INTERFERÊNCIAS (NÃO INCLUI FORNECIMENTO). AF_11/2017 | I40: M | J40: ATRIBUÍDO SÃO PAULO | K40: 39.92 | L40: CAIXA REFERENCIAL
A41: ASSENTAMENTO DE TUBOS E PECAS | B41: ASTU | C41: FORNEC E/OU ASSENT DE TUBO DE ACO COM JUNTA SOLDADA | D41: 46 | G41: 97175 | H41: ASSENTAMENTO DE TUBO DE AÇO CARBONO PARA REDE DE ÁGUA, DN 800 MM (32), JUNTA SOLDADA, INSTALADO EM LOCAL COM NÍVEL ALTO DE INTERFERÊNCIAS (NÃO INCLUI FORNECIMENTO). AF_11/2017 | I41: M | J41: ATRIBUÍDO SÃO PAULO | K41: 45.42 | L41: CAIXA REFERENCIAL
A42: ASSENTAMENTO DE TUBOS E PECAS | B42: ASTU | C42: FORNEC E/OU ASSENT DE TUBO DE ACO COM JUNTA SOLDADA | D42: 46 | G42: 97176 | H42: ASSENTAMENTO DE TUBO DE AÇO CARBONO PARA REDE DE ÁGUA, DN 900 MM (36), JUNTA SOLDADA, INSTALADO EM LOCAL COM NÍVEL ALTO DE INTERFERÊNCIAS (NÃO INCLUI FORNECIMENTO). AF_11/2017 | I42: M | J42: ATRIBUÍDO SÃO PAULO | K42: 50.91 | L42: CAIXA REFERENCIAL
A43: ASSENTAMENTO DE TUBOS E PECAS | B43: ASTU | C43: FORNEC E/OU ASSENT DE TUBO DE ACO COM JUNTA SOLDADA | D43: 46 | G43: 97177 | H43: ASSENTAMENTO DE TUBO DE AÇO CARBONO PARA REDE DE ÁGUA, DN 1000 MM (40) OU DN 1100 MM (44), JUNTA SOLDADA, INSTALADO EM LOCAL COM NÍVEL ALTO DE INTERFERÊNCIAS (NÃO INCLUI FORNECIMENTO). AF_11/2017 | I43: M | J43: ATRIBUÍDO SÃO PAULO | K43: 61.89 | L43: CAIXA REFERENCIAL
A44: ASSENTAMENTO DE TUBOS E PECAS | B44: ASTU | C44: FORNEC E/OU ASSENT DE TUBO DE ACO COM JUNTA SOLDADA | D44: 46 | G44: 97178 | H44: ASSENTAMENTO DE TUBO DE AÇO CARBONO PARA REDE DE ÁGUA, DN 1200 MM (48) OU DN 1300 MM (52), JUNTA SOLDADA, INSTALADO EM LOCAL COM NÍVEL ALTO DE INTERFERÊNCIAS (NÃO INCLUI FORNECIMENTO). AF_11/2017 | I44: M | J44: ATRIBUÍDO SÃO PAULO | K44: 72.87 | L44: CAIXA REFERENCIAL
A45: ASSENTAMENTO DE TUBOS E PECAS | B45: ASTU | C45: FORNEC E/OU ASSENT DE TUBO DE ACO COM JUNTA SOLDADA | D45: 46 | G45: 97179 | H45: ASSENTAMENTO DE TUBO DE AÇO CARBONO PARA REDE DE ÁGUA, DN 1400 MM (56'') OU DN 1500 MM (60), JUNTA SOLDADA, INSTALADO EM LOCAL COM NÍVEL ALTO DE INTERFERÊNCIAS (NÃO INCLUI FORNECIMENTO). AF_11/2017 | I45: M | J45: ATRIBUÍDO SÃO PAULO | K45: 83.86 | L45: CAIXA REFERENCIAL
